Workbook

Sheet REESTR_MO (hidden)
A1: МР | B1: МО | C1: МО_ОКТМО | D1: МР | E1: ИМЯ ДИАПАЗОНА
A2: Александровский | B2: Александровский | C2: 69604000 | D2: Александровский | E2: MO_LIST_2
A3: Александровский | B3: Александровское | C3: 69604410 | D3: Асиновский | E3: MO_LIST_3
A4: Александровский | B4: Лукашкин-Ярское | C4: 69604420 | D4: Бакчарский | E4: MO_LIST_4
A5: Александровский | B5: Назинское | C5: 69604430 | D5: Верхнекетский | E5: MO_LIST_5
A6: Александровский | B6: Новоникольское | C6: 69604440 | D6: Городской округ "Город Томск" | E6: MO_LIST_6
A7: Александровский | B7: Октябрьское | C7: 69604444 | D7: Городской округ "ЗАТО Северск" | E7: MO_LIST_7
A8: Александровский | B8: Северное | C8: 69604448 | D8: Городской округ "Пудинское" | E8: MO_LIST_8
A9: Асиновский | B9: Асиновский | C9: 69608000 | D9: Городской округ "город Стрежевой" | E9: MO_LIST_9
A10: Асиновский | B10: Асиновское городское | C10: 69608101 | D10: Зырянский | E10: MO_LIST_10
A11: Асиновский | B11: Батуринское | C11: 69608408 | D11: Каргасокский | E11: MO_LIST_11
A12: Асиновский | B12: Большедороховское | C12: 69608410 | D12: Кожевниковский | E12: MO_LIST_12
A13: Асиновский | B13: Новиковское | C13: 69608440 | D13: Колпашевский | E13: MO_LIST_13
A14: Асиновский | B14: Новокусковское | C14: 69608450 | D14: Кривошеинский | E14: MO_LIST_14
A15: Асиновский | B15: Новониколаевское | C15: 69608460 | D15: Молчановский | E15: MO_LIST_15
A16: Асиновский | B16: Ягодное | C16: 69608480 | D16: Парабельский | E16: MO_LIST_16
A17: Бакчарский | B17: Бакчарский | C17: 69612000 | D17: Первомайский | E17: MO_LIST_17
A18: Бакчарский | B18: Бакчарское | C18: 69612406 | D18: Тегульдетский | E18: MO_LIST_18
A19: Бакчарский | B19: Вавиловское | C19: 69612415 | D19: Томский | E19: MO_LIST_19
A20: Бакчарский | B20: Высокоярское | C20: 69612420 | D20: Чаинский | E20: MO_LIST_20
A21: Бакчарский | B21: Парбигское | C21: 69612455 | D21: Шегарский | E21: MO_LIST_21
A22: Бакчарский | B22: Плотниковское | C22: 69612460
A23: Бакчарский | B23: Поротниковское | C23: 69612475
A24: Верхнекетский | B24: Белоярское городское | C24: 69616151
A25: Верхнекетский | B25: Верхнекетский | C25: 69616000
A26: Верхнекетский | B26: Катайгинское | C26: 69616410
A27: Верхнекетский | B27: Клюквинское | C27: 69616420
A28: Верхнекетский | B28: Макзырское | C28: 69616440
A29: Верхнекетский | B29: Орловское | C29: 69616450
A30: Верхнекетский | B30: Палочкинское | C30: 69616445
A31: Верхнекетский | B31: Сайгинское | C31: 69616470
A32: Верхнекетский | B32: Степановское | C32: 69616480
A33: Верхнекетский | B33: Ягоднинское | C33: 69616490
A34: Городской округ "Город Томск" | B34: Городской округ "Город Томск" | C34: 69701000
A35: Городской округ "ЗАТО Северск" | B35: Городской округ "ЗАТО Северск" | C35: 69741000
A36: Городской округ "Пудинское" | B36: Городской округ "Пудинское" | C36: 69707000
A37: Городской округ "город Стрежевой" | B37: Городской округ "Город Стрежевой" | C37: 69710000
A38: Городской округ "город Стрежевой" | B38: Городской округ "город Стрежевой" | C38: 69710000
A39: Зырянский | B39: Высоковское | C39: 69620407
A40: Зырянский | B40: Дубровское | C40: 69620410
A41: Зырянский | B41: Зырянский | C41: 69620000
A42: Зырянский | B42: Зырянское | C42: 69620421
A43: Зырянский | B43: Михайловское | C43: 69620431
A44: Зырянский | B44: Чердатское | C44: 69620440
A45: Каргасокский | B45: Вертикосское | C45: 69624416
A46: Каргасокский | B46: Каргасокский | C46: 69624000
A47: Каргасокский | B47: Каргасокское | C47: 69624422
A48: Каргасокский | B48: Киндальское | C48: 69624424
A49: Каргасокский | B49: Нововасюганское | C49: 69624440
A50: Каргасокский | B50: Новоюгинское | C50: 69624442
A51: Каргасокский | B51: Сосновское | C51: 69624448
A52: Каргасокский | B52: Средневасюганское | C52: 69624452
A53: Каргасокский | B53: Среднетымское | C53: 69624456
A54: Каргасокский | B54: Тевризское | C54: 69624468
A55: Каргасокский | B55: Толпаровское | C55: 69624472
A56: Каргасокский | B56: Тымское | C56: 69624476
A57: Каргасокский | B57: Усть-Тымское | C57: 69624480
A58: Каргасокский | B58: Усть-Чижапское | C58: 69624484
A59: Кожевниковский | B59: Вороновское | C59: 69628475
A60: Кожевниковский | B60: Кожевниковский | C60: 69628000
A61: Кожевниковский | B61: Кожевниковское | C61: 69628435
A62: Кожевниковский | B62: Малиновское | C62: 69628440
A63: Кожевниковский | B63: Новопокровское | C63: 69628445
A64: Кожевниковский | B64: Песочнодубровское | C64: 69628460
A65: Кожевниковский | B65: Староювалинское | C65: 69628465
A66: Кожевниковский | B66: Уртамское | C66: 69628470
A67: Кожевниковский | B67: Чилинское | C67: 69628480
A68: Колпашевский | B68: Дальненское | C68: 69632405
A69: Колпашевский | B69: Инкинское | C69: 69632415
A70: Колпашевский | B70: Колпашевский | C70: 69632000
A71: Колпашевский | B71: Колпашевское городское | C71: 69632101
A72: Колпашевский | B72: Копыловское | C72: 69632420
A73: Колпашевский | B73: Национальное Иванкинское | C73: 69632407
A74: Колпашевский | B74: Новогоренское | C74: 69632490
A75: Колпашевский | B75: Новоселовское | C75: 69632455
A76: Колпашевский | B76: Саровское | C76: 69632465
A77: Колпашевский | B77: Чажемтовское | C77: 69632485
A78: Кривошеинский | B78: Володинское | C78: 69636410
A79: Кривошеинский | B79: Иштанское | C79: 69636420
A80: Кривошеинский | B80: Красноярское | C80: 69636423
A81: Кривошеинский | B81: Кривошеинский | C81: 69636000
A82: Кривошеинский | B82: Кривошеинское | C82: 69636426
A83: Кривошеинский | B83: Новокривошеинское | C83: 69636440
A84: Кривошеинский | B84: Петровское | C84: 69636445
A85: Кривошеинский | B85: Пудовское | C85: 69636450
A86: Молчановский | B86: Могочинское | C86: 69640422
A87: Молчановский | B87: Молчановский | C87: 69640000
A88: Молчановский | B88: Молчановское | C88: 69640425
A89: Молчановский | B89: Наргинское | C89: 69640427
A90: Молчановский | B90: Суйгинское | C90: 69640440
A91: Молчановский | B91: Тунгусовское | C91: 69640450
A92: Парабельский | B92: Заводское | C92: 69644418
A93: Парабельский | B93: Нарымское | C93: 69644430
A94: Парабельский | B94: Новосельцевское | C94: 69644440
A95: Парабельский | B95: Парабельский | C95: 69644000
A96: Парабельский | B96: Парабельское | C96: 69644445
A97: Парабельский | B97: Старицинское | C97: 69644455
A98: Первомайский | B98: Комсомольское | C98: 69648422
A99: Первомайский | B99: Куяновское | C99: 69648425
A100: Первомайский | B100: Новомариинское | C100: 69648430
A101: Первомайский | B101: Первомайский | C101: 69648000
A102: Первомайский | B102: Первомайское | C102: 69648440
A103: Первомайский | B103: Сергеевское | C103: 69648445
A104: Первомайский | B104: Улу-Юльское | C104: 69648450
A105: Тегульдетский | B105: Белоярское | C105: 69652410
A106: Тегульдетский | B106: Берегаевское | C106: 69652420
A107: Тегульдетский | B107: Тегульдетский | C107: 69652000
A108: Тегульдетский | B108: Тегульдетское | C108: 69652440
A109: Тегульдетский | B109: Черноярское | C109: 69652460
A110: Томский | B110: Богашевское | C110: 69654408
A111: Томский | B111: Воронинское | C111: 69654413
A112: Томский | B112: Заречное | C112: 69654420
A113: Томский | B113: Зональненское | C113: 69654428
A114: Томский | B114: Зоркальцевское | C114: 69654416
A115: Томский | B115: Итатское | C115: 69654417
A116: Томский | B116: Калтайское | C116: 69654430
A117: Томский | B117: Копыловское | C117: 69654432
A118: Томский | B118: Корниловское | C118: 69654436
A119: Томский | B119: Малиновское | C119: 69654448
A120: Томский | B120: Межениновское | C120: 69654453
A121: Томский | B121: Мирненское | C121: 69654454
A122: Томский | B122: Моряковское | C122: 69654455
A123: Томский | B123: Наумовское | C123: 69654457
A124: Томский | B124: Новорождественское | C124: 69654460
A125: Томский | B125: Октябрьское | C125: 69654463
A126: Томский | B126: Рыбаловское | C126: 69654480
A127: Томский | B127: Спасское | C127: 69654483
A128: Томский | B128: Томский | C128: 69654000
A129: Томский | B129: Турунтаевское | C129: 69654492
A130: Чаинский | B130: Коломинское | C130: 69656430
A131: Чаинский | B131: Подгорнское | C131: 69656450
A132: Чаинский | B132: Усть-Бакчарское | C132: 69656455
A133: Чаинский | B133: Чаинский | C133: 69656000
A134: Чаинский | B134: Чаинское | C134: 69656460
A135: Шегарский | B135: Анастасьевское | C135: 69658405
A136: Шегарский | B136: Баткатское | C136: 69658415
A137: Шегарский | B137: Побединское | C137: 69658460
A138: Шегарский | B138: Северное | C138: 69658450
A139: Шегарский | B139: Трубачевское | C139: 69658455
A140: Шегарский | B140: Шегарский | C140: 69658000
A141: Шегарский | B141: Шегарское | C141: 69658485

Sheet анкета
B2: Сведения об организации
B4: Регион РФ | C4: Томская область
B6: Муниципальный район | C6: Наименование МР
B7: Муниципальное образование | C7: Наименование МО
B9: Является ли данное юридическое лицо подразделением(филиалом) другой организации | C9: да
B11: Полное наименование организации | F11: Почтовый адрес:
B12: группа котельных | F12: Тел/факс:
B13: Наименование ПОДРАЗДЕЛЕНИЯ (если филиал) | F13: E-mail:
B14: ИНН | F14: Должность руководителя
B15: КПП | F15: Ф.И.О. (полностью)
B17: Вид деятельности | C17: теплоснабжение | F17: Количество котельных | G17: 1
B19: предбазовый период | C19: 2013
B20: базовый период | C20: 2014
B21: Планируемый период регулирования | C21: 2015
B22: Период регулирования | C22: 1 год
B24: Виды услуг в системе теплоснабжения | C24: производство тепловой энергии (некомбинированная выработка)+ передача+сбыт
B26: теплоноситель | C26: горячая вода
B28: вид топлива 1 | C28: уголь, тонн
B29: вид топлива 2
B30: вид топлива 3
B32: Принимает в сеть от транспортировщиков | C32: нет
B33: Отдаёт для передачи транспортировщикам | C33: нет
B35: Система налогообложения | C35: без учета НДС

Sheet списки (hidden)
A2: Александровское | D2: Александровский
A3: Анастасьевское | B3: без учета НДС | D3: Асиновский
A4: Асиновское городское | B4: НДС не предусмотрен | D4: Бакчарский
A5: Базойское | D5: Верхнекетский
A6: Бакчарское | D6: г.Северск
A7: Баткатское | D7: г.Стрежевой
A8: Батуринское | D8: г.Томск
A9: Белоярское | B9: производство тепловой энергии (некомбинированная выработка) | D9: Зырянский район
A10: Белоярское городское | B10: производство тепловой энергии (некомбинированная выработка)+ передача+сбыт | D10: Каргасокский район
A11: Берегаевское | B11: передача тепловой энергии | D11: Кожевниковский район
A12: Богатыревское | B12: передача + сбыт тепловой энергии | D12: Колпашевский район
A13: Богашевское | D13: Кривошеинский район
A14: Большедороховское | D14: Молчановский район
A15: Вавиловское | D15: Парабельский район
A16: Вертикосское | D16: Первомайский район
A17: Володинское | B17: 2010 | D17: Тегульдетский район
A18: Воронинское | B18: 2011 | D18: Чаинский район
A19: Вороновское | B19: 2012 | D19: Шегарский район
A20: Высоковское | B20: 2013 | D20: г.Кедровый
A21: Высокоярское | B21: 2014 | D21: Томский район
A22: Галкинское | B22: 2015
A23: Город Колпашево
A24: Городской округ "Город Стрежевой"
A25: Городской округ "Город Томск"
A26: Городской округ "ЗАТО Северск"
A27: Городской округ "Пудинское" | B27: 1 год | D27: план 2011
A28: Дальненское | B28: 2 года | D28: факт 2011
A29: Дубровское | B29: 3 года | D29: план 2012
A30: Заводское | B30: 4 года | D30: план 2012 (с календарной разбивкой)
A31: Заречное | B31: 5 лет | D31: тариф план 2013
A32: Зональненское | D32: тариф план 2013(I полугодие)
A33: Зоркальцевское | D33: тариф план 2013 (II полугодие)
A34: Зырянское | B34: да
A35: Инкинское | B35: нет
A36: Итатское
A37: Иштанское | D37: горячая вода
A38: Калтайское | D38: отборный пар
A39: Каргасокское
A40: Катайгинское
A41: Киндальское | D41: уголь, тонн | E41: =натуральные!I2 -> 5000 | F41: =топливо!K2 -> 1.075 | G41: тонн | H41: руб./т
A42: Клюквинское | B42: доходы | D42: нефть, тонн | E42: =натуральные!I3 -> 9500 | F42: =топливо!K4 -> 110.3 | G42: тонн | H42: руб./т
A43: Кожевниковское | B43: доходы минус расходы | D43: мазут, тонн | E43: =натуральные!I4 -> 9500 | F43: =топливо!N2 -> 0 | G43: тонн | H43: руб./т
A44: Коломинское | D44: газ природный, тыс. м3 | E44: =натуральные!L2 -> 7900 | F44: =топливо!N3 -> 106 | G44: тыс. м3 | H44: руб./тыс. м3
A45: Комсомольское | D45: газ попутный, тыс. м3 | E45: =натуральные!L3 -> 7900 | F45: =топливо!N4 -> 106 | G45: тыс. м3 | H45: руб./тыс. м3
A46: Копыловское | B46: организация | D46: дрова, м3 | E46: =натуральные!L4 -> 1862 | F46: =топливо!Q2 -> 108.5 | G46: м3 | H46: руб./м3
A47: Копыловское | B47: ДТР ТО | D47: электроэнергия, тыс.кВт*ч | E47: =натуральные!O2 -> 860 | F47: =топливо!Q3 -> 107.6 | G47: тыс.кВт*ч | H47: руб./ тыс.кВт*ч
A48: Корниловское | D48: диз. топливо, тонн | E48: =натуральные!O3 -> 10180 | F48: =топливо!Q4 -> 0 | G48: тонн | H48: руб./т
A49: Красногорское | D49: прочие виды топлива
A50: Красноярское
A51: Кривошеинское
A52: Курлекское
A53: Куяновское
A54: Лукашкин-Ярское
A55: Макзырское | D55: тонн
A56: Малиновское | D56: тыс. м3
A57: Малиновское | D57: м3
A58: Межениновское | D58: тыс.кВт*ч
A59: Мирнинское | B59: 01.01-30.06
A60: Михайловское | B60: 01.07-30.09
A61: Могочинское | B61: 01.07-31.12 | D61: руб./тн
A62: Молчановское | B62: 01.10-31.12 | D62: руб./тыс. м3
A63: Моряковское | D63: руб./м3
A64: Назинское | D64: руб./тыс.кВт*ч
A65: Наргинское
A66: Нарымское
A67: Наумовское | B67: Хлор жидкий
A68: Национальное Иванкинское | B68: Известь хлорная
A69: Новиковское | B69: Гипохлорит натрия
A70: Нововасюганское | B70: Коагулянт
A71: Новогоренское | B71: реагенты для проведения хим.анализа
A72: Новокривошеинское
A73: Новокусковское
A74: Новомариинское
A75: Новониколаевское | B75: поверхностные источники
A76: Новоникольское | B76: подземные источники
A77: Новопокровское
A78: Новорождественское
A79: Новоселовское
A80: Новосельцевское
A81: Новоюгинское
A82: Октябрьское
A83: Октябрьское
A84: Орловское
A85: Палочкинское
A86: Парабельское
A87: Парбигское
A88: Первомайское
A89: Песочно-Дубровское
A90: Петровское
A91: Плотниковское
A92: Побединское
A93: Подгорнское
A94: Поротниковское
A95: Пудовское
A96: Рыбаловское
A97: Сайгинское
A98: Саровское
A99: Северное
A100: Северное
A101: Сельские поселения Бакчарского муниципального района
A102: Сельские поселения Верхнекетского муниципального района
A103: Сельские поселения Зырянского муниципального района (Зырянское, Михайловское, Высоковское)
A104: Сельские поселения Парабельского муниципального района
A105: Сельские поселения Томского муниципального района (Межениновское, Наумовское, Спасское)
A106: Сергеевское
A107: Сосновское
A108: Спасское
A109: Средневасюганское
A110: Среднетымское
A111: Старицинское
A112: Староювалинское
A113: Степановское
A114: Суйгинское
A115: Тевризское
A116: Тегульдетское
A117: Тогурское
A118: Толпаровское
A119: Трубачевское
A120: Тунгусовское
A121: Турунтаевское
A122: Тымское
A123: Улу-Юльское
A124: Уртамское
A125: Усть-Бакчарское
A126: Усть-Тымское
A127: Усть-Чижапское
A128: Чажемтовское
A129: Чаинское
A130: Чердатское
A131: Черноярское
A132: Чернышевское
A133: Четское
A134: Чилинское
A135: Шегарское
A136: Ягоднинское
A137: Ягодное

Sheet дефляторы
A3: № п/п | B3: Наименование показателя | C3: по данным организации | G3: по данным ДТР ТО
C4: Индекс роста 2014 /2013 | E4: Индекс роста 2015 /2014 | G4: Индекс роста 2014 /2013 | I4: Индекс роста 2015 /2014
C5: с 01.07.2014 | D5: среднегодовой | E5: с 01.07.2015* | F5: среднегодовой | G5: с 01.07.2014 | H5: среднегодовой | I5: с 01.07.2015* | J5: среднегодовой
A6: 1. | B6: Основные материалы | G6: 1.067 | H6: 1.085 | I6: 1.048 | J6: 1.046
A7: 2. | B7: Вспомогательные материалы, включая химреагенты | G7: 1.067 | H7: 1.085 | I7: 1.048 | J7: 1.046
A8: 3. | B8: Вода на технологические нужды | G8: 1.06 | H8: 1.067 | I8: 1.0425 | J8: 1.051
A9: 4. | B9: Работы услуги производственного характера (ремонтные и регламентные работы, транспортные расходы и другие работы и услуги) | G9: 1.067 | H9: 1.085 | I9: 1.048 | J9: 1.046
A10: 5. | B10: Топливо на технологические цели, в т.ч.: | G10: х | H10: х | I10: х | J10: х
A11: 5.1.1. | B11: уголь | G11: 1.05 | H11: 1.035 | I11: 1.075 | J11: 1.049
A12: 5.1.2. | B12: газ природный (включая попутный) | G12: 1 | H12: 1.048 | I12: 1.06 | J12: 1.033
A13: 5.1.3. | B13: мазут | G13: 1.022 | H13: 1.11
A14: 5.1.4. | B14: нефть | G14: 1.022 | H14: 1.11 | I14: 1.103 | J14: 1.033
A15: 5.1.5. | B15: дизельное топливо | G15: 1.105 | H15: 1.113 | I15: 1 | J15: 1.034
A16: 5.1.6. | B16: дрова | G16: 1.055 | H16: 1.037 | I16: 1.085 | J16: 1.085
A17: 5.2.1. | B17: стоимость ж/д перевозок | G17: х | H17: 1 | I17: х | J17: 1.06
A18: 5.2.2. | B18: грузовой транспорт | G18: 1.067 | H18: 1.085 | I18: 1.048 | J18: 1.046
A19: 6. | B19: Энергия на технологические цели, в т.ч.: | G19: х | H19: х | I19: х | J19: х
A20: 6.1. | B20: электроэнергия | G20: 1.052 | H20: 1.067 | I20: 1.076 | J20: 1.065
A21: 6.2. | B21: теплоэнергия | G21: 1.042 | H21: 1.072 | I21: 1.06 | J21: 1.051
A22: 7. | B22: Затраты на оплату труда | G22: 1.06 | H22: 1.067 | I22: 1.05 | J22: 1.051
A23: 7.1. | B23: Размер страховых взносов от ФОТ (ПФ,ФСС,ФМС) | G23: 1.06 | H23: 1.067 | I23: 1.05 | J23: 1.051
A24: 8. | B24: Амортизация основных фондов | G24: 1 | H24: 1 | I24: 1 | J24: 1
A25: 9. | B25: Налоги и сборы | G25: 1 | H25: 1 | I25: 1 | J25: 1
A26: 10. | B26: Арендная плата (по договору, но не более индекса изменения) | G26: 1 | H26: 1 | I26: 1 | J26: 1
A27: 11. | B27: Прочие затраты | G27: 1.067 | H27: 1.085 | I27: 1.048 | J27: 1.046
A28: 12. | B28: Прибыль (размер рентабельности не более 7%)

Sheet ставки
B2: Ставки налогов и платежей
B4: Наименование организации: | D4: =анкета!C11 -> 0
B6: Периоды регулирования | C6: год | D6: размер страховых взносов | G6: Ставка налога на прибыль (%) | H6: Налогообложение
D7: всего | E7: в том числе:
E8: ПФ, ФСС,ОМС (в % от ФОТ) | F8: страхование от несчастных случаев на производстве и профессиональных заболеваний, % | H8: Является ли организация плательщиком НДС? | I8: система налогообложения | J8: объект налогообложения | K8: налоговая ставка при УСН
B9: Предбазовый период | C9: 2011 | D9: =E9+F9 -> 0 | I9: =IF(H9="да", "ОСН",IF(H9="нет","упрощенная система",0)) -> 0 | K9: =IF(J9="доходы",6,IF(J9="доходы минус расходы",10,0)) -> 0
C10: 2012 | D10: 0 | I10: 0 | K10: 0
C11: 2013 | D11: 0 | I11: =IF(H11="да", "ОСН",IF(H11="нет","упрощенная система",0)) -> 0 | K11: =IF(J11="доходы",6,IF(J11="доходы минус расходы",10,0)) -> 0
B12: Базовый период | C12: 2014 | D12: 0 | I12: =IF(H12="да", "ОСН",IF(H12="нет","упрощенная система",0)) -> 0 | K12: =IF(J12="доходы",6,IF(J12="доходы минус расходы",10,0)) -> 0
B13: Период регулирования (по данным организации) | C13: 2015 | D13: =E13+F13 -> 0 | I13: =IF(H13="да", "ОСН",IF(H13="нет","упрощенная система",0)) -> 0 | K13: 0
B14: Период регулирования (по данным ДТР ТО) | C14: 2015 | D14: =E14+F14 -> 0 | I14: =IF(H14="да", "ОСН",IF(H14="нет","упрощенная система",0)) -> 0 | K14: 0

Sheet объекты
A1: =анкета!C11 -> 0
A2: Котельная | B2: 1
A3: Технические параметры котлов | P3: Водоподготовка | R3: Исходная вода
A4: Марка котлов | D4: Режим работы котлов | F4: КПД котлов | G4: Единич. мощность котлов | H4: Кол-во котлов | I4: Общая мощность котельной | J4: Год | M4: Завод-изготовитель (фирма) | N4: Вид топлива | P4: Схема ВПУ | Q4: Производи-тельность, т/час | R4: Жесткость, мг-экв/кг | S4: артезианская, речная и т. п. | T4: покупная или собственной добычи
D5: паровой, водогрейный, на ГВС | F5: % | G5: Гкал/час. | H5: шт. | I5: Гкал/час. | J5: изготовления | K5: монтажа | L5: послед. кап. ремонта
A18: ИТОГО | I18: =SUM(I6:I17) -> 0
A19: Виды топлива, используемые в котельной: | D19: нефть, тонн | H19: резервное
A20: Установлено приборов учета в котельной по видам ресурсов (тип и количество) | I20: Характеристика и исполнение тепловой сети
A21: Вид ресурсов | C21: топливо | D21: э/энергия | E21: тепловая энергия | G21: холодная вода | I21: открытая, км | K21: закрытая, км | M21: надземная, км | O21: подземная, км | Q21: 2-х трубн, км. | S21: 4-х трубн., км
A22: Тип прибора
A23: Количество, шт

Sheet балансы
E1: Низшая теплота сгорания топлива
A2: Натуральные показатели для объекта: | B2: =анкета!C11 -> 0 | E2: Уголь, тонн | H2: 5000 | I2: газ природный, тыс. м3 | K2: 7900 | L2: 7900 | M2: электроэнергия, тыс.кВт*ч | O2: 860
E3: нефть, тонн | H3: 9500 | I3: газ попутный, тыс. м3 | K3: 7900 | L3: 7900 | M3: диз. топливо, тонн | O3: 10180
A4: группа котельных | B4: =анкета!C12 -> 0 | E4: мазут, тонн | H4: 9500 | I4: дрова, м3 | K4: 1862 | L4: 1862 | M4: условное топливо | O4: 7000
A6: Наименование | B6: январь | C6: февраль | D6: март | E6: I кв. | G6: апрель | H6: май | I6: июнь | J6: II кв. | L6: июль | M6: август | N6: сентябрь | O6: III кв. | Q6: октябрь | R6: ноябрь | S6: декабрь | T6: IV кв. | V6: год | W6: I полугодие | X6: II полугодие
A7: 2 | B7: 3 | C7: 4 | D7: 5 | E7: 6 | G7: 7 | H7: 8 | I7: 9 | J7: 10 | L7: 11 | M7: 12 | N7: 14 | O7: 15 | Q7: 16 | R7: 17 | S7: 18 | T7: 19 | V7: 20 | W7: 24 | X7: 25
A9: полезный отпуск, Гкал, в том числе | B9: =B24 -> 0 | C9: =C24 -> 0 | D9: 0 | E9: =SUM(B9:D9) -> 0 | G9: =G24 -> 0 | H9: 0 | I9: 0 | J9: =SUM(G9:I9) -> 0 | L9: =L24 -> 0 | M9: 0 | N9: =N24 -> 0 | O9: =SUM(L9:N9) -> 0 | Q9: =Q24 -> 0 | R9: 0 | S9: 0 | T9: =SUM(Q9:S9) -> 0 | V9: =E9+J9+O9+T9 -> 0 | W9: =W10+W11+W12+W13 -> 0 | X9: =X10+X11+X12+X13 -> 0 | Y9: =IF(V9-W9-X9<0.01,"верно","ошибка") -> верно
A10: собственное | B10: 0 | C10: 0 | D10: 0 | E10: 0 | G10: 0 | H10: 0 | I10: 0 | J10: 0 | L10: 0 | M10: 0 | N10: 0 | O10: 0 | Q10: 0 | R10: 0 | S10: 0 | T10: =SUM(Q10:S10) -> 0 | V10: =E10+J10+O10+T10 -> 0 | W10: =SUM(B10:D10,G10:I10) -> 0 | X10: =SUM(L10:N10,Q10:S10) -> 0 | Y10: верно
A11: бюджет | B11: 0 | C11: 0 | D11: 0 | E11: 0 | G11: 0 | H11: 0 | I11: 0 | J11: 0 | L11: 0 | M11: 0 | N11: 0 | O11: 0 | Q11: 0 | R11: 0 | S11: 0 | T11: 0 | V11: 0 | W11: =SUM(B11:D11,G11:I11) -> 0 | X11: =SUM(L11:N11,Q11:S11) -> 0 | Y11: верно
A12: население | B12: 0 | C12: 0 | D12: 0 | E12: 0 | G12: 0 | H12: 0 | I12: 0 | J12: 0 | L12: 0 | M12: 0 | N12: 0 | O12: 0 | Q12: 0 | R12: 0 | S12: 0 | T12: 0 | V12: 0 | W12: =SUM(B12:D12,G12:I12) -> 0 | X12: =SUM(L12:N12,Q12:S12) -> 0 | Y12: верно
A13: прочие | B13: 0 | C13: 0 | D13: 0 | E13: 0 | G13: 0 | H13: 0 | I13: 0 | J13: 0 | L13: 0 | M13: 0 | N13: 0 | O13: 0 | Q13: 0 | R13: 0 | S13: 0 | T13: 0 | V13: 0 | W13: =SUM(B13:D13,G13:I13) -> 0 | X13: =SUM(L13:N13,Q13:S13) -> 0 | Y13: верно
A14: потери тепла, Гкал | B14: 0 | C14: 0 | D14: 0 | E14: 0 | G14: 0 | H14: 0 | I14: 0 | J14: 0 | L14: 0 | M14: 0 | N14: 0 | O14: 0 | Q14: 0 | R14: 0 | S14: 0 | T14: 0 | V14: 0 | W14: =SUM(B14:D14,G14:I14) -> 0 | X14: =SUM(L14:N14,Q14:S14) -> 0 | Y14: верно
A15: отпуск тепла с коллекторов, Гкал | B15: =B30 -> 0 | C15: 0 | D15: 0 | E15: 0 | G15: 0 | H15: 0 | I15: 0 | J15: 0 | L15: 0 | M15: 0 | N15: 0 | O15: 0 | Q15: 0 | R15: 0 | S15: 0 | T15: =SUM(Q15:S15) -> 0 | V15: 0 | W15: =W9+W14 -> 0 | X15: =X9+X14 -> 0 | Y15: верно
A16: расход тепла на СН, % | B16: =IF(B18>0,B17/B18*100,0) -> 0 | C16: =C17/C18*100 ->  | D16: =D17/D18*100 ->  | E16: =E17/E18*100 ->  | G16: =G17/G18*100 ->  | H16: =H17/H18*100 ->  | I16: =IF(I18>0,I17/I18*100,0) -> 0 | J16: =J17/J18*100 ->  | L16: =IF(L18>0,L17/L18*100,0) -> 0 | M16: =IF(M18>0,M17/M18*100,0) -> 0 | N16: =IF(N18>0,N17/N18*100,0) -> 0 | O16: =O17/O18*100 ->  | Q16: =Q17/Q18*100 ->  | R16: =R17/R18*100 ->  | S16: =S17/S18*100 ->  | T16: =T17/T18*100 ->  | V16: =V17/V18*100 ->  | W16: =W17/W18*100 ->  | X16: =X17/X18*100 -> 
A17: тоже, Гкал | B17: 0 | C17: 0 | D17: 0 | E17: =SUM(B17:D17) -> 0 | G17: =G32 -> 0 | H17: 0 | I17: =I32 -> 0 | J17: =SUM(G17:I17) -> 0 | L17: =L32 -> 0 | M17: 0 | N17: 0 | O17: =SUM(L17:N17) -> 0 | Q17: =Q32 -> 0 | R17: 0 | S17: 0 | T17: 0 | V17: =E17+J17+O17+T17 -> 0 | W17: =SUM(B17:D17,G17:I17) -> 0 | X17: =SUM(L17:N17,Q17:S17) -> 0 | Y17: =IF(V17-W17-X17<0.01,"верно","ошибка") -> верно
A18: выработка тепловой энергии, Гкал | B18: 0 | C18: 0 | D18: 0 | E18: =SUM(B18:D18) -> 0 | G18: 0 | H18: 0 | I18: 0 | J18: =SUM(G18:I18) -> 0 | L18: 0 | M18: 0 | N18: 0 | O18: =SUM(L18:N18) -> 0 | Q18: 0 | R18: 0 | S18: 0 | T18: 0 | V18: =E18+J18+O18+T18 -> 0 | W18: =W15+W17 -> 0 | X18: =X15+X17 -> 0 | Y18: =IF(V18-W18-X18<0.01,"верно","ошибка") -> верно
A19: Удельный расход условного топлива на отпуск тепловой энергии, кг.у.т/Гкал | B19: =B30*B34/B30 ->  | C19: =C30*C34/C30 ->  | D19: =D30*D34/D30 ->  | E19: =E30*E34/E30 ->  | G19: =G30*G34/G30 ->  | H19: =H30*H34/H30 ->  | I19: =IF(I34>0,I30*I34/I30,0) -> 0 | J19: =IF(SUM(G15:I15)>0,SUMPRODUCT(G15:I15,G19:I19)/J15,0) -> 0 | L19: =IF(L34>0,L30*L34/L30,0) -> 0 | M19: =IF(M34>0,M30*M34/M30,0) -> 0 | N19: =N30*N34/N30 ->  | O19: =IF(SUM(L15:N15)>0,SUMPRODUCT(L15:N15,L19:N19)/O15,0) -> 0 | Q19: =Q30*Q34/Q30 ->  | R19: =R30*R34/R30 ->  | S19: =S30*S34/S30 ->  | T19: =IF(SUM(Q15:S15)>0,SUMPRODUCT(Q15:S15,Q19:S19)/T15,0) -> 0 | V19: =(E15*E19+J15*J19+O15*O19+T15*T19)/V15 ->  | W19: =(SUMPRODUCT(B15:D15,B19:D19)+SUMPRODUCT(G15:I15,G19:I19))/W15 ->  | X19: =(SUMPRODUCT(L15:N15,L19:N19)+SUMPRODUCT(Q15:S15,Q19:S19))/X15 -> 
A20: ="Котельная "&INDIRECT("объекты!B"&(2+23*$Y20))&" "&INDIRECT("объекты!C"&(2+23*$Y20)) -> Котельная 1 | Y20: 0
A21: Наименование | B21: январь | C21: февраль | D21: март | E21: I кв. | G21: апрель | H21: май | I21: июнь | J21: II кв. | L21: июль | M21: август | N21: сентябрь | O21: III кв. | Q21: октябрь | R21: ноябрь | S21: декабрь | T21: IV кв. | V21: год | W21: I полугодие | X21: II полугодие
A22: 2 | B22: 3 | C22: 4 | D22: 5 | E22: 6 | G22: 7 | H22: 8 | I22: 9 | J22: 10 | L22: 11 | M22: 12 | N22: 14 | O22: 15 | Q22: 16 | R22: 17 | S22: 18 | T22: 19 | V22: 20 | W22: 24 | X22: 25
A24: полезный отпуск, Гкал, в том числе | E24: =SUM(B24:D24) -> 0 | J24: =SUM(G24:I24) -> 0 | O24: =SUM(L24:N24) -> 0 | T24: =SUM(Q24:S24) -> 0 | V24: =E24+J24+O24+T24 -> 0 | W24: =W25+W26+W27+W28 -> 0 | X24: =X25+X26+X27+X28 -> 0 | Y24: =IF(V24-W24-X24<0.01,"верно","ошибка") -> верно
A25: собственное | E25: 0 | J25: 0 | O25: 0 | T25: 0 | V25: 0 | W25: =SUM(B25:D25,G25:I25) -> 0 | X25: =SUM(L25:N25,Q25:S25) -> 0 | Y25: верно
A26: бюджет | E26: 0 | J26: 0 | O26: 0 | T26: 0 | V26: 0 | W26: =SUM(B26:D26,G26:I26) -> 0 | X26: =SUM(L26:N26,Q26:S26) -> 0 | Y26: верно
A27: население | E27: 0 | J27: 0 | O27: 0 | T27: 0 | V27: 0 | W27: =SUM(B27:D27,G27:I27) -> 0 | X27: =SUM(L27:N27,Q27:S27) -> 0 | Y27: верно
A28: прочие | E28: 0 | J28: 0 | O28: 0 | T28: 0 | V28: 0 | W28: =SUM(B28:D28,G28:I28) -> 0 | X28: =SUM(L28:N28,Q28:S28) -> 0 | Y28: верно
A29: потери тепла, Гкал | E29: 0 | J29: 0 | O29: 0 | T29: 0 | V29: 0 | W29: =SUM(B29:D29,G29:I29) -> 0 | X29: =SUM(L29:N29,Q29:S29) -> 0 | Y29: верно
A30: отпуск тепла с коллекторов, Гкал | E30: 0 | J30: 0 | O30: 0 | T30: 0 | V30: 0 | W30: =W24+W29 -> 0 | X30: =X24+X29 -> 0 | Y30: верно
A31: расход тепла на СН, % | E31: =E32/E33*100 ->  | J31: =J32/J33*100 ->  | O31: =O32/O33*100 ->  | T31: =T32/T33*100 ->  | V31: =V32/V33*100 ->  | W31: =W32/W33*100 ->  | X31: =X32/X33*100 -> 
A32: тоже, Гкал | E32: =SUM(B32:D32) -> 0 | J32: =SUM(G32:I32) -> 0 | O32: =SUM(L32:N32) -> 0 | T32: =SUM(Q32:S32) -> 0 | V32: =E32+J32+O32+T32 -> 0 | W32: =SUM(B32:D32,G32:I32) -> 0 | X32: =SUM(L32:N32,Q32:S32) -> 0 | Y32: =IF(V32-W32-X32<0.01,"верно","ошибка") -> верно
A33: выработка тепловой энергии, Гкал | E33: =SUM(B33:D33) -> 0 | J33: =SUM(G33:I33) -> 0 | O33: =SUM(L33:N33) -> 0 | T33: =SUM(Q33:S33) -> 0 | V33: =E33+J33+O33+T33 -> 0 | W33: =W30+W32 -> 0 | X33: =X30+X32 -> 0 | Y33: =IF(V33-W33-X33<0.01,"верно","ошибка") -> верно
A34: Удельный расход условного топлива на отпуск тепловой энергии, кг.у.т/Гкал | E34: =IF(SUM(B30:D30)>0,SUMPRODUCT(B30:D30,B34:D34)/E30,0) -> 0 | J34: =IF(SUM(G30:I30)>0,SUMPRODUCT(G30:I30,G34:I34)/J30,0) -> 0 | O34: =IF(SUM(L30:N30)>0,SUMPRODUCT(L30:N30,L34:N34)/O30,0) -> 0 | T34: =IF(SUM(Q30:S30)>0,SUMPRODUCT(Q30:S30,Q34:S34)/T30,0) -> 0 | V34: =(E30*E34+J30*J34+O30*O34+T30*T34)/V30 ->  | W34: =(SUMPRODUCT(B30:D30,B34:D34)+SUMPRODUCT(G30:I30,G34:I34))/W30 ->  | X34: =(SUMPRODUCT(L30:N30,L34:N34)+SUMPRODUCT(Q30:S30,Q34:S34))/X30 -> 

Sheet натуральные
B1: Натуральные показатели для объекта: | E1: =анкета!C11 -> 0 | H1: Низшая теплота сгорания топлива
H2: уголь, тонн | I2: 5000 | J2: газ природный, тыс. м3 | L2: 7900 | M2: электроэнергия, тыс.кВт*ч | O2: 860
B3: группа котельных | E3: =анкета!C12 -> 0 | H3: нефть, тонн | I3: 9500 | J3: газ попутный, тыс. м3 | L3: 7900 | M3: диз. топливо, тонн | O3: 10180
H4: мазут, тонн | I4: 9500 | J4: дрова, м3 | L4: 1862 | M4: условное топливо | O4: 7000
B5: Наименование показателя | C5: 2011 | D5: 2012 | E5: 2013 | G5: учтено в тарифе на 2014 год | J5: 2015 | K5: 2015 | N5: 2015 | O5: 2015
C6: факт организации | D6: факт организации | E6: учтено в тарифе | F6: факт организации | G6: всего | H6: 1 полугодие | I6: 2 полугодие | J6: план организации | K6: по плану ДТР ТО | N6: план по нормативам | O6: план по среднему потреблению
K7: всего | L7: 1 полугодие | M7: 2 полугодие
H8: 01.01.2014-30.06.2014 | I8: 01.07.2014-31.12.2014 | L8: 01.01.2015-30.06.2015 | M8: 01.07.2015-31.12.2015
B9: Выработка тепловой энергии, Гкал | C9: =C49 -> 0 | D9: 0 | E9: 0 | F9: 0 | G9: 0 | H9: 0 | I9: 0 | J9: 0 | K9: =K49 -> 0 | L9: =L49 -> 0 | M9: =M49 -> 0 | N9: =N49 -> 0 | O9: =O49 -> 0
B10: расход тепла на СН, Гкал | C10: =C50 -> 0 | D10: 0 | E10: 0 | F10: 0 | G10: 0 | H10: 0 | I10: 0 | J10: 0 | K10: 0 | L10: =L50 -> 0 | M10: 0 | N10: =N50 -> 0 | O10: 0
B11: расход тепла на СН, % | C11: =IF(C9>0,C10/C9*100,0) -> 0 | D11: 0 | E11: =IF(E9>0,E10/E9*100,0) -> 0 | F11: =IF(F9>0,F10/F9*100,0) -> 0 | G11: 0 | H11: 0 | I11: 0 | J11: 0 | K11: 0 | L11: =IF(L9>0,L10/L9*100,0) -> 0 | M11: 0 | N11: =IF(N9>0,N10/N9*100,0) -> 0 | O11: 0
B12: Отпуск тепловой энергии в сеть, Гкал | C12: =C52 -> 0 | D12: 0 | E12: 0 | F12: 0 | G12: 0 | H12: 0 | I12: 0 | J12: 0 | K12: 0 | L12: =L52 -> 0 | M12: 0 | N12: =N52 -> 0 | O12: 0
B13: Потери тепловой энергии в сетях, Гкал | C13: =C53 -> 0 | D13: 0 | E13: 0 | F13: 0 | G13: 0 | H13: 0 | I13: 0 | J13: 0 | K13: 0 | L13: =L53 -> 0 | M13: 0 | N13: =N53 -> 0 | O13: 0
B14: то же в % к отпуску в сеть, % | C14: =IF(C12>0,C13/C12*100,0) -> 0 | D14: 0 | E14: =IF(E12>0,E13/E12*100,0) -> 0 | F14: =IF(F12>0,F13/F12*100,0) -> 0 | G14: 0 | H14: 0 | I14: 0 | J14: 0 | K14: 0 | L14: =IF(L12>0,L13/L12*100,0) -> 0 | M14: 0 | N14: =IF(N12>0,N13/N12*100,0) -> 0 | O14: 0
B15: Полезный отпуск тепловой энергии, Гкал | C15: =C55 -> 0 | D15: 0 | E15: 0 | F15: 0 | G15: 0 | H15: 0 | I15: 0 | J15: 0 | K15: 0 | L15: =L55 -> 0 | M15: 0 | N15: =N55 -> 0 | O15: 0
B16: а) собственное потребление, Гкал | C16: =C56 -> 0 | D16: 0 | E16: 0 | F16: 0 | G16: 0 | H16: 0 | I16: 0 | J16: 0 | K16: 0 | L16: =L56 -> 0 | M16: 0 | N16: =N56 -> 0 | O16: 0
B17: б) сторонние потребители, всего, Гкал | C17: =C57 -> 0 | D17: 0 | E17: 0 | F17: 0 | G17: 0 | H17: 0 | I17: 0 | J17: 0 | K17: 0 | L17: =L57 -> 0 | M17: 0 | N17: =N57 -> 0 | O17: 0
B18: б.1) бюджетные организации, Гкал | C18: =C58 -> 0 | D18: 0 | E18: 0 | F18: 0 | G18: 0 | H18: 0 | I18: 0 | J18: 0 | K18: 0 | L18: =L58 -> 0 | M18: 0 | N18: =N58 -> 0 | O18: 0
B19: б.2) население, Гкал | C19: =C59 -> 0 | D19: 0 | E19: 0 | F19: 0 | G19: 0 | H19: 0 | I19: 0 | J19: 0 | K19: =K59 -> 0 | L19: =L59 -> 0 | M19: =M59 -> 0 | N19: =N59 -> 0 | O19: =O59 -> 0
B20: б.3) прочие, Гкал | C20: =C60 -> 0 | D20: 0 | E20: 0 | F20: 0 | G20: 0 | H20: 0 | I20: 0 | J20: 0 | K20: 0 | L20: =L60 -> 0 | M20: 0 | N20: =N60 -> 0 | O20: 0
B21: Расход условного топлива, т.у.т. | C21: =C61 -> 0 | D21: 0 | E21: 0 | F21: 0 | G21: 0 | H21: 0 | I21: 0 | J21: 0 | L21: =L61 ->  | N21: х | O21: х
B22: Удельный расход условного топлива на отпуск в сеть, кг.у.т./Гкал | C22: =IF(C12>0,C21/C12*1000,0) -> 0 | D22: 0 | E22: =IF(E12>0,E21/E12*1000,0) -> 0 | F22: =IF(F12>0,F21/F12*1000,0) -> 0 | G22: 0 | H22: 0 | I22: 0 | J22: 0 | K22: 0 | L22: =IF(L12>0,L21/L12*1000,0) -> 0 | M22: 0 | N22: х | O22: х
B23: Средневзвешенный КПД котлов, % | C23: =IF(C22>0,142.8*100/C22,0) -> 0 | D23: 0 | E23: =IF(E22>0,142.8*100/E22,0) -> 0 | F23: 0 | G23: 0 | H23: 0 | I23: 0 | J23: 0 | K23: 0 | L23: =IF(L22>0,142.8*100/L22,0) -> 0 | M23: 0 | N23: х | O23: х
B24: Объем потребленной электроэнергии, тыс.кВт.ч. | C24: =C64 -> 0 | D24: 0 | E24: 0 | F24: 0 | G24: 0 | H24: 0 | I24: 0 | J24: 0 | K24: 0 | L24: =L64 -> 0 | M24: 0 | N24: х | O24: х
B25: Удельный расход электроэнергии, кВт*ч/Гкал | C25: =IF(C9>0,C24/C9*1000,0) -> 0 | D25: 0 | E25: =IF(E9>0,E24/E9*1000,0) -> 0 | F25: =IF(F9>0,F24/F9*1000,0) -> 0 | G25: 0 | H25: 0 | I25: 0 | J25: 0 | K25: 0 | L25: =IF(L9>0,L24/L9*1000,0) -> 0 | M25: 0 | N25: х | O25: х
B26: Расход натурального топлива | N26: х | O26: х
B27: =списки!$D$41 -> уголь, тонн | C27: =SUMIF($A67:$A68,$B27,C67:C68) -> 0 | D27: 0 | E27: 0 | F27: 0 | G27: 0 | H27: 0 | I27: 0 | J27: 0 | K27: 0 | L27: =SUMIF($A67:$A68,$B27,L67:L68) -> 0 | M27: 0 | N27: х | O27: х
B28: =списки!$D$42 -> нефть, тонн | C28: =SUMIF($A67:$A68,$B28,C67:C68) -> 0 | D28: 0 | E28: 0 | F28: 0 | G28: 0 | H28: 0 | I28: 0 | J28: 0 | L28: =SUMIF($A67:$A68,$B28,L67:L68) ->  | N28: х | O28: х
B29: =списки!$D$43 -> мазут, тонн | C29: =SUMIF($A67:$A68,$B29,C67:C68) -> 0 | D29: 0 | E29: 0 | F29: 0 | G29: 0 | H29: 0 | I29: 0 | J29: 0 | K29: 0 | L29: =SUMIF($A67:$A68,$B29,L67:L68) -> 0 | M29: 0 | N29: х | O29: х
B30: =списки!$D$44 -> газ природный, тыс. м3 | C30: =SUMIF($A67:$A68,$B30,C67:C68) -> 0 | D30: 0 | E30: 0 | F30: 0 | G30: 0 | H30: 0 | I30: 0 | J30: 0 | K30: 0 | L30: =SUMIF($A67:$A68,$B30,L67:L68) -> 0 | M30: 0 | N30: х | O30: х
B31: =списки!$D$45 -> газ попутный, тыс. м3 | C31: =SUMIF($A67:$A68,$B31,C67:C68) -> 0 | D31: 0 | E31: 0 | F31: 0 | G31: 0 | H31: 0 | I31: 0 | J31: 0 | K31: 0 | L31: =SUMIF($A67:$A68,$B31,L67:L68) -> 0 | M31: 0 | N31: х | O31: х
B32: =списки!$D$46 -> дрова, м3 | C32: =SUMIF($A67:$A68,$B32,C67:C68) -> 0 | D32: 0 | E32: 0 | F32: 0 | G32: 0 | H32: 0 | I32: 0 | J32: 0 | K32: 0 | L32: =SUMIF($A67:$A68,$B32,L67:L68) -> 0 | M32: 0 | N32: х | O32: х
B33: =списки!$D$47 -> электроэнергия, тыс.кВт*ч | C33: =SUMIF($A67:$A68,$B33,C67:C68) -> 0 | D33: 0 | E33: 0 | F33: 0 | G33: 0 | H33: 0 | I33: 0 | J33: 0 | K33: 0 | L33: =SUMIF($A67:$A68,$B33,L67:L68) -> 0 | M33: 0 | N33: х | O33: х
B34: =списки!$D$48 -> диз. топливо, тонн | C34: =SUMIF($A67:$A68,$B34,C67:C68) -> 0 | D34: 0 | E34: 0 | F34: 0 | G34: 0 | H34: 0 | I34: 0 | J34: 0 | K34: 0 | L34: =SUMIF($A67:$A68,$B34,L67:L68) -> 0 | M34: 0 | N34: х | O34: х
B35: резервное топливо | N35: х | O35: х
A36: ="р "&B36 -> р уголь, тонн | B36: =списки!$D$41 -> уголь, тонн | C36: =SUMIF($A67:$A70,$A36,C67:C70) -> 0 | D36: 0 | E36: 0 | F36: 0 | G36: 0 | H36: 0 | I36: 0 | J36: 0 | K36: 0 | L36: =SUMIF($A67:$A70,$A36,L67:L70) -> 0 | M36: 0 | N36: х | O36: х
A37: р нефть, тонн | B37: =списки!$D$42 -> нефть, тонн | C37: =SUMIF($A67:$A70,$A37,C67:C70) -> 0 | D37: 0 | E37: 0 | F37: 0 | G37: 0 | H37: 0 | I37: 0 | J37: 0 | K37: 0 | L37: =SUMIF($A67:$A70,$A37,L67:L70) -> 0 | M37: 0 | N37: х | O37: х
A38: р мазут, тонн | B38: =списки!$D$43 -> мазут, тонн | C38: =SUMIF($A67:$A70,$A38,C67:C70) -> 0 | D38: 0 | E38: 0 | F38: 0 | G38: 0 | H38: 0 | I38: 0 | J38: 0 | K38: 0 | L38: =SUMIF($A67:$A70,$A38,L67:L70) -> 0 | M38: 0 | N38: х | O38: х
A39: р газ природный, тыс. м3 | B39: =списки!$D$44 -> газ природный, тыс. м3 | C39: =SUMIF($A67:$A70,$A39,C67:C70) -> 0 | D39: 0 | E39: 0 | F39: 0 | G39: 0 | H39: 0 | I39: 0 | J39: 0 | K39: 0 | L39: =SUMIF($A67:$A70,$A39,L67:L70) -> 0 | M39: 0 | N39: х | O39: х
A40: р газ попутный, тыс. м3 | B40: =списки!$D$45 -> газ попутный, тыс. м3 | C40: =SUMIF($A67:$A70,$A40,C67:C70) -> 0 | D40: 0 | E40: 0 | F40: 0 | G40: 0 | H40: 0 | I40: 0 | J40: 0 | K40: 0 | L40: =SUMIF($A67:$A70,$A40,L67:L70) -> 0 | M40: 0 | N40: х | O40: х
A41: р дрова, м3 | B41: =списки!$D$46 -> дрова, м3 | C41: =SUMIF($A67:$A70,$A41,C67:C70) -> 0 | D41: 0 | E41: 0 | F41: 0 | G41: 0 | H41: 0 | I41: 0 | J41: 0 | K41: 0 | L41: =SUMIF($A67:$A70,$A41,L67:L70) -> 0 | M41: 0 | N41: х | O41: х
A42: р электроэнергия, тыс.кВт*ч | B42: =списки!$D$47 -> электроэнергия, тыс.кВт*ч | C42: =SUMIF($A67:$A70,$A42,C67:C70) -> 0 | D42: 0 | E42: 0 | F42: 0 | G42: 0 | H42: 0 | I42: 0 | J42: 0 | K42: 0 | L42: =SUMIF($A67:$A70,$A42,L67:L70) -> 0 | M42: 0 | N42: х | O42: х
A43: р диз. топливо, тонн | B43: =списки!$D$48 -> диз. топливо, тонн | C43: =SUMIF($A67:$A70,$A43,C67:C70) -> 0 | D43: 0 | E43: 0 | F43: 0 | G43: 0 | H43: 0 | I43: 0 | J43: 0 | K43: 0 | L43: =SUMIF($A67:$A70,$A43,L67:L70) -> 0 | M43: 0 | N43: х | O43: х
A44: 0 | B44: =INDIRECT("балансы!A"&(20+15*$A44)) -> Котельная 1
B45: Наименование показателя | C45: 2011 | D45: 2012 | E45: 2013 | G45: учтено в тарифе на 2014 год | J45: 2015 | K45: 2015 | N45: 2015 | O45: 2015
C46: факт организации | D46: факт организации | E46: учтено в тарифе | F46: факт организации | G46: всего | H46: 01.01.2014-30.06.2014 | I46: 01.07.2014-31.12.2014 | J46: план организации | K46: по плану ДТР ТО | L46: 01.01.2015-30.06.2015 | M46: 01.07.2015-31.12.2015 | N46: план по нормативам | O46: план по среднему потреблению
I47: 01.07.2014-31.12.2014 | K47: всего
B49: Выработка тепловой энергии, Гкал | K49: =INDIRECT("балансы!V"&(33+15*$A44)) -> 0 | L49: =INDIRECT("балансы!W"&(33+15*$A44)) -> 0 | M49: =INDIRECT("балансы!X"&(33+15*$A44)) -> 0 | O49: =O50+O52 -> 0
B50: расход тепла на СН, Гкал | C50: =C49-C52 -> 0 | D50: =D49-D52 -> 0 | E50: 0 | F50: 0 | G50: 0 | H50: 0 | I50: 0 | J50: 0 | K50: =INDIRECT("балансы!V"&(32+15*$A44)) -> 0 | L50: =INDIRECT("балансы!W"&(32+15*$A44)) -> 0 | M50: =INDIRECT("балансы!X"&(32+15*$A44)) -> 0 | O50: =N50 -> 0
B51: расход тепла на СН, % | C51: =IF(C49>0,C50/C49*100,0) -> 0 | D51: 0 | E51: =IF(E49>0,E50/E49*100,0) -> 0 | F51: =IF(F49>0,F50/F49*100,0) -> 0 | G51: 0 | H51: 0 | I51: 0 | J51: 0 | K51: =IF(K49>0,K50/K49*100,0) -> 0 | L51: =IF(L49>0,L50/L49*100,0) -> 0 | M51: =IF(M49>0,M50/M49*100,0) -> 0 | O51: =N51 -> 0
B52: Отпуск тепловой энергии в сеть, Гкал | K52: =INDIRECT("балансы!V"&(30+15*$A44)) -> 0 | L52: =INDIRECT("балансы!W"&(30+15*$A44)) -> 0 | M52: =INDIRECT("балансы!X"&(30+15*$A44)) -> 0 | O52: =O53+O55 -> 0
B53: Потери тепловой энергии в сетях, Гкал | C53: =C52-C55 -> 0 | D53: =D52-D55 -> 0 | E53: 0 | F53: 0 | G53: 0 | H53: 0 | I53: 0 | J53: 0 | K53: =INDIRECT("балансы!V"&(29+15*$A44)) -> 0 | L53: =INDIRECT("балансы!W"&(29+15*$A44)) -> 0 | M53: =INDIRECT("балансы!X"&(29+15*$A44)) -> 0 | O53: =N53 -> 0
B54: то же в % к отпуску в сеть, % | C54: =IF(C52>0,C53/C52*100,0) -> 0 | D54: 0 | E54: =IF(E52>0,E53/E52*100,0) -> 0 | F54: 0 | G54: 0 | H54: 0 | I54: 0 | J54: 0 | K54: 0 | L54: 0 | M54: 0 | O54: =N54 -> 0
B55: Полезный отпуск тепловой энергии, Гкал | C55: =C56+C57 -> 0 | D55: =D56+D57 -> 0 | E55: 0 | F55: 0 | G55: 0 | H55: 0 | I55: 0 | J55: 0 | K55: =K56+K57 -> 0 | L55: =L56+L57 -> 0 | M55: =M56+M57 -> 0 | O55: =O56+O57 -> 0
B56: а) собственное потребление, Гкал | K56: =INDIRECT("балансы!V"&(25+15*$A44)) -> 0 | L56: =INDIRECT("балансы!W"&(25+15*$A44)) -> 0 | M56: =INDIRECT("балансы!X"&(25+15*$A44)) -> 0 | O56: =(C56+D56+F56)/3 -> 0
B57: б) сторонние потребители, всего, Гкал | C57: =C58+C59+C60 -> 0 | D57: 0 | E57: =E58+E59+E60 -> 0 | F57: 0 | G57: 0 | H57: 0 | I57: 0 | J57: 0 | K57: =K58+K59+K60 -> 0 | L57: =L58+L59+L60 -> 0 | M57: =M58+M59+M60 -> 0 | O57: =O58+O59+O60 -> 0
B58: б.1) бюджетные организации, Гкал | K58: =INDIRECT("балансы!V"&(26+15*$A44)) -> 0 | L58: =INDIRECT("балансы!W"&(26+15*$A44)) -> 0 | M58: =INDIRECT("балансы!X"&(26+15*$A44)) -> 0 | O58: =(C58+D58+F58)/3 -> 0
B59: б.2) население, Гкал | K59: =INDIRECT("балансы!V"&(27+15*$A44)) -> 0 | L59: =INDIRECT("балансы!W"&(27+15*$A44)) -> 0 | M59: =INDIRECT("балансы!X"&(27+15*$A44)) -> 0 | O59: 0
B60: б.3) прочие, Гкал | K60: =INDIRECT("балансы!V"&(28+15*$A44)) -> 0 | L60: =INDIRECT("балансы!W"&(28+15*$A44)) -> 0 | M60: =INDIRECT("балансы!X"&(28+15*$A44)) -> 0 | O60: =(C60+D60+F60)/3 -> 0
B61: Расход условного топлива, т.у.т. | C61: =C62*C52/1000 -> 0 | D61: 0 | E61: =E62*E52/1000 -> 0 | F61: 0 | G61: 0 | H61: 0 | I61: 0 | J61: =J62*J52/1000 -> 0 | K61: =K62*K52/1000 ->  | L61: =L62*L52/1000 ->  | M61: =M62*M52/1000 ->  | N61: х | O61: х
B62: Удельный расход условного топлива на отпуск в сеть, кг.у.т./Гкал | K62: =INDIRECT("балансы!V"&(34+15*$A44)) ->  | L62: =INDIRECT("балансы!W"&(34+15*$A44)) ->  | M62: =INDIRECT("балансы!X"&(34+15*$A44)) ->  | N62: х | O62: х
B63: Средневзвешенный КПД котлов, % | C63: =IF(C62>0,142.8*100/C62,0) -> 0 | D63: 0 | E63: =IF(E62>0,142.8*100/E62,0) -> 0 | F63: 0 | G63: =IF(G62>0,142.8*100/G62,0) -> 0 | H63: 0 | I63: 0 | J63: 0 | N63: х | O63: х
B64: Объем потребленной электроэнергии, тыс.кВт.ч. | C64: =C65*C49/1000 -> 0 | D64: 0 | E64: =E65*E49/1000 -> 0 | F64: 0 | G64: =G65*G49/1000 -> 0 | H64: =H65*H49/1000 -> 0 | I64: =I65*I49/1000 -> 0 | J64: 0 | K64: =K65*K49/1000 -> 0 | L64: =L65*L49/1000 -> 0 | M64: =M65*M49/1000 -> 0 | N64: х | O64: х
B65: Удельный расход электроэнергии, кВт*ч/Гкал | L65: =K65 -> 0 | M65: =K65 -> 0 | N65: х | O65: х
B66: Расход натурального топлива | N66: х | O66: х
A67: =B67 -> нефть, тонн | B67: =INDIRECT("объекты!D"&(19+23*$A44)) -> нефть, тонн | K67: =K61/VLOOKUP($B67,списки!$D$41:$E$48,2,FALSE)*$O$4 ->  | L67: =L61/VLOOKUP($B67,списки!$D$41:$E$48,2,FALSE)*$O$4 ->  | M67: =M61/VLOOKUP($B67,списки!$D$41:$E$48,2,FALSE)*$O$4 ->  | N67: х | O67: х
A68: =B68 -> 0 | B68: =INDIRECT("объекты!F"&(19+23*$A44)) -> 0 | K68: =K61/VLOOKUP($B68,списки!$D$41:$E$48,2,FALSE)*$O$4 ->  | L68: =L61/VLOOKUP($B68,списки!$D$41:$E$48,2,FALSE)*$O$4 ->  | M68: =M61/VLOOKUP($B68,списки!$D$41:$E$48,2,FALSE)*$O$4 ->  | N68: х | O68: х
B69: резервное топливо | N69: х | O69: х
A70: ="р "&B70 -> р 0 | B70: =INDIRECT("объекты!J"&(19+23*$A44)) -> 0 | N70: х | O70: х

Sheet топливо
B1: Стоимость топлива для объекта: | D1: =анкета!C11 -> 0
H2: уголь, тонн | I2: к плановым показателям 2013-2014 гг. | K2: =уголь_2015_полуг -> 1.075 | L2: мазут, тонн | N2: =мазут_2015_полуг*100 -> 0 | O2: дрова, м3 | Q2: =дрова_2015_полуг*100 -> 108.5 | R2: стоимость ж/д перевозок | S2: 107 | W2: =натуральные!K15 -> 0 | X2: =натуральные!L15 -> 0 | Y2: =натуральные!M15 -> 0
B3: Группа котельных | D3: =анкета!C12 -> 0 | I3: к фактической цене 2013 г (при подтверждении стоимости приобретения) | L3: газ природный, тыс. м3 | N3: =газ_2015_полуг*100 -> 106 | O3: электроэнергия, кВт.ч | Q3: =электроэнергия_2015_полуг*100 -> 107.6 | R3: грузовой транспорт | S3: 111 | T3: =грузовой_транспорт_2015_полуг*100 -> 104.8 | X3: =X2/W2 ->  | Y3: =Y2/W2 -> 
H4: нефть, тонн | K4: =нефть_2015_полуг*100 -> 110.3 | L4: газ попутный, тыс. м3 | N4: =газ_2015_полуг*100 -> 106 | O4: диз. топливо, тонн | R4: погрузо-разгрузочные работы | S4: 107.1 | T4: =прочие_2015_полуг*100 -> 104.8
B5: Наименование показателя | D5: Ед. изм. | E5: 2011 | F5: 2012 | G5: 2013 | I5: учтено в тарифе на 2014 год | L5: 2015 | M5: 2015 | Q5: 2015
E6: факт организации | F6: факт организации | G6: учтено в тарифе | H6: факт организации | I6: всего | J6: 1 полугодие | K6: 2 полугодие | L6: план организации | M6: по плану ДТР ТО | Q6: по плану ДТР ТО для сметы
M7: всего | N7: 1 полугодие | O7: 2 полугодие | Q7: всего | R7: 1 полугодие | S7: 2 полугодие
B8: заполняется в целом по организации с учетом всех котельных | J8: 01.01.2014-30.06.2014 | K8: 01.07.2014-31.12.2014 | N8: 01.01.2015-30.06.2015 | O8: 01.07.2015-31.12.2015 | R8: 01.01.2015-30.06.2015 | S8: 01.07.2015-31.12.2015 | T8: откл
B9: Приход натурального топлива ВСЕГО, стоимость, руб. | D9: руб. | E9: =E11+E13+E15+E17+E19+E21+E23+E25 -> 0 | F9: =F11+F13+F15+F17+F19+F21+F23+F25 -> 0 | G9: =G11+G13+G15+G17+G19+G21+G23+G25 -> 0 | H9: =H11+H13+H15+H17+H19+H21+H23+H25 -> 0 | I9: =I11+I13+I15+I17+I19+I21+I23+I25 -> 0 | J9: 0 | K9: 0 | L9: =L11+L13+L15+L17+L19+L21+L23+L25 -> 0 | M9: =M11+M13+M15+M17+M19+M21+M23+M25 ->  | N9: =N11+N13+N15+N17+N19+N21+N23+N25 ->  | O9: =O11+O13+O15+O17+O19+O21+O23+O25 ->  | P9: =IF(M9-N9-O9<0.01,"верно","ошибка") ->  | Q9: =Q11+Q13+Q15+Q17+Q19+Q21+Q23+Q25 ->  | R9: =R11+R13+R15+R17+R19+R21+R23+R25 ->  | S9: =S11+S13+S15+S17+S19+S21+S23+S25 -> 
A10: ="н_"&$B10 -> н_уголь, тонн | B10: =списки!$D$41 -> уголь, тонн | D10: =VLOOKUP($B10,списки!$D$41:$H$48,4,FALSE) -> тонн | E10: =SUMIF($A$35:$A$49,$A10,E$35:E$49) -> 0 | F10: 0 | G10: 0 | H10: 0 | I10: 0 | J10: 0 | K10: 0 | L10: 0 | M10: 0 | N10: 0 | O10: 0 | P10: =IF(M10-N10-O10<0.01,"верно","ошибка") -> верно | Q10: =$M$10 -> 0 | R10: =$M$10 -> 0 | S10: =$M$10 -> 0
A11: =$B10 -> уголь, тонн | B11: - Приход натурального топлива, стоимость, руб. | D11: руб. | E11: 0 | F11: 0 | G11: 0 | H11: 0 | I11: 0 | J11: 0 | K11: 0 | L11: 0 | M11: 0 | N11: =SUMIF($A$35:$A$49,$A11,N$35:N$49) -> 0 | O11: 0 | P11: =IF(M11-N11-O11<0.01,"верно","ошибка") -> верно | Q11: =M11 -> 0 | R11: =IF(R10>0,N11/N10*R10,0) -> 0 | S11: =IF(S10>0,O11/O10*S10,0) -> 0 | T11: =R11*$X$3+S11*$Y$3-Q11 -> 
A12: ="н_"&$B12 -> н_газ природный, тыс. м3 | B12: =списки!$D$44 -> газ природный, тыс. м3 | D12: =VLOOKUP($B12,списки!$D$41:$H$48,4,FALSE) -> тыс. м3 | E12: 0 | F12: 0 | G12: 0 | H12: 0 | I12: 0 | J12: 0 | K12: 0 | L12: 0 | M12: 0 | N12: 0 | O12: 0 | P12: =IF(M12-N12-O12=0,"верно","ошибка") -> верно | Q12: =$M$12 -> 0 | R12: =$M$12 -> 0 | S12: 0
A13: =$B12 -> газ природный, тыс. м3 | B13: - Приход натурального топлива, стоимость, руб. | D13: руб. | E13: 0 | F13: 0 | G13: 0 | H13: 0 | I13: 0 | J13: 0 | K13: 0 | L13: 0 | M13: 0 | N13: 0 | O13: 0 | P13: =IF(M13-N13-O13<0.01,"верно","ошибка") -> верно | Q13: =M13 -> 0 | R13: =IF(R12>0,N13/N12*R12,0) -> 0 | S13: =IF(S12>0,O13/O12*S12,0) -> 0 | T13: =R13*$X$3+S13*$Y$3-Q13 -> 
A14: ="н_"&$B14 -> н_нефть, тонн | B14: =списки!$D$42 -> нефть, тонн | D14: =VLOOKUP($B14,списки!$D$41:$H$48,4,FALSE) -> тонн | E14: 0 | F14: 0 | G14: 0 | H14: 0 | I14: 0 | J14: 0 | K14: 0 | L14: 0 | Q14: =$M$14 ->  | R14: =$M$14 -> 
A15: =$B14 -> нефть, тонн | B15: - Приход натурального топлива, стоимость, руб. | D15: руб. | E15: 0 | F15: 0 | G15: 0 | H15: 0 | I15: 0 | J15: 0 | K15: 0 | L15: 0 | P15: =IF(M15-N15-O15<0.01,"верно","ошибка") ->  | Q15: =M15 ->  | R15: =IF(R14>0,N15/N14*R14,0) ->  | S15: =IF(S14>0,O15/O14*S14,0) ->  | T15: =R15*$X$3+S15*$Y$3-Q15 -> 
A16: ="н_"&$B16 -> н_мазут, тонн | B16: =списки!$D$43 -> мазут, тонн | D16: =VLOOKUP($B16,списки!$D$41:$H$48,4,FALSE) -> тонн | E16: 0 | F16: 0 | G16: 0 | H16: 0 | I16: 0 | J16: 0 | K16: 0 | L16: 0 | M16: 0 | N16: 0 | O16: 0 | P16: верно | Q16: =$M$16 -> 0 | R16: =$M$16 -> 0 | S16: 0
A17: =$B16 -> мазут, тонн | B17: - Приход натурального топлива, стоимость, руб. | D17: руб. | E17: 0 | F17: 0 | G17: 0 | H17: 0 | I17: 0 | J17: 0 | K17: 0 | L17: 0 | M17: 0 | N17: 0 | O17: 0 | P17: =IF(M17-N17-O17<0.01,"верно","ошибка") -> верно | Q17: =M17 -> 0 | R17: =IF(R16>0,N17/N16*R16,0) -> 0 | S17: =IF(S16>0,O17/O16*S16,0) -> 0 | T17: =R17*$X$3+S17*$Y$3-Q17 -> 
A18: ="н_"&$B18 -> н_дрова, м3 | B18: =списки!$D$46 -> дрова, м3 | D18: =VLOOKUP($B18,списки!$D$41:$H$48,4,FALSE) -> м3 | E18: 0 | F18: 0 | G18: 0 | H18: 0 | I18: 0 | J18: 0 | K18: 0 | L18: 0 | M18: 0 | N18: 0 | O18: 0 | P18: верно | Q18: =$M$18 -> 0 | R18: =$M$18 -> 0 | S18: 0
A19: =$B18 -> дрова, м3 | B19: - Приход натурального топлива, стоимость, руб. | D19: руб. | E19: 0 | F19: 0 | G19: 0 | H19: 0 | I19: 0 | J19: 0 | K19: 0 | L19: 0 | M19: 0 | N19: 0 | O19: 0 | P19: =IF(M19-N19-O19<0.01,"верно","ошибка") -> верно | Q19: =M19 -> 0 | R19: =IF(R18>0,N19/N18*R18,0) -> 0 | S19: =IF(S18>0,O19/O18*S18,0) -> 0 | T19: =R19*$X$3+S19*$Y$3-Q19 -> 
A20: ="н_"&$B20 -> н_газ попутный, тыс. м3 | B20: =списки!$D$45 -> газ попутный, тыс. м3 | D20: =VLOOKUP($B20,списки!$D$41:$H$48,4,FALSE) -> тыс. м3 | E20: =SUMIF($A$35:$A$49,$A20,E$35:E$49) -> 0 | F20: 0 | G20: 0 | H20: 0 | I20: 0 | J20: 0 | K20: 0 | L20: 0 | M20: 0 | N20: 0 | O20: 0 | P20: верно | Q20: =$M$20 -> 0 | R20: =$M$20 -> 0 | S20: 0
A21: =$B20 -> газ попутный, тыс. м3 | B21: - Приход натурального топлива, стоимость, руб. | D21: руб. | E21: 0 | F21: 0 | G21: 0 | H21: 0 | I21: 0 | J21: 0 | K21: 0 | L21: 0 | M21: 0 | N21: 0 | O21: 0 | P21: =IF(M21-N21-O21<0.01,"верно","ошибка") -> верно | Q21: =M21 -> 0 | R21: =IF(R20>0,N21/N20*R20,0) -> 0 | S21: =IF(S20>0,O21/O20*S20,0) -> 0 | T21: =R21*$X$3+S21*$Y$3-Q21 -> 
A22: ="н_"&$B22 -> н_диз. топливо, тонн | B22: =списки!$D$48 -> диз. топливо, тонн | D22: =VLOOKUP($B22,списки!$D$41:$H$48,4,FALSE) -> тонн | E22: 0 | F22: 0 | G22: 0 | H22: 0 | I22: 0 | J22: 0 | K22: 0 | L22: 0 | M22: 0 | N22: 0 | O22: 0 | P22: верно | Q22: =$M$22 -> 0 | R22: =$M$22 -> 0 | S22: 0
A23: =$B22 -> диз. топливо, тонн | B23: - Приход натурального топлива, стоимость, руб. | D23: руб. | E23: 0 | F23: 0 | G23: 0 | H23: 0 | I23: 0 | J23: 0 | K23: 0 | L23: 0 | M23: 0 | N23: 0 | O23: 0 | P23: =IF(M23-N23-O23<0.01,"верно","ошибка") -> верно | Q23: =M23 -> 0 | R23: =IF(R22>0,N23/N22*R22,0) -> 0 | S23: =IF(S22>0,O23/O22*S22,0) -> 0 | T23: =R23*$X$3+S23*$Y$3-Q23 -> 
A24: ="н_"&$B24 -> н_электроэнергия, тыс.кВт*ч | B24: =списки!$D$47 -> электроэнергия, тыс.кВт*ч | D24: =VLOOKUP($B24,списки!$D$41:$H$48,4,FALSE) -> тыс.кВт*ч | E24: 0 | F24: 0 | G24: 0 | H24: 0 | I24: 0 | J24: 0 | K24: 0 | L24: 0 | M24: 0 | N24: 0 | O24: 0 | P24: верно | Q24: =$M$24 -> 0 | R24: =$M$24 -> 0 | S24: 0
A25: =$B24 -> электроэнергия, тыс.кВт*ч | B25: - Приход натурального топлива, стоимость, руб. | D25: руб. | E25: 0 | F25: 0 | G25: 0 | H25: 0 | I25: 0 | J25: 0 | K25: 0 | L25: 0 | M25: 0 | N25: 0 | O25: 0 | P25: =IF(M25-N25-O25<0.01,"верно","ошибка") -> верно | Q25: =M25 -> 0 | R25: =IF(R24>0,N25/N24*R24,0) -> 0 | S25: =IF(S24>0,O25/O24*S24,0) -> 0 | T25: =R25*$X$3+S25*$Y$3-Q25 -> 
B27: Стоимость топлива для объекта: | D27: =анкета!C11 -> 0
B28: Группа котельных | D28: =анкета!C12 -> 0
A29: 0 | B29: =INDIRECT("балансы!A"&(20+15*$A28)) -> Котельная 1
B30: Наименование показателя | D30: Ед. изм. | E30: 2011 | F30: 2012 | G30: 2013 | I30: учтено в тарифе на 2014 год | L30: 2015 | M30: 2015
E31: факт организации | F31: факт организации | G31: учтено в тарифе | H31: факт организации | I31: всего | J31: 1 полугодие | K31: 2 полугодие | L31: план организации | M31: по плану ДТР ТО
M32: всего | N32: 1 полугодие | O32: 2 полугодие
J33: 01.01.2014-30.06.2014 | K33: 01.07.2014-31.12.2014 | N33: 01.01.2015-30.06.2015 | O33: 01.07.2015-31.12.2015
B34: топливо №1 | D34: =INDIRECT("объекты!D"&(19+23*$A28)) -> нефть, тонн | P34: =VLOOKUP($D34,списки!$D$41:$F$48,3,FALSE) -> 110.3
A35: ="н_"&D34 -> н_нефть, тонн | B35: - Приход натурального топлива, всего | D35: =VLOOKUP($D34,списки!$D$41:$H$48,4,FALSE) -> тонн | H35: =INDIRECT("натуральные!F"&(67+27*$A28)) -> 0 | L35: =INDIRECT("натуральные!J"&(67+27*$A28)) -> 0 | M35: =INDIRECT("натуральные!K"&(67+27*$A28)) ->  | N35: =INDIRECT("натуральные!L"&(67+27*$A28)) ->  | O35: =INDIRECT("натуральные!M"&(67+27*$A28)) -> 
B36: - Цена франко станция отправления | D36: =VLOOKUP($D34,списки!$D$41:$H$48,5,FALSE) -> руб./т | M36: =(N36*N35+O36*O35)/M35 ->  | N36: =K36 -> 0 | O36: =N36*P34/100 -> 0
B37: - Тариф на перевозку | D37: =D36 -> руб./т | M37: =(N37*N35+O37*O35)/M35 ->  | N37: =K37 -> 0 | O37: =N37 -> 0
B38: - Тариф на погрузо-разгрузочные работы | D38: =D37 -> руб./т | M38: =(N38*N35+O38*O35)/M35 ->  | N38: 0 | O38: =N38*$T$4/100 -> 0
B39: - Сбытовая надбавка | D39: =D38 -> руб./т | M39: =(N39*N35+O39*O35)/M35 ->  | N39: 0 | O39: =IF(D34=$L$3,N39*$N$3,0)/100 -> 0
B40: - Цена франко станция назначения | D40: =D39 -> руб./т | E40: =E36+E37+E38+E39 -> 0 | F40: =F36+F37+F38+F39 -> 0 | G40: 0 | H40: 0 | I40: 0 | J40: 0 | K40: =K36+K37+K38+K39 -> 0 | L40: 0 | M40: =(N40*N35+O40*O35)/M35 ->  | N40: =N36+N37+N38+N39 -> 0 | O40: =O36+O37+O38+O39 -> 0 | P40: =IF(M40-(M36+M37+M38+M39)<0.01,"верно","проверять!!!") -> 
A41: =D34 -> нефть, тонн | B41: - Приход натурального топлива, стоимость | D41: руб. | E41: =E40*E35 -> 0 | F41: =F40*F35 -> 0 | G41: 0 | H41: 0 | I41: 0 | J41: 0 | K41: 0 | L41: 0 | M41: =N41+O41 ->  | N41: =N40*N35 ->  | O41: =O40*O35 -> 
B42: топливо №2 | D42: =INDIRECT("объекты!F"&(19+23*$A28)) -> 0 | P42: =VLOOKUP($D42,списки!$D$41:$F$48,3,FALSE) -> 
A43: ="н_"&D42 -> н_0 | B43: - Приход натурального топлива, всего | D43: =VLOOKUP($D42,списки!$D$41:$H$48,4,FALSE) ->  | H43: =INDIRECT("натуральные!F"&(68+27*$A28)) -> 0 | L43: =INDIRECT("натуральные!J"&(68+27*$A28)) -> 0 | M43: =INDIRECT("натуральные!K"&(68+27*$A28)) ->  | N43: =INDIRECT("натуральные!L"&(68+27*$A28)) ->  | O43: =INDIRECT("натуральные!M"&(68+27*$A28)) -> 
B44: - Цена франко станция отправления | D44: =VLOOKUP($D42,списки!$D$41:$H$48,5,FALSE) ->  | M44: =(N44*N43+O44*O43)/M43 ->  | N44: =K44 -> 0 | O44: =N44*P42/100 -> 
B45: - Тариф на перевозку | D45: =D44 ->  | M45: =(N45*N43+O45*O43)/M43 ->  | N45: =K45 -> 0
B46: - Тариф на погрузо-разгрузочные работы | D46: =D45 ->  | M46: =(N46*N43+O46*O43)/M43 ->  | N46: 0 | O46: =N46*$T$4/100 -> 0
B47: - Сбытовая надбавка | D47: =D46 ->  | M47: =(N47*N43+O47*O43)/M43 ->  | N47: 0 | O47: =IF(D42=$L$3,N47*$N$3,0)/100 -> 0
B48: - Цена франко станция назначения | D48: =D47 ->  | E48: =E44+E45+E46+E47 -> 0 | F48: =F44+F45+F46+F47 -> 0 | G48: =G44+G45+G46+G47 -> 0 | H48: =H44+H45+H46+H47 -> 0 | I48: =I44+I45+I46+I47 -> 0 | J48: =J44+J45+J46+J47 -> 0 | K48: =K44+K45+K46+K47 -> 0 | L48: =L44+L45+L46+L47 -> 0 | M48: =(N48*N43+O48*O43)/M43 ->  | N48: =N44+N45+N46+N47 -> 0 | O48: =O44+O45+O46+O47 ->  | P48: =IF(M48-(M44+M45+M46+M47)<0.01,"верно","проверять!!!") -> 
A49: =D42 -> 0 | B49: - Приход натурального топлива, стоимость | D49: руб. | E49: =E48*E43 -> 0 | F49: =F48*F43 -> 0 | G49: =G48*G43 -> 0 | H49: =H48*H43 -> 0 | I49: =I48*I43 -> 0 | J49: =J48*J43 -> 0 | K49: =K48*K43 -> 0 | L49: =L48*L43 -> 0 | M49: =N49+O49 ->  | N49: =N48*N43 ->  | O49: =O48*O43 -> 

Sheet рез.топливо
B1: Стоимость резервного топлива для объекта: | D1: =анкета!C11 -> 0
H2: уголь, тонн | I2: к плановым показателям 2013-2014 гг. | L2: мазут, тонн | O2: дрова, м3 | R2: стоимость ж/д перевозок | S2: 107
B3: Группа котельных | D3: =анкета!C12 -> 0 | I3: к фактической цене 2012 г (при подтверждении стоимости приобретения) | L3: газ природный, тыс. м3 | O3: электроэнергия, кВт.ч | R3: грузовой транспорт | S3: 111
H4: нефть, тонн | L4: газ попутный, тыс. м3 | O4: диз. топливо, тонн | R4: погрузо-разгрузочные работы | S4: 107.1
B5: Наименование показателя | D5: Ед. изм. | E5: 2011 | F5: 2012 | G5: 2013 | I5: учтено в тарифе на 2014 год | L5: 2015 | M5: 2015
E6: факт организации | F6: факт организации | G6: учтено в тарифе | H6: факт организации | I6: всего | J6: 1 полугодие | K6: 2 полугодие | L6: план организации | M6: по плану ДТР ТО
M7: всего | N7: 1 полугодие | O7: 2 полугодие
B8: заполняется в целом по организации с учетом всех котельных | J8: 01.01.2014-30.06.2014 | K8: 01.07.2014-31.12.2014 | N8: 01.01.2015-30.06.2015 | O8: 01.07.2015-31.12.2015
B9: Приход резервного топлива ВСЕГО, стоимость, руб. | D9: руб. | E9: =E11+E13+E15+E17+E19+E21+E23+E25 -> 0 | F9: =F11+F13+F15+F17+F19+F21+F23+F25 -> 0 | G9: =G11+G13+G15+G17+G19+G21+G23+G25 -> 0 | H9: =H11+H13+H15+H17+H19+H21+H23+H25 -> 0 | I9: =I11+I13+I15+I17+I19+I21+I23+I25 -> 0 | J9: 0 | K9: 0 | L9: 0 | M9: =M11+M13+M15+M17+M19+M21+M23+M25 -> 0 | N9: =N11+N13+N15+N17+N19+N21+N23+N25 -> 0 | O9: =O11+O13+O15+O17+O19+O21+O23+O25 -> 0 | P9: =IF(M9-N9-O9<0.01,"верно","ошибка") -> верно
A10: ="н_"&$B10 -> н_уголь, тонн | B10: =списки!$D$41 -> уголь, тонн | D10: =VLOOKUP($B10,списки!$D$41:$H$48,4,FALSE) -> тонн | E10: =SUMIF($A$34:$A$41,$A10,E$34:E$41) -> 0 | F10: =SUMIF($A$34:$A$41,$A10,F$34:F$41) -> 0 | G10: =SUMIF($A$34:$A$41,$A10,G$34:G$41) -> 0 | H10: =SUMIF($A$34:$A$41,$A10,H$34:H$41) -> 0 | I10: 0 | J10: 0 | K10: 0 | L10: 0 | M10: 0 | N10: 0 | O10: 0 | P10: =IF(M10-N10-O10<0.01,"верно","ошибка") -> верно
A11: =$B10 -> уголь, тонн | B11: - Приход натурального топлива, стоимость, руб. | D11: руб. | E11: 0 | F11: 0 | G11: 0 | H11: 0 | I11: 0 | J11: 0 | K11: 0 | L11: 0 | M11: 0 | N11: 0 | O11: 0 | P11: =IF(M11-N11-O11<0.01,"верно","ошибка") -> верно
A12: ="н_"&$B12 -> н_газ природный, тыс. м3 | B12: =списки!$D$44 -> газ природный, тыс. м3 | D12: =VLOOKUP($B12,списки!$D$41:$H$48,4,FALSE) -> тыс. м3 | E12: 0 | F12: 0 | G12: 0 | H12: 0 | I12: 0 | J12: 0 | K12: 0 | L12: 0 | M12: 0 | N12: 0 | O12: 0 | P12: =IF(M12-N12-O12=0,"верно","ошибка") -> верно
A13: =$B12 -> газ природный, тыс. м3 | B13: - Приход натурального топлива, стоимость, руб. | D13: руб. | E13: 0 | F13: 0 | G13: 0 | H13: 0 | I13: 0 | J13: 0 | K13: 0 | L13: 0 | M13: 0 | N13: 0 | O13: 0 | P13: =IF(M13-N13-O13<0.01,"верно","ошибка") -> верно
A14: ="н_"&$B14 -> н_нефть, тонн | B14: =списки!$D$42 -> нефть, тонн | D14: =VLOOKUP($B14,списки!$D$41:$H$48,4,FALSE) -> тонн | E14: 0 | F14: 0 | G14: 0 | H14: 0 | I14: 0 | J14: 0 | K14: 0 | L14: 0 | M14: 0 | N14: 0 | O14: 0 | P14: верно
A15: =$B14 -> нефть, тонн | B15: - Приход натурального топлива, стоимость, руб. | D15: руб. | E15: 0 | F15: 0 | G15: 0 | H15: 0 | I15: 0 | J15: 0 | K15: 0 | L15: 0 | M15: 0 | N15: 0 | O15: 0 | P15: =IF(M15-N15-O15<0.01,"верно","ошибка") -> верно
A16: ="н_"&$B16 -> н_мазут, тонн | B16: =списки!$D$43 -> мазут, тонн | D16: =VLOOKUP($B16,списки!$D$41:$H$48,4,FALSE) -> тонн | E16: 0 | F16: 0 | G16: 0 | H16: 0 | I16: 0 | J16: 0 | K16: 0 | L16: 0 | M16: 0 | N16: 0 | O16: 0 | P16: верно
A17: =$B16 -> мазут, тонн | B17: - Приход натурального топлива, стоимость, руб. | D17: руб. | E17: 0 | F17: 0 | G17: 0 | H17: 0 | I17: 0 | J17: 0 | K17: 0 | L17: 0 | M17: 0 | N17: 0 | O17: 0 | P17: =IF(M17-N17-O17<0.01,"верно","ошибка") -> верно
A18: ="н_"&$B18 -> н_дрова, м3 | B18: =списки!$D$46 -> дрова, м3 | D18: =VLOOKUP($B18,списки!$D$41:$H$48,4,FALSE) -> м3 | E18: 0 | F18: 0 | G18: 0 | H18: 0 | I18: 0 | J18: 0 | K18: 0 | L18: 0 | M18: 0 | N18: 0 | O18: 0 | P18: верно
A19: =$B18 -> дрова, м3 | B19: - Приход натурального топлива, стоимость, руб. | D19: руб. | E19: 0 | F19: 0 | G19: 0 | H19: 0 | I19: 0 | J19: 0 | K19: 0 | L19: 0 | M19: 0 | N19: 0 | O19: 0 | P19: =IF(M19-N19-O19<0.01,"верно","ошибка") -> верно
A20: ="н_"&$B20 -> н_газ попутный, тыс. м3 | B20: =списки!$D$45 -> газ попутный, тыс. м3 | D20: =VLOOKUP($B20,списки!$D$41:$H$48,4,FALSE) -> тыс. м3 | E20: =SUMIF($A$34:$A$41,$A20,E$34:E$41) -> 0 | F20: 0 | G20: 0 | H20: 0 | I20: 0 | J20: 0 | K20: 0 | L20: 0 | M20: 0 | N20: 0 | O20: 0 | P20: верно
A21: =$B20 -> газ попутный, тыс. м3 | B21: - Приход натурального топлива, стоимость, руб. | D21: руб. | E21: 0 | F21: 0 | G21: 0 | H21: 0 | I21: 0 | J21: 0 | K21: 0 | L21: 0 | M21: 0 | N21: 0 | O21: 0 | P21: =IF(M21-N21-O21<0.01,"верно","ошибка") -> верно
A22: ="н_"&$B22 -> н_диз. топливо, тонн | B22: =списки!$D$48 -> диз. топливо, тонн | D22: =VLOOKUP($B22,списки!$D$41:$H$48,4,FALSE) -> тонн | E22: 0 | F22: 0 | G22: 0 | H22: 0 | I22: 0 | J22: 0 | K22: 0 | L22: 0 | M22: 0 | N22: 0 | O22: 0 | P22: верно
A23: =$B22 -> диз. топливо, тонн | B23: - Приход натурального топлива, стоимость, руб. | D23: руб. | E23: =SUMIF($A$34:$A$41,$A23,E$34:E$41) -> 0 | F23: 0 | G23: 0 | H23: 0 | I23: 0 | J23: 0 | K23: 0 | L23: 0 | M23: 0 | N23: 0 | O23: 0 | P23: =IF(M23-N23-O23<0.01,"верно","ошибка") -> верно
A24: ="н_"&$B24 -> н_электроэнергия, тыс.кВт*ч | B24: =списки!$D$47 -> электроэнергия, тыс.кВт*ч | D24: =VLOOKUP($B24,списки!$D$41:$H$48,4,FALSE) -> тыс.кВт*ч | E24: 0 | F24: 0 | G24: 0 | H24: 0 | I24: 0 | J24: 0 | K24: 0 | L24: 0 | M24: 0 | N24: 0 | O24: 0 | P24: верно
A25: =$B24 -> электроэнергия, тыс.кВт*ч | B25: - Приход натурального топлива, стоимость, руб. | D25: руб. | E25: 0 | F25: 0 | G25: 0 | H25: 0 | I25: 0 | J25: 0 | K25: 0 | L25: 0 | M25: 0 | N25: 0 | O25: 0 | P25: =IF(M25-N25-O25<0.01,"верно","ошибка") -> верно
B27: Стоимость топлива для объекта: | D27: =анкета!C11 -> 0
B28: Группа котельных | D28: =анкета!C12 -> 0
A29: 0 | B29: =INDIRECT("балансы!A"&(20+15*$A29)) -> Котельная 1
B30: Наименование показателя | D30: Ед изм. | E30: 2011 | F30: 2012 | G30: 2013 | I30: учтено в тарифе на 2014 год | L30: 2015 | M30: 2015
E31: факт организации | F31: факт организации | G31: учтено в тарифе | H31: факт организации | I31: всего | J31: 1 полугодие | K31: 2 полугодие | L31: план организации | M31: по плану ДТР ТО
M32: всего | N32: 1 полугодие | O32: 2 полугодие
B33: резервное топливо | J33: 01.01.2014-30.06.2014 | K33: 01.07.2014-31.12.2014 | N33: 01.01.2015-30.06.2015 | O33: 01.07.2015-31.12.2015
B34: Вид топлива: | D34: =INDIRECT("объекты!J"&(19+23*$A29)) -> 0 | P34: =VLOOKUP($D34,списки!$D$41:$F$48,3,FALSE) -> 
A35: ="н_"&D34 -> н_0 | B35: - Приход натурального топлива, всего | D35: =VLOOKUP($D34,списки!$D$41:$H$48,4,FALSE) ->  | H35: =INDIRECT("натуральные!F"&(70+27*$A29)) -> 0 | L35: =INDIRECT("натуральные!J"&(70+27*$A29)) -> 0 | M35: =INDIRECT("натуральные!K"&(70+27*$A29)) -> 0 | N35: =INDIRECT("натуральные!L"&(70+27*$A29)) -> 0 | O35: =INDIRECT("натуральные!M"&(70+27*$A29)) -> 0
B36: - Цена франко станция отправления | D36: =VLOOKUP($D34,списки!$D$41:$H$48,5,FALSE) ->  | M36: =IF(M35<>0,(N36*N35+O36*O35)/M35,0) -> 0 | N36: =K36 -> 0 | O36: =N36*P34/100 -> 
B37: - Тариф на перевозку | D37: =D36 ->  | M37: =IF(M35<>0,(N37*N35+O37*O35)/M35,0) -> 0 | N37: =K37 -> 0
B38: - Тариф на погрузо-разгрузочные работы | D38: =D37 ->  | M38: =IF(M35<>0,(N38*N35+O38*O35)/M35,0) -> 0 | N38: 0 | O38: =N38*$T$4/100 -> 0
B39: - Сбытовая надбавка | D39: =D38 ->  | M39: =IF(M35<>0,(N39*N35+O39*O35)/M35,0) -> 0 | N39: 0 | O39: =IF(D34=$L$3,N39*$N$3,0) -> 0
B40: - Цена франко станция назначения | D40: =D39 ->  | E40: =E36+E37+E38+E39 -> 0 | F40: 0 | G40: 0 | H40: 0 | I40: 0 | J40: 0 | K40: 0 | L40: 0 | M40: =IF(M35<>0,(N40*N35+O40*O35)/M35,0) -> 0 | N40: =N36+N37+N38+N39 -> 0 | O40: =O36+O37+O38+O39 ->  | P40: =IF(M40-(M36+M37+M38+M39)<0.01,"верно","проверять!!!") -> верно
A41: =D34 -> 0 | B41: - Приход натурального топлива, стоимость | D41: руб. | E41: =E40*E35 -> 0 | F41: 0 | G41: 0 | H41: 0 | I41: 0 | J41: 0 | K41: 0 | L41: 0 | M41: =N41+O41 ->  | N41: =N40*N35 -> 0 | O41: =O40*O35 -> 

Sheet резервное топливо
C2: Расходы, связанные с созданием нормативных запасов топлива
B4: Наименование показателя | C4: Ед изм. | D4: 2011 (факт по данным организации) | E4: 2012 (факт по данным организации) | F4: 2013 (план органа регулирования) | G4: 2013 (факт по данным организации) | H4: 2014 (план органа регулирования) | I4: 2015 | J4: 2015
I6: план организации | J6: план органа регулирования
J7: итого | K7: 01.01.2015-30.06.2015 | L7: 01.07.2015-31.12.2015
A8: уголь
A9: 1 | B9: Объем нормативного запаса топлива | C9: тонн
A10: 2 | B10: Объем запаса топлива, учтенного в тарифе на тепловую энергию | C10: тонн | J10: =рез.топливо!M10 -> 0 | K10: =рез.топливо!N10 -> 0 | L10: =рез.топливо!O10 -> 0
A11: 3 | B11: Цена единицы топлива, в т.ч. | C11: руб./тонн | J11: =J12/J10 ->  | K11: =K12/K10 -> 
A12: 4 | B12: Стоимость запаса топлива, учтенного в тарифе на тепловую энергию | C12: руб. | J12: =рез.топливо!M11 -> 0 | K12: =рез.топливо!N11 -> 0 | L12: =рез.топливо!O11 -> 0
A13: 5 | B13: Расходы по обслуживанию заемных средств, привлекаемых для создание запасов топлива | C13: руб.
A14: 6 | B14: Итого расходы,связанные с созданием нормативных запасов топлива | C14: руб. | J14: =J12+J13 -> 0 | K14: =K12+K13 -> 0 | L14: 0
A16: дизельное топливо
A17: 1 | B17: Объем нормативного запаса топлива | C17: тонн
A18: 2 | B18: Объем запаса топлива, учтенного в тарифе на тепловую энергию | C18: тонн | J18: =рез.топливо!M22 -> 0 | K18: =рез.топливо!N22 -> 0 | L18: =рез.топливо!O22 -> 0
A19: 3 | B19: Цена единицы топлива, в т.ч. | C19: руб./тонн | J19: =J20/J18 ->  | K19: =K20/K18 -> 
A20: 4 | B20: Стоимость запаса топлива, учтенного в тарифе на тепловую энергию | C20: руб. | J20: =рез.топливо!M23 -> 0 | K20: =рез.топливо!N23 -> 0 | L20: =рез.топливо!O23 -> 0
A21: 5 | B21: Расходы по обслуживанию заемных средств, привлекаемых для создание запасов топлива | C21: руб.
A22: 6 | B22: Итого расходы,связанные с созданием нормативных запасов топлива | C22: руб. | J22: =J20+J21 -> 0 | K22: =K20+K21 -> 0 | L22: 0
A24: нефть
A25: 1 | B25: Объем нормативного запаса топлива | C25: тонн
A26: 2 | B26: Объем запаса топлива, учтенного в тарифе на тепловую энергию | C26: тонн | J26: =рез.топливо!M14 -> 0 | K26: =рез.топливо!N14 -> 0 | L26: =рез.топливо!O14 -> 0
A27: 3 | B27: Цена единицы топлива, в т.ч. | C27: руб./тонн | J27: =J28/J26 ->  | K27: =K28/K26 -> 
A28: 4 | B28: Стоимость запаса топлива, учтенного в тарифе на тепловую энергию | C28: руб. | J28: =рез.топливо!M15 -> 0 | K28: =рез.топливо!N15 -> 0 | L28: =рез.топливо!O15 -> 0
A29: 5 | B29: Расходы по обслуживанию заемных средств, привлекаемых для создание запасов топлива | C29: руб.
A30: 6 | B30: Итого расходы,связанные с созданием нормативных запасов топлива | C30: руб. | J30: =J28+J29 -> 0 | K30: =K28+K29 -> 0 | L30: 0
A32: мазут
A33: 1 | B33: Объем нормативного запаса топлива | C33: тонн
A34: 2 | B34: Объем запаса топлива, учтенного в тарифе на тепловую энергию | C34: тонн | J34: =рез.топливо!M16 -> 0 | K34: =рез.топливо!N16 -> 0 | L34: =рез.топливо!O16 -> 0
A35: 3 | B35: Цена единицы топлива, в т.ч. | C35: руб./тонн | J35: =J36/J34 ->  | K35: =K36/K34 -> 
A36: 4 | B36: Стоимость запаса топлива, учтенного в тарифе на тепловую энергию | C36: руб. | J36: =рез.топливо!M17 -> 0 | K36: =рез.топливо!N17 -> 0 | L36: =рез.топливо!O17 -> 0
A37: 5 | B37: Расходы по обслуживанию заемных средств, привлекаемых для создание запасов топлива | C37: руб.
A38: 6 | B38: Итого расходы,связанные с созданием нормативных запасов топлива | C38: руб. | J38: =J36+J37 -> 0 | K38: =K36+K37 -> 0 | L38: 0
A40: Справочно:
B41: Ставка рефинансирования по данным Центр. Банка России | C41: %
A43: Примечания:
B44: стр. 6 = стр.4 + стр.5
B45: расчет по стр.5 должен быть представлен дополнительно
B46: объем нормативного запаса топлива указывается согласно приказа на утверждение запасов топлива

Sheet эл.эн.
B1: Стоимость покупной электроэнергии на технологические цели ЭСО для: | E1: =анкета!C11 -> 0 | L1: дефлятор 2015/2014 | M1: =электроэнергия_2015_полуг -> 1.076 | S1: =топливо!X3 ->  | T1: =топливо!Y3 -> 
B2: группа котельных | E2: =анкета!C12 -> 0 | O2: для сметы
B3: Показатель | C3: 2011 | D3: 2012 | E3: 2013 | G3: учтено в тарифе на 2014 год | J3: 2015 | K3: 2015 | P3: итого | Q3: 1 полугодие | R3: 2 полугодие
C4: факт организации | D4: факт организации | E4: учтено в тарифе | F4: факт организации | G4: всего | H4: 1 полугодие | I4: 2 полугодие | J4: план организации | K4: по плану ДТР ТО
K5: всего | L5: 1 полугодие | M5: 2 полугодие | S5: откл
H6: 01.01.2014-30.06.2014 | I6: 01.07.2014-31.12.2014 | L6: 01.01.2015-30.06.2015 | M6: 01.07.2015-31.12.2015 | O6: объем, тыс.кВт | P6: =натуральные!K24 -> 0 | Q6: =натуральные!L24 -> 0 | R6: =натуральные!M24 -> 0
B7: Затраты на покупку, электроэнергии, всего (руб.) | C7: =C31 -> 0 | D7: 0 | E7: =E31 -> 0 | F7: =F31 -> 0 | G7: 0 | H7: =H31 -> 0 | I7: =I31 -> 0 | J7: =SUM(J8:J11) -> 0 | K7: =L7+M7 -> 0 | L7: =SUM(L8:L11) -> 0 | M7: =SUM(M8:M11) -> 0 | O7: тариф | P7: =P8/P6/1000 ->  | Q7: =L7/Q6/1000 ->  | R7: =M7/R6/1000 -> 
B8: ВН | C8: х | D8: х | E8: х | F8: х | G8: х | H8: х | I8: х | J8: =J32 -> 0 | K8: =K32 -> 0 | L8: 0 | M8: 0 | O8: сумма общ | P8: =K7 -> 0 | Q8: =Q7*P6*1000 ->  | R8: =R7*P6*1000 ->  | S8: =Q8*$S$1+R8*$T$1-P8 -> 
B9: СН1 | C9: х | D9: х | E9: х | F9: х | G9: х | H9: х | I9: х | J9: 0 | K9: 0 | L9: 0 | M9: 0 | O9: объем на передачу, тыс.КВт | P9: =Q9+R9 -> 0
B10: СН2 | C10: х | D10: х | E10: х | F10: х | G10: х | H10: х | I10: х | J10: 0 | K10: 0 | L10: 0 | M10: 0 | O10: сумма на передачу | P10: =Q9*Q7+R9*R7 ->  | Q10: =Q7*P9*1000 ->  | R10: =R7*P9*1000 ->  | S10: =Q10*$S$1+R10*$T$1-P10 -> 
B11: НН | C11: х | D11: х | E11: х | F11: х | G11: х | H11: х | I11: х | J11: 0 | K11: 0 | L11: 0 | M11: 0
A13: 0 | B13: =INDIRECT("балансы!A"&(20+15*$A13)) -> Котельная 1
B14: Показатель | C14: 2011 | D14: 2012 | E14: 2013 | G14: учтено в тарифе на 2014 год | J14: 2015 | K14: 2015
C15: факт организации | D15: факт организации | E15: учтено в тарифе | F15: факт организации | G15: всего | H15: 1 полугодие | I15: 2 полугодие | J15: план организации | K15: по плану ДТР ТО
K16: всего | L16: 1 полугодие | M16: 2 полугодие
H17: 01.01.2014-30.06.2014 | I17: 01.07.2014-31.12.2014 | L17: 01.01.2015-30.06.2015 | M17: 01.07.2015-31.12.2015
B18: Наименование поставщика
B19: Выработка тепловой энергии котельной (Гкал/год) | F19: =INDIRECT("натуральные!F"&(49+27*$A13)) -> 0 | J19: =INDIRECT("натуральные!J"&(49+27*$A13)) -> 0 | K19: =INDIRECT("натуральные!K"&(49+27*$A13)) -> 0 | L19: =INDIRECT("натуральные!L"&(49+27*$A13)) -> 0 | M19: =INDIRECT("натуральные!M"&(49+27*$A13)) -> 0
B20: Удельный расход электроэнергии (кВт*ч/Гкал.) | F20: =INDIRECT("натуральные!F"&(65+27*$A13)) -> 0 | J20: =INDIRECT("натуральные!J"&(65+27*$A13)) -> 0 | K20: =INDIRECT("натуральные!K"&(65+27*$A13)) -> 0 | L20: =INDIRECT("натуральные!L"&(65+27*$A13)) -> 0 | M20: =INDIRECT("натуральные!M"&(65+27*$A13)) -> 0
B21: Объем покупной электроэнергии, в том числе по уровням напряжения (тыс.кВт*ч) | C21: =C22+C23+C24+C25 -> 0 | D21: =D22+D23+D24+D25 -> 0 | E21: 0 | F21: =INDIRECT("натуральные!F"&(64+27*$A13)) -> 0 | G21: =G22+G23+G24+G25 -> 0 | H21: =H22+H23+H24+H25 -> 0 | I21: =I22+I23+I24+I25 -> 0 | J21: =INDIRECT("натуральные!J"&(64+27*$A13)) -> 0 | K21: =INDIRECT("натуральные!K"&(64+27*$A13)) -> 0 | L21: =INDIRECT("натуральные!L"&(64+27*$A13)) -> 0 | M21: =INDIRECT("натуральные!M"&(64+27*$A13)) -> 0
B22: ВН | G22: =H22+I22 -> 0 | L22: =IF(K22>0,L21,0) -> 0 | M22: =IF(K22>0,M21,0) -> 0 | N22: заполнять по уровням
B23: СН1 | G23: =H23+I23 -> 0 | L23: =IF(K23>0,L21,0) -> 0 | M23: =IF(K23>0,M21,0) -> 0
B24: СН2 | G24: 0 | L24: =IF(K24>0,L21,0) -> 0 | M24: =IF(K24>0,M21,0) -> 0
B25: НН | G25: 0 | L25: =IF(K25>0,L21,0) -> 0 | M25: =IF(K25>0,M21,0) -> 0
B26: Тариф, одноставочный (руб./кВт*ч) | C26: =C31/C21/1000 ->  | D26: =D31/D21/1000 ->  | E26: =E31/E21/1000 ->  | F26: =F31/F21/1000 ->  | G26: =G31/G21/1000 ->  | J26: =J31/J21/1000 ->  | K26: =K31/K21/1000 ->  | M26: =L26*$M$1 -> 0
B27: ВН | L27: =IF(L22>0,L26,0) -> 0 | M27: =IF(M22>0,M26,0) -> 0
B28: СН1 | L28: =IF(L23>0,L26,0) -> 0 | M28: =IF(M23>0,M26,0) -> 0
B29: СН2 | L29: =IF(L24>0,L26,0) -> 0 | M29: =IF(M24>0,M26,0) -> 0
B30: НН | L30: =IF(L25>0,L26,0) -> 0 | M30: =IF(M25>0,M26,0) -> 0
B31: Затраты на покупку, электроэнергии, всего (руб.) | C31: =C32+C33+C34+C35 -> 0 | D31: =D32+D33+D34+D35 -> 0 | E31: =E32+E33+E34+E35 -> 0 | F31: =F32+F33+F34+F35 -> 0 | G31: =G32+G33+G34+G35 -> 0 | H31: 0 | I31: 0 | J31: =J32+J33+J34+J35 -> 0 | K31: =K32+K33+K34+K35 -> 0 | L31: =L32+L33+L34+L35 -> 0 | M31: 0
B32: ВН | C32: =C27*C22*1000 -> 0 | D32: 0 | E32: 0 | F32: 0 | G32: =G27*G22*1000 -> 0 | H32: 0 | I32: 0 | J32: =J27*J22*1000 -> 0 | K32: =L32+M32 -> 0 | L32: =L27*L22*1000 -> 0 | M32: 0 | N32: заполнять по уровням
B33: СН1 | C33: 0 | D33: 0 | E33: 0 | F33: 0 | G33: =G28*G23*1000 -> 0 | H33: 0 | I33: 0 | J33: =J28*J23*1000 -> 0 | K33: =L33+M33 -> 0 | L33: 0 | M33: 0
B34: СН2 | C34: 0 | D34: 0 | E34: 0 | F34: 0 | G34: =G29*G24*1000 -> 0 | H34: 0 | I34: 0 | J34: =J29*J24*1000 -> 0 | K34: =L34+M34 -> 0 | L34: 0 | M34: 0
B35: НН | C35: 0 | D35: 0 | E35: 0 | F35: 0 | G35: =G30*G25*1000 -> 0 | H35: 0 | I35: 0 | J35: =J30*J25*1000 -> 0 | K35: =L35+M35 -> 0 | L35: =L30*L25*1000 -> 0 | M35: =M30*M25*1000 -> 0
M36: =IF((K31-K32-K33-K34-K35)<0.001,"верно","уточнить!!!") -> верно | N36: =IF((L31-L32-L33-L34-L35)<0.001,"верно","уточнить!!!") -> верно | O36: =IF((M31-M32-M33-M34-M35)<0.001,"верно","уточнить!!!") -> верно

Sheet Амортизация
A1: Перечень имущества, находящегося на праве собственности, хозяйственного ведения или концессионного соглашения, и используемого при осуществлении регулируемой деятельности
A2: Расчет амортизации и остаточной стоимости имущества
A3: =анкета!C11 -> 0
A4: =анкета!C24 -> производство тепловой энергии (некомбинированная выработка)+ передача+сбыт
K6: рублей
A7: Объекты основных средств по подразделениям | B7: Первоначальная (восстановитель ная) стоимость | C7: Дата ввода в эксплуатацию | D7: Срок полезного использования, мес. | E7: Сумма амортизации за год | F7: Остаточная стоимость на начало регулируемого периода | G7: Степень износа на 01.01.14 г., % | H7: План на период регулирования
H8: =анкета!C21 -> 2015
H9: Годовая сумма амортизации | I9: Остаточная стоимость на 01.01.16 г. | J9: итого по данным организации | K9: итого принято ДТР ТО
A10: 1 | B10: 2 | C10: 3 | D10: 4 | E10: 5 | F10: 6 | G10: 7 | H10: 8 | I10: 9 | J10: 10 | K10: 11
A11: Теплоснабжение
A19: ИТОГО | B19: =SUM(B12:B18) -> 0 | C19: х | D19: х | E19: =SUM(E12:E18) -> 0 | F19: =SUM(F12:F18) -> 0 | G19: х | H19: =SUM(H12:H18) -> 0 | I19: =SUM(I12:I18) -> 0 | J19: =SUM(J12:J18) -> 0 | K19: =SUM(K12:K18) -> 0
A20: основные средства цехового назначения
A28: ИТОГО по ОС цехового назначения | B28: =SUM(B21:B27) -> 0 | C28: х | D28: х | E28: =SUM(E21:E27) -> 0 | F28: =SUM(F21:F27) -> 0 | G28: х | H28: =SUM(H21:H27) -> 0 | I28: =SUM(I21:I27) -> 0 | J28: =SUM(J21:J27) -> 0 | K28: =SUM(K21:K27) -> 0
A29: основные средства общехозяйственного назначения
A35: ИТОГО по ОС общехозяйственного назначения | B35: =SUM(B30:B34) -> 0 | C35: х | D35: х | E35: =SUM(E30:E34) -> 0 | F35: =SUM(F30:F34) -> 0 | G35: х | H35: =SUM(H30:H34) -> 0 | I35: =SUM(I30:I34) -> 0 | J35: =SUM(J30:J34) -> 0 | K35: =SUM(K30:K34) -> 0
K37: 2015 | L37: 01.01.2015-30.06.2015 | M37: 01.07.2015-31.12.2015
A38: =A11 -> Теплоснабжение | K38: =K19 -> 0
A39: =A20 -> основные средства цехового назначения | K39: =K28 -> 0
A40: =A29 -> основные средства общехозяйственного назначения | K40: =K35 -> 0
K43: распределение амортизационных отчислений по ОС общецехового и общехозяйственного назначения в соответствии с учетной политикой организации в соответствующую статью затрат

Sheet Аренда
A1: Данные об имуществе, полученном по договорам аренды и используемом при осуществлении регулируемой деятельности
A3: =анкета!C11 -> 0
A4: =анкета!C24 -> производство тепловой энергии (некомбинированная выработка)+ передача+сбыт
M5: рублей
A6: Объекты основных средств по подразделениям | B6: № договоров аренды оборудования | C6: Вид договора (договор лизинга, коцессионное соглашение, другой вид договра(расшифровать)) | D6: Наименование организации - арендодателя | E6: Первоначальная (восстановитель ная) стоимость | F6: Дата ввода в эксплуатацию | G6: Срок полезного использования, мес. | H6: Сумма амортизации за год | I6: Остаточная стоимость на момент передачи по договору | J6: Степень износа, % | K6: Сумма арендной платы | L6: итого по данным организации | M6: итого принято ДТР ТО
A7: 1 | B7: 2 | C7: 3 | D7: 4 | E7: 5 | F7: 6 | G7: 7 | H7: 8 | I7: 9 | J7: 10 | K7: 11 | L7: 12 | M7: 13
A8: Теплоснабжение
A16: ИТОГО теплоснабжение | B16: х | C16: х | D16: х | E16: х | F16: х | G16: х | H16: =SUM(H8:H15) -> 0 | I16: =SUM(I8:I15) -> 0 | J16: х | K16: =SUM(K8:K15) -> 0 | L16: =SUM(L8:L15) -> 0 | M16: =SUM(M8:M15) -> 0
A17: основные средства цехового назначения
A23: ИТОГО по ОС цехового назначения | B23: х | C23: х | D23: х | E23: х | F23: х | G23: х | H23: =SUM(H17:H22) -> 0 | I23: =SUM(I17:I22) -> 0 | J23: х | K23: =SUM(K17:K22) -> 0 | L23: =SUM(L17:L22) -> 0 | M23: =SUM(M17:M22) -> 0
A24: основные средства общехозяйственного назначения
A30: ИТОГО по ОС общехозяйственного назначения | B30: х | C30: х | D30: х | E30: х | F30: х | G30: х | H30: =SUM(H24:H29) -> 0 | I30: =SUM(I24:I29) -> 0 | J30: х | K30: =SUM(K24:K29) -> 0 | L30: =SUM(L24:L29) -> 0 | M30: =SUM(M24:M29) -> 0
N32: 01.01.2013-30.06.2013 | O32: 01.07.2013-31.12.2013
A33: =A8 -> Теплоснабжение | M33: =M16 -> 0
A34: =A17 -> основные средства цехового назначения | M34: =M23 -> 0
A35: =A24 -> основные средства общехозяйственного назначения | M35: =M30 -> 0
M37: распределение арендной платы по ОС общецехового и общехозяйственного назначения в соответствии с учетной политикой организации в соответствующую статью затрат

Sheet числ-сть ПП
A1: Планируемая нормативная численность работников, надбавки к основной заработной плате и затраты на вспомогательные материалы, для:
A3: =анкета!C11 -> 0
E4: Наименование профессии | F4: По факту предбазового периода | I4: По плану на период регулирования | L4: По плану на период регулирования
F5: =анкета!C19 -> 2013 | I5: =анкета!C21 -> 2015 | L5: 2015
F6: по данным организации | I6: по данным организации | L6: принято в расчет тарифа ДТР ТО | AA6: указать в соответствии с каким нормативным актом применяется тарифная сетка | AG6: НЕ ТРОГАТЬ !!!!!!!
L7: нормативная численность | M7: численность, принятая в тариф | N7: Разряд | O7: Сумма | P7: Премия (%) | Q7: За выслугу лет (%) | R7: Вознаграждение по итогам года (%) | S7: Выплаты, связанные с режимом работы
F8: Численность | G8: Разряд | I8: Численность | J8: Разряд | S8: Ночные (%) | T8: Вредность (%) | U8: Праздничные (%) | V8: Прочие (%) | W8: Всего
A9: =анкета!C21 -> 2015 | B9: =анкета!C12 -> 0 | C9: производство тепловой энергии | E9: Начальник (тепловой) инспекции | H9: =F9*G9 -> 0 | K9: =I9*J9 -> 0 | O9: =M9*N9 -> 0 | W9: =S9+T9+U9+V9 -> 0
E10: Начальник (аварийно-восстановительной) службы | H10: =F10*G10 -> 0 | K10: =I10*J10 -> 0 | O10: =M10*N10 -> 0 | P10: =$P$9 -> 0 | W10: =S10+T10+U10+V10 -> 0 | AA10: тарифная сетка | AB10: тарифный коэффициент | AE10: =C9 -> производство тепловой энергии | AH10: =C36 -> персонал по передече тепловой энергии | AK10: =C62 -> Итого производственный персонал (с учетом производства и передачи тепловой энергии) | AN10: =C63 -> Персонал цеха ХВО | AQ10: общий по тарифу | AT10: АУП | AW10: МОП | AZ10: общий АУП | BC10: сбыт
E11: Начальник (диспетчерской) службы | H11: 0 | K11: 0 | O11: 0 | P11: =$P$9 -> 0 | W11: 0 | AA11: 1 | AB11: 1 | AE11: =IF((AA11-INT($N$35))=0,1,0) ->  | AF11: =IF(AE11=1,(($N$35-INT($N$35))*(AB12-AB11)+AB11),0) ->  | AH11: =IF((AA11-INT($N$61))=0,1,0) ->  | AI11: =IF(AH11=1,(($N$61-INT($N$61))*(AB12-AB11)+AB11),0) ->  | AK11: =IF((AA11-INT($N$62))=0,1,0) ->  | AL11: =IF(AK11=1,(($N$62-INT($N$62))*(AB12-AB11)+AB11),0) ->  | AN11: =IF((AA11-INT($N$67))=0,1,0) ->  | AO11: =IF(AN11=1,(($N$67-INT($N$67))*(AB12-AB11)+AB11),0) ->  | AQ11: =IF((AA11-INT($N$68))=0,1,0) ->  | AR11: =IF(AQ11=1,(($N$68-INT($N$68))*(AB12-AB11)+AB11),0) ->  | AT11: =IF((AA11-INT($N$85))=0,1,0) ->  | AU11: =IF(AT11=1,(($N$85-INT($N$85))*(AB12-AB11)+AB11),0) ->  | AW11: =IF((AA11-INT($N$91))=0,1,0) ->  | AX11: =IF(AW11=1,(($N$91-INT($N$91))*(AB12-AB11)+AB11),0) ->  | AZ11: =IF((AA11-INT($N$92))=0,1,0) ->  | BA11: =IF(AZ11=1,(($N$92-INT($N$92))*(AB12-AB11)+AB11),0) ->  | BC11: =IF((AA11-INT($N$110))=0,1,0) ->  | BD11: =IF(BC11=1,(($N$110-INT($N$110))*(AB12-AB11)+AB11),0) -> 
E12: Начальник (котельной) | H12: 0 | K12: 0 | O12: 0 | P12: 0 | W12: 0 | AA12: 2 | AB12: 1.5 | AE12: =IF((AA12-INT($N$35))=0,1,0) ->  | AF12: =IF(AE12=1,(($N$35-INT($N$35))*(AB13-AB12)+AB12),0) ->  | AH12: =IF((AA12-INT($N$61))=0,1,0) ->  | AI12: =IF(AH12=1,(($N$61-INT($N$61))*(AB13-AB12)+AB12),0) ->  | AK12: =IF((AA12-INT($N$62))=0,1,0) ->  | AL12: =IF(AK12=1,(($N$62-INT($N$62))*(AB13-AB12)+AB12),0) ->  | AO12: =IF(AN12=1,(($N$67-INT($N$67))*(AB13-AB12)+AB12),0) ->  | AQ12: =IF((AA12-INT($N$68))=0,1,0) ->  | AR12: =IF(AQ12=1,(($N$68-INT($N$68))*(AB13-AB12)+AB12),0) ->  | AU12: =IF(AT12=1,(($N$85-INT($N$85))*(AB13-AB12)+AB12),0) ->  | AX12: =IF(AW12=1,(($N$91-INT($N$91))*(AB13-AB12)+AB12),0) ->  | AZ12: =IF((AA12-INT($N$92))=0,1,0) ->  | BA12: =IF(AZ12=1,(($N$92-INT($N$92))*(AB13-AB12)+AB12),0) ->  | BC12: =IF((AA12-INT($N$110))=0,1,0) ->  | BD12: =IF(BC12=1,(($N$110-INT($N$110))*(AB13-AB12)+AB12),0) -> 
E13: Начальник смены | H13: 0 | K13: 0 | O13: 0 | P13: 0 | W13: 0 | AA13: 3 | AB13: 1.8
E14: Диспетчер | H14: 0 | K14: 0 | O14: 0 | P14: 0 | W14: 0 | AA14: 4 | AB14: 2.2
E15: Инженер | H15: 0 | K15: 0 | O15: 0 | P15: 0 | W15: 0 | AA15: 5 | AB15: 2.8
E16: Инженер-энергетик (энергетик) | H16: 0 | K16: 0 | O16: 0 | P16: 0 | W16: 0 | AA16: 6 | AB16: 3.25
E17: Оператор | H17: 0 | K17: 0 | O17: 0 | P17: 0 | W17: 0 | AA17: 7 | AB17: 3.7
E18: Слесарь-ремонтник | H18: 0 | K18: 0 | O18: 0 | P18: 0 | W18: 0 | AA18: 8 | AB18: 4.2
E19: Слесарь КИПиА | H19: 0 | K19: 0 | O19: 0 | P19: 0 | W19: 0 | AA19: 9 | AB19: 4.7 | AE19: =IF((AA19-INT($N$35))=0,1,0) -> 
E20: Электромонтер | H20: 0 | K20: 0 | O20: 0 | P20: 0 | W20: 0 | AA20: 10 | AB20: 5.2
E21: Слесарь по ремонту тепловых сетей | H21: 0 | K21: 0 | O21: 0 | P21: 0 | W21: 0 | AA21: 11 | AB21: 5.7
E22: Сливщик-наливщик | H22: 0 | K22: 0 | O22: 0 | P22: 0 | W22: 0 | AA22: 12 | AB22: 6.2
E23: Электрогазосварщик | H23: 0 | K23: 0 | O23: 0 | P23: 0 | W23: 0 | AA23: 13 | AB23: 6.7
E24: Слесарь ЦТП | H24: 0 | K24: 0 | O24: 0 | P24: 0 | W24: 0 | AA24: 14 | AB24: 7.2
E25: Кладовщик | H25: 0 | K25: 0 | O25: 0 | P25: 0 | W25: 0 | AA25: 15 | AB25: 7.7 | BA25: =IF(AZ25=1,(($N$92-INT($N$92))*(AB26-AB25)+AB25),0) -> 
E26: Машинисты насосных установок | H26: 0 | K26: 0 | O26: 0 | P26: 0 | W26: 0 | AA26: 16 | AB26: 8.2 | AF26: =IF(AE26=1,(($N$35-INT($N$35))*(AB27-AB26)+AB26),0) ->  | AI26: =IF(AH26=1,(($N$61-INT($N$61))*(AB27-AB26)+AB26),0) ->  | AO26: =IF(AN26=1,(($N$67-INT($N$67))*(AB27-AB26)+AB26),0) ->  | AR26: =IF(AQ26=1,(($N$68-INT($N$68))*(AB27-AB26)+AB26),0) ->  | BA26: =IF(AZ26=1,(($N$92-INT($N$92))*(AB27-AB26)+AB26),0) -> 
E27: Уборщик производственных помещений | H27: 0 | K27: 0 | O27: 0 | P27: 0 | W27: 0 | AA27: 17 | AB27: 9.07 | AE27: =IF((AA27-INT($N$35))=0,1,0) ->  | AF27: =IF(AE27=1,(($N$35-INT($N$35))*(AB28-AB27)+AB27),0) ->  | AH27: =IF((AA27-INT($N$61))=0,1,0) ->  | AI27: =IF(AH27=1,(($N$61-INT($N$61))*(AB28-AB27)+AB27),0) ->  | AK27: =IF((AA27-INT($N$62))=0,1,0) ->  | AL27: =IF(AK27=1,(($N$62-INT($N$62))*(AB28-AB27)+AB27),0) ->  | AN27: =IF((AA27-INT($N$67))=0,1,0) ->  | AO27: =IF(AN27=1,(($N$67-INT($N$67))*(AB28-AB27)+AB27),0) ->  | AQ27: =IF((AA27-INT($N$68))=0,1,0) ->  | AR27: =IF(AQ27=1,(($N$68-INT($N$68))*(AB28-AB27)+AB27),0) ->  | AT27: =IF((AA27-INT($N$85))=0,1,0) ->  | AU27: =IF(AT27=1,(($N$85-INT($N$85))*(AB28-AB27)+AB27),0) ->  | AW27: =IF((AA27-INT($N$91))=0,1,0) ->  | AX27: =IF(AW27=1,(($N$91-INT($N$91))*(AB28-AB27)+AB27),0) ->  | AZ27: =IF((AA27-INT($N$92))=0,1,0) ->  | BA27: =IF(AZ27=1,(($N$92-INT($N$92))*(AB28-AB27)+AB27),0) -> 
E28: Машинист н.у. | H28: 0 | K28: 0 | O28: 0 | P28: 0 | W28: 0 | AA28: 18 | AB28: 10.07
E29: Слесарь по ремонту электрооборудования | H29: 0 | K29: 0 | O29: 0 | P29: 0 | W29: 0
E30: Инженер по электрооборудованию и КИПиА | H30: 0 | K30: 0 | O30: 0 | P30: 0 | W30: 0
E31: Старший оператор | H31: 0 | K31: 0 | O31: 0 | P31: 0 | W31: 0
E32: Разнорабочий | H32: 0 | K32: 0 | O32: 0 | P32: 0 | W32: 0
E33: Заместитель начальника | H33: =F33*G33 -> 0 | K33: =I33*J33 -> 0 | O33: =M33*N33 -> 0 | P33: 0 | W33: =S33+T33+U33+V33 -> 0
E34: Оператор ЦТП и ПНС | H34: 0 | K34: 0 | O34: 0 | P34: 0 | W34: 0
E35: итого | F35: =SUM(F9:F34) -> 0 | G35: =H35/F35 ->  | H35: =SUM(H9:H34) -> 0 | I35: =SUM(I9:I34) -> 0 | J35: =K35/I35 ->  | K35: =SUM(K9:K34) -> 0 | L35: =SUM(L9:L34) -> 0 | M35: =SUM(M9:M34) -> 0 | N35: =O35/M35 ->  | O35: =SUM(O9:O34) -> 0 | P35: =SUMPRODUCT(P9:P34,M9:M34)/M35 ->  | Q35: =SUMPRODUCT(Q9:Q34,M9:M34)/M35 ->  | R35: =SUMPRODUCT(R9:R34,M9:M34)/M35 ->  | S35: =SUMPRODUCT(S9:S34,M9:M34)/M35 ->  | T35: =SUMPRODUCT(T9:T34,M9:M34)/M35 ->  | U35: =SUMPRODUCT(U9:U34,M9:M34)/M35 ->  | V35: =SUMPRODUCT(V9:V34,M9:M34)/M35 ->  | W35: =SUMPRODUCT(W9:W34,M9:M34)/M35 ->  | X35: =SUMPRODUCT(AF11:AF28) -> 
C36: персонал по передече тепловой энергии | E36: Начальник (тепловой) инспекции | H36: =F36*G36 -> 0 | K36: =I36*J36 -> 0 | O36: =M36*N36 -> 0 | P36: 0 | W36: =S36+T36+U36+V36 -> 0
E37: Начальник (аварийно-восстановительной) службы | H37: =F37*G37 -> 0 | K37: =I37*J37 -> 0 | O37: =M37*N37 -> 0 | P37: 0 | W37: =S37+T37+U37+V37 -> 0
E38: Начальник (диспетчерской) службы | H38: 0 | K38: 0 | O38: 0 | P38: 0 | W38: 0
E39: Начальник (котельной) | H39: 0 | K39: 0 | O39: 0 | P39: 0 | W39: 0
E40: Начальник смены | H40: 0 | K40: 0 | O40: 0 | P40: 0 | W40: 0
E41: Диспетчер | H41: 0 | K41: 0 | O41: 0 | P41: 0 | W41: 0
E42: Инженер | H42: 0 | K42: 0 | O42: 0 | P42: 0 | W42: 0
E43: Инженер-энергетик (энергетик) | H43: 0 | K43: 0 | O43: 0 | P43: 0 | W43: 0
E44: Оператор | H44: 0 | K44: 0 | O44: 0 | P44: 0 | W44: 0
E45: Слесарь-ремонтник | H45: 0 | K45: 0 | O45: 0 | P45: 0 | W45: 0
E46: Слесарь КИПиА | H46: 0 | K46: 0 | O46: 0 | P46: 0 | W46: 0
E47: Электромонтер | H47: 0 | K47: 0 | O47: 0 | P47: 0 | W47: 0
E48: Слесарь по ремонту тепловых сетей | H48: 0 | K48: 0 | O48: 0 | P48: 0 | W48: 0
E49: Сливщик-наливщик | H49: 0 | K49: 0 | O49: 0 | P49: 0 | W49: 0
E50: Электрогазосварщик | H50: 0 | K50: 0 | O50: 0 | P50: 0 | W50: 0
E51: Слесарь ЦТП | H51: 0 | K51: 0 | O51: 0 | P51: 0 | W51: 0
E52: Кладовщик | H52: 0 | K52: 0 | O52: 0 | P52: 0 | W52: 0
E53: Машинисты насосных установок | H53: 0 | K53: 0 | O53: 0 | P53: 0 | W53: 0
E54: Уборщик производственных помещений | H54: 0 | K54: 0 | O54: 0 | P54: 0 | W54: 0
E55: Машинист н.у. | H55: 0 | K55: 0 | O55: 0 | P55: 0 | W55: 0
E56: Слесарь по ремонту электрооборудования | H56: 0 | K56: 0 | O56: 0 | P56: 0 | W56: 0
E57: Инженер по электрооборудованию и КИПиА | H57: 0 | K57: 0 | O57: 0 | P57: 0 | W57: 0
E58: Старший оператор | H58: 0 | K58: 0 | O58: 0 | P58: 0 | W58: 0
E59: Разнорабочий | H59: 0 | K59: 0 | O59: 0 | P59: 0 | W59: 0
E60: Заместитель начальника | H60: 0 | K60: 0 | O60: 0 | P60: 0 | W60: 0
E61: итого | F61: =SUM(F36:F60) -> 0 | G61: =H61/F61 ->  | H61: =SUM(H36:H60) -> 0 | I61: =SUM(I36:I60) -> 0 | J61: =K61/I61 ->  | K61: =SUM(K36:K60) -> 0 | L61: =SUM(L36:L60) -> 0 | M61: =SUM(M36:M60) -> 0 | N61: =O61/M61 ->  | O61: =SUM(O36:O60) -> 0 | P61: =SUMPRODUCT(P36:P60,M36:M60)/M61 ->  | Q61: =SUMPRODUCT(Q36:Q60,M36:M60)/M61 ->  | R61: =SUMPRODUCT(R36:R60,M36:M60)/M61 ->  | S61: =SUMPRODUCT(S36:S60,M36:M60)/M61 ->  | T61: =SUMPRODUCT(T36:T60,M36:M60)/M61 ->  | U61: =SUMPRODUCT(U36:U60,M36:M60)/M61 ->  | V61: =SUMPRODUCT(V36:V60,M36:M60)/M61 ->  | W61: =SUMPRODUCT(W36:W60,M36:M60)/M61 ->  | X61: =SUMPRODUCT(AI11:AI28) -> 
C62: Итого производственный персонал (с учетом производства и передачи тепловой энергии) | F62: =F61+F35 -> 0 | G62: =H62/F62 ->  | H62: =H61+H35 -> 0 | I62: =I61+I35 -> 0 | J62: =K62/I62 ->  | K62: =K61+K35 -> 0 | L62: =SUM(L35,L61) -> 0 | M62: =SUM(M35,M61) -> 0 | N62: =O62/M62 ->  | O62: =SUM(O35,O61) -> 0 | P62: =(P35*$M$35+P61*$M$61)/$M$62 ->  | Q62: =(Q35*$M$35+Q61*$M$61)/$M$62 ->  | R62: =(R35*$M$35+R61*$M$61)/$M$62 ->  | W62: =(W35*$M$35+W61*$M$61)/$M$62 ->  | X62: =SUMPRODUCT(AL11:AL28) -> 
C63: Персонал цеха ХВО | E63: Инженер-химик | H63: =F63*G63 -> 0 | K63: =I63*J63 -> 0 | O63: 0 | P63: =$P$9 -> 0 | W63: 0
E64: Аппаратчик ХВО | H64: =F64*G64 -> 0 | K64: =I64*J64 -> 0 | O64: 0 | P64: =$P$9 -> 0 | W64: 0
E65: Аппаратчик ХВО | H65: 0 | K65: 0 | O65: 0 | P65: =$P$9 -> 0 | W65: 0
E66: Аппаратчик ХВО | H66: 0 | K66: 0 | O66: 0 | P66: =$P$9 -> 0 | W66: 0
C67: Итого персонал ХВО | F67: =SUM(F63:F66) -> 0 | G67: =H67/F67 ->  | H67: =SUM(H63:H66) -> 0 | I67: =SUM(I63:I66) -> 0 | J67: =K67/I67 ->  | K67: =SUM(K63:K66) -> 0 | L67: =SUM(L63:L66) -> 0 | M67: =SUM(M63:M66) -> 0 | N67: =O67/M67 ->  | O67: =SUM(O63:O66) -> 0 | P67: =SUMPRODUCT(P63:P66,M63:M66)/M67 ->  | Q67: =SUMPRODUCT(Q63:Q66,M63:M66)/M67 ->  | R67: =SUMPRODUCT(R63:R66,M63:M66)/M67 ->  | S67: =SUMPRODUCT(S63:S66,M63:M66)/M67 ->  | T67: =SUMPRODUCT(T63:T66,M63:M66)/M67 ->  | U67: =SUMPRODUCT(U63:U66,M63:M66)/M67 ->  | V67: =SUMPRODUCT(V63:V66,M63:M66)/M67 ->  | W67: =SUMPRODUCT(W63:W66,M63:M66)/M67 ->  | X67: =SUMPRODUCT(AO11:AO28) -> 
C68: Итого по тарифу | F68: =F62+F67 -> 0 | G68: =H68/F68 ->  | H68: =H62+H67 -> 0 | I68: =I62+I67 -> 0 | J68: =K68/I68 ->  | K68: =K62+K67 -> 0 | L68: =SUM(L62,L67) -> 0 | M68: =SUM(M62,M67) -> 0 | N68: =O68/M68 ->  | O68: =SUM(O62,O67) -> 0 | P68: =(P62*$M$62+P67*$M$67)/$M$68 ->  | X68: =SUMPRODUCT(AR11:AR28) -> 
C70: административно-управленческий персонал | E70: Директор | H70: =F70*G70 -> 0 | K70: =I70*J70 -> 0 | O70: =M70*N70 -> 0 | P70: =$P$9 -> 0 | W70: =S70+T70+U70+V70 -> 0
E71: Бухгалтер | H71: =F71*G71 -> 0 | K71: =I71*J71 -> 0 | O71: =M71*N71 -> 0 | P71: =$P$9 -> 0 | W71: =S71+T71+U71+V71 -> 0
E72: Менеджер по персоналу | H72: 0 | K72: 0 | O72: 0 | P72: =$P$9 -> 0 | W72: 0
E73: Инженер по снабжению | H73: 0 | K73: 0 | O73: 0 | P73: 0 | W73: 0
E74: Инженер по надзору | H74: 0 | K74: 0 | O74: 0 | P74: 0 | W74: 0
E75: Делопроизводитель | H75: 0 | K75: 0 | O75: 0 | P75: 0 | W75: 0
E76: Инженер по охране труда | H76: 0 | K76: 0 | O76: 0 | P76: 0 | W76: 0
E77: Юрисконсульт | H77: 0 | K77: 0 | O77: =M77*N77 -> 0 | P77: 0 | W77: 0
E78: Экономист | H78: 0 | K78: 0 | O78: 0 | P78: 0 | W78: 0
E79: Программист | H79: 0 | K79: 0 | O79: 0 | P79: 0 | W79: 0
E80: Инженер (энергонадзор) | H80: 0 | K80: 0 | O80: 0 | P80: 0 | W80: 0
E81: Техник (энергонадзор) | H81: 0 | K81: 0 | O81: 0 | P81: 0 | W81: 0
H82: 0 | K82: 0 | O82: 0 | P82: 0 | W82: 0
H83: 0 | K83: 0 | O83: 0 | P83: 0 | W83: 0
H84: 0 | K84: 0 | O84: 0 | P84: 0 | W84: 0
E85: итого | F85: =SUM(F70:F84) -> 0 | G85: =H85/F85 ->  | H85: =SUM(H70:H84) -> 0 | I85: =SUM(I70:I84) -> 0 | J85: =K85/I85 ->  | K85: =SUM(K70:K84) -> 0 | L85: =SUM(L70:L84) -> 0 | M85: =SUM(M70:M84) -> 0 | N85: =O85/M85 ->  | O85: =SUM(O70:O84) -> 0 | P85: =SUMPRODUCT(P70:P84,M70:M84)/M85 ->  | Q85: =SUMPRODUCT(Q70:Q84,M70:M84)/M85 ->  | R85: =SUMPRODUCT(R70:R84,M70:M84)/M85 ->  | S85: =SUMPRODUCT(S70:S84,M70:M84)/M85 ->  | T85: =SUMPRODUCT(T70:T84,M70:M84)/M85 ->  | U85: =SUMPRODUCT(U70:U84,M70:M84)/M85 ->  | V85: =SUMPRODUCT(V70:V84,M70:M84)/M85 ->  | W85: =SUMPRODUCT(W70:W84,M70:M84)/M85 ->  | X85: =SUMPRODUCT(AU11:AU28) -> 
C86: младший обслуживающий персонал | H86: =F86*G86 -> 0 | K86: =I86*J86 -> 0 | O86: =M86*N86 -> 0 | W86: =S86+T86+U86+V86 -> 0
H87: =F87*G87 -> 0 | K87: =I87*J87 -> 0 | O87: =M87*N87 -> 0 | P87: =$P$36 -> 0 | W87: =S87+T87+U87+V87 -> 0
H88: 0 | K88: 0 | O88: 0 | P88: =$P$36 -> 0 | W88: 0
H89: 0 | K89: 0 | O89: 0 | P89: =$P$36 -> 0 | W89: 0
H90: 0 | K90: 0 | O90: 0 | P90: 0 | W90: 0
E91: итого | F91: =SUM(F86:F90) -> 0 | G91: =H91/F91 ->  | H91: =SUM(H86:H90) -> 0 | I91: =SUM(I86:I90) -> 0 | J91: =K91/I91 ->  | K91: =SUM(K86:K90) -> 0 | L91: =SUM(L86:L90) -> 0 | M91: =SUM(M86:M90) -> 0 | N91: =O91/M91 ->  | O91: =SUM(O86:O90) -> 0 | P91: =SUMPRODUCT(P86:P90,M86:M90)/M91 ->  | Q91: =SUMPRODUCT(Q86:Q90,M86:M90)/M91 ->  | R91: =SUMPRODUCT(R86:R90,M86:M90)/M91 ->  | S91: =SUMPRODUCT(S86:S90,M86:M90)/M91 ->  | T91: =SUMPRODUCT(T86:T90,M86:M90)/M91 ->  | U91: =SUMPRODUCT(U86:U90,M86:M90)/M91 ->  | V91: =SUMPRODUCT(V86:V90,M86:M90)/M91 ->  | W91: =SUMPRODUCT(W86:W90,M86:M90)/M91 ->  | X91: =SUMPRODUCT(AX11:AX28) -> 
C92: ИТОГО АУП | F92: =F91+F85 -> 0 | G92: =H92/F92 ->  | H92: =H91+H85 -> 0 | I92: =I91+I85 -> 0 | J92: =K92/I92 ->  | K92: =K91+K85 -> 0 | L92: =SUM(L85,L91) -> 0 | M92: =SUM(M85,M91) -> 0 | N92: =O92/M92 ->  | O92: =SUM(O85,O91) -> 0 | P92: =(P85*$M$35+P91*$M$61)/$M$62 ->  | X92: =SUMPRODUCT(BA11:BA28) -> 
C95: персонал по сбыту | E95: Начальник отдела сбыта | H95: =F95*G95 -> 0 | K95: =I95*J95 -> 0 | O95: =M95*N95 -> 0 | P95: =P9 -> 0 | W95: =S95+T95+U95+V95 -> 0
E96: Контролер по сбору платежей | H96: 0 | K96: 0 | O96: =M96*N96 -> 0 | P96: =$P$95 -> 0 | W96: =S96+T96+U96+V96 -> 0
E97: бухгалтер сбыта | H97: 0 | K97: 0 | O97: 0 | P97: =$P$95 -> 0 | W97: 0
E98: Экономист сбыта | H98: 0 | K98: 0 | O98: 0 | P98: 0 | W98: 0
E99: инженер сбыта | H99: 0 | K99: 0 | O99: 0 | P99: 0 | W99: 0
E100: главный специалист по работе с населением | H100: 0 | K100: 0 | O100: 0 | P100: 0 | W100: 0
E101: техник-кассир | H101: 0 | K101: 0 | O101: 0 | P101: 0 | W101: 0
H102: 0 | K102: 0 | O102: =M102*N102 -> 0 | P102: 0
H103: 0 | K103: 0 | O103: =M103*N103 -> 0 | P103: 0
H104: 0 | K104: 0 | O104: =M104*N104 -> 0 | P104: 0
H105: 0 | K105: 0 | O105: =M105*N105 -> 0 | P105: 0
H106: 0 | K106: 0 | O106: =M106*N106 -> 0 | P106: 0
H107: 0 | K107: 0
H108: 0 | K108: 0
H109: 0 | K109: 0 | W109: =S109+T109+U109+V109 -> 0
E110: итого | F110: =SUM(F95:F109) -> 0 | G110: =H110/F110 ->  | H110: =SUM(H95:H109) -> 0 | I110: =SUM(I95:I109) -> 0 | J110: =K110/I110 ->  | K110: =SUM(K95:K109) -> 0 | L110: =SUM(L95:L109) -> 0 | M110: =SUM(M95:M109) -> 0 | N110: =O110/M110 ->  | O110: =SUM(O95:O109) -> 0 | P110: =SUMPRODUCT(P95:P109,M95:M109)/M110 ->  | Q110: =SUMPRODUCT(Q95:Q109,M95:M109)/M110 ->  | R110: =SUMPRODUCT(R95:R109,M95:M109)/M110 ->  | S110: =SUMPRODUCT(S95:S109,M95:M109)/M110 ->  | T110: =SUMPRODUCT(T95:T109,M95:M109)/M110 ->  | U110: =SUMPRODUCT(U95:U109,M95:M109)/M110 ->  | V110: =SUMPRODUCT(V95:V109,M95:M109)/M110 ->  | W110: =SUMPRODUCT(W95:W109,M95:M109)/M110 ->  | X110: =SUMPRODUCT(BD11:BD28) -> 

Sheet ФОТ ПП
A2: Расчет расходов на оплату труда производственного персонала (по периодам) | P2: изменение ставки 1 разряда
A3: № | B3: Показатели | C3: Ед.изм. | D3: 2011 | E3: 2012 | F3: предбазовый период | H3: Базовый период (утверждено ДТР и ГЗ ТО) | K3: Период регулирования | L3: Период регулирования | P3: =K3 -> Период регулирования
K4: 2015 | L4: 2015 | P4: =K4 -> 2015
F5: 2013 | H5: 2014 | K5: по данным организации | L5: учтено в тарифе ДТР и ГЗ | P5: учтено в тарифе ДТР и ГЗ
D6: Факт по данным организации | E6: Факт по данным организации | F6: Утвержденный план (годовой) | G6: Факт по данным организации | H6: всего | I6: в т.ч. по периодам | L6: всего | M6: в т.ч. по периодам | P6: всего | Q6: в т.ч. по периодам
I7: 01.01.2014-30.06.2014 | J7: 01.07.2014-31.12.2014 | K7: всего | M7: 01.01.2015-30.06.2015 | N7: 01.07.2015-31.12.2015 | Q7: 01.01.2015-30.06.2015 | R7: 01.07.2015-31.12.2015
A8: 1 | B8: =+A8+1 -> 2 | C8: 3 | D8: =+C8+1 -> 4 | E8: =+D8+1 -> 5 | F8: =+E8+1 -> 6 | G8: =+F8+1 -> 7 | H8: =+G8+1 -> 8 | I8: =+H8+1 -> 9 | J8: =+I8+1 -> 10 | K8: =+J8+1 -> 11 | L8: =+K8+1 -> 12 | M8: =+L8+1 -> 13 | N8: =+M8+1 -> 14 | P8: =+O8+1 -> 1 | Q8: 2 | R8: 3
B9: Численность по нормативу всего, в том числе | C9: чел. | D9: х | E9: х | F9: х | G9: х | H9: х | I9: х | J9: х | K9: х | L9: ='числ-сть ПП'!L62 -> 0 | M9: =$L$9 -> 0 | N9: =$L$9 -> 0 | P9: =SUM(P10:P11) -> 0 | Q9: =SUM(Q10:Q11) -> 0 | R9: 0
B10: численность производственного персонала | C10: чел. | D10: х | E10: х | F10: х | G10: х | H10: х | I10: х | J10: х | K10: х | L10: ='числ-сть ПП'!L35 -> 0 | M10: =$L$10 -> 0 | N10: =$L$10 -> 0 | P10: =L10 -> 0 | Q10: =$P$11 -> 0 | R10: =$P$11 -> 0
B11: численность персонала относящегося к передаче тепловой энергии | C11: чел. | D11: х | E11: х | F11: х | G11: х | H11: х | I11: х | J11: х | K11: х | L11: ='числ-сть ПП'!L61 -> 0 | M11: =$L$11 -> 0 | N11: =$L$11 -> 0 | P11: =L11 -> 0 | Q11: =$P$12 -> 0 | R11: =$P$12 -> 0
A12: 1. | B12: Численность, учтенная в тарифах, всего, в том числе | C12: чел. | D12: =SUM(D13:D14) -> 0 | E12: =SUM(E13:E14) -> 0 | F12: =SUM(F13:F14) -> 0 | G12: =SUM(G13:G14) -> 0 | H12: =SUM(H13:H14) -> 0 | I12: 0 | J12: 0 | K12: =SUM(K13:K14) -> 0 | L12: =L13+L14 -> 0 | M12: =$L$12 -> 0 | N12: =$L$12 -> 0 | P12: =SUM(P13:P14) -> 0 | Q12: =SUM(Q13:Q14) -> 0 | R12: =SUM(R13:R14) -> 0
A13: 1.1 | B13: численность производственного персонала | C13: чел. | L13: ='числ-сть ПП'!M35 -> 0 | M13: =$L$13 -> 0 | N13: =$L$13 -> 0 | P13: =L13 -> 0 | Q13: =$P$13 -> 0 | R13: =$P$13 -> 0
A14: 1.2 | B14: численность персонала относящегося к передаче тепловой энергии | C14: чел. | L14: ='числ-сть ПП'!M61 -> 0 | M14: =$L$14 -> 0 | N14: =$L$14 -> 0 | P14: 0 | Q14: =$P$14 -> 0 | R14: =$P$14 -> 0
A15: 2. | B15: Средняя оплата труда | D15: х | E15: х | F15: х | G15: х | H15: х | I15: х | J15: х | K15: х | L15: х | M15: х | N15: х | P15: х | Q15: х | R15: х
A16: 2.1. | B16: Тарифная ставка рабочего 1 разряда | C16: руб. | I16: =$H$16 -> 0 | J16: =$H$16 -> 0 | L16: =J16*J18 -> 0 | M16: =$L$16 -> 0 | N16: =$L$16 -> 0 | Q16: =$P$16 -> 0 | R16: =$P$16 -> 0 | T16: =P16/L16 ->  | U16: разница
A17: 2.2. | B17: Отраслевой коэффициент | I17: =$H$17 -> 0 | J17: =$H$17 -> 0 | L17: 1.4 | M17: =$L$17 -> 1.4 | N17: =$L$17 -> 1.4 | P17: 1.4 | Q17: =$P$17 -> 1.4 | R17: =$P$17 -> 1.4
A18: 2.3. | B18: Дефлятор по заработной плате | L18: =IF(L16=0,0,(M19*6+N19*6)/12/L17/L16) -> 0 | M18: 1 | N18: =оплата_труда_2015_полуг -> 1.05 | P18: =(Q19*6+R19*6)/12/P17/P16 ->  | Q18: 1 | R18: =N18 -> 1.05
A19: 2.4. | B19: Тарифная ставка рабочего 1 разряда с учетом отраслевого коэффициента и дефлятора | C19: руб. | D19: =D16*D17*D18 -> 0 | E19: 0 | F19: =F16*F17*F18 -> 0 | G19: 0 | H19: 0 | I19: 0 | J19: 0 | K19: =K16*K17*K18 -> 0 | L19: 0 | M19: 0 | N19: 0 | P19: =P16*P17*P18 ->  | Q19: =Q16*Q17*Q18 -> 0 | R19: =R16*R17*R18 -> 0
A20: 2.5. | B20: Средняя ступень оплаты | L20: ='числ-сть ПП'!N62 ->  | M20: =$L$20 ->  | N20: =$L$20 ->  | P20: =L20 ->  | Q20: =$P$20 ->  | R20: =$P$20 -> 
A21: 2.6. | B21: Тарифный коэффициент, соответствующий средней ступени по оплате труда | L21: ='числ-сть ПП'!X62 ->  | M21: =$L$21 ->  | N21: =$L$21 ->  | P21: =L21 ->  | Q21: =$P$21 ->  | R21: =$P$21 -> 
A22: 2.7. | B22: Среднемесячная тарифная ставка ППП | C22: руб. | D22: =D19*D21 -> 0 | E22: 0 | F22: 0 | G22: 0 | H22: 0 | I22: 0 | J22: 0 | K22: 0 | P22: =P19*P21 ->  | Q22: =Q19*Q21 ->  | R22: =R19*R21 -> 
A23: 2.8. | B23: Выплаты, связанные с режимом работы с условиями труда 1 работника | D23: х | E23: х | F23: х | G23: х | H23: х | I23: х | J23: х | K23: х | L23: х | M23: х | N23: х | P23: х | Q23: х | R23: х
A24: 2.8.1. | B24: процент выплаты | C24: % | I24: =$H$24 -> 0 | J24: =$H$24 -> 0 | L24: ='числ-сть ПП'!W62 ->  | M24: =$L$24 ->  | N24: =$L$24 ->  | P24: =L24 ->  | Q24: =$P$24 ->  | R24: =$P$24 -> 
A25: 2.8.2. | B25: сумма выплат | C25: руб. | D25: =D22*D24/100 -> 0 | E25: 0 | F25: =F22*F24/100 -> 0 | G25: 0 | H25: 0 | I25: 0 | J25: 0 | K25: =K22*K24/100 -> 0 | P25: =P22*P24/100 ->  | Q25: =Q22*Q24/100 ->  | R25: =R22*R24/100 -> 
A26: 2.9. | B26: Текущее премирование | D26: х | E26: х | F26: х | G26: х | H26: х | I26: х | J26: х | K26: х | L26: х | M26: х | N26: х | P26: х | Q26: х | R26: х
A27: 2.9.1. | B27: процент выплаты | C27: % | L27: ='числ-сть ПП'!P62 ->  | M27: =$L$27 ->  | N27: =$L$27 ->  | P27: =L27 ->  | Q27: =$P$27 ->  | R27: =$P$27 -> 
A28: 2.9.2. | B28: сумма выплат | C28: руб. | L28: =(L22+L25)*L27/100 ->  | M28: =(M22+M25)*M27/100 ->  | N28: =(N22+N25)*N27/100 ->  | P28: =(P22+P25)*P27/100 ->  | Q28: =(Q22+Q25)*Q27/100 ->  | R28: =(R22+R25)*R27/100 ->  | T28: порядок начисления проверять по положению об оплате труда
A29: 2.10. | B29: Вознаграждение за выслугу лет | D29: х | E29: х | F29: х | G29: х | H29: х | I29: х | J29: х | K29: х | L29: х | M29: х | N29: х | P29: х | Q29: х | R29: х
A30: 2.10.1. | B30: процент выплаты | C30: % | I30: =H$30 -> 0 | J30: =I$30 -> 0 | L30: ='числ-сть ПП'!Q61 ->  | M30: =$L$30 ->  | N30: =$L$30 ->  | P30: =L30 ->  | Q30: =$P$30 ->  | R30: =$P$30 ->  | T30: необходимость начисления проверять по положению об оплате труда
A31: 2.10.2. | B31: сумма выплат | C31: руб. | D31: =D30*D22/100 -> 0 | E31: 0 | F31: =F30*F22/100 -> 0 | G31: 0 | H31: 0 | I31: 0 | J31: 0 | K31: =K30*K22/100 -> 0 | P31: =P30*P22/100 ->  | Q31: =Q30*Q22/100 ->  | R31: =R30*R22/100 -> 
A32: 2.11. | B32: Выплаты по итогам года | D32: х | E32: х | F32: х | G32: х | H32: х | I32: х | J32: х | K32: х | L32: х | M32: х | N32: х | P32: х | Q32: х | R32: х
A33: 2.11.1. | B33: процент выплаты | C33: % | I33: =$H$33 -> 0 | J33: =$H$33 -> 0 | M33: =$L$33 -> 0 | N33: =$L$33 -> 0 | Q33: =$P$33 -> 0 | R33: =$P$33 -> 0 | T33: необходимость начисления проверять по положению об оплате труда
A34: 2.11.2. | B34: сумма выплат | C34: руб. | D34: =D33*D22/100 -> 0 | E34: 0 | F34: =F33*F22/100 -> 0 | G34: 0 | H34: 0 | I34: 0 | J34: 0 | K34: 0 | P34: =P33*P22/100 ->  | Q34: =Q33*Q22/100 ->  | R34: =R33*R22/100 -> 
A35: 2.12. | B35: Выплаты по районному коэффициенту и северные надбавки | D35: х | E35: х | F35: х | G35: х | H35: х | I35: х | J35: х | K35: х | L35: х | M35: х | N35: х | P35: х | Q35: х | R35: х
A36: 2.12.1. | B36: процент выплаты | C36: % | I36: =$H$36 -> 0 | J36: =$H$36 -> 0 | M36: =$L$36 -> 0 | N36: =$L$36 -> 0 | P36: =L36 -> 0 | Q36: =$P$36 -> 0 | R36: =$P$36 -> 0 | T36: размер начисления проверять по положению об оплате труда (варьируется от 30 до 100)
A37: 2.12.2. | B37: сумма выплат | C37: руб. | D37: =(D22+D25+D28+D31)*D36/100 -> 0 | E37: 0 | F37: 0 | G37: 0 | H37: 0 | I37: 0 | J37: 0 | K37: =(K22+K25+K28+K31)*K36/100 -> 0 | L37: =(L22+L25+L28+L31)*L36/100 ->  | P37: =(P22+P25+P28+P31+P34)*P36/100 ->  | Q37: =(Q22+Q25+Q28+Q31+Q34)*Q36/100 ->  | R37: =(R22+R25+R28+R31+R34)*R36/100 -> 
A38: 2.13. | B38: Итого среднемесячная оплата труда на 1 работника | C38: руб. | D38: =D22+D28+D37+D25+D31+D34 -> 0 | E38: =E22+E28+E37+E25+E31+E34 -> 0 | F38: =F22+F28+F37+F25+F31+F34 -> 0 | G38: =G22+G28+G37+G25+G31+G34 -> 0 | H38: =H22+H28+H37+H25+H31+H34 -> 0 | I38: 0 | J38: =J22+J28+J37+J25+J31+J34 -> 0 | K38: =K22+K28+K37+K25+K31+K34 -> 0 | L38: =L39/12/L12 ->  | M38: =M22+M28+M37+M25+M31+M34 ->  | N38: =N22+N28+N37+N25+N31+N34 ->  | P38: =P39/12/P11 ->  | Q38: =Q22+Q28+Q37+Q25+Q31+Q34 ->  | R38: =R22+R28+R37+R25+R31+R34 -> 
A39: 3. | B39: Итого средства на оплату труда (включаемые в себестоимость) | C39: руб. | D39: =D38*D12*12 -> 0 | E39: =E38*E12*12 -> 0 | F39: =F38*F12*12 -> 0 | G39: =G38*G12*12 -> 0 | H39: =I39+J39 -> 0 | I39: =I38*I12*6 -> 0 | J39: =J38*J12*6 -> 0 | K39: =K38*K12*12 -> 0 | L39: =M39+N39 ->  | M39: =M38*M12*6 ->  | N39: =N38*N12*6 ->  | P39: =Q39+R39 ->  | Q39: =Q38*Q12*6 ->  | R39: =R38*R12*6 -> 
B40: в том числе:
B41: на производство тепловой энергии | C41: руб. | D41: =D38*D13*12 -> 0 | E41: 0 | F41: =F38*F13*12 -> 0 | G41: =G38*G13*12 -> 0 | H41: 0 | I41: 0 | J41: 0 | K41: 0 | L41: =L38*L13*12 ->  | M41: =M38*M13*6 ->  | N41: =N38*N13*6 ->  | P41: =P38*P13*12 ->  | Q41: =Q38*Q13*6 ->  | R41: =R38*R13*6 -> 
B42: на передачу тепловой энергии | C42: руб. | D42: =D38*D14*12 -> 0 | E42: 0 | F42: =F38*F14*12 -> 0 | G42: =G38*G14*12 -> 0 | H42: 0 | I42: 0 | J42: 0 | K42: 0 | M42: =M38*M14*6 ->  | N42: =N38*N14*6 ->  | P42: =P38*P14*12 ->  | Q42: =Q38*Q14*6 ->  | R42: =R38*R14*6 -> 
P43: =(P22+P25+P28+P31+P34+P37)*P12*12 ->  | Q43: =IF(P43=P39,"ВЕРНО","ОШИБКА!") -> 
P45: =P39/L39 ->  | Q45: разница
A47: Расчет расходов на оплату труда персонала цеха ХВО (по периодам) | P47: изменение ставки 1 разряда
A48: № | B48: Показатели | C48: Ед.изм. | D48: 2011 | E48: 2012 | F48: предбазовый период | H48: Базовый период (утверждено ДТР и ГЗ ТО) | K48: Период регулирования | L48: Период регулирования | P48: =K48 -> Период регулирования
K49: 2015 | L49: 2015 | P49: =K49 -> 2015
F50: 2013 | H50: 2014 | K50: по данным организации | L50: учтено в тарифе ДТР и ГЗ | P50: учтено в тарифе ДТР и ГЗ
D51: Факт по данным организации | E51: Факт по данным организации | F51: Утвержденный план (годовой) | G51: Факт по данным организации | H51: всего | I51: в т.ч. по периодам | L51: всего | M51: в т.ч. по периодам | P51: всего | Q51: в т.ч. по периодам
I52: 01.01.2014-30.06.2014 | J52: 01.07.2014-31.12.2014 | K52: всего | M52: 01.01.2015-30.06.2015 | N52: 01.07.2015-31.12.2015 | Q52: 01.01.2015-30.06.2015 | R52: 01.07.2015-31.12.2015
A53: 1 | B53: =+A53+1 -> 2 | C53: 3 | D53: =+C53+1 -> 4 | E53: =+D53+1 -> 5 | F53: =+E53+1 -> 6 | G53: =+F53+1 -> 7 | H53: =+G53+1 -> 8 | I53: =+H53+1 -> 9 | J53: =+I53+1 -> 10 | K53: =+J53+1 -> 11 | L53: =+K53+1 -> 12 | M53: =+L53+1 -> 13 | N53: =+M53+1 -> 14 | P53: =+O53+1 -> 1 | Q53: =+P53+1 -> 2 | R53: =+Q53+1 -> 3
B54: Численность по нормативу всего, в том числе | C54: чел. | D54: х | E54: х | F54: х | G54: х | H54: х | I54: х | J54: х | K54: х | L54: =L55 -> 0 | M54: =M55 -> 0 | N54: =N55 -> 0 | P54: =SUM(P55) -> 0 | Q54: =SUM(Q55) -> 0 | R54: 0
B55: численность производственного персонала | C55: чел. | D55: х | E55: х | F55: х | G55: х | H55: х | I55: х | J55: х | K55: х | L55: ='числ-сть ПП'!L67 -> 0 | M55: =$L$55 -> 0 | N55: =$L$55 -> 0 | P55: =L55 -> 0 | Q55: =$P$55 -> 0 | R55: =$P$55 -> 0
A56: 1. | B56: Численность всего, в том числе | C56: чел. | D56: =SUM(D57:D58) -> 0 | E56: 0 | F56: =SUM(F57:F58) -> 0 | G56: 0 | H56: 0 | I56: 0 | J56: 0 | K56: 0 | L56: ='числ-сть ПП'!M67 -> 0 | M56: =$L$56 -> 0 | N56: =$L$56 -> 0 | P56: =SUM(P57:P58) -> 0 | Q56: =SUM(Q57:Q58) -> 0 | R56: 0
A57: 1.1 | B57: численность производственного персонала | C57: чел. | L57: ='числ-сть ПП'!M67 -> 0 | M57: =$L$57 -> 0 | N57: =$L$57 -> 0 | P57: =L57 -> 0 | Q57: =$P$57 -> 0 | R57: =$P$57 -> 0
A58: 1.2 | B58: численность цехового персонала | C58: чел. | P58: =L58 -> 0 | Q58: =$P$58 -> 0 | R58: =$P$58 -> 0
A59: 2. | B59: Средняя оплата труда | D59: х | E59: х | F59: х | G59: х | H59: х | I59: х | J59: х | K59: х | L59: х | M59: х | N59: х | P59: х | Q59: х | R59: х
A60: 2.1. | B60: Тарифная ставка рабочего 1 разряда | C60: руб. | I60: =$H$60 -> 0 | J60: =$H$60 -> 0 | M60: =$L$60 -> 0 | N60: =$L$60 -> 0 | Q60: =P60 -> 0 | R60: =Q60 -> 0
A61: 2.2. | B61: Отраслевой коэффициент | I61: =$H$61 -> 0 | J61: =$H$61 -> 0 | M61: =$L$61 -> 0 | N61: =$L$61 -> 0 | P61: 1.4 | Q61: =$P$61 -> 1.4 | R61: =$P$61 -> 1.4
A62: 2.3. | B62: Дефлятор по заработной плате | L62: =(M63*6+N63*6)/12/L61/L60 ->  | M62: 1 | N62: =оплата_труда_2015_полуг -> 1.05 | P62: =(Q63*6+R63*6)/12/P61/P60 ->  | Q62: 1 | R62: =N62 -> 1.05
A63: 2.4. | B63: Тарифная ставка рабочего 1 разряда с учетом отраслевого коэффициента и дефлятора | C63: руб. | D63: =D60*D61*D62 -> 0 | E63: 0 | F63: =F60*F61*F62 -> 0 | G63: 0 | H63: 0 | I63: 0 | J63: 0 | K63: 0 | L63: =L60*L61*L62 ->  | M63: =M60*M61*M62 -> 0 | N63: =N60*N61*N62 -> 0 | P63: =P60*P61*P62 ->  | Q63: =Q60*Q61*Q62 -> 0 | R63: =R60*R61*R62 -> 0
A64: 2.5. | B64: Средняя ступень оплаты | L64: ='числ-сть ПП'!N67 ->  | M64: =$L$64 ->  | N64: =$L$64 ->  | P64: =L64 ->  | Q64: =$P$64 ->  | R64: =$P$64 -> 
A65: 2.6. | B65: Тарифный коэффициент, соответствующий средней ступени по оплате труда | L65: ='числ-сть ПП'!X67 ->  | M65: =$L$65 ->  | N65: =$L$65 ->  | P65: =L65 ->  | Q65: =$P$65 ->  | R65: =$P$65 -> 
A66: 2.7. | B66: Среднемесячная тарифная ставка ППП | C66: руб. | D66: =D63*D65 -> 0 | E66: 0 | F66: 0 | G66: 0 | H66: 0 | I66: 0 | J66: 0 | K66: 0 | P66: =P63*P65 ->  | Q66: =Q63*Q65 ->  | R66: =R63*R65 -> 
A67: 2.8. | B67: Выплаты, связанные с режимом работы с условиями труда 1 работника | D67: х | E67: х | F67: х | G67: х | H67: х | I67: х | J67: х | K67: х | L67: х | M67: х | N67: х | P67: х | Q67: х | R67: х
A68: 2.8.1. | B68: процент выплаты | C68: % | I68: =$H$68 -> 0 | J68: =$H$68 -> 0 | L68: ='числ-сть ПП'!W67 ->  | M68: =$L$68 ->  | N68: =$L$68 ->  | P68: =L68 ->  | Q68: =$P$68 ->  | R68: =$P$68 -> 
A69: 2.8.2. | B69: сумма выплат | C69: руб. | D69: =D66*D68/100 -> 0 | E69: 0 | F69: =F66*F68/100 -> 0 | G69: 0 | H69: 0 | I69: 0 | J69: =J66*J68/100 -> 0 | K69: =K66*K68/100 -> 0 | P69: =P66*P68/100 ->  | Q69: =Q66*Q68/100 ->  | R69: =R66*R68/100 -> 
A70: 2.9. | B70: Текущее премирование | D70: х | E70: х | F70: х | G70: х | H70: х | I70: х | J70: х | K70: х | L70: х | M70: х | N70: х | P70: х | Q70: х | R70: х
A71: 2.9.1. | B71: процент выплаты | C71: % | L71: ='числ-сть ПП'!P67 ->  | M71: =$L$71 ->  | N71: =L$71 ->  | P71: =L71 ->  | Q71: =$P$71 ->  | R71: =$P$71 -> 
A72: 2.9.2. | B72: сумма выплат | C72: руб. | L72: =(L66+L69)*L71/100 ->  | M72: =(M66+M69)*M71/100 ->  | N72: =(N66+N69)*N71/100 ->  | P72: =(P66+P69)*P71/100 ->  | Q72: =(Q66+Q69)*Q71/100 ->  | R72: =(R66+R69)*R71/100 ->  | T72: порядок начисления проверять по положению об оплате труда
A73: 2.10. | B73: Вознаграждение за выслугу лет | D73: х | E73: х | F73: х | G73: х | H73: х | I73: х | J73: х | K73: х | L73: х | M73: х | N73: х | P73: х | Q73: х | R73: х
A74: 2.10.1. | B74: процент выплаты | C74: % | I74: =$H$74 -> 0 | J74: =$H$74 -> 0 | L74: ='числ-сть ПП'!Q67 ->  | M74: =$L$74 ->  | N74: =$L$74 ->  | P74: =L74 ->  | Q74: =$P$74 ->  | R74: =$P$74 ->  | T74: необходимость начисления проверять по положению об оплате труда
A75: 2.10.2. | B75: сумма выплат | C75: руб. | D75: =D74*D66/100 -> 0 | E75: 0 | F75: =F74*F66/100 -> 0 | G75: 0 | H75: 0 | I75: 0 | J75: 0 | K75: 0 | P75: =P74*P66/100 ->  | Q75: =Q74*Q66/100 ->  | R75: =R74*R66/100 -> 
A76: 2.11. | B76: Выплаты по итогам года | D76: х | E76: х | F76: х | G76: х | H76: х | I76: х | J76: х | K76: х | L76: х | M76: х | N76: х | P76: х | Q76: х | R76: х
A77: 2.11.1. | B77: процент выплаты | C77: % | I77: =$H$77 -> 0 | J77: =$H$77 -> 0 | M77: =$L$77 -> 0 | N77: =$L$77 -> 0 | Q77: =$P$77 -> 0 | R77: =$P$77 -> 0 | T77: необходимость начисления проверять по положению об оплате труда
A78: 2.11.2. | B78: сумма выплат | C78: руб. | D78: =D77*D66/100 -> 0 | E78: 0 | F78: =F77*F66/100 -> 0 | G78: 0 | H78: 0 | I78: 0 | J78: 0 | K78: 0 | P78: =P77*P66/100 ->  | Q78: =Q77*Q66/100 ->  | R78: =R77*R66/100 -> 
A79: 2.12. | B79: Выплаты по районному коэффициенту и северные надбавки | D79: х | E79: х | F79: х | G79: х | H79: х | I79: х | J79: х | K79: х | L79: х | M79: х | N79: х | P79: х | Q79: х | R79: х
A80: 2.12.1. | B80: процент выплаты | C80: % | I80: =$H$80 -> 0 | J80: =$H$80 -> 0 | M80: =$L$80 -> 0 | N80: =$L$80 -> 0 | P80: =L80 -> 0 | Q80: =$P$80 -> 0 | R80: =$P$80 -> 0 | T80: размер начисления проверять по положению об оплате труда (варьируется от 30 до 100)
A81: 2.12.2. | B81: сумма выплат | C81: руб. | D81: =(D66+D69+D72+D75+D78)*D80/100 -> 0 | E81: 0 | F81: 0 | G81: 0 | H81: 0 | I81: 0 | J81: 0 | K81: 0 | L81: =(L66+L69+L72+L75+L78)*L80/100 ->  | M81: =(M66+M69+M72+M75+M78)*M80/100 ->  | P81: =(P66+P69+P72+P75+P78)*P80/100 ->  | Q81: =(Q66+Q69+Q72+Q75+Q78)*Q80/100 ->  | R81: =(R66+R69+R72+R75+R78)*R80/100 -> 
A82: 2.13. | B82: Итого среднемесячная оплата труда на 1 работника | C82: руб. | D82: =D66+D72+D81+D69+D75+D78 -> 0 | E82: =E66+E72+E81+E69+E75+E78 -> 0 | F82: =F66+F72+F81+F69+F75+F78 -> 0 | G82: =G66+G72+G81+G69+G75+G78 -> 0 | H82: =H66+H72+H81+H69+H75+H78 -> 0 | I82: =I66+I72+I81+I69+I75+I78 -> 0 | J82: =J66+J72+J81+J69+J75+J78 -> 0 | K82: =K66+K72+K81+K69+K75+K78 -> 0 | L82: =L83/12/L56 ->  | M82: =M66+M72+M81+M69+M75+M78 ->  | N82: =N66+N72+N81+N69+N75+N78 ->  | P82: =P83/P56/12 ->  | Q82: =Q66+Q72+Q81+Q69+Q75+Q78 ->  | R82: =R66+R72+R81+R69+R75+R78 -> 
A83: 3. | B83: Итого средства на оплату труда (включаемые в себестоимость) | C83: руб. | D83: =D82*D56*12 -> 0 | E83: =E82*E56*12 -> 0 | F83: =F82*F56*12 -> 0 | G83: =G82*G56*12 -> 0 | H83: =I83+J83 -> 0 | I83: =I82*I56*6 -> 0 | J83: =J82*J56*6 -> 0 | K83: =K82*K56*12 -> 0 | L83: =M83+N83 ->  | M83: =M82*M56*6 ->  | N83: =N82*N56*6 ->  | P83: =Q83+R83 ->  | Q83: =Q82*6*Q56 ->  | R83: =R82*6*R56 -> 
P85: =(P66+P69+P72+P75+P78+P81)*P56*12 ->  | Q85: =IF(P85=P83,"ВЕРНО","ОШИБКА!") -> 

Sheet ФОТ АУП
A2: Расчет расходов на оплату труда АУП | P2: изменение ставки 1 разряда
A3: № | B3: Показатели | C3: Ед.изм. | D3: 2011 | E3: 2012 | F3: предбазовый период | H3: Базовый период (утверждено ДТР и ГЗ ТО) | K3: Период регулирования | L3: Период регулирования | P3: =K3 -> Период регулирования
K4: 2015 | L4: 2015 | P4: =K4 -> 2015
F5: 2013 | H5: 2014 | K5: по данным организации | L5: учтено в тарифе ДТР и ГЗ | P5: учтено в тарифе ДТР и ГЗ
D6: Факт по данным организации | E6: Факт по данным организации | F6: Утвержденный план (годовой) | G6: Факт по данным организации | H6: всего | I6: в т.ч. по периодам | L6: всего | M6: в т.ч. по периодам | P6: всего | Q6: в т.ч. по периодам
I7: 01.01.2014-30.06.2014 | J7: 01.07.2014-31.12.2014 | K7: всего | M7: 01.01.2015-30.06.2015 | N7: 01.07.2015-31.12.2015 | Q7: 01.01.2014-30.06.2014 | R7: 01.07.2014-31.12.2014
A8: 1 | B8: =+A8+1 -> 2 | C8: =+B8+1 -> 3 | D8: 4 | E8: 5 | F8: 6 | G8: 7 | H8: 8 | I8: 9 | J8: 10 | K8: 11 | L8: 12 | M8: 13 | N8: 14 | P8: =+O8+1 -> 1 | Q8: 2 | R8: 3
A9: 1. | B9: Нормативная численность всего, в том числе | C9: чел. | D9: х | E9: х | F9: х | G9: х | H9: х | I9: х | J9: х | K9: х | L9: =L10+L11 -> 0 | M9: =M10+M11 -> 0 | N9: 0 | P9: =SUM(P10:P11) -> 0 | Q9: =SUM(Q10:Q11) -> 0 | R9: 0
A10: 1.1 | B10: численность АУП | C10: чел. | D10: х | E10: х | F10: х | G10: х | H10: х | I10: х | J10: х | K10: х | L10: ='числ-сть ПП'!L85 -> 0 | M10: =$L$10 -> 0 | N10: =$L$10 -> 0 | P10: =L10 -> 0 | Q10: =$P$11 -> 0 | R10: =$P$11 -> 0
A11: 1.2 | B11: численность МОП | C11: чел. | D11: х | E11: х | F11: х | G11: х | H11: х | I11: х | J11: х | K11: х | L11: ='числ-сть ПП'!L91 -> 0 | M11: =$L$11 -> 0 | N11: =$L$11 -> 0 | P11: =L11 -> 0 | Q11: =$P$12 -> 0 | R11: =$P$12 -> 0
A12: 1. | B12: Численность всего, в том числе | C12: чел. | D12: =SUM(D13:D14) -> 0 | E12: =SUM(E13:E14) -> 0 | F12: =SUM(F13:F14) -> 0 | G12: =SUM(G13:G14) -> 0 | H12: =SUM(H13:H14) -> 0 | I12: 0 | J12: 0 | K12: =SUM(K13:K14) -> 0 | L12: =L13+L14 -> 0 | M12: =M13+M14 -> 0 | N12: 0 | P12: =SUM(P13:P14) -> 0 | Q12: =SUM(Q13:Q14) -> 0 | R12: =SUM(R13:R14) -> 0
A13: 1.1 | B13: численность АУП | C13: чел. | L13: ='числ-сть ПП'!M85 -> 0 | M13: =$L$13 -> 0 | N13: =$L$13 -> 0 | P13: =L13 -> 0 | Q13: =$P$13 -> 0 | R13: =$P$13 -> 0
A14: 1.2 | B14: численность МОП | C14: чел. | L14: ='числ-сть ПП'!M91 -> 0 | M14: =$L$14 -> 0 | N14: =$L$14 -> 0 | P14: 0 | Q14: =$P$14 -> 0 | R14: =$P$14 -> 0
A15: 2. | B15: Средняя оплата труда | D15: х | E15: х | F15: х | G15: х | H15: х | I15: х | J15: х | K15: х | L15: х | M15: х | N15: х | P15: х | Q15: х | R15: х
A16: 2.1. | B16: Тарифная ставка рабочего 1 разряда | C16: руб. | I16: =$H$16 -> 0 | J16: =$H$16 -> 0 | L16: ='числ-сть ПП'!N92 ->  | M16: =$L$16 ->  | N16: =$L$16 ->  | P16: 5034.9 | Q16: =$P$16 -> 5034.9 | R16: =$P$16 -> 5034.9 | T16: =P16/L16 ->  | U16: разница
A17: 2.2. | B17: Отраслевой коэффициент | I17: =$H$17 -> 0 | J17: =$H$17 -> 0 | L17: ='числ-сть ПП'!X92 ->  | M17: =$L$17 ->  | N17: =$L$17 ->  | P17: 1.4 | Q17: =$P$17 -> 1.4 | R17: =$P$17 -> 1.4
A18: 2.3. | B18: Дефлятор по заработной плате | L18: =(M19*6+N19*6)/12/L17/L16 ->  | M18: 1 | N18: =оплата_труда_2015_полуг -> 1.05 | P18: =(Q19*6+R19*6)/12/P17/P16 -> 1.025 | Q18: 1 | R18: =N18 -> 1.05
A19: 2.4. | B19: Тарифная ставка рабочего 1 разряда с учетом отраслевого коэффициента и дефлятора | C19: руб. | D19: =D16*D17*D18 -> 0 | E19: 0 | F19: =F16*F17*F18 -> 0 | G19: 0 | H19: 0 | I19: 0 | J19: 0 | K19: =K16*K17*K18 -> 0 | P19: =P16*P17*P18 -> 7225.0815 | Q19: =Q16*Q17*Q18 -> 7048.86 | R19: =R16*R17*R18 -> 7401.303
A20: 2.5. | B20: Средняя ступень оплаты | M20: =$L$20 -> 0 | N20: =$L$20 -> 0 | P20: =L20 -> 0 | Q20: =$P$20 -> 0 | R20: =$P$20 -> 0
A21: 2.6. | B21: Тарифный коэффициент, соответствующий средней ступени по оплате труда | M21: =$L$21 -> 0 | N21: =$L$21 -> 0 | P21: =L21 -> 0 | Q21: =$P$21 -> 0 | R21: =$P$21 -> 0
A22: 2.7. | B22: Среднемесячная тарифная ставка ППП | C22: руб. | D22: =D19*D21 -> 0 | E22: 0 | F22: 0 | G22: 0 | H22: 0 | I22: 0 | J22: 0 | K22: 0 | P22: =P19*P21 -> 0 | Q22: =Q19*Q21 -> 0 | R22: =R19*R21 -> 0
A23: 2.8. | B23: Выплаты, связанные с режимом работы с условиями труда 1 работника | D23: х | E23: х | F23: х | G23: х | H23: х | I23: х | J23: х | K23: х | L23: х | M23: х | N23: х | P23: х | Q23: х | R23: х
A24: 2.8.1. | B24: процент выплаты | C24: % | I24: =$H$24 -> 0 | J24: =$H$24 -> 0 | L24: ='числ-сть ПП'!W92 ->  | M24: =$L$24 ->  | N24: =$L$24 ->  | P24: =L24 ->  | Q24: =$P$24 ->  | R24: =$P$24 -> 
A25: 2.8.2. | B25: сумма выплат | C25: руб. | D25: =D22*D24/100 -> 0 | E25: 0 | F25: =F22*F24/100 -> 0 | G25: 0 | H25: 0 | I25: 0 | J25: 0 | K25: 0 | L25: =L22*L24/100 ->  | P25: =P22*P24/100 ->  | Q25: =Q22*Q24/100 ->  | R25: =R22*R24/100 -> 
A26: 2.9. | B26: Текущее премирование | D26: х | E26: х | F26: х | G26: х | H26: х | I26: х | J26: х | K26: х | L26: х | M26: х | N26: х | P26: х | Q26: х | R26: х
A27: 2.9.1. | B27: процент выплаты | C27: % | L27: ='числ-сть ПП'!P92 ->  | M27: =$L$27 ->  | N27: =$L$27 ->  | P27: =L27 ->  | Q27: =$P$27 ->  | R27: =$P$27 -> 
A28: 2.9.2. | B28: сумма выплат | C28: руб. | L28: =(L22+L25)*L27/100 ->  | M28: =(M22+M25)*M27/100 ->  | N28: =(N22+N25)*N27/100 ->  | P28: =(P22+P25)*P27/100 ->  | Q28: =(Q22+Q25)*Q27/100 ->  | R28: =(R22+R25)*R27/100 ->  | T28: порядок начисления проверять по положению об оплате труда
A29: 2.10. | B29: Вознаграждение за выслугу лет | D29: х | E29: х | F29: х | G29: х | H29: х | I29: х | J29: х | K29: х | L29: х | M29: х | N29: х | P29: х | Q29: х | R29: х
A30: 2.10.1. | B30: процент выплаты | C30: % | I30: =$H$30 -> 0 | J30: =$H$30 -> 0 | L30: ='числ-сть ПП'!Q92 ->  | M30: =$L$30 ->  | N30: =$L$30 ->  | P30: =L30 ->  | Q30: =$P$30 ->  | R30: =$P$30 ->  | T30: необходимость начисления проверять по положению об оплате труда
A31: 2.10.2. | B31: сумма выплат | C31: руб. | D31: =D30*D22/100 -> 0 | E31: 0 | F31: =F30*F22/100 -> 0 | G31: 0 | H31: 0 | I31: 0 | J31: 0 | K31: 0 | P31: =P30*P22/100 ->  | Q31: =Q30*Q22/100 ->  | R31: =R30*R22/100 -> 
A32: 2.11. | B32: Выплаты по итогам года | D32: х | E32: х | F32: х | G32: х | H32: х | I32: х | J32: х | K32: х | L32: х | M32: х | N32: х | P32: х | Q32: х | R32: х
A33: 2.11.1. | B33: процент выплаты | C33: % | I33: =$H$33 -> 0 | J33: =$H$33 -> 0 | M33: =$L$33 -> 0 | N33: =$L$33 -> 0 | Q33: =$P$33 -> 0 | R33: =$P$33 -> 0 | T33: необходимость начисления проверять по положению об оплате труда
A34: 2.11.2. | B34: сумма выплат | C34: руб. | D34: =D33*D22/100 -> 0 | E34: 0 | F34: =F33*F22/100 -> 0 | G34: 0 | H34: 0 | I34: 0 | J34: 0 | K34: 0 | P34: =P33*P22/100 -> 0 | Q34: =Q33*Q22/100 -> 0 | R34: =R33*R22/100 -> 0
A35: 2.12. | B35: Выплаты по районному коэффициенту и северные надбавки | D35: х | E35: х | F35: х | G35: х | H35: х | I35: х | J35: х | K35: х | L35: х | M35: х | N35: х | P35: х | Q35: х | R35: х
A36: 2.12.1. | B36: процент выплаты | C36: % | I36: =$H$36 -> 0 | J36: =$H$36 -> 0 | M36: =$L$36 -> 0 | N36: =$L$36 -> 0 | P36: =L36 -> 0 | Q36: =$P$36 -> 0 | R36: =$P$36 -> 0 | T36: размер начисления проверять по положению об оплате труда (варьируется от 30 до 100)
A37: 2.12.2. | B37: сумма выплат | C37: руб. | D37: =(D22+D25+D28+D31)*D36/100 -> 0 | E37: 0 | F37: 0 | G37: 0 | H37: 0 | I37: 0 | J37: 0 | K37: =(K22+K25+K28+K31)*K36/100 -> 0 | L37: =(L22+L25+L28+L31)*L36/100 ->  | P37: =(P22+P25+P28+P31+P34)*P36/100 ->  | Q37: =(Q22+Q25+Q28+Q31+Q34)*Q36/100 ->  | R37: =(R22+R25+R28+R31+R34)*R36/100 -> 
A38: 2.13. | B38: Итого среднемесячная оплата труда на 1 работника | C38: руб. | D38: =D22+D28+D37+D25+D31+D34 -> 0 | E38: =E22+E28+E37+E25+E31+E34 -> 0 | F38: =F22+F28+F37+F25+F31+F34 -> 0 | G38: =G22+G28+G37+G25+G31+G34 -> 0 | H38: =H22+H28+H37+H25+H31+H34 -> 0 | I38: 0 | J38: =J22+J28+J37+J25+J31+J34 -> 0 | K38: =K22+K28+K37+K25+K31+K34 -> 0 | L38: =L39/12/L12 ->  | M38: =M22+M28+M37+M25+M31+M34 ->  | N38: =N22+N28+N37+N25+N31+N34 ->  | P38: =P39/12/P11 ->  | Q38: =Q22+Q28+Q37+Q25+Q31+Q34 ->  | R38: =R22+R28+R37+R25+R31+R34 -> 
A39: 3. | B39: Итого средства на оплату труда (включаемые в себестоимость) | C39: руб. | D39: =D38*D12*12 -> 0 | E39: =E38*E12*12 -> 0 | F39: =F38*F12*12 -> 0 | G39: =G38*G12*12 -> 0 | H39: =I39+J39 -> 0 | I39: =I38*I12*6 -> 0 | J39: =J38*J12*6 -> 0 | K39: =K38*K12*12 -> 0 | L39: =M39+N39 ->  | M39: =M38*M12*6 ->  | N39: =N38*N12*6 ->  | P39: =Q39+R39 ->  | Q39: =Q38*Q12*6 ->  | R39: =R38*R12*6 -> 
B40: в том числе:
B41: АУП | C41: руб. | D41: =D38*D13*12 -> 0 | E41: 0 | F41: =F38*F13*12 -> 0 | G41: =G38*G13*12 -> 0 | H41: 0 | I41: 0 | J41: 0 | K41: 0 | P41: =P38*P13*12 ->  | Q41: =Q38*Q13*6 ->  | R41: =R38*R13*6 -> 
B42: МОП | C42: руб. | D42: =D38*D14*12 -> 0 | E42: 0 | F42: =F38*F14*12 -> 0 | G42: =G38*G14*12 -> 0 | H42: 0 | I42: 0 | J42: 0 | K42: 0 | P42: =P38*P14*12 ->  | Q42: =Q38*Q14*6 ->  | R42: =R38*R14*6 -> 
P45: =P39/L39 ->  | Q45: разница
L46: распределение | P46: распределение
B47: на производство тепловой энергии | C47: х | D47: х | E47: х | F47: х | G47: х | H47: х | I47: х | J47: х
B48: на передачу тепловой энергии | C48: х | D48: х | E48: х | F48: х | G48: х | H48: х | I48: х | J48: х
A53: Расчет расходов на оплату труда перснала по сбыту | P53: изменение ставки 1 разряда
A54: № | B54: Показатели | C54: Ед.изм. | D54: 2011 | E54: 2012 | F54: предбазовый период | H54: Базовый период (утверждено ДТР и ГЗ ТО) | K54: Период регулирования | L54: Период регулирования | P54: =K54 -> Период регулирования
K55: 2015 | L55: 2015 | P55: =K55 -> 2015
F56: 2013 | H56: 2014 | K56: по данным организации | L56: учтено в тарифе ДТР и ГЗ | P56: учтено в тарифе ДТР и ГЗ
D57: Факт по данным организации | E57: Факт по данным организации | F57: Утвержденный план (годовой) | G57: Факт по данным организации | H57: всего | I57: в т.ч. по периодам | L57: всего | M57: в т.ч. по периодам | P57: всего | Q57: в т.ч. по периодам
I58: 01.01.2014-30.06.2014 | J58: 01.07.2014-31.12.2014 | K58: всего | M58: 01.01.2015-30.06.2015 | N58: 01.07.2015-31.12.2015 | Q58: 01.01.2014-30.06.2014 | R58: 01.07.2014-31.12.2014
A59: 1 | B59: =+A59+1 -> 2 | C59: 3 | D59: =+C59+1 -> 4 | E59: =+D59+1 -> 5 | F59: =+E59+1 -> 6 | G59: =+F59+1 -> 7 | H59: =+G59+1 -> 8 | I59: =+H59+1 -> 9 | J59: =+I59+1 -> 10 | K59: =+J59+1 -> 11 | L59: =+K59+1 -> 12 | M59: =+L59+1 -> 13 | N59: =+M59+1 -> 14 | P59: =+O59+1 -> 1 | Q59: =+P59+1 -> 2 | R59: =+Q59+1 -> 3
A60: 1. | B60: Нормативная численность всего, в том числе | C60: чел. | D60: х | E60: х | F60: х | G60: х | H60: х | I60: х | J60: х | K60: х | L60: =L61 -> 0 | M60: =M61 -> 0 | N60: =N61 -> 0 | P60: =SUM(P61:P61) -> 0 | Q60: =SUM(Q61:Q61) -> 0 | R60: =SUM(R61:R61) -> 0
A61: 1.2 | B61: численность персонала на сбыт | C61: чел. | D61: х | E61: х | F61: х | G61: х | H61: х | I61: х | J61: х | K61: х | L61: ='числ-сть ПП'!L110 -> 0 | M61: =$L$61 -> 0 | N61: =$L$61 -> 0 | P61: =L61 -> 0 | Q61: =$P$12 -> 0 | R61: =$P$12 -> 0
A62: 1. | B62: Численность всего, в том числе | C62: чел. | D62: =SUM(D63:D63) -> 0 | E62: 0 | F62: 0 | G62: 0 | H62: 0 | I62: 0 | J62: 0 | K62: 0 | L62: =L63 -> 0 | M62: =M63 -> 0 | N62: =N63 -> 0 | P62: =SUM(P63:P63) -> 0 | Q62: =SUM(Q63:Q63) -> 0 | R62: =SUM(R63:R63) -> 0
A63: 1.1 | B63: численность персонала на сбыт | C63: чел. | L63: ='числ-сть ПП'!M110 -> 0 | M63: =$L$63 -> 0 | N63: =$L$63 -> 0 | P63: =L63 -> 0 | Q63: =$P$63 -> 0 | R63: =$P$63 -> 0
A64: 2. | B64: Средняя оплата труда | D64: х | E64: х | F64: х | G64: х | H64: х | I64: х | J64: х | K64: х | L64: х | M64: х | N64: х | P64: х | Q64: х | R64: х
A65: 2.1. | B65: Тарифная ставка рабочего 1 разряда | C65: руб. | I65: =$H$65 -> 0 | J65: =$H$65 -> 0 | M65: =$L$65 -> 0 | N65: =$L$65 -> 0 | Q65: =$P$65 -> 0 | R65: =$P$65 -> 0 | T65: =P65/L65 ->  | U65: разница
A66: 2.2. | B66: Отраслевой коэффициент | I66: =$H$66 -> 0 | J66: =$H$66 -> 0 | M66: =$L$66 -> 0 | N66: =$L$66 -> 0 | P66: 1.4 | Q66: =$P$66 -> 1.4 | R66: =$P$66 -> 1.4
A67: 2.3. | B67: Дефлятор по заработной плате | L67: =(M68*6+N68*6)/12/L66/L65 ->  | M67: 1 | N67: =оплата_труда_2015_полуг -> 1.05 | P67: =(Q68*6+R68*6)/12/P66/P65 ->  | Q67: 1 | R67: =N67 -> 1.05
A68: 2.4. | B68: Тарифная ставка рабочего 1 разряда с учетом отраслевого коэффициента и дефлятора | C68: руб. | D68: =D65*D66*D67 -> 0 | E68: 0 | F68: =F65*F66*F67 -> 0 | G68: 0 | H68: 0 | I68: 0 | J68: 0 | K68: =K65*K66*K67 -> 0 | M68: =M65*M66*M67 -> 0 | N68: =N65*N66*N67 -> 0 | P68: =P65*P66*P67 ->  | Q68: =Q65*Q66*Q67 -> 0 | R68: =R65*R66*R67 -> 0
A69: 2.5. | B69: Средняя ступень оплаты | L69: ='числ-сть ПП'!N110 ->  | M69: =$L$69 ->  | N69: =$L$69 ->  | P69: =L69 ->  | Q69: =$P$69 ->  | R69: =$P$69 -> 
A70: 2.6. | B70: Тарифный коэффициент, соответствующий средней ступени по оплате труда | L70: ='числ-сть ПП'!X110 ->  | M70: =$L$70 ->  | N70: =$L$70 ->  | P70: =L70 ->  | Q70: =$P$70 ->  | R70: =$P$70 -> 
A71: 2.7. | B71: Среднемесячная тарифная ставка ППП | C71: руб. | D71: =D68*D70 -> 0 | E71: 0 | F71: =F68*F70 -> 0 | G71: 0 | H71: =H68*H70 -> 0 | I71: =I68*I70 -> 0 | J71: =J68*J70 -> 0 | K71: 0 | M71: =M68*M70 ->  | N71: =N68*N70 ->  | P71: =P68*P70 ->  | Q71: =Q68*Q70 ->  | R71: =R68*R70 -> 
A72: 2.8. | B72: Выплаты, связанные с режимом работы с условиями труда 1 работника | D72: х | E72: х | F72: х | G72: х | H72: х | I72: х | J72: х | K72: х | L72: х | M72: х | N72: х | P72: х | Q72: х | R72: х
A73: 2.8.1. | B73: процент выплаты | C73: % | I73: =H$73 -> 0 | J73: =I$73 -> 0 | L73: ='числ-сть ПП'!W110 ->  | M73: =$L$73 ->  | N73: =$L$73 ->  | P73: =L73 ->  | Q73: =$P$73 ->  | R73: =$P$73 -> 
A74: 2.8.2. | B74: сумма выплат | C74: руб. | D74: =D71*D73/100 -> 0 | E74: 0 | F74: =F71*F73/100 -> 0 | G74: 0 | H74: =H71*H73/100 -> 0 | I74: =I71*I73/100 -> 0 | J74: =J71*J73/100 -> 0 | K74: 0 | L74: =L71*L73/100 ->  | M74: =M71*M73/100 ->  | P74: =P71*P73/100 ->  | Q74: =Q71*Q73/100 ->  | R74: =R71*R73/100 -> 
A75: 2.9. | B75: Текущее премирование | D75: х | E75: х | F75: х | G75: х | H75: х | I75: х | J75: х | K75: х | L75: х | M75: х | N75: х | P75: х | Q75: х | R75: х
A76: 2.9.1. | B76: процент выплаты | C76: % | L76: 0 | M76: =$L$76 -> 0 | N76: =$L$76 -> 0 | P76: =L76 -> 0 | Q76: =$P$76 -> 0 | R76: =$P$76 -> 0
A77: 2.9.2. | B77: сумма выплат | C77: руб. | L77: =(L71+L74)*L76/100 ->  | M77: =(M71+M74)*M76/100 ->  | N77: =(N71+N74)*N76/100 ->  | P77: =(P71+P74)*P76/100 ->  | Q77: =(Q71+Q74)*Q76/100 ->  | R77: =(R71+R74)*R76/100 ->  | T77: порядок начисления проверять по положению об оплате труда
A78: 2.10. | B78: Вознаграждение за выслугу лет | D78: х | E78: х | F78: х | G78: х | H78: х | I78: х | J78: х | K78: х | L78: х | M78: х | N78: х | P78: х | Q78: х | R78: х
A79: 2.10.1. | B79: процент выплаты | C79: % | I79: =$H$79 -> 0 | J79: =$H$79 -> 0 | M79: =$L$79 -> 0 | N79: =$L$79 -> 0 | P79: =L79 -> 0 | Q79: =$P$79 -> 0 | R79: =$P$79 -> 0 | T79: необходимость начисления проверять по положению об оплате труда
A80: 2.10.2. | B80: сумма выплат | C80: руб. | D80: =D79*D71/100 -> 0 | E80: 0 | F80: =F79*F71/100 -> 0 | G80: 0 | H80: 0 | I80: =I79*I71/100 -> 0 | J80: 0 | K80: 0 | P80: =P79*P71/100 ->  | Q80: =Q79*Q71/100 ->  | R80: =R79*R71/100 -> 
A81: 2.11. | B81: Выплаты по итогам года | D81: х | E81: х | F81: х | G81: х | H81: х | I81: х | J81: х | K81: х | L81: х | M81: х | N81: х | P81: х | Q81: х | R81: х
A82: 2.11.1. | B82: процент выплаты | C82: % | I82: =$H$82 -> 0 | J82: =$H$82 -> 0 | M82: =$L$82 -> 0 | N82: =$L$82 -> 0 | Q82: =$P$82 -> 0 | R82: =$P$82 -> 0 | T82: необходимость начисления проверять по положению об оплате труда
A83: 2.11.2. | B83: сумма выплат | C83: руб. | D83: =D82*D71/100 -> 0 | E83: 0 | F83: =F82*F71/100 -> 0 | G83: 0 | H83: 0 | I83: 0 | J83: 0 | K83: =K82*K71/100 -> 0 | P83: =P82*P71/100 ->  | Q83: =Q82*Q71/100 ->  | R83: =R82*R71/100 -> 
A84: 2.12. | B84: Выплаты по районному коэффициенту и северные надбавки | D84: х | E84: х | F84: х | G84: х | H84: х | I84: х | J84: х | K84: х | L84: х | M84: х | N84: х | P84: х | Q84: х | R84: х
A85: 2.12.1. | B85: процент выплаты | C85: % | I85: =$H$85 -> 0 | J85: =$H$85 -> 0 | M85: =$L$85 -> 0 | N85: =$L$85 -> 0 | P85: =L85 -> 0 | Q85: =$P$85 -> 0 | R85: =$P$85 -> 0 | T85: размер начисления проверять по положению об оплате труда (варьируется от 30 до 100)
A86: 2.12.2. | B86: сумма выплат | C86: руб. | D86: =(D71+D74+D77+D80)*D85/100 -> 0 | E86: 0 | F86: 0 | G86: 0 | H86: 0 | I86: 0 | J86: 0 | K86: =(K71+K74+K77+K80)*K85/100 -> 0 | L86: =(L71+L74+L77+L80)*L85/100 ->  | P86: =(P71+P74+P77+P80+P83)*P85/100 ->  | Q86: =(Q71+Q74+Q77+Q80+Q83)*Q85/100 ->  | R86: =(R71+R74+R77+R80+R83)*R85/100 -> 
A87: 2.13. | B87: Итого среднемесячная оплата труда на 1 работника | C87: руб. | D87: =D71+D77+D86+D74+D80+D83 -> 0 | E87: 0 | F87: =F71+F77+F86+F74+F80+F83 -> 0 | G87: 0 | H87: =H71+H77+H86+H74+H80+H83 -> 0 | I87: =I71+I77+I86+I74+I80+I83 -> 0 | J87: =J71+J77+J86+J74+J80+J83 -> 0 | K87: =K71+K77+K86+K74+K80+K83 -> 0 | L87: =L88/12/L62 ->  | M87: =M71+M77+M86+M74+M80+M83 ->  | N87: =N71+N77+N86+N74+N80+N83 ->  | P87: =P88/12/P61 ->  | Q87: =Q71+Q77+Q86+Q74+Q80+Q83 ->  | R87: =R71+R77+R86+R74+R80+R83 -> 
A88: 3. | B88: Итого средства на оплату труда (включаемые в себестоимость) | C88: руб. | D88: =D87*D62*12 -> 0 | E88: =E87*E62*12 -> 0 | F88: =F87*F62*12 -> 0 | G88: =G87*G62*12 -> 0 | H88: =I88+J88 -> 0 | I88: =I87*I62*6 -> 0 | J88: =J87*J62*6 -> 0 | K88: =K87*K62*12 -> 0 | L88: =M88+N88 ->  | M88: =M87*M62*6 ->  | N88: =N87*N62*6 ->  | P88: =Q88+R88 ->  | Q88: =Q87*Q62*6 ->  | R88: =R87*R62*6 -> 
P90: =(P71+P74+P77+P80+P83+P86)*P62*12 ->  | Q90: =IF(P90=P88,"ВЕРНО","ОШИБКА!") -> 
P92: =P88/L88 ->  | Q92: разница
L93: распределение | P93: распределение
B94: на производство тепловой энергии | C94: х | F94: х | G94: х | H94: х | I94: х | J94: х | K94: х
B95: на передачу тепловой энергии | C95: х | F95: х | G95: х | H95: х | I95: х | J95: х | K95: х

Sheet ремонт хс
A1: Расходы на проведение текущего и капитального ремонтов хозспособом
B2: =анкета!C11 -> 0
B3: =анкета!C24 -> производство тепловой энергии (некомбинированная выработка)+ передача+сбыт
K4: рублей
B5: Текущий ремонт
B6: Наименование объекта | C6: Наименование основного оборудования | D6: Вид выполняемых работ | E6: Расходы на преведение текущего ремонта
E7: всего | F7: в том числе | J7: итого по данным организации | K7: итого принято ДТР ТО
F8: расходы на оплату труда ремонтного персонала | H8: материалы | I8: транспортные затраты
K9: ВСЕГО | L9: в т.ч.
F10: заработная плата | G10: отчсления | L10: 01.01.-30.06 | M10: 01.07-31.12
B11: 2013 факт | C11: х | D11: х | E11: =SUM(E12:E14) -> 0 | F11: =SUM(F12:F14) -> 0 | G11: 0 | H11: 0 | I11: 0 | J11: =SUM(J12:J14) -> 0 | K11: 0
B15: базовый период | C15: х | D15: х | E15: =SUM(E16:E18) -> 0 | F15: 0 | G15: 0 | H15: 0 | I15: 0 | J15: 0 | K15: 0
B19: 2015 план | C19: х | D19: х | E19: =SUM(E20:E22) -> 0 | F19: 0 | G19: 0 | H19: 0 | I19: 0 | J19: 0 | K19: 0
B24: Капитальный ремонт | K24: рублей
B25: Наименование котельной | C25: Наименование основного оборудования | D25: Вид выполняемых работ | E25: Расходы на преведение капитального ремонта
E26: всего | F26: в том числе | J26: итого по данным организации | K26: итого принято ДТР ТО
F28: расходы на оплату труда ремонтного персонала | H28: материалы | I28: транспортные затраты | K28: ВСЕГО | L28: в т.ч.
F29: заработная плата | G29: отчсления | L29: 01.01.-30.06 | M29: 01.07-31.12
B30: 2013 факт | C30: х | D30: х | E30: =SUM(E31:E34) -> 0 | F30: 0 | G30: 0 | H30: 0 | I30: 0 | J30: =SUM(J31:J34) -> 0 | K30: 0
B35: базовый период | C35: х | D35: х | E35: =SUM(E36:E38) -> 0 | F35: 0 | G35: 0 | H35: 0 | I35: 0 | J35: 0 | K35: 0
B39: 2015 план | C39: х | D39: х | E39: =SUM(E40:E42) -> 0 | F39: 0 | G39: 0 | H39: 0 | I39: 0 | J39: 0 | K39: 0

Sheet ремонт подр.
B1: Расходы на проведение текущего и капитального ремонтов силами сторонних организаций
B2: =анкета!C11 -> 0
B3: =анкета!C24 -> производство тепловой энергии (некомбинированная выработка)+ передача+сбыт
B5: Текущий ремонт | I5: рублей
B6: Наименование объекта | C6: Наименование основного оборудования | D6: Вид выполняемых работ | E6: Наименование организации- подрядчика | F6: № договора | G6: сумма | H6: итого по данным организации | I6: итого принято ДТР ТО
I8: ВСЕГО | J8: в т.ч.
J9: 01.01.-30.06 | K9: 01.07-31.12
B10: 2013 факт
B16: Итого | C16: х | D16: х | E16: х | F16: х | G16: =SUM(G11:G15) -> 0 | H16: =SUM(H11:H15) -> 0 | I16: =SUM(I11:I15) -> 0
B17: базовый период
B23: Итого | C23: х | D23: х | E23: х | F23: х | G23: =SUM(G18:G22) -> 0 | H23: =SUM(H18:H22) -> 0 | I23: =SUM(I18:I22) -> 0
B24: 2015 план
B32: Итого | C32: х | D32: х | E32: х | F32: х | G32: =SUM(G25:G31) -> 0 | H32: =SUM(H25:H31) -> 0 | I32: =SUM(I25:I31) -> 0
B34: Капитальный ремонт | I34: рублей
B35: Наименование котельной | C35: Наименование основного оборудования | D35: Вид выполняемых работ | E35: Наименование организации- подрядчика | F35: № договора | G35: сумма | H35: итого по данным организации | I35: итого принято ДТР ТО
I37: ВСЕГО | J37: в т.ч.
J38: 01.01.-30.06 | K38: 01.07-31.12
B39: 2013 факт
B46: Итого | C46: х | D46: х | E46: х | F46: х | G46: =SUM(G40:G45) -> 0 | H46: =SUM(H40:H45) -> 0 | I46: =SUM(I40:I45) -> 0
B47: базовый период
B54: Итого | C54: х | D54: х | E54: х | F54: х | G54: =SUM(G48:G53) -> 0 | H54: =SUM(H48:H53) -> 0 | I54: =SUM(I48:I53) -> 0
B55: 2015 план
B65: Итого | C65: х | D65: х | E65: х | F65: х | G65: =SUM(G56:G64) -> 0 | H65: =SUM(H56:H64) -> 0 | I65: =SUM(I56:I64) -> 0

Sheet ОХР смета
B1: Общехозяйственные расходы организации
B2: Организация
B3: Смета общехозяйственных расходов
N4: ='транспортные расходы'!N5 ->  | O4: ='транспортные расходы'!O5 ->  | P4: ='транспортные расходы'!P5 -> 
B5: Статьи расходов | D5: 2013 год | E5: 2013 год | F5: 2014 год | I5: 2015 год | T5: Распределение общехозяйственных расходов по видам деятельности
I6: план организации | K6: Департамент тарифного регулирования ТО (КП) | T6: База для распределения согласно учетной политике _________________
F7: план ДТР ТО | K7: в целом по году | M7: в том числе:
D8: план ДТР | E8: факт по данным организации | F8: всего | G8: в том числе | I8: всего (год) | J8: в т.ч. по бесхозяйным сетям | M8: 01.01.-30.06. | O8: 01.07.-31.12.
K9: всего | L9: в т.ч. по бесхозяйным сетям | M9: всего | N9: в т.ч. по бесхозяйным сетям | O9: всего | P9: в т.ч. по бесхозяйным сетям
G10: 01.01.-30.06. | H10: 01.07.-31.12
A12: 1. | B12: Заработная плата АУП всего | K12: =M12*$O$4+O12*$P$4 ->  | O12: =M12*оплата_труда_2015_полуг -> 0
A13: 1.1. | B13: численность АУП | K13: =M13 -> 0 | O13: =M13 -> 0 | T13: Подразделение | Y13: Теплоснабжение всего, в том числе: | Z13: Тариф 1 | AA13: Тариф 2 | AB13: Тариф 3 | AC13: Тариф 4 | AD13: Тариф 5 | AE13: Тариф 6 | AF13: Тариф 7 | AG13: Тариф 8 | AH13: Тариф 9 | AI13: Тариф 10 | AJ13: Водоснабжение | AK13: Водоотведение | AL13: Утилизация (захоронение) ТБО | AM13: Прочие подразделения | AN13: ВСЕГО
A14: 1.2. | B14: среднемесячная заработная плата на 1 работника | D14: =IF(D13=0,0,D12/D13/12) -> 0 | E14: 0 | F14: 0 | G14: 0 | H14: 0 | I14: 0 | J14: 0 | K14: 0 | L14: 0 | M14: 0 | N14: 0 | O14: 0 | P14: 0
A15: 2. | B15: Отчисления на социальные нужды | D15: =D12*D16/100 -> 0 | E15: 0 | F15: 0 | G15: 0 | H15: 0 | I15: 0 | J15: 0 | L15: 0 | M15: 0 | N15: 0 | O15: 0 | P15: 0 | T15: факт по данным организации за 2013 год | U15: База | Y15: =SUM(Z15:AI15) -> 0 | AN15: =Y15+AJ15+AK15+AL15+AM15 -> 0
A16: 2.1. | B16: % отчислений (включая отчисления в ФСС от несчастных случаев) | D16: =ставки!E11+ставки!F11 -> 0 | F16: =ставки!E12+ставки!F12 -> 0 | G16: =F16 -> 0 | H16: =F16 -> 0 | I16: =ставки!E13+ставки!F13 -> 0 | J16: =I16 -> 0 | K16: =ставки!$E$14+ставки!$F$14 -> 0 | L16: =$K$16 -> 0 | M16: =$K$16 -> 0 | N16: 0 | O16: 0 | P16: 0 | U16: Сумма ОХР | W16: всего | Y16: =SUM(Y17:Y20)-Y19 ->  | Z16: =SUM(Z17:Z20)-Z19 ->  | AI16: =SUM(AI17:AI20)-AI19 -> 
A17: 3. | B17: Амортизация | K17: =M17*$O$4+O17*$P$4 ->  | O17: =M17*амортизация_2015_полуг -> 0 | W17: расходы на оплату труда АУП | Y17: =$E$12/$AN$15*Y15 -> 
A18: 4. | B18: Аренда | O18: =M18*аренда_2015_полуг -> 0 | W18: отчисления на социальные нужды | Y18: =$E$15/$AN$15*Y15 -> 
A19: 5. | B19: Содержание зданий всего, в том числе: | D19: =SUM(D20:D24) -> 0 | E19: 0 | F19: 0 | G19: 0 | H19: 0 | I19: 0 | J19: 0 | L19: 0 | M19: 0 | N19: 0 | O19: 0 | P19: 0 | W19: численность АУП | Y19: =$E$13/$AN$15*Y15 -> 
A20: 5.1. | B20: электроэнергия | K20: =M20*$O$4+O20*$P$4 ->  | O20: =M20*электроэнергия_2015_полуг -> 0 | W20: прочие ОХР | Y20: =($E$44-$E$12-$E$15)/$AN$15*Y15 -> 
A21: 5.2. | B21: тепловая энергия | O21: =M21*теплоэнергия_2015_полуг -> 0 | T21: план по данным организации за 2015 год | U21: База | Y21: =SUM(Z21:AI21) -> 0 | AN21: 0
A22: 5.3. | B22: водоснабжение | O22: =M22*вода_2015_полуг -> 0 | U22: Сумма ОХР | W22: всего | Y22: =SUM(Y23:Y26)-Y25 ->  | Z22: =SUM(Z23:Z26)-Z25 ->  | AA22: =SUM(AA23:AA26)-AA25 -> 
A23: 5.4. | B23: водоотведение | O23: =M23*вода_2015_полуг -> 0 | W23: расходы на оплату труда АУП | Y23: =$I$12/$AN$21*Y21 ->  | Z23: =$I$12/$AN$21*Z21 ->  | AN23: =Y23+AJ23+AK23+AL23+AM23 -> 
A24: 5.5. | B24: вывоз и утилизация (захоронение) ТБО | O24: =M24*вода_2015_полуг -> 0 | W24: отчисления на социальные нужды | Y24: =$I$15/$AN$21*Y21 ->  | Z24: =$I$15/$AN$21*Z21 ->  | AN24: =Y24+AJ24+AK24+AL24+AM24 -> 
A25: 6. | B25: Налоги и сборы, в т.ч.: | K25: =K26 ->  | L25: 0 | N25: 0 | O25: 0 | P25: 0 | W25: численность АУП | Y25: =$I$13/$AN$21*Y21 ->  | Z25: =$I$13/$AN$21*Z21 ->  | AN25: =Y25+AJ25+AK25+AL25+AM25 -> 
A26: 6.1. | B26: транспортный налог | K26: =M26*$O$4+O26*$P$4 ->  | O26: =M26*налоги_2015_полуг -> 0 | W26: прочие ОХР | Y26: =($I$44-$I$12-$I$15)/$AN$21*Y21 ->  | Z26: =($I$44-$I$12-$I$15)/$AN$21*Z21 ->  | AN26: =Y26+AJ26+AK26+AL26+AM26 -> 
A27: 7. | B27: Расходы на ремонт всего, в том числе: | D27: =D28 -> 0 | E27: =E28 -> 0 | F27: =F28 -> 0 | G27: 0 | H27: 0 | I27: 0 | J27: 0 | L27: 0 | M27: 0 | N27: 0 | O27: =O28 -> 0 | P27: 0
A28: 7.1. | B28: материалы | K28: =M28*$O$4+O28*$P$4 ->  | O28: =M28*Основные_материалы_2015_полуг -> 0
A29: 8. | B29: Прочее (услуги непроизводственного характера) | D29: =SUM(D30:D43) -> 0 | E29: 0 | F29: 0 | G29: 0 | H29: 0 | I29: 0 | J29: 0 | L29: 0 | M29: 0 | N29: 0 | O29: 0 | P29: 0
A30: 8.1. | B30: услуги связи | K30: =M30*$O$4+O30*$P$4 ->  | O30: =M30*прочие_2015_полуг -> 0
A31: 8.2. | B31: услуги банка | O31: 0
A32: 8.3. | B32: обучение персонала | O32: 0
A33: 8.4. | B33: командировочные расходы | O33: 0
A34: 8.5. | B34: почтово-канцелярские расходы | O34: 0
A35: 8.6. | B35: вневедомственная охрана | O35: 0
A36: 8.7. | B36: пожарная охрана | O36: 0
A37: 8.8. | B37: услуги по обслуживанию программного обеспечения | O37: 0
A38: 8.9. | B38: юридические услуги | O38: 0
A39: 8.10. | B39: консультационные услуги | O39: 0
A40: 8.11. | B40: аудиторские услуги | O40: 0
A41: 8.12. | B41: расходы на страхование | O41: 0
A42: 8.13. | O42: 0
A43: 8.14. | O43: 0
B44: ВСЕГО | D44: =D12+D15+D17+D18+D19+D25+D27+D29 -> 0 | E44: =E12+E15+E17+E18+E19+E25+E27+E29 -> 0 | F44: 0 | G44: 0 | H44: 0 | I44: 0 | J44: 0 | L44: 0 | M44: 0 | N44: 0 | O44: 0 | P44: 0
B45: в том числе с группировкой затрат
B46: Зарплата АУП | D46: =D12 -> 0 | E46: 0 | F46: 0 | G46: 0 | H46: 0 | I46: 0 | J46: 0 | L46: 0 | M46: 0 | N46: 0 | O46: 0 | P46: 0
B47: Отчисления на социальные нужды | D47: =D15 -> 0 | E47: 0 | F47: 0 | G47: 0 | H47: 0 | I47: 0 | J47: 0 | L47: 0 | M47: 0 | N47: 0 | O47: 0 | P47: 0
B48: Прочее | D48: =D17+D18+D19+D25+D27+D29 -> 0 | E48: 0 | F48: 0 | G48: 0 | H48: 0 | I48: 0 | J48: 0 | L48: 0 | M48: 0 | N48: 0 | O48: 0 | P48: 0
B54: Подразделение | D54: распределение ОХР по данным ДТР ТО | H54: План на период регулирования (2015 г.)
H55: База | I55: Сумма ОХР | J55: в том числе
J56: расходы на оплату труда основного АУП | N56: Численность АУП | P56: Отчисления на социальные нужды от расходов на оплату труда АУП | T56: Работы и услуги непроизводственного характера, оказываемые сторонними организациями (услуги связи, вневедомственная охрана, юридические, аудиторкие, информационные услуги и т.д.) | X56: Арендная плата, лизинговые платежи, не связанные с объектами системы водоснабжения и водоотведения | AB56: Расходы на служебные командировки | AF56: Расходы на обучение персонала | AJ56: Расходы на страхование производственных объектов | AN56: Прочие расходы
I57: всего | J57: 01.01.-30.06. | L57: 01.07.-31.12. | M57: в т.ч. по бесхозяйным сетям | N57: всего | O57: в т.ч. по бесхозяйным сетям | P57: 01.01.-30.06. | R57: 01.07.-31.12. | S57: в т.ч. по бесхозяйным сетям | T57: 01.01.-30.06. | V57: 01.07.-31.12. | W57: в т.ч. по бесхозяйным сетям | X57: 01.01.-30.06. | Z57: 01.07.-31.12. | AA57: в т.ч. по бесхозяйным сетям | AB57: 01.01.-30.06. | AD57: 01.07.-31.12. | AE57: в т.ч. по бесхозяйным сетям | AF57: 01.01.-30.06. | AH57: 01.07.-31.12. | AI57: в т.ч. по бесхозяйным сетям | AJ57: 01.01.-30.06. | AL57: 01.07.-31.12. | AM57: в т.ч. по бесхозяйным сетям | AN57: 01.01.-30.06. | AP57: 01.07.-31.12. | AQ57: в т.ч. по бесхозяйным сетям
J58: всего | K58: в т.ч. по бесхозяйным сетям | L58: всего | M58: в т.ч. по бесхозяйным сетям | P58: всего | Q58: в т.ч. по бесхозяйным сетям | R58: всего | S58: в т.ч. по бесхозяйным сетям | T58: всего | U58: в т.ч. по бесхозяйным сетям | V58: всего | W58: в т.ч. по бесхозяйным сетям | X58: всего | Y58: в т.ч. по бесхозяйным сетям | Z58: всего | AA58: в т.ч. по бесхозяйным сетям | AB58: всего | AC58: в т.ч. по бесхозяйным сетям | AD58: всего | AE58: в т.ч. по бесхозяйным сетям | AF58: всего | AG58: в т.ч. по бесхозяйным сетям | AH58: всего | AI58: в т.ч. по бесхозяйным сетям | AJ58: всего | AK58: в т.ч. по бесхозяйным сетям | AL58: всего | AM58: в т.ч. по бесхозяйным сетям | AN58: всего | AO58: в т.ч. по бесхозяйным сетям | AP58: всего | AQ58: в т.ч. по бесхозяйным сетям
B59: Теплоснабжение* всего, в том числе: | H59: =H60+H61+H62 -> 0 | I59: =J59+L59+P59+R59+T59+V59+X59+Z59+AB59+AD59+AF59+AH59+AJ59+AL59+AN59+AP59 ->  | J59: =J60+J61+J62 -> 
B60: Тариф 1 | J60: =$H60/$H$67*M$12 ->  | N60: =$H60/$H$67*K$13 ->  | P60: =$H60/$H$67*M$15 ->  | T60: =$H60/$H$67*(M$29-M$32-M$33-M$41) ->  | X60: =$H60/$H$67*M$18 ->  | AB60: =$H60/$H$67*M$33 ->  | AF60: =$H60/$H$67*M$32 ->  | AJ60: =$H60/$H$67*M$41 ->  | AN60: =$H60/$H$67*(M$44-M$29-M$18-M$12-M$13) -> 
B61: Тариф 2
B63: Водоснабжение
B64: Водоотведение
B65: Утилизация (захоронение) ТБО
B66: Прочие подразделения
B67: ВСЕГО | H67: =H59+H63+H64+H65+H66 -> 0

Sheet транспортные расходы
C2: Транспортные расходы организации
C3: Организация | N3: =натуральные!K55 -> 0 | O3: =натуральные!L55 -> 0 | P3: =натуральные!M55 -> 0
C4: Смета транспортных расходов
N5: =N3/$N$3 ->  | O5: =O3/$N$3 ->  | P5: =P3/$N$3 -> 
C6: Статьи расходов | E6: 2013 год | G6: 2014 год | J6: 2015 год | T6: Распределение транспортных расходов по видам деятельности
J7: план организации | L7: Департамент тарифного регулирования ТО (КП) | T7: База для распределения согласно учетной политике _________________
G8: план ДТР ТО | L8: в целом по году | N8: в том числе:
E9: план ДТР | F9: факт по данным организации | G9: всего | H9: в том числе | J9: всего (год) | K9: в т.ч. по бесхозяйным сетям | N9: 01.01.-30.06. | P9: 01.07.-31.12.
L10: всего | M10: в т.ч. по бесхозяйным сетям | N10: всего | O10: в т.ч. по бесхозяйным сетям | P10: всего | Q10: в т.ч. по бесхозяйным сетям
H11: 01.01.-30.06. | I11: 01.07.-31.12
B13: 1. | C13: Заработная плата водителей всего | L13: =N13*$O$5+P13*$P$5 ->  | P13: =N13*оплата_труда_2015_полуг -> 0
B14: 1.1. | C14: численность водителей | L14: =N14 -> 0 | P14: =N14 -> 0 | T14: Подразделение | Y14: Теплоснабжение всего, в том числе: | Z14: Тариф 1 | AA14: Тариф 2 | AB14: Тариф 3 | AC14: Тариф 4 | AD14: Тариф 5 | AE14: Тариф 6 | AF14: Тариф 7 | AG14: Тариф 8 | AH14: Тариф 9 | AI14: Тариф 10 | AJ14: Водоснабжение | AK14: Водоотведение | AL14: Утилизация (захоронение) ТБО | AM14: Прочие подразделения | AN14: ВСЕГО
B15: 1.2. | C15: среднемесячная заработная плата на 1 работника | E15: =IF(E14=0,0,E13/E14/12) -> 0 | F15: 0 | G15: 0 | H15: 0 | I15: 0 | J15: 0 | K15: 0 | L15: 0 | M15: 0 | N15: 0 | O15: 0 | P15: 0 | Q15: 0
B16: 2. | C16: Отчисления на социальные нужды | E16: =E13*E17/100 -> 0 | F16: 0 | G16: 0 | H16: 0 | I16: 0 | J16: 0 | K16: 0 | M16: 0 | N16: 0 | O16: 0 | P16: 0 | Q16: 0 | T16: факт по данным организации за 2013 год | U16: База | Y16: =SUM(Z16:AI16) -> 0 | AN16: =Y16+AJ16+AK16+AL16+AM16 -> 0
B17: 2.1. | C17: % отчислений (включая отчисления в ФСС от несчастных случаев) | E17: =ставки!E11+ставки!F11 -> 0 | G17: =ставки!E12+ставки!F12 -> 0 | H17: =$G$17 -> 0 | I17: =$G$17 -> 0 | J17: =ставки!E13+ставки!F13 -> 0 | K17: =J17 -> 0 | L17: =ставки!E14+ставки!F14 -> 0 | M17: =$L$17 -> 0 | N17: =$L$17 -> 0 | O17: 0 | P17: 0 | Q17: 0 | U17: Сумма ТР | W17: всего | Y17: =SUM(Y18:Y23)-Y20 ->  | Z17: =SUM(Z18:Z23)-Z20 ->  | AA17: =SUM(AA18:AA23)-AA20 ->  | AG17: =SUM(AG18:AG23)-AG20 ->  | AH17: =SUM(AH18:AH23)-AH20 ->  | AN17: =Y17+AJ17+AK17+AL17+AM17 -> 
B18: 3. | C18: Амортизация | L18: =N18*$O$5+P18*$P$5 ->  | P18: =N18*амортизация_2015_полуг -> 0 | W18: расходы на оплату труда водителей | Y18: =$F$13/$AN$16*Y16 ->  | AG18: =$F$13/$AN$16*AG16 ->  | AI18: =$F$13/$AN$16*AI16 ->  | AJ18: =$F$13/$AN$16*AJ16 ->  | AK18: =$F$13/$AN$16*AK16 ->  | AL18: =$F$13/$AN$16*AL16 ->  | AM18: =$F$13/$AN$16*AM16 ->  | AN18: =Y18+AJ18+AK18+AL18+AM18 -> 
B19: 4. | C19: Аренда | L19: =N19*$O$5+P19*$P$5 ->  | P19: =N19*аренда_2015_полуг -> 0 | W19: отчисления на социальные нужды | Y19: =$F$16/$AN$16*Y16 ->  | AG19: =$F$16/$AN$16*AG16 ->  | AI19: =$F$16/$AN$16*AI16 ->  | AJ19: =$F$16/$AN$16*AJ16 ->  | AK19: =$F$16/$AN$16*AK16 ->  | AL19: =$F$16/$AN$16*AL16 ->  | AM19: =$F$16/$AN$16*AM16 -> 
B20: 5. | C20: Содержание зданий всего, в том числе: | E20: =SUM(E21:E25) -> 0 | F20: =SUM(F21:F25) -> 0 | G20: 0 | H20: 0 | I20: 0 | J20: 0 | K20: 0 | M20: 0 | N20: 0 | O20: 0 | P20: 0 | Q20: 0 | W20: численность водителей | Y20: =$F$14/$AN$16*Y16 ->  | AG20: =$F$14/$AN$16*AG16 ->  | AI20: =$F$14/$AN$16*AI16 ->  | AJ20: =$F$14/$AN$16*AJ16 ->  | AK20: =$F$14/$AN$16*AK16 ->  | AL20: =$F$14/$AN$16*AL16 ->  | AM20: =$F$14/$AN$16*AM16 -> 
B21: 5.1. | C21: электроэнергия | L21: =N21*$O$5+P21*$P$5 ->  | P21: =N21*электроэнергия_2015_полуг -> 0 | W21: ГСМ | Y21: =$F$30/$AN$16*Y16 ->  | AG21: =$F$30/$AN$16*AG16 ->  | AI21: =$F$30/$AN$16*AI16 ->  | AJ21: =$F$30/$AN$16*AJ16 ->  | AK21: =$F$30/$AN$16*AK16 ->  | AL21: =$F$30/$AN$16*AL16 ->  | AM21: =$F$30/$AN$16*AM16 ->  | AN21: =Y21+AJ21+AK21+AL21+AM21 -> 
B22: 5.2. | C22: тепловая энергия | P22: =N22*теплоэнергия_2015_полуг -> 0 | W22: транспортный налог | Y22: =$F$27/$AN$16*Y16 ->  | AG22: =$F$27/$AN$16*AG16 ->  | AI22: =$F$27/$AN$16*AI16 ->  | AJ22: =$F$27/$AN$16*AJ16 ->  | AK22: =$F$27/$AN$16*AK16 ->  | AL22: =$F$27/$AN$16*AL16 ->  | AM22: =$F$27/$AN$16*AM16 ->  | AN22: =Y22+AJ22+AK22+AL22+AM22 -> 
B23: 5.3. | C23: водоснабжение | P23: =N23*вода_2015_полуг -> 0 | W23: прочие ТР | Y23: =($F$46-$F$30-$F$27-$F$13-$F$16)/$AN$16*Y16 ->  | AG23: =($F$46-$F$30-$F$27-$F$13-$F$16)/$AN$16*AG16 ->  | AI23: =($F$46-$F$30-$F$27-$F$13-$F$16)/$AN$16*AI16 ->  | AJ23: =($F$46-$F$30-$F$27-$F$13-$F$16)/$AN$16*AJ16 ->  | AK23: =($F$46-$F$30-$F$27-$F$13-$F$16)/$AN$16*AK16 ->  | AL23: =($F$46-$F$30-$F$27-$F$13-$F$16)/$AN$16*AL16 ->  | AM23: =($F$46-$F$30-$F$27-$F$13-$F$16)/$AN$16*AM16 -> 
B24: 5.4. | C24: водоотведение | P24: =N24*вода_2015_полуг -> 0 | T24: план по данным организации за 2015 год | U24: База | Y24: =SUM(Z24:AI24) -> 0 | AN24: =Y24+AJ24+AK24+AL24+AM24 -> 0
B25: 5.5. | C25: вывоз и утилизация (захоронение) ТБО | P25: =N25*вода_2015_полуг -> 0 | U25: Сумма ТР | W25: всего | Y25: =SUM(Y26:Y31)-Y28 ->  | Z25: =SUM(Z26:Z31)-Z28 ->  | AG25: =SUM(AG26:AG31)-AG28 ->  | AH25: =SUM(AH26:AH31)-AH28 ->  | AN25: =Y25+AJ25+AK25+AL25+AM25 -> 
B26: 6. | C26: Налоги и сборы, в т.ч.: | L26: =L27 ->  | P26: 0 | W26: расходы на оплату труда водителей | Y26: =$J$13/$AN$24*Y24 ->  | AG26: =$J$13/$AN$24*AG24 ->  | AI26: =$J$13/$AN$24*AI24 ->  | AJ26: =$J$13/$AN$24*AJ24 ->  | AK26: =$J$13/$AN$24*AK24 ->  | AL26: =$J$13/$AN$24*AL24 ->  | AM26: =$J$13/$AN$24*AM24 ->  | AN26: =Y26+AJ26+AK26+AL26+AM26 -> 
B27: 6.1. | C27: транспортный налог | L27: =N27*$O$5+P27*$P$5 ->  | P27: =N27*налоги_2015_полуг -> 0 | W27: отчисления на социальные нужды | Y27: =$J$16/$AN$24*Y24 ->  | AG27: =$J$16/$AN$24*AG24 ->  | AI27: =$J$16/$AN$24*AI24 ->  | AJ27: =$J$16/$AN$24*AJ24 ->  | AK27: =$J$16/$AN$24*AK24 ->  | AL27: =$J$16/$AN$24*AL24 ->  | AM27: =$J$16/$AN$24*AM24 -> 
B28: 7. | C28: Расходы на ремонт всего, в том числе: | L28: =N28*$O$5+P28*$P$5 ->  | P28: =N28*Основные_материалы_2015_полуг -> 0 | W28: численность водителей | Y28: =$J$14/$AN$24*Y24 ->  | AB28: =$J$14/$AN$24*AB24 ->  | AG28: =$J$14/$AN$24*AG24 ->  | AI28: =$J$14/$AN$24*AI24 ->  | AJ28: =$J$14/$AN$24*AJ24 ->  | AK28: =$J$14/$AN$24*AK24 ->  | AL28: =$J$14/$AN$24*AL24 ->  | AM28: =$J$14/$AN$24*AM24 -> 
B29: 7.1. | C29: материалы | P29: =N29*Основные_материалы_2015_полуг -> 0 | W29: ГСМ | Y29: =$J$30/$AN$24*Y24 ->  | AG29: =$J$30/$AN$24*AG24 ->  | AI29: =$J$30/$AN$24*AI24 ->  | AJ29: =$J$30/$AN$24*AJ24 ->  | AK29: =$J$30/$AN$24*AK24 ->  | AL29: =$J$30/$AN$24*AL24 ->  | AM29: =$J$30/$AN$24*AM24 -> 
B30: 8. | C30: Расходы на ГСМ | P30: =N30*дизтопливо_2015_полуг -> 0 | W30: транспортный налог | Y30: =$J$27/$AN$24*Y24 ->  | AG30: =$J$27/$AN$24*AG24 ->  | AI30: =$J$27/$AN$24*AI24 ->  | AJ30: =$J$27/$AN$24*AJ24 ->  | AK30: =$J$27/$AN$24*AK24 ->  | AL30: =$J$27/$AN$24*AL24 ->  | AM30: =$J$27/$AN$24*AM24 -> 
B31: 9. | C31: Прочее (услуги непроизводственного характера) | E31: =SUM(E32:E45) -> 0 | F31: =SUM(F32:F45) -> 0 | G31: =SUM(G32:G45) -> 0 | H31: 0 | I31: 0 | J31: 0 | K31: 0 | M31: 0 | N31: 0 | O31: 0 | P31: 0 | Q31: 0 | W31: прочие ТР | Y31: =($J$46-$J$30-$J$27-$J$13-$J$16)/$AN$24*Y24 ->  | AG31: =($J$46-$J$30-$J$27-$J$13-$J$16)/$AN$24*AG24 ->  | AI31: =($J$46-$J$30-$J$27-$J$13-$J$16)/$AN$24*AI24 ->  | AJ31: =($J$46-$J$30-$J$27-$J$13-$J$16)/$AN$24*AJ24 ->  | AK31: =($J$46-$J$30-$J$27-$J$13-$J$16)/$AN$24*AK24 ->  | AL31: =($J$46-$J$30-$J$27-$J$13-$J$16)/$AN$24*AL24 ->  | AM31: =($J$46-$J$30-$J$27-$J$13-$J$16)/$AN$24*AM24 -> 
B32: 9.1 | C32: услуги связи | L32: =N32*$O$5+P32*$P$5 ->  | P32: =N32*прочие_2015_полуг -> 0
B33: 9.2 | C33: услуги банка | P33: 0
B34: 9.3 | C34: обучение персонала | P34: 0
B35: 9.4 | C35: командировочные расходы | P35: 0
B36: 9.5 | C36: почтово-канцелярские расходы | P36: 0
B37: 9.6 | C37: вневедомственная охрана | P37: 0
B38: 9.7 | C38: пожарная охрана | P38: 0
B39: 9.8 | C39: услуги по обслуживанию программного обеспечения | P39: 0
B40: 9.9 | C40: юридические услуги | P40: 0
B41: 9.10 | C41: консультационные услуги | P41: 0
B42: 9.11 | C42: аудиторские услуги | P42: 0
B43: 9.12 | C43: расходы на страхование | P43: 0
B44: 9.13 | P44: 0
B45: 9.14 | P45: 0
C46: ВСЕГО | E46: =SUM(E13,E16,E18:E20,E26,E28,E30,E31) -> 0 | F46: =SUM(F13,F16,F18:F20,F26,F28,F30,F31) -> 0 | G46: 0 | H46: 0 | I46: 0 | J46: 0 | K46: 0 | M46: 0 | N46: 0 | O46: 0 | P46: 0 | Q46: 0
C47: в том числе с группировкой затрат
C48: Зарплата | E48: =E13 -> 0 | F48: =F13 -> 0 | G48: 0 | H48: 0 | I48: 0 | J48: 0 | K48: 0 | M48: 0 | N48: 0 | O48: 0 | P48: 0 | Q48: 0
C49: Отчисления на социальные нужды | E49: =E16 -> 0 | F49: 0 | G49: 0 | H49: 0 | I49: 0 | J49: 0 | K49: 0 | M49: 0 | N49: 0 | O49: 0 | P49: 0 | Q49: 0
C50: Прочее | E50: =E18+E19+E20+E26+E28+E31+E30 -> 0 | F50: =F18+F19+F20+F26+F28+F31+F30 -> 0 | G50: =G18+G19+G20+G26+G28+G31+G30 -> 0 | H50: 0 | I50: 0 | J50: 0 | K50: 0 | M50: 0 | N50: 0 | O50: 0 | P50: 0 | Q50: 0
D55: Подразделение | I55: Теплоснабжение всего, в том числе: | J55: Тариф 1 | K55: Тариф 2 | L55: Тариф 3 | M55: Тариф 4 | N55: Тариф 5 | O55: Тариф 6 | P55: Тариф 7 | Q55: Тариф 8 | R55: Водоснабжение | S55: Водоотведение | T55: Утилизация (захоронение) ТБО | U55: Прочие подразделения | V55: ВСЕГО
D57: план по данным ДТР ТО на 2015 год (1-полуг) | E57: База | I57: =SUM(J57:Q57) -> 0 | V57: =I57+R57+S57+T57+U57 -> 0
E58: Сумма ТР | G58: всего | I58: =SUM(I59:I64)-I61 ->  | J58: =SUM(J59:J64)-J61 ->  | K58: =SUM(K59:K64)-K61 ->  | L58: =SUM(L59:L64)-L61 ->  | M58: =SUM(M59:M64)-M61 ->  | N58: =SUM(N59:N64)-N61 ->  | O58: =SUM(O59:O64)-O61 ->  | P58: =SUM(P59:P64)-P61 ->  | Q58: =SUM(Q59:Q64)-Q61 ->  | R58: =SUM(R59:R64)-R61 ->  | S58: =SUM(S59:S64)-S61 ->  | T58: =SUM(T59:T64)-T61 ->  | U58: =SUM(U59:U64)-U61 ->  | V58: =I58+R58+S58+T58+U58 -> 
G59: расходы на оплату труда водителей | I59: =$N$13/$V$57*I57 ->  | J59: =$N$13/$V$57*J57 ->  | V59: =I59+R59+S59+T59+U59 -> 
G60: отчисления на социальные нужды | I60: =$N$16/$V$57*I57 ->  | J60: =$N$16/$V$57*J57 -> 
G61: численность водителей | I61: =$N$14/$V$57*I57 ->  | J61: =$N$14/$V$57*J57 -> 
G62: ГСМ | I62: =$N$30/$V$57*I57 ->  | J62: =$N$30/$V$57*J57 ->  | V62: =I62+R62+S62+T62+U62 -> 
G63: транспортный налог | I63: =$N$27/$V$57*I57 ->  | V63: =I63+R63+S63+T63+U63 -> 
G64: прочие ТР | I64: =$N$46/$V$57*I57-I59-I60-I62-I63 ->  | J64: =$N$46/$V$57*J57-J59-J60-J62-J63 ->  | L64: =$N$46/$V$57*L57-L59-L60-L62-L63 -> 
D65: план по данным ДТР ТО на 2015 год (1-полуг) | E65: База | I65: =SUM(J65:Q65) -> 0 | J65: =J57 -> 0 | K65: =K57 -> 0 | L65: 0 | M65: 0 | N65: 0 | O65: 0 | P65: 0 | Q65: 0 | R65: 0 | S65: 0 | T65: 0 | U65: 0 | V65: =I65+R65+S65+T65+U65 -> 0
E66: Сумма ТР | G66: всего | I66: =SUM(I67:I72)-I69 ->  | J66: =SUM(J67:J72)-J69 ->  | K66: =SUM(K67:K72)-K69 ->  | L66: =SUM(L67:L72)-L69 ->  | M66: =SUM(M67:M72)-M69 ->  | N66: =SUM(N67:N72)-N69 ->  | O66: =SUM(O67:O72)-O69 ->  | P66: =SUM(P67:P72)-P69 ->  | Q66: =SUM(Q67:Q72)-Q69 ->  | R66: =SUM(R67:R72)-R69 ->  | S66: =SUM(S67:S72)-S69 ->  | T66: =SUM(T67:T72)-T69 ->  | U66: =SUM(U67:U72)-U69 ->  | V66: =I66+R66+S66+T66+U66 -> 
G67: расходы на оплату труда водителей | I67: =$P$13/$V$65*I65 ->  | J67: =$P$13/$V$65*J65 -> 
G68: отчисления на социальные нужды | I68: =$P$16/$V$65*I65 ->  | J68: =$P$16/$V$65*J65 -> 
G69: численность водителей | I69: =$P$14/$V$65*I65 ->  | J69: =$P$14/$V$65*J65 -> 
G70: ГСМ | I70: =$P$30/$V$65*I65 ->  | J70: =$P$30/$V$65*J65 -> 
G71: транспортный налог | I71: =$P$27/$V$65*I65 ->  | J71: =$P$27/$V$65*J65 -> 
G72: прочие ТР | I72: =$P$46/$V$65*I65-I67-I68-I70-I71 ->  | J72: =$P$46/$V$65*J65-J67-J68-J70-J71 -> 

Sheet покупка хв и тн (hidden)
B1: Расходы на приобретение холодной воды и теплоносителя | W1: =вода_2015_полуг -> 1.0425
B3: № п. п. | C3: Вид сырья и материалов | D3: регулируемый период
D4: План организации | M4: ДТР ТО
D5: год | G5: в том числе по периодам | M5: год | P5: в том числе по периодам
G6: 01.01.-30.06. | J6: 01.07.-31.12. | P6: 01.01.-30.06. | S6: 01.07.-31.12.
D7: Расчетный объем | E7: Планируемая (расчетная) цена | F7: Расходы на приобретение | G7: Расчетный объем | H7: Планируемая (расчетная) цена | I7: Расходы на приобретение | J7: Расчетный объем | K7: Планируемая (расчетная) цена | L7: Расходы на приобретение | M7: Расчетный объем | N7: Планируемая (расчетная) цена | O7: Расходы на приобретение | P7: Расчетный объем | Q7: Планируемая (расчетная) цена | R7: Расходы на приобретение | S7: Расчетный объем | T7: Планируемая (расчетная) цена | U7: Расходы на приобретение
D8: м3 | E8: руб./м3 | F8: руб. | G8: м3 | H8: руб./м3 | I8: руб. | J8: м3 | K8: руб./м3 | L8: руб. | M8: м3 | N8: руб./м3 | O8: руб. | P8: м3 | Q8: руб./м3 | R8: руб. | S8: м3 | T8: руб./м3 | U8: руб.
B9: 1 | C9: 2 | D9: 3 | E9: 4 | F9: 5 | G9: 6 | H9: 7 | I9: 8 | J9: 9 | K9: 10 | L9: 11 | M9: 12 | N9: 13 | O9: 14 | P9: 15 | Q9: 16 | R9: 17 | S9: 18 | T9: 19 | U9: 20
B10: 1 | C10: Расходы на холодную воду, в том числе | D10: =SUM(D11:D14) -> 0 | E10: =IF(D10=0,0,F10/D10) -> 0 | F10: =SUM(F11:F14) -> 0 | G10: =SUM(G11:G14) -> 0 | H10: =IF(G10=0,0,I10/G10) -> 0 | I10: =SUM(I11:I14) -> 0 | J10: 0 | K10: =IF(J10=0,0,L10/J10) -> 0 | L10: =SUM(L11:L14) -> 0 | M10: 0 | N10: =IF(M10=0,0,O10/M10) -> 0 | O10: =SUM(O11:O14) -> 0 | P10: 0 | Q10: =IF(P10=0,0,R10/P10) -> 0 | R10: =SUM(R11:R14) -> 0 | S10: =SUM(S11:S14) -> 0 | T10: =IF(S10=0,0,U10/S10) -> 0 | U10: =SUM(U11:U14) -> 0
B11: 1.1 | C11: - на производство электрической энергии
B12: 1.2 | C12: - на производство тепловой энергии | D12: =G12+J12 -> 0 | E12: =IF(D12=0,0,F12/D12) -> 0 | F12: =I12+L12 -> 0 | I12: =G12*H12 -> 0 | L12: =J12*K12 -> 0 | M12: =P12+S12 -> 0 | N12: =IF(M12=0,0,O12/M12) -> 0 | O12: =R12+U12 -> 0 | P12: ='вода без ХВО'!I10 -> 0 | Q12: ='вода без ХВО'!I13 -> 0 | R12: =P12*Q12 -> 0 | S12: ='вода без ХВО'!J10 -> 0 | T12: ='вода без ХВО'!J13 -> 0 | U12: =S12*T12 -> 0
B13: 1.3 | C13: - на производство теплоносителя | D13: =G13+J13 -> 0 | E13: =IF(D13=0,0,F13/D13) -> 0 | F13: =I13+L13 -> 0 | I13: =G13*H13 -> 0 | L13: =J13*K13 -> 0 | M13: =P13+S13 -> 0 | N13: =IF(M13=0,0,O13/M13) -> 0 | O13: =R13+U13 -> 0 | R13: =P13*Q13 -> 0 | T13: =Q13*$W$1 -> 0 | U13: =S13*T13 -> 0
B14: 1.4 | C14: - прочая продукция
B15: 2 | C15: Расходы на теплоноситель | D15: =SUM(D16:D17) -> 0 | E15: =IF(D15=0,0,F15/D15) -> 0 | F15: =SUM(F16:F17) -> 0 | G15: =SUM(G16:G17) -> 0 | H15: =IF(G15=0,0,I15/G15) -> 0 | I15: =SUM(I16:I17) -> 0 | J15: =SUM(J16:J17) -> 0 | K15: =IF(J15=0,0,L15/J15) -> 0 | L15: =SUM(L16:L17) -> 0 | M15: =SUM(M16:M17) -> 0 | N15: =IF(M15=0,0,O15/M15) -> 0 | O15: =SUM(O16:O17) -> 0 | P15: =SUM(P16:P17) -> 0 | Q15: =IF(P15=0,0,R15/P15) -> 0 | R15: =SUM(R16:R17) -> 0 | S15: =SUM(S16:S17) -> 0 | T15: =IF(S15=0,0,U15/S15) -> 0 | U15: =SUM(U16:U17) -> 0
B16: 2.1. | C16: - на производство тепловой энергии | D16: =G16+J16 -> 0 | E16: =IF(D16=0,0,F16/D16) -> 0 | F16: =I16+L16 -> 0 | I16: =G16*H16 -> 0 | L16: =J16*K16 -> 0 | M16: =P16+S16 -> 0 | N16: =IF(M16=0,0,O16/M16) -> 0 | O16: =R16+U16 -> 0 | R16: =P16*Q16 -> 0 | U16: =S16*T16 -> 0
B17: 2.2. | C17: - на производство теплоносителя | D17: =G17+J17 -> 0 | E17: =IF(D17=0,0,F17/D17) -> 0 | F17: 0 | I17: =G17*H17 -> 0 | L17: =J17*K17 -> 0 | M17: =P17+S17 -> 0 | N17: =IF(M17=0,0,O17/M17) -> 0 | O17: 0 | R17: =P17*Q17 -> 0 | T17: =Q17*$W$1 -> 0 | U17: =S17*T17 -> 0

Sheet вода без ХВО (hidden)
H1: дефлятор 2015/2014 | J1: =вода_2015_полуг -> 1.0425
B2: Расчет объема воды для выработки тепла
B3: =анкета!C11 -> 0
B4: =анкета!C12 -> 0
A5: № пп | B5: Наименование объекта теплоснабжения (котельной) | C5: Максимальная час. нагрузка на отопл. и вент.,Гкал./час | D5: Продолжительность отопительного периода | E5: На одноразовое заполнения тепловой сети, м3/год | F5: На одноразовое заполнение систем отопления потребителей, м3/год | G5: Объем воды на подпитку системы, м3/год | H5: Итого, м3/год | I5: 01.01-30.06 | J5: 01.07-31.12
B6: количество дней отопительного периода | J6: =H6-I6 -> 0
A7: 1 | F7: =C7*30 -> 0 | G7: =(E7+F7)*0.0025*24*D7 -> 0 | H7: =(E7+F7)*1.5+G7 -> 0 | I7: =(E7+F7)*0.0025*24*$I$6 -> 0 | J7: =(E7+F7)*0.0025*24*$J$6+(E7+F7)*1.5 -> 0 | K7: =I7+J7 -> 0
A8: 2 | F8: =C8*30 -> 0 | G8: =(E8+F8)*0.0025*24*D8 -> 0 | H8: =(E8+F8)*1.5+G8 -> 0 | I8: =(E8+F8)*0.0025*24*$I$6 -> 0 | J8: =(E8+F8)*0.0025*24*$J$6+(E8+F8)*1.5 -> 0 | K8: =I8+J8 -> 0
A9: 3 | F9: =C9*30 -> 0 | G9: =(E9+F9)*0.0025*24*D9 -> 0 | H9: =(E9+F9)*1.5+G9 -> 0 | I9: =(E9+F9)*0.0025*24*$I$6 -> 0 | J9: =(E9+F9)*0.0025*24*$J$6+(E9+F9)*1.5 -> 0 | K9: =I9+J9 -> 0
A10: Итого | H10: =SUM(H7:H9) -> 0 | I10: =SUM(I7:I9) -> 0 | J10: 0 | K10: =SUM(K7:K9) -> 0
B12: расчет стоимости (при отсутствии цеха ХВО)
B13: цена | J13: =I13*J1 -> 0 | K13: =K14/H10 -> 
B14: сумма | H14: =I14+J14 -> 0 | I14: =I10*I13 -> 0 | J14: =J10*J13 -> 0 | K14: =I14+J14 -> 0 | M14: =топливо!X3 ->  | N14: =топливо!Y3 -> 
F16: для сметы | H16: =H14 -> 0 | I16: =I13*H10 -> 0 | J16: =J14*H10 -> 0
F17: откл | H17: =I16*M14+J16*N14-H16 -> 

Sheet теплоноситель (на источнике) (hidden)
C2: расчет тарифа на теплоноситель
B7: № пп | C7: Наименование показателя | D7: Ед.изм. м3 (для воды (теплоноситель)), тн.(пар) | E7: 2012 | G7: 2013 | J7: 2015
K8: наименование источника 1 | V8: наименование источника 2
E9: план ДТР ТО | F9: факт по данным организации | G9: по плану ДТР ТО | J9: план организации (ОП) | M9: Департамент тарифного регулирования ТО (КП) | V9: план организации (ОП) | X9: Департамент тарифного регулирования ТО (КП)
M10: в целом по году | P10: в том числе: | X10: в целом по году | AA10: в том числе:
P11: 01.01.2015-30.06.2015 | S11: 01.07.2015-31.12.2015 | AA11: 01.01.2014-30.06.2014 | AD11: 01.07.2014-31.12.2014
G12: всего (год) | H12: в том числе | J12: всего (год) | K12: в том числе по видам деятельности | M12: всего | N12: в том числе по видам деятельности | P12: всего | Q12: в том числе по видам деятельности | S12: всего | T12: в том числе по видам деятельности | V12: в том числе по видам деятельности | X12: всего | Y12: в том числе по видам деятельности | AA12: всего | AB12: в том числе по видам деятельности | AD12: всего
H13: 01.01-30.06 | I13: 01.07-31.12 | K13: производство | L13: передача | N13: производство | O13: передача | Q13: производство | R13: передача | T13: производство | U13: передача | V13: производство | W13: передача | Y13: производство | Z13: передача | AB13: производство | AC13: передача | AE13: производство
B15: Расчет полезного отпуска теплоносителя
C16: Вид теплоносителя | D16: вода/пар | K16: вода | V16: вода
B17: 1 | C17: Производство теплоносителя, всего | D17: м3, тн | K17: =SUM(K19:K22) -> 0 | L17: =SUM(L19:L22) -> 0 | M17: =SUM(M19:M22) -> 0 | N17: 0 | O17: 0 | P17: 0 | Q17: =SUM(Q19:Q22) -> 0 | R17: 0 | S17: 0 | T17: 0 | U17: 0 | V17: =SUM(V19:V22) -> 0 | W17: =SUM(W19:W22) -> 0 | X17: 0 | Y17: 0 | Z17: 0 | AA17: 0 | AB17: 0 | AC17: 0 | AD17: 0 | AE17: 0
C18: в том числе: | D18: м3, тн
B19: 1.1. | C19: - ТЭЦ 25 МВт и более | D19: м3, тн | M19: =N19 -> 0 | N19: =Q19+T19 -> 0 | P19: =Q19 -> 0 | S19: =T19 -> 0
B20: 1.2. | C20: - ТЭЦ менее 25 МВт | D20: м3, тн | M20: =N20 -> 0 | N20: 0 | P20: 0 | S20: 0
B21: 1.3. | C21: - котельные | D21: м3, тн | M21: =N21 -> 0 | N21: =Q21+T21 -> 0 | P21: =Q21 -> 0 | S21: =T21 -> 0
B22: 1.4. | C22: - электробойлерные | D22: м3, тн | M22: =N22 -> 0 | N22: =Q22+T22 -> 0 | P22: =Q22 -> 0 | S22: =T22 -> 0
B23: 2. | C23: Отпуск теплоносителя с коллекторов источника всего, в том числе: | D23: м3, тн | K23: =SUM(K24,K27,K31:K32,K36) -> 0 | L23: 0 | M23: 0 | N23: 0 | O23: 0 | P23: 0 | Q23: =SUM(Q24,Q27,Q31:Q32,Q36) -> 0 | R23: =SUM(R24:R32,R36) -> 0 | S23: =SUM(S24,S27,S31:S32,S36) -> 0 | T23: =SUM(T24,T27,T31:T32,T36) -> 0 | V23: =SUM(V24:V32,V36) -> 0 | W23: 0 | X23: 0 | Y23: 0 | Z23: 0 | AA23: 0 | AB23: 0 | AC23: 0 | AD23: 0 | AE23: 0
B24: 2.1. | C24: Собственное потребление | D24: м3, тн | K24: =SUM(K25:K26) -> 0 | L24: =SUM(L25:L26) -> 0 | M24: 0 | N24: =SUM(N25:N26) -> 0 | O24: 0 | P24: 0 | Q24: =SUM(Q25:Q26) -> 0 | R24: =SUM(R26:R26) -> 0 | S24: =SUM(S25:S26) -> 0 | T24: =SUM(T26:T26) -> 0
B25: 2.1.1. | M25: =N25 -> 0 | N25: =Q25+T25 -> 0 | O25: =SUM(O26:O27) -> 0 | P25: =Q25 -> 0
B26: 2.1.2. | C26: на другие нужды | M26: =N26 -> 0 | N26: =Q26+T26 -> 0 | P26: 0 | Q26: =Q28*0.1 -> 0 | S26: =T26 -> 0 | T26: =T28*0.1 -> 0
B27: 2.2. | C27: Собственное производство | D27: м3, тн | M27: =SUM(M28:M30) -> 0 | N27: =SUM(N28:N30) -> 0 | P27: =SUM(P28:P30) -> 0 | Q27: =SUM(Q28:Q30) -> 0 | S27: =SUM(S28:S30) -> 0 | T27: =SUM(T28:T30) -> 0
B28: 2.2.1. | C28: для нужд отопления и вентиляции (по нормативу) | M28: =N28 -> 0 | N28: =Q28+T28 -> 0 | P28: 0 | S28: =T28 -> 0
B29: 2.2.2. | C29: на компенсацию потерь пара при невозврате конденсата | M29: =N29 -> 0 | N29: =Q29+T29 -> 0 | P29: 0 | S29: =T29 -> 0
B30: 2.2.3. | M30: =N30 -> 0 | N30: =Q30+T30 -> 0 | P30: 0 | S30: =T30 -> 0
B31: 2.3. | C31: Организациям-перепродавцам | D31: м3, тн | M31: 0 | N31: =Q31+T31 -> 0 | P31: 0 | S31: =T31 -> 0
B32: 2.4. | C32: Реализация сторонним потребителям всего, в том числе: | D32: м3, тн | K32: =SUM(K33:K35) -> 0 | L32: =SUM(L33:L35) -> 0 | M32: =SUM(M33:M35) -> 0 | N32: 0 | O32: 0 | P32: 0 | Q32: =SUM(Q33:Q35) -> 0 | R32: 0 | S32: 0 | T32: 0 | U32: 0 | V32: =SUM(V33:V35) -> 0 | W32: =SUM(W33:W35) -> 0 | X32: 0 | Y32: 0 | Z32: 0 | AA32: 0 | AB32: 0 | AC32: 0 | AD32: 0 | AE32: 0
B33: 2.4.1. | C33: Население | D33: м3, тн | M33: 0 | N33: =Q33+T33 -> 0 | P33: =Q33 -> 0 | S33: 0
B34: 2.4.2. | C34: Бюджетные потребители | D34: м3, тн | M34: 0 | N34: 0 | P34: 0 | S34: 0
B35: 2.4.3. | C35: Прочие потребители | D35: м3, тн | M35: =N35 -> 0 | N35: 0 | P35: 0 | S35: 0
B36: 2.5. | C36: Отпуск теплоносителя в собстенную сеть | D36: м3, тн | M36: =N36 -> 0 | N36: =Q36+T36 -> 0 | P36: =Q36 -> 0 | S36: =T36 -> 0
B37: 3 | C37: Покупной теплоноситель, в том числе: | D37: м3, тн | K37: =SUM(K38:K39) -> 0 | L37: =SUM(L38:L39) -> 0 | M37: =SUM(M38:M39) -> 0 | N37: =SUM(N38:N39) -> 0 | O37: 0 | P37: =SUM(P38:P39) -> 0 | Q37: =SUM(Q38:Q39) -> 0 | R37: 0 | S37: 0 | T37: 0 | V37: =SUM(V38:V39) -> 0 | W37: =SUM(W38:W39) -> 0 | X37: 0 | Y37: 0 | Z37: 0 | AA37: 0 | AB37: 0 | AC37: 0 | AD37: 0 | AE37: 0
B38: 3.1. | C38: … | D38: м3, тн | M38: =N38 -> 0 | N38: =Q38+T38 -> 0 | P38: =Q38 -> 0 | S38: =T38 -> 0
B39: 3.2. | D39: м3, тн | M39: 0 | N39: 0 | P39: 0 | S39: =T39 -> 0
B40: 4. | C40: Расход теплоносителя на хозяйственные нужды | D40: м3, тн | M40: 0 | N40: 0 | P40: 0 | S40: 0
B41: 5. | C41: Отпуск теплоносителя в сеть | D41: м3, тн | K41: =K23+K37-K40 -> 0 | L41: =L23+L37-L40 -> 0 | M41: =M17-M23+M37-M40 -> 0 | N41: 0 | O41: 0 | P41: 0 | Q41: =Q17-Q23+Q37-Q40 -> 0 | R41: =R23+R37-R40-R24 -> 0 | S41: =S17-S23+S37-S40 -> 0 | T41: 0 | V41: =V23+V37-V40 -> 0 | W41: 0 | X41: 0 | Y41: 0 | Z41: 0 | AA41: 0 | AB41: 0 | AC41: 0 | AD41: 0 | AE41: 0
B42: 6. | C42: Нормативные потери при передаче теплоносителя (вода, пар) | D42: м3, тн | M42: =N42 -> 0 | N42: =Q42+T42 -> 0 | P42: 0 | S42: 0
B43: 6.1. | C43: Свехнормативные утечки при передаче теплоносителя (вода) (справочно, в расчете не участвуют) | D43: м3, тн | K43: =K41-K42-K45 -> 0 | L43: =L41-L42-L45 -> 0 | M43: =M41-M42-M45 -> 0 | N43: 0 | O43: 0 | P43: 0 | Q43: 0 | R43: 0 | S43: 0 | T43: 0 | U43: =U41-U42-U45 -> 0 | V43: =V41-V42-V45 -> 0 | W43: =W41-W42-W45 -> 0 | X43: 0 | Y43: 0 | Z43: 0 | AA43: 0 | AB43: 0 | AC43: 0 | AD43: 0 | AE43: =AE41-AE42-AE45 -> 0
B44: 7. | C44: Объем возвращенного теплоносителя (пар) | D44: м3, тн
B45: 8. | C45: Полезный отпуск теплоносителя потребителям всего, в том числе | D45: м3, тн | K45: =SUM(K46:K49) -> 0 | L45: =SUM(L46:L49) -> 0 | M45: 0 | N45: 0 | O45: 0 | P45: 0 | Q45: 0 | R45: 0 | S45: =SUM(S46:S49) -> 0 | T45: 0 | V45: =SUM(V46:V49) -> 0 | W45: =SUM(W46:W49) -> 0 | X45: 0 | Y45: 0 | Z45: 0 | AA45: 0 | AB45: 0 | AC45: 0 | AD45: 0 | AE45: 0
B46: 8.1. | C46: Собственное потребление | D46: м3, тн | M46: =N46 -> 0 | N46: =Q46+T46 -> 0 | P46: =Q46 -> 0 | S46: =T46 -> 0
B47: 8.2. | C47: Собственное производство (в том числе на приготовление горячей воды, отпускаемой по открытой системе) | M47: =N47 -> 0 | N47: =Q47+T47 -> 0 | P47: =Q47 -> 0 | S47: 0
B48: 8.3. | C48: Организациям-перепродавцам | M48: =N48 -> 0 | N48: =Q48+T48 -> 0 | P48: =Q48 -> 0 | S48: =T48 -> 0
B49: 8.4. | C49: Реализация сторонним потребителям всего, в том числе: | D49: м3, тн | K49: =SUM(K50:K52) -> 0 | L49: =SUM(L50:L52) -> 0 | M49: 0 | N49: =SUM(N50:N52) -> 0 | O49: 0 | P49: 0 | Q49: 0 | R49: 0 | S49: 0 | T49: 0 | U49: 0 | V49: =SUM(V50:V52) -> 0 | W49: =SUM(W50:W52) -> 0 | X49: 0 | Y49: =SUM(Y50:Y52) -> 0 | Z49: =SUM(Z50:Z52) -> 0 | AA49: 0 | AB49: 0 | AC49: 0 | AD49: 0 | AE49: 0
B50: 8.4.1. | C50: Население | D50: м3, тн | M50: =N50 -> 0 | N50: =Q50+T50 -> 0 | P50: =Q50 -> 0 | S50: =T50 -> 0
B51: 8.4.2. | C51: Бюджетные потребители | D51: м3, тн | M51: 0 | N51: 0 | P51: 0 | S51: 0
B52: 8.4.3. | C52: Прочие потребители | D52: м3, тн | M52: 0 | N52: 0 | P52: 0 | S52: 0 | AG52: для проверки
B53: 9. | C53: Полезный отпуск теплоносителя потребителям всего (с коллектора и из тепловой сети), в том числе | D53: м3, тн | K53: =SUM(K54:K57) -> 0 | L53: =SUM(L54:L57) -> 0 | M53: =SUM(M54:M57) -> 0 | N53: 0 | O53: 0 | P53: 0 | Q53: 0 | R53: 0 | S53: 0 | T53: 0 | V53: =SUM(V54:V57) -> 0 | W53: =SUM(W54:W57) -> 0 | X53: 0 | Y53: 0 | Z53: 0 | AA53: 0 | AB53: 0 | AC53: 0 | AD53: 0 | AE53: 0 | AG53: =M17-M53-M42+M37 -> 0 | AH53: =P17-P53-P42+P37 -> 0 | AI53: =S17-S53-S42+S37 -> 0
B54: 9.1. | C54: Собственное потребление | D54: м3, тн | K54: =K46 -> 0 | L54: =L46+L24 -> 0 | M54: =M46 -> 0 | N54: 0 | O54: 0 | P54: 0 | Q54: 0 | R54: 0 | S54: 0 | T54: 0 | V54: =V46+V24 -> 0 | W54: 0 | X54: 0 | Y54: 0 | Z54: 0 | AA54: 0 | AB54: 0 | AC54: 0 | AD54: 0 | AE54: 0
B55: 9.2. | C55: Собственное производство | D55: м3, тн | K55: =K47+K27 -> 0 | L55: 0 | M55: 0 | N55: 0 | O55: 0 | P55: 0 | Q55: 0 | R55: 0 | S55: 0 | T55: 0 | V55: =V47+V27 -> 0 | W55: 0 | X55: 0 | Y55: 0 | Z55: 0 | AA55: 0 | AB55: 0 | AC55: 0 | AD55: 0 | AE55: 0
B56: 9.3. | C56: Организациям-перепродавцам | D56: м3, тн | K56: =K48+K31 -> 0 | L56: 0 | M56: =M48+M31 -> 0 | N56: 0 | O56: 0 | P56: 0 | Q56: 0 | R56: 0 | S56: 0 | T56: 0 | V56: =V48+V31 -> 0 | W56: 0 | X56: 0 | Y56: 0 | Z56: 0 | AA56: 0 | AB56: 0 | AC56: 0 | AD56: 0 | AE56: 0
B57: 9.4. | C57: Реализация сторонним потребителям всего, в том числе: | D57: м3, тн | K57: =SUM(K58:K60) -> 0 | L57: =SUM(L58:L60) -> 0 | M57: =SUM(M58:M60) -> 0 | N57: 0 | O57: 0 | P57: 0 | Q57: 0 | R57: 0 | S57: 0 | T57: 0 | V57: =SUM(V58:V60) -> 0 | W57: =SUM(W58:W60) -> 0 | X57: =SUM(X58:X60) -> 0 | Y57: =SUM(Y58:Y60) -> 0 | Z57: 0 | AA57: 0 | AB57: 0 | AC57: 0 | AD57: 0 | AE57: 0
B58: 9.4.1. | C58: Население | D58: м3, тн | K58: =K50+K33 -> 0 | L58: =L50+L33 -> 0 | M58: 0 | N58: 0 | O58: 0 | P58: 0 | Q58: 0 | R58: 0 | S58: =S50+S33 -> 0 | T58: 0 | U58: 0 | V58: =V50+V33 -> 0 | W58: =W50+W33 -> 0 | X58: 0 | Y58: 0 | Z58: 0 | AA58: 0 | AB58: 0 | AC58: 0 | AD58: 0 | AE58: 0
B59: 9.4.2. | C59: Бюджетные потребители | D59: м3, тн | K59: =K51+K34 -> 0 | L59: 0 | M59: 0 | N59: 0 | O59: 0 | P59: 0 | Q59: 0 | R59: 0 | S59: 0 | T59: 0 | U59: 0 | V59: 0 | W59: 0 | X59: 0 | Y59: 0 | Z59: 0 | AA59: 0 | AB59: 0 | AC59: 0 | AD59: 0 | AE59: 0
B60: 9.4.3. | C60: Прочие потребители | D60: м3, тн | K60: 0 | L60: 0 | M60: 0 | N60: 0 | O60: 0 | P60: 0 | Q60: 0 | R60: 0 | S60: 0 | T60: 0 | U60: 0 | V60: 0 | W60: 0 | X60: 0 | Y60: 0 | Z60: 0 | AA60: 0 | AB60: 0 | AC60: 0 | AD60: 0 | AE60: 0
B61: Расчет тарифа на теплоноситель, поставляемый теплоснабжающей организацией, владеющей источником (источниками) тепловой энергии, на котором производится теплоноситель
B62: 1 | C62: Расходы на производство воды, вырабатываемой на водоподготовительных установках источника тепловой энергии, в том числе: | D62: руб. | K62: =K63+K67+K79+K80+K110+K111+K114+K115+K116 -> 0 | L62: =L63+L67+L79+L80+L110+L111+L115+L116 -> 0 | M62: =M63+M67+M79+M80+M110+M111+M114+M115+M116 -> 0 | N62: =N63+N67+N79+N80+N110+N111+N114+N115+N116 -> 0 | O62: =O63+O67+O79+O80+O110+O111+O114+O115+O116 -> 0 | P62: =P63+P67+P79+P80+P110+P111+P114+P115+P116 -> 0 | Q62: =Q63+Q67+Q79+Q80+Q110+Q111+Q114+Q115+Q116 -> 0 | R62: 0 | S62: =S63+S67+S79+S80+S110+S111+S114+S115+S116 -> 0 | T62: =T63+T67+T79+T80+T110+T111+T114+T115+T116 -> 0 | U62: 0 | V62: 0 | W62: 0 | X62: 0 | Y62: 0 | Z62: 0 | AA62: 0 | AB62: 0 | AC62: 0 | AD62: 0 | AE62: 0 | AG62: разница объемов приобретенной воды и( произведенного+ приобретенного) теплоносителя
B63: 1.1 | C63: Стоимость исходной воды | D63: руб. | K63: =K64*K65 -> 0 | L63: =L64*L65 -> 0 | M63: 0 | N63: 0 | O63: 0 | P63: 0 | Q63: ='покупка хв и тн'!R13 -> 0 | R63: 0 | S63: =S64*S65 -> 0 | T63: ='покупка хв и тн'!U13 -> 0 | U63: 0 | V63: =V64*V65 -> 0 | W63: =W64*W65 -> 0 | X63: 0 | Y63: 0 | Z63: 0 | AA63: 0 | AB63: 0 | AC63: 0 | AD63: 0 | AE63: 0 | AG63: =M64-M17+M37-M139-M24 -> 0 | AH63: =P64-P17+P37-P139-P24 -> 0 | AI63: =S64-S17+S37-S139-S24 -> 0
B64: 1.1.1. | C64: объем холодной воды на технологические нужды | D64: м3 | K64: ='покупка хв и тн'!D13 -> 0 | M64: =N64 -> 0 | N64: =Q64+T64 -> 0 | P64: =Q64 -> 0 | Q64: ='покупка хв и тн'!P13 -> 0 | S64: =T64 -> 0 | T64: ='покупка хв и тн'!S13 -> 0
B65: 1.1.2. | C65: тариф на холодную воду | D65: руб./м3 | K65: ='покупка хв и тн'!E13 -> 0 | M65: =N65 -> 0 | N65: =IF(N64=0,0,(Q65*Q64+T65*T64)/N64) -> 0 | P65: =Q65 -> 0 | Q65: ='покупка хв и тн'!Q13 -> 0 | S65: =T65 -> 0 | T65: ='покупка хв и тн'!T13 -> 0
B66: 1.1.3. | C66: Поставщик холодной воды**
B67: 1.2 | C67: Стоимость реагентов, а также фильтрующих и ионообменных материалов, используемых при водоподготовке | D67: руб. | K67: =K68+K71+K74+K77 -> 0 | L67: =L68+L71+L74+L77 -> 0 | M67: =M68+M71+M74+M77 -> 0 | N67: =N68+N71+N74+N77 -> 0 | O67: 0 | P67: 0 | Q67: 0 | R67: 0 | S67: 0 | T67: 0 | U67: 0 | V67: =V68+V71+V74+V77 -> 0 | W67: =W68+W71+W74+W77 -> 0 | X67: 0 | Y67: 0 | Z67: 0 | AA67: 0 | AB67: 0 | AC67: 0 | AD67: 0 | AE67: 0
B68: 1.2.1. | C68: Катионит | D68: руб. | K68: =K69*K70 -> 0 | L68: =L69*L70 -> 0 | M68: 0 | N68: 0 | O68: 0 | P68: 0 | Q68: 0 | R68: 0 | S68: 0 | T68: 0 | V68: =V69*V70 -> 0 | W68: =W69*W70 -> 0 | X68: 0 | Y68: 0 | Z68: 0 | AA68: 0 | AB68: 0 | AC68: 0 | AD68: 0 | AE68: 0
B69: 1.2.1.1. | C69: количество | D69: тн | M69: =N69 -> 0 | N69: =Q69+T69 -> 0 | P69: =Q69 -> 0 | S69: =T69 -> 0
B70: 1.2.1.2. | C70: цена | D70: руб./тн | M70: =N70 -> 0 | N70: =IF(N69=0,0,(Q70*Q69+T70*T69)/N69) -> 0 | P70: =Q70 -> 0 | S70: =T70 -> 0
B71: 1.2.2. | C71: Комплексон | D71: руб. | K71: =K72*K73 -> 0 | L71: =L72*L73 -> 0 | M71: 0 | N71: 0 | O71: 0 | P71: 0 | Q71: 0 | R71: 0 | S71: 0 | T71: 0 | V71: =V72*V73 -> 0 | W71: =W72*W73 -> 0 | X71: 0 | Y71: 0 | Z71: 0 | AA71: 0 | AB71: 0 | AC71: 0 | AD71: 0 | AE71: 0
B72: 1.2.2.1. | C72: количество | D72: тн | M72: =N72 -> 0 | N72: =Q72+T72 -> 0 | P72: =Q72 -> 0 | S72: =T72 -> 0
B73: 1.2.2.2. | C73: цена | D73: руб./тн | M73: =N73 -> 0 | N73: =IF(N72=0,0,(Q73*Q72+T73*T72)/N72) -> 0 | P73: =Q73 -> 0 | S73: =T73 -> 0
B74: 1.2.3. | C74: Соль | D74: руб. | K74: =K75*K76 -> 0 | L74: =L75*L76 -> 0 | M74: 0 | N74: 0 | O74: 0 | P74: 0 | Q74: 0 | R74: 0 | S74: 0 | T74: 0 | V74: =V75*V76 -> 0 | W74: =W75*W76 -> 0 | X74: 0 | Y74: 0 | Z74: 0 | AA74: 0 | AB74: 0 | AC74: 0 | AD74: 0 | AE74: 0
B75: 1.2.3.1. | C75: количество | D75: тн | M75: =N75 -> 0 | N75: =Q75+T75 -> 0 | P75: =Q75 -> 0 | S75: =T75 -> 0
B76: 1.2.3.2. | C76: цена | D76: руб./тн | M76: =N76 -> 0 | N76: =IF(N75=0,0,(Q76*Q75+T76*T75)/N75) -> 0 | P76: =Q76 -> 0 | S76: =T76 -> 0
B77: 1.2.4. | C77: Прочие всего, в том числе | D77: руб. | M77: =N77 -> 0 | N77: =Q77+T77 -> 0 | P77: =Q77 -> 0 | S77: =T77 -> 0
B78: 1.2.4.1. | C78: реагенты, используемые для лабораторных исследований | D78: руб. | M78: =N78 -> 0 | N78: =Q78+T78 -> 0 | P78: =Q78 -> 0 | S78: =T78 -> 0
B79: 1.3 | C79: Стоимость инструментов, приспособлений, инвентаря, приборов, лабораторного оборудования и другого имущества, не являющихся амортизируемым имуществом, используемых при водоподготовке | D79: руб. | M79: =N79 -> 0 | N79: =Q79+T79 -> 0 | P79: =Q79 -> 0 | S79: =T79 -> 0
B80: 1.4 | C80: Расходы энергию (мощность), используемую при водоподготовке | D80: руб. | K80: =K81+K106 -> 0 | L80: =L81+L106 -> 0 | M80: =M81+M106 -> 0 | N80: 0 | O80: 0 | P80: 0 | Q80: 0 | R80: 0 | S80: =S81+S106 -> 0 | T80: 0 | V80: =V81+V106 -> 0 | W80: =W81+W106 -> 0 | X80: 0 | Y80: 0 | Z80: 0 | AA80: 0 | AB80: 0 | AC80: 0 | AD80: 0 | AE80: 0
B81: 1.4.1. | C81: Расходы на электрическую энергию (мощность) | D81: руб. | K81: =K82+K85+K88+K91+K94+K97+K100+K103 -> 0 | L81: =L82+L85+L88+L91+L94+L97+L100+L103 -> 0 | M81: =M82+M85+M88+M91+M94+M97+M100+M103 -> 0 | N81: 0 | O81: 0 | P81: 0 | Q81: 0 | R81: 0 | S81: =S82+S85+S88+S91+S94+S97+S100+S103 -> 0 | T81: 0 | V81: =V82+V85+V88+V91+V94+V97+V100+V103 -> 0 | W81: =W82+W85+W88+W91+W94+W97+W100+W103 -> 0 | X81: 0 | Y81: 0 | Z81: 0 | AA81: 0 | AB81: 0 | AC81: 0 | AD81: 0 | AE81: 0
B82: 1.4.1.1. | C82: Энергия НН (0,4 кВ и ниже) | D82: руб | K82: =K83*K84 -> 0 | L82: =L83*L84 -> 0 | M82: 0 | N82: =N83*N84 -> 0 | O82: 0 | P82: 0 | Q82: 0 | R82: 0 | S82: =S83*S84 -> 0 | T82: 0 | V82: =V83*V84 -> 0 | W82: =W83*W84 -> 0 | X82: 0 | Y82: 0 | Z82: 0 | AA82: 0 | AB82: 0 | AC82: 0 | AD82: 0 | AE82: 0
B83: 1.4.1.1.1 | C83: тариф на энергию | D83: руб/кВтч | M83: =N83 -> 0 | N83: =IF((Q84+T84)=0,0,(Q83*Q84+T83*T84)/N84) -> 0 | P83: =Q83 -> 0 | S83: =T83 -> 0
B84: 1.4.1.1.2 | C84: объём энергии | D84: кВтч | M84: =N84 -> 0 | N84: =Q84+T84 -> 0 | P84: =Q84 -> 0 | S84: =T84 -> 0
B85: 1.4.1.2. | C85: Заявленная мощность по НН (0,4 кВ и ниже) | D85: руб | K85: =K86*K87*1000 -> 0 | L85: 0 | M85: =M86*M87*1000 -> 0 | N85: =N86*N87*1000 -> 0 | O85: 0 | P85: 0 | Q85: 0 | R85: 0 | S85: 0 | T85: 0 | V85: =V86*V87*1000 -> 0 | W85: 0 | X85: =X86*X87*1000 -> 0 | Y85: =Y86*Y87*1000 -> 0 | Z85: 0 | AA85: 0 | AB85: 0 | AC85: 0 | AD85: 0 | AE85: 0
B86: 1.4.1.2.1. | C86: тариф на заявленную мощность | D86: руб.кВт мес | M86: =N86 -> 0 | N86: =IF((Q87+T87)=0,0,(Q86*Q87+T86*T87)/N87) -> 0 | P86: =Q86 -> 0 | S86: 0
B87: 1.4.1.2.2. | C87: годовой объём мощности | D87: МВт | M87: =N87 -> 0 | N87: =Q87+T87 -> 0 | P87: =Q87 -> 0 | S87: =T87 -> 0
B88: 1.4.1.3. | C88: Энергия СН 2 (1-20 кВ) | D88: руб | K88: =K89*K90 -> 0 | L88: =L89*L90 -> 0 | M88: 0 | N88: 0 | O88: 0 | P88: 0 | Q88: 0 | R88: 0 | S88: 0 | T88: 0 | V88: =V89*V90 -> 0 | W88: =W89*W90 -> 0 | X88: 0 | Y88: 0 | Z88: 0 | AA88: 0 | AB88: 0 | AC88: 0 | AD88: 0 | AE88: 0
B89: 1.4.1.3.1. | C89: тариф на энергию | D89: руб/кВтч | M89: =N89 -> 0 | N89: =IF((Q90+T90)=0,0,(Q89*Q90+T89*T90)/N90) -> 0 | P89: =Q89 -> 0 | S89: =T89 -> 0
B90: 1.4.1.3.2. | C90: объём энергии | D90: кВтч | M90: =N90 -> 0 | N90: =Q90+T90 -> 0 | P90: =Q90 -> 0 | S90: =T90 -> 0
B91: 1.4.1.4. | C91: Заявленная мощность по СН 2 (1-20 кВ) | D91: руб | K91: =K92*K93*1000 -> 0 | L91: 0 | M91: =M92*M93*1000 -> 0 | N91: =N92*N93*1000 -> 0 | O91: 0 | P91: 0 | Q91: 0 | R91: 0 | S91: 0 | T91: 0 | V91: =V92*V93*1000 -> 0 | W91: 0 | X91: =X92*X93*1000 -> 0 | Y91: =Y92*Y93*1000 -> 0 | Z91: 0 | AA91: 0 | AB91: 0 | AC91: 0 | AD91: 0 | AE91: 0
B92: 1.4.1.4.1. | C92: тариф на заявленную мощность | D92: руб.кВт мес | M92: =N92 -> 0 | N92: =IF((Q93+T93)=0,0,(Q92*Q93+T92*T93)/N93) -> 0 | P92: =Q92 -> 0 | S92: =T92 -> 0
B93: 1.4.1.4.2. | C93: годовой объём мощности | D93: МВт | M93: =N93 -> 0 | N93: =Q93+T93 -> 0 | P93: =Q93 -> 0 | S93: =T93 -> 0
B94: 1.4.1.5. | C94: Энергия СН 1 (35 кВ) | D94: руб | K94: =K95*K96 -> 0 | L94: =L95*L96 -> 0 | M94: 0 | N94: 0 | O94: 0 | P94: 0 | Q94: 0 | R94: 0 | S94: 0 | T94: 0 | V94: =V95*V96 -> 0 | W94: =W95*W96 -> 0 | X94: 0 | Y94: 0 | Z94: 0 | AA94: 0 | AB94: 0 | AC94: 0 | AD94: 0 | AE94: 0
B95: 1.4.1.5.1. | C95: тариф на энергию | D95: руб/кВтч | M95: =N95 -> 0 | N95: =IF((Q96+T96)=0,0,(Q95*Q96+T95*T96)/N96) -> 0 | P95: =Q95 -> 0 | S95: =T95 -> 0
B96: 1.4.1.5.2. | C96: объём энергии | D96: кВтч | M96: =N96 -> 0 | N96: =Q96+T96 -> 0 | P96: =Q96 -> 0 | S96: =T96 -> 0
B97: 1.4.1.6. | C97: Заявленная мощность по СН 1 (35 кВ) | D97: руб | K97: =K98*K99*1000 -> 0 | L97: 0 | M97: =M98*M99*1000 -> 0 | N97: =N98*N99*1000 -> 0 | O97: 0 | P97: 0 | Q97: =Q98*Q99*1000 -> 0 | R97: 0 | S97: 0 | T97: 0 | V97: =V98*V99*1000 -> 0 | W97: 0 | X97: =X98*X99*1000 -> 0 | Y97: =Y98*Y99*1000 -> 0 | Z97: 0 | AA97: 0 | AB97: 0 | AC97: 0 | AD97: 0 | AE97: 0
B98: 1.4.1.6.1. | C98: тариф на заявленную мощность | D98: руб.кВт мес | M98: =N98 -> 0 | N98: =IF((Q99+T99)=0,0,(Q98*Q99+T98*T99)/N99) -> 0 | P98: =Q98 -> 0 | S98: =T98 -> 0
B99: 1.4.1.6.2. | C99: годовой объём мощности | D99: МВт | M99: =N99 -> 0 | N99: =Q99+T99 -> 0 | P99: =Q99 -> 0 | S99: =T99 -> 0
B100: 1.4.1.7. | C100: Энергия ВН (110 кВ и выше) | D100: руб | K100: =K101*K102 -> 0 | L100: =L101*L102 -> 0 | M100: =M101*M102 -> 0 | N100: 0 | O100: 0 | P100: =P101*P102 -> 0 | Q100: 0 | R100: 0 | S100: 0 | T100: 0 | V100: =V101*V102 -> 0 | W100: =W101*W102 -> 0 | X100: 0 | Y100: 0 | Z100: 0 | AA100: 0 | AB100: 0 | AC100: 0 | AD100: 0 | AE100: 0
B101: 1.4.1.7.1. | C101: тариф на энергию | D101: руб/кВтч | M101: =N101 -> 0 | N101: =IF((Q102+T102)=0,0,(Q101*Q102+T101*T102)/N102) -> 0 | P101: =Q101 -> 0 | S101: =T101 -> 0
B102: 1.4.1.7.2. | C102: объём энергии | D102: кВтч | M102: =N102 -> 0 | N102: =Q102+T102 -> 0 | P102: =Q102 -> 0 | S102: =T102 -> 0
B103: 1.4.1.8. | C103: Заявленная мощность по ВН (110 кВ и выше) | D103: руб | K103: =K104*K105*1000 -> 0 | L103: 0 | M103: =M104*M105*1000 -> 0 | N103: =N104*N105*1000 -> 0 | O103: 0 | P103: =P104*P105*1000 -> 0 | Q103: 0 | R103: 0 | S103: 0 | T103: 0 | V103: =V104*V105*1000 -> 0 | W103: 0 | X103: =X104*X105*1000 -> 0 | Y103: =Y104*Y105*1000 -> 0 | Z103: 0 | AA103: 0 | AB103: 0 | AC103: 0 | AD103: 0 | AE103: 0
B104: 1.4.1.8.1. | C104: тариф на заявленную мощность | D104: руб.кВт мес | M104: =N104 -> 0 | N104: =IF((Q105+T105)=0,0,(Q104*Q105+T104*T105)/N105) -> 0 | P104: =Q104 -> 0 | S104: =T104 -> 0
B105: 1.4.1.8.2 | C105: годовой объём мощности | D105: МВт | M105: =N105 -> 0 | N105: =Q105+T105 -> 0 | P105: 0 | S105: =T105 -> 0
B106: 1.4.2. | C106: Расходы на тепловую энергию (мощность) | D106: руб. | K106: =K108*K109 -> 0 | L106: =L108*L109 -> 0 | M106: =M108*M109 -> 0 | N106: =N108*N109 -> 0 | O106: 0 | P106: 0 | Q106: 0 | R106: 0 | S106: 0 | T106: 0 | U106: 0 | V106: =V108*V109 -> 0 | W106: =W108*W109 -> 0 | X106: 0 | Y106: 0 | Z106: 0 | AA106: 0 | AB106: 0 | AC106: 0 | AD106: 0 | AE106: 0
B107: 1.4.2.1. | C107: Поставщик тепловой эенргии
B108: 1.4.2.2. | C108: цена | D108: руб./Гкал | M108: =N108 -> 0 | N108: =IF((Q109+T109)=0,0,(Q108*Q109+T108*T109)/N109) -> 0 | P108: =Q108 -> 0 | S108: =T108 -> 0
B109: 1.4.2.3. | C109: объем | D109: Гкал | M109: =N109 -> 0 | N109: =Q109+T109 -> 0 | P109: =Q109 -> 0 | S109: =T109 -> 0
B110: 1.5. | C110: Стоимость транспортировки и очистки сточных вод, возникающих в процессе водоподготовки | D110: руб. | M110: =N110 -> 0 | N110: =Q110+T110 -> 0 | P110: 0 | S110: =T110 -> 0
B111: 1.6. | C111: Расходы на оплату труда персонала, участвующего в процессе водоподготовки | D111: руб. | M111: =N111 -> 0 | N111: =IF((Q112+T112)=0,0,(Q111*Q112+T111*T112)/N112) -> 0 | P111: =Q111 -> 0 | Q111: =IF(Q112=0,0,'ФОТ ПП'!M83) -> 0 | S111: =T111 -> 0 | T111: =IF(T112=0,0,'ФОТ ПП'!N83) -> 0
B112: 1.6.1. | C112: численность персонала цеха ХВП | D112: чел. | M112: =N112 -> 0 | N112: ='ФОТ ПП'!P56 -> 0 | P112: =Q112 -> 0 | Q112: =N112 -> 0 | S112: =T112 -> 0 | T112: =N112 -> 0
B113: 1.6.2. | C113: средняя заработная плата персонала цеха ХВП | D113: руб./чел.мес | K113: =IF(K112=0,0,K111/K112/12) -> 0 | L113: =IF(L112=0,0,L111/L112/12) -> 0 | M113: =IF(M112=0,0,M111/M112/12) -> 0 | N113: 0 | O113: 0 | P113: 0 | Q113: 0 | R113: 0 | S113: 0 | T113: 0 | V113: =IF(V112=0,0,V111/V112/12) -> 0 | W113: =IF(W112=0,0,W111/W112/12) -> 0 | X113: 0 | Y113: 0 | Z113: 0 | AA113: 0 | AB113: 0 | AC113: 0 | AD113: 0 | AE113: 0
B114: 1.7. | C114: Отчисления на социальные нужды всего | K114: =K111*ставки!D13/100 -> 0 | M114: =N114 -> 0 | N114: =Q114+T114 -> 0 | P114: =Q114 -> 0 | Q114: =Q111*ставки!D13/100 -> 0 | S114: =T114 -> 0 | T114: =T111*ставки!D13/100 -> 0 | V114: 0 | X114: 0 | Y114: 0 | AA114: 0 | AB114: 0 | AD114: 0 | AE114: 0
B115: 1.8. | C115: Амортизация основных фондов, участвующих в процессе водоподготовки | D115: руб. | M115: =N115 -> 0 | N115: =Q115+T115 -> 0 | P115: =Q115 -> 0 | S115: =T115 -> 0
B116: 1.9. | C116: Прочие расходы, относимые на процесс водоподготовки, в том числе: | D116: руб. | K116: =K117+K126+K127+K128 -> 0 | L116: =L117+L126+L128+L133 -> 0 | M116: =M117+M126+M127+M128 -> 0 | N116: 0 | O116: 0 | P116: 0 | Q116: 0 | R116: 0 | S116: 0 | T116: 0 | U116: 0 | V116: 0 | W116: 0 | X116: 0 | Y116: 0 | Z116: 0 | AA116: 0 | AB116: 0 | AC116: 0 | AD116: 0 | AE116: 0
B117: 1.9.1. | C117: Расходы на ремонт основных фондов | D117: руб. | K117: =K118+K122 -> 0 | L117: =L118+L122 -> 0 | M117: =M118+M122 -> 0 | N117: 0 | O117: 0 | P117: 0 | Q117: 0 | R117: 0 | S117: 0 | T117: 0 | V117: =V118+V122 -> 0 | W117: =W118+W122 -> 0 | X117: 0 | Y117: 0 | Z117: 0 | AA117: 0 | AB117: 0 | AC117: 0 | AD117: 0 | AE117: 0
C118: Текущий ремонт | D118: руб. | K118: =K119+K121 -> 0 | L118: =L119+L121 -> 0 | M118: 0 | N118: 0 | O118: 0 | P118: 0 | Q118: 0 | R118: 0 | S118: 0 | T118: 0 | V118: =V119+V121 -> 0 | W118: =W119+W121 -> 0 | X118: 0 | Y118: 0 | Z118: 0 | AA118: 0 | AB118: 0 | AC118: 0 | AD118: 0 | AE118: 0
C119: Хозспособ, в том числе: | D119: руб. | M119: =N119 -> 0 | N119: =Q119+T119 -> 0 | P119: =Q119 -> 0 | S119: =T119 -> 0
C120: Материалы | D120: руб. | M120: 0 | N120: =Q120+T120 -> 0 | P120: 0 | S120: 0
C121: Подряд | D121: руб. | M121: 0 | N121: 0 | P121: 0 | S121: 0
C122: Капитальный ремонт | D122: руб. | K122: =K123+K125 -> 0 | L122: =L123+L125 -> 0 | M122: 0 | N122: 0 | O122: 0 | P122: 0 | Q122: 0 | R122: 0 | S122: 0 | T122: 0 | V122: =V123+V125 -> 0 | W122: =W123+W125 -> 0 | X122: 0 | Y122: 0 | Z122: 0 | AA122: 0 | AB122: 0 | AC122: 0 | AD122: 0 | AE122: 0
C123: Хозспособ, в том числе: | D123: руб. | M123: =N123 -> 0 | N123: =Q123+T123 -> 0 | P123: =Q123 -> 0 | S123: =T123 -> 0
C124: Материалы | D124: руб. | M124: 0 | N124: 0 | P124: 0 | S124: 0
C125: Подряд | D125: руб. | M125: 0 | N125: 0 | P125: 0 | S125: 0
B126: 1.9.2. | C126: Водный налог (плата за пользование водными объектами) | D126: руб. | M126: =N126 -> 0 | N126: =Q126+T126 -> 0 | P126: =Q126 -> 0 | S126: 0
B127: 19.9.3. | C127: Анализ (пробы) горячей воды на соответсвие требованиям качества | D127: руб. | M127: =N127 -> 0 | N127: =Q127+T127 -> 0 | P127: =Q127 -> 0 | S127: 0
B128: 1.9.4. | C128: Общехозяйственные расходы | D128: руб. | K128: =K129+K132+K133 -> 0 | L128: =L129+L132+L133 -> 0 | M128: 0 | N128: 0 | O128: 0 | P128: 0 | Q128: 0 | R128: 0 | S128: 0 | T128: 0 | V128: =V129+V132+V133 -> 0 | W128: =W129+W132+W133 -> 0 | X128: 0 | Y128: 0 | Z128: 0 | AA128: 0 | AB128: 0 | AC128: 0 | AD128: 0 | AE128: 0
B129: 1.9.4.1. | C129: оплата труда административно-управленческого персонала | D129: руб. | M129: =N129 -> 0 | N129: =Q129+T129 -> 0 | P129: =Q129 -> 0 | S129: =T129 -> 0
B130: 1.9.3.1.1. | C130: численность административно-управленческого персонала (АУП) | D130: чел. | M130: =$Q$130 -> 0 | N130: =$Q$130 -> 0 | P130: =Q130 -> 0 | S130: 0 | T130: =$Q$130 -> 0
B131: 1.9.4.1.2. | C131: средняя заработная плата АУП | D131: руб./чел.мес | K131: =IF(K130=0,0,K129/K130/12) -> 0 | L131: =IF(L130=0,0,L129/L130/12) -> 0 | M131: 0 | N131: 0 | O131: 0 | P131: 0 | Q131: 0 | R131: 0 | S131: 0 | T131: 0 | V131: =IF(V130=0,0,V129/V130/12) -> 0 | W131: =IF(W130=0,0,W129/W130/12) -> 0 | X131: 0 | Y131: 0 | Z131: 0 | AA131: 0 | AB131: 0 | AC131: 0 | AD131: 0 | AE131: 0
B132: 1.9.4.2. | C132: отчисления на социальные нужды от фонда оплаты административно-управленческого персонала | D132: руб. | M132: =N132 -> 0 | N132: =Q132+T132 -> 0 | P132: =Q132 -> 0 | Q132: =Q129*ставки!D13/100 -> 0 | S132: =T132 -> 0 | T132: =T129*ставки!D13/100 -> 0
B133: 1.9.4.3. | C133: прочие общехозяственные расходы | D133: руб. | M133: =N133 -> 0 | N133: =Q133+T133 -> 0 | P133: =Q133 -> 0 | S133: =T133 -> 0
B134: 2 | C134: Объем воды, вырабатываемой на водоподготовительных установках источника тепловой энергии | D134: куб. м | K134: =K53 -> 0 | L134: =L53 -> 0 | M134: =M53 -> 0 | N134: 0 | O134: 0 | P134: 0 | Q134: 0 | R134: 0 | S134: 0 | T134: 0 | V134: =V53 -> 0 | W134: =W53 -> 0 | X134: 0 | Y134: 0 | Z134: 0 | AA134: 0 | AB134: 0 | AC134: 0 | AD134: 0 | AE134: 0
C135: Стороннее производство
B136: 3 | C136: Расходы на приобретение химически очищенной воды у других организаций | D136: руб. | K136: =K138*K139 -> 0 | L136: =L138*L139 -> 0 | M136: 0 | N136: 0 | O136: 0 | P136: 0 | Q136: 0 | R136: 0 | S136: 0 | T136: 0 | V136: =V138*V139 -> 0 | W136: =W138*W139 -> 0 | X136: 0 | Y136: 0 | Z136: 0 | AA136: 0 | AB136: 0 | AC136: 0 | AD136: 0 | AE136: 0
B137: 3.1. | C137: Поставщик химически очищенной воды
B138: 3.1.1. | C138: тариф | D138: руб./м3 | M138: =N138 -> 0 | N138: =IF((Q139+T139)=0,0,(Q138*Q139+T138*T139)/N139) -> 0 | P138: =Q138 -> 0 | Q138: ='покупка хв и тн'!Q17 -> 0 | S138: =T138 -> 0 | T138: ='покупка хв и тн'!T17 -> 0
B139: 3.1.2. | C139: объем | D139: куб. м | M139: =N139 -> 0 | N139: =Q139+T139 -> 0 | P139: =Q139 -> 0 | Q139: ='покупка хв и тн'!P17 -> 0 | S139: =T139 -> 0 | T139: ='покупка хв и тн'!S17 -> 0
B140: 4 | C140: Объем приобретения химически очищенной воды у других организаций | D140: куб. м | K140: =K139 -> 0 | L140: =L139 -> 0 | M140: =M139 -> 0 | N140: =N139 -> 0 | O140: 0 | P140: 0 | Q140: 0 | R140: 0 | S140: 0 | T140: 0 | V140: =V139 -> 0 | W140: =W139 -> 0 | X140: 0 | Y140: 0 | Z140: 0 | AA140: 0 | AB140: 0 | AC140: 0 | AD140: 0 | AE140: 0
B141: 5 | C141: Расходы на мероприятия, необходимые для доведения воды до установленных законодательством Российской Федерации параметров качества теплоносителя | D141: руб. | K141: =K142+K143 -> 0 | L141: =L142+L143 -> 0 | M141: 0 | N141: 0 | O141: 0 | P141: 0 | Q141: 0 | R141: 0 | S141: 0 | T141: 0 | U141: 0 | V141: =V142+V143 -> 0 | W141: =W142+W143 -> 0 | X141: 0 | Y141: 0 | Z141: 0 | AA141: 0 | AB141: 0 | AC141: 0 | AD141: 0 | AE141: 0
B142: 5.1. | M142: =N142 -> 0 | N142: =Q142+T142 -> 0 | P142: =Q142 -> 0 | S142: =T142 -> 0
B143: 5.2. | M143: 0 | N143: 0 | P143: 0 | S143: 0
B144: 6 | C144: Необходимая валовая выручка, относимая на производство теплоносителя | D144: руб. | K144: =K141+K136+K62 -> 0 | L144: =L141+L136+L62 -> 0 | M144: =M141+M136+M62 -> 0 | N144: =N141+N136+N62 -> 0 | O144: 0 | P144: =P141+P136+P62 -> 0 | Q144: 0 | R144: 0 | S144: 0 | T144: 0 | U144: 0 | V144: =V141+V136+V62 -> 0 | W144: =W141+W136+W62 -> 0 | X144: 0 | Y144: 0 | Z144: 0 | AA144: 0 | AB144: 0 | AC144: 0 | AD144: 0 | AE144: 0
B145: 7 | C145: Стоимость 1 куб. м воды, вырабатываемой на водоподготовительных установках источника тепловой энергии и (или) приобретаемой у других организаций | D145: руб./ куб. м | K145: =IF((K140+K134)=0,0,K144/(K140+K134)) -> 0 | L145: =IF((L140+L134)=0,0,L144/(L140+L134)) -> 0 | M145: =IF((M140+M134)=0,0,M144/(M140+M134)) -> 0 | N145: 0 | O145: 0 | P145: 0 | Q145: 0 | R145: 0 | S145: 0 | T145: 0 | V145: =IF((V140+V134)=0,0,V144/(V140+V134)) -> 0 | W145: =IF((W140+W134)=0,0,W144/(W140+W134)) -> 0 | X145: 0 | Y145: 0 | Z145: 0 | AA145: 0 | AB145: 0 | AC145: 0 | AD145: 0 | AE145: 0
B146: 8 | C146: Тариф на теплоноситель, поставляемый теплоснабжающей организацией, владеющей источником (источниками) тепловой энергии, на котором производится теплоноситель | D146: руб./ куб. м | K146: =K145 -> 0 | L146: =L145 -> 0 | M146: =M145 -> 0 | N146: 0 | O146: 0 | P146: 0 | Q146: 0 | R146: 0 | S146: 0 | T146: 0 | U146: 0 | V146: =V145 -> 0 | W146: =W145 -> 0 | X146: 0 | Y146: 0 | Z146: 0 | AA146: 0 | AB146: 0 | AC146: 0 | AD146: 0 | AE146: 0

Sheet Смета ХОВ
A2: Расчет цеховой себестоимости химически очищенной воды (ХОВ) котельной
I3: рублей
A4: № п./п. | B4: Наименование статьи | C4: Ед.изм. | D4: Факт по даннм организации за 2013 г. | G4: План на период регулирования (2015 г.)
D5: Объем | E5: Цена (тариф) | F5: Затраты | G5: Объем | H5: Цена (тариф) | I5: Затраты
D6: (кол-во) | E6: руб.коп. | F6: Сумма | G6: (кол-во) | H6: руб.коп. | I6: Сумма
E7: за ед.изм. | H7: за ед.изм.
A8: 1 | B8: 2 | C8: 3 | D8: 4 | E8: 5 | F8: 6 | G8: 7 | H8: 8 | I8: 9
A9: 1. | B9: Расходы на исходную воду для приготовления ХОВ, всего | C9: м3 | D9: =SUM(D10:D13) -> 0 | E9: =F9/D9 ->  | F9: =SUM(F10:F13) -> 0 | G9: =SUM(G10:G13) -> 0 | H9: =I9/G9 ->  | I9: =SUM(I10:I13) -> 0
A10: 1.1. | B10: для нужд отопления и вентиляции (по нормативу) | C10: м3 | F10: =D10*E10 -> 0 | I10: =G10*H10 -> 0
A11: 1.2. | B11: на ГВС (при открытой схеме тепловых сетей) | C11: м3 | F11: =D11*E11 -> 0 | I11: =G11*H11 -> 0
A12: 1.3. | B12: на компенсацию потерь пара | C12: м3 | F12: 0 | I12: 0
A13: 1.4. | B13: на другие нужды (кроме п.1.1 - 1.3) | C13: м3 | F13: =D13*E13 -> 0 | I13: 0
A14: 2. | B14: Расходы электроэнергии оборудования цеха ХВО | C14: кВт.ч. | F14: =D14*E14 -> 0 | I14: =G14*H14 -> 0
A15: 3. | B15: Вспомогательные материалы всего, в том числе: | C15: * | D15: * | E15: * | F15: =SUM(F16:F19) -> 0 | G15: * | H15: * | I15: =SUM(I16:I19) -> 0
A16: 3.1. | B16: Сульфоуголь (катионит) | C16: тн | F16: =D16*E16 -> 0 | I16: =G16*H16 -> 0
A17: 3.2. | B17: Комплексон | C17: тн | F17: =D17*E17 -> 0 | I17: =G17*H17 -> 0
A18: 3.3. | B18: Соль | C18: тн | F18: 0 | I18: 0
A19: 3.4 | B19: Прочие (химреагенты, химпосуда и инвентарь) | C19: * | D19: * | E19: * | G19: * | H19: *
A20: 4. | B20: Расходы на ремонт, всего | C20: * | D20: * | E20: * | F20: =F21+F22 -> 0 | G20: * | H20: * | I20: =I21+I22 -> 0
A21: 4.1 | B21: в т.ч. подрядным способом | C21: * | D21: * | E21: * | G21: * | H21: *
A22: 4.2 | B22: в т. ч.хозспособом (стоимость материалов) | C22: * | D22: * | E22: * | F22: =F23+F24 -> 0 | G22: * | H22: * | I22: =I23+I24 -> 0
A23: 4.2.1 | B23: материалы на текущий ремонт | C23: * | D23: * | E23: * | G23: * | H23: *
A24: 4.2.2 | B24: материалы на капитальный ремонт | C24: * | D24: * | E24: * | G24: * | H24: *
A25: 5. | B25: Численность персонала цеха ХВО | C25: чел. | D25: ='числ-сть ПП'!F67 -> 0 | E25: * | F25: * | G25: ='числ-сть ПП'!I67 -> 0 | H25: * | I25: *
A26: 6. | B26: Фонд оплаты труда персонала цеха ХВО | C26: * | D26: =F26/D25/12 ->  | E26: * | F26: ='ФОТ ПП'!G83 -> 0 | G26: =I26/G25/12 ->  | H26: * | I26: ='ФОТ ПП'!K83 -> 0
A27: 7. | B27: Единый социальный налог | C27: * | D27: * | E27: * | G27: * | H27: * | I27: =ставки!E13/100*I26 -> 0
A28: 8. | B28: Платежи в фонд социального страхования | C28: * | D28: * | E28: * | G28: * | H28: * | I28: =ставки!F13/100*I26 -> 0
A29: 9. | B29: Ставка платежей в фонд социального страхования | D29: * | E29: * | F29: =F28/F26*100 ->  | G29: * | H29: * | I29: =I28/I26*100 -> 
A30: 10. | B30: Амортизация оборудования цеха ХВО | C30: * | D30: * | E30: * | G30: * | H30: *
A31: 11. | B31: Прочие цеховые расходы всего, в том числе: | C31: * | D31: * | E31: * | F31: =SUM(F32:F34) -> 0 | G31: * | H31: * | I31: =SUM(I32:I34) -> 0
A32: 11.1. | B32: регламентные работы | C32: * | D32: * | G32: *
A33: 11.2. | B33: услуги вспомогательных производств | C33: * | D33: * | G33: *
A34: 11.3. | B34: иные расходы | C34: * | D34: * | G34: *
A35: 12. | B35: Цеховая себестоимость ХОВ | C35: * | D35: * | E35: * | F35: =SUM(F9,F14:F15,F20,F26:F28,F30:F31) -> 0 | G35: * | H35: * | I35: =SUM(I9,I14:I15,I20,I26:I28,I30:I31) -> 0
A36: 13. | B36: Себестоимость 1 куб.м ХОВ | C36: руб./м3 | D36: * | F36: =F35/SUM(D10:D12) ->  | G36: * | I36: =I35/SUM(G10:G12) -> 
A37: 14. | B37: Себестоимость ХОВ для нужд отопления и вентиляции | C37: * | D37: * | E37: * | F37: =F36*D10 ->  | G37: * | H37: * | I37: =I36*G10 -> 
A38: 15. | B38: Себестоимость ХОВ для производства пара всего | C38: * | D38: * | E38: * | F38: =F36*D12 ->  | G38: * | H38: * | I38: =I36*G12 -> 
A39: 16. | B39: Себестоимость ХОВ для пара в доле сторонних потребителелей | C39: * | D39: * | E39: * | G39: * | H39: *
A41: * | B41: Заполнению не подлежит
A42: ** | B42: Стр. 15 и 16 заполняют ОКК, отпускающие пар сторонним потребителям

Sheet покупка ТЭ
B1: Расчет стоимости покупной тепловой энергии
B2: =анкета!C11 -> 0
B3: =анкета!C12 -> 0
B5: № п/п | C5: Наименование поставщика | D5: Итого за период (по данным организации) | G5: Итого за период (по данным ДТР ТО) | J5: 01.01.-30.06. | M5: 01.07.-31.13
D6: Объем покупной тепловой энергии (Гкал) | E6: Тариф (руб/Гкал) | F6: Стоимость ( руб.) | G6: Объем покупной тепловой энергии (Гкал) | H6: Тариф (руб/Гкал) | I6: Стоимость ( руб.) | J6: Кол-во, объем Гкал. | K6: Тариф, руб./Гкал | L6: Сумма, руб. | M6: Кол-во, объем Гкал. | N6: Тариф, руб./Гкал | O6: Сумма, тыс. руб.
B7: 1 | C7: 2 | G7: 3 | H7: 4 | I7: 5 | J7: 6 | K7: 7 | L7: 8 | M7: 9 | N7: 10 | O7: 11
B8: Предбазовый период (2013 факт)
B9: 1 | C9: Всего, от котельных других организаций (некомб. выработка) - всего, из них: | D9: =SUM(D10:D11) -> 0 | E9: х | F9: =SUM(F10:F11) -> 0 | G9: х | H9: х | I9: х | J9: х | K9: х | L9: х | M9: х | N9: х | O9: х
B10: 1.1. | F10: =D10*E10 -> 0 | G10: х | H10: х | I10: х | J10: х | K10: х | L10: х | M10: х | N10: х | O10: х
B11: 1.2. | F11: =D11*E11 -> 0 | G11: х | H11: х | I11: х | J11: х | K11: х | L11: х | M11: х | N11: х | O11: х
B12: 2 | C12: В том числе: | D12: х | E12: х | F12: х | G12: х | H12: х | I12: х | J12: х | K12: х | L12: х | M12: х | N12: х | O12: х
B13: 2.1. | C13: расходы на компенсацию затрат (потерь) ресурсов на технологические цели | F13: =D13*E13 -> 0 | G13: х | H13: х | I13: х | J13: х | K13: х | L13: х | M13: х | N13: х | O13: х
B14: Базовый период
B15: 1 | C15: Всего, от котельных других организаций (некомб. выработка) - всего, из них: | D15: =SUM(D16:D17) -> 0 | E15: х | F15: =SUM(F16:F17) -> 0 | G15: =SUM(G16:G17) -> 0 | H15: х | I15: =SUM(I16:I17) -> 0 | J15: =SUM(J16:J17) -> 0 | K15: х | L15: =SUM(L16:L17) -> 0 | M15: =SUM(M16:M17) -> 0 | N15: х | O15: =SUM(O16:O17) -> 0
B16: 1.1. | F16: =D16*E16 -> 0 | I16: =G16*H16 -> 0 | L16: =J16*K16 -> 0 | O16: =M16*N16 -> 0
B17: 1.2. | F17: =D17*E17 -> 0 | I17: =G17*H17 -> 0 | L17: =J17*K17 -> 0 | O17: =M17*N17 -> 0
B18: 2 | C18: В том числе: | D18: х | E18: х | F18: х | G18: х | H18: х | I18: х | J18: х | K18: х | L18: х | M18: х | N18: х | O18: х
B19: 2.1. | C19: расходы на компенсацию затрат (потерь) ресурсов на технологические цели | F19: =D19*E19 -> 0 | I19: =G19*H19 -> 0 | L19: =J19*K19 -> 0 | O19: =M19*N19 -> 0
B20: Период регулирования (2015 план)
B21: 1 | C21: Всего, от котельных других организаций (некомб. выработка) - всего, из них: | D21: =SUM(D22:D23) -> 0 | E21: х | F21: =SUM(F22:F23) -> 0 | G21: =SUM(G22:G23) -> 0 | H21: х | I21: =SUM(I22:I23) -> 0 | J21: =SUM(J22:J23) -> 0 | K21: х | L21: =SUM(L22:L23) -> 0 | M21: =SUM(M22:M23) -> 0 | N21: х | O21: =SUM(O22:O23) -> 0
B22: 1.1. | F22: =D22*E22 -> 0 | I22: =L22+O22 -> 0 | L22: =J22*K22 -> 0 | O22: =M22*N22 -> 0
B23: 1.2. | F23: =D23*E23 -> 0 | I23: =G23*H23 -> 0 | L23: =J23*K23 -> 0 | O23: =M23*N23 -> 0
B24: 2 | C24: В том числе: | D24: х | E24: х | F24: х | G24: х | H24: х | I24: х | J24: х | K24: х | L24: х | M24: х | N24: х | O24: х
B25: 2.1. | C25: расходы на компенсацию затрат (потерь) ресурсов на технологические цели | F25: =D25*E25 -> 0 | G25: =J25+M25 -> 0 | H25: =I25/G25 ->  | I25: =L25+O25 -> 0 | K25: =K22 -> 0 | L25: =J25*K25 -> 0 | N25: =N22 -> 0 | O25: =M25*N25 -> 0
C26: для сметы
B27: Период регулирования (2015 план)
B28: 1 | C28: Всего, от котельных других организаций (некомб. выработка) - всего, из них: | D28: =SUM(D29:D30) -> 0 | E28: х | F28: =SUM(F29:F30) -> 0 | G28: =SUM(G29:G30) -> 0 | H28: х | I28: =SUM(I29:I30) -> 0 | J28: =SUM(J29:J30) -> 0 | K28: х | L28: =SUM(L29:L30) -> 0 | M28: =SUM(M29:M30) -> 0 | N28: х | O28: =SUM(O29:O30) -> 0 | Q28: =эл.эн.!S1 ->  | R28: =эл.эн.!T1 -> 
B29: 1.1. | G29: =G22 -> 0 | H29: =I29/G29 ->  | I29: =I22 -> 0 | J29: =G22 -> 0 | K29: =K22 -> 0 | L29: =J29*K29 -> 0 | M29: =J29 -> 0 | N29: =N22 -> 0 | O29: =M29*N29 -> 0
B30: 1.2. | G30: =G23 -> 0 | H30: =I30/G30 ->  | I30: =I23 -> 0 | J30: =G23 -> 0 | K30: =K23 -> 0 | L30: =J30*K30 -> 0 | M30: =J30 -> 0 | N30: =N23 -> 0 | O30: =M30*N30 -> 0
B31: 2 | C31: В том числе: | D31: х | E31: х | F31: х | G31: х | H31: х | I31: х | J31: х | K31: х | L31: х | M31: х | N31: х | O31: х
B32: 2.1. | C32: расходы на компенсацию затрат (потерь) ресурсов на технологические цели | F32: =D32*E32 -> 0 | G32: =G25 -> 0 | H32: =I32/G32 ->  | I32: =I25 -> 0 | J32: =G25 -> 0 | K32: =K29 -> 0 | L32: =J32*K32 -> 0 | M32: =G25 -> 0 | N32: =N29 -> 0 | O32: =M32*N32 -> 0
C34: отклонения | I34: =L28*Q28+O28*R28-I28 ->  | J34: общ
I35: =L32*Q28+O32*R28-I32 ->  | J35: потери

Sheet налоги (hidden)
B2: Расшифровка по налогам и платежам
B3: =анкета!C11 -> 0
B4: в целом по предприятию
B6: № п/п | C6: Наименование налога | D6: Предбазовый период (2013 факт) | E6: Базовый период (2014 план Департамента) | F6: Период регулирования (2015)
F7: по данным организации | G7: ДТР ТО | J7: процент налога | M7: база для исчисления налога
G8: всего на год | H8: 01.01-30.06 | I8: 01.07-31.12 | J8: всего на год | K8: 01.01-30.06 | L8: 01.07-31.12 | M8: всего на год | N8: 01.01-30.06 | O8: 01.07-31.12
B9: 1 | C9: 2 | D9: 3 | E9: 4 | F9: 5 | G9: 6 | H9: 7 | I9: 8 | J9: 9 | K9: 10 | L9: 11 | M9: 12 | N9: 13 | O9: 14
B10: 1 | C10: налог на имущество организаций
B11: 3 | C11: земельный налог
B12: 4 | C12: транспортный налог
B13: 5 | C13: водный налог
B14: 6 | C14: прочие налоги | D14: =SUM(D15:D17) -> 0 | E14: 0 | F14: 0 | G14: =SUM(G15:G17) -> 0 | H14: =SUM(H15:H17) -> 0 | I14: =SUM(I15:I17) -> 0
B15: 6.1.
B16: 6.2.
B17: 6.3.
B18: Итого по налогам, относимым на себестоимость | D18: =SUM(D10:D14) -> 0 | E18: 0 | F18: 0 | G18: 0 | H18: 0 | I18: 0
B19: 7 | C19: Налог на прибыль при ОСН | G19: =J19/100*M19 -> 0 | H19: =K19/100*N19 -> 0 | I19: 0 | J19: =ставки!G13 -> 0 | K19: =$J$19 -> 0 | L19: =$J$19 -> 0 | M19: =IF($J$19>0,'смета 2015'!Q118/'смета 2015'!Q173*'смета 2015'!Q187,0) -> 0 | N19: =IF($J$19>0,'смета 2015'!W118/'смета 2015'!W173*'смета 2015'!W187,0) -> 0 | O19: =IF($J$19>0,'смета 2015'!AH118/'смета 2015'!AH173*'смета 2015'!AH187,0) -> 0
B20: 8 | C20: Единый налог при УСН | J20: =ставки!K13 -> 0 | K20: =$J$19 -> 0 | L20: =$J$20 -> 0 | M20: =IF($J$20>0,D30,0) -> 0 | N20: =IF($J$20>0,E30,0) -> 0 | O20: =IF($J$20>0,F30,0) -> 0
B21: 9 | C21: Прочие налоги и платежи, относимые на финансовый результат | D21: =SUM(D22:D24) -> 0 | E21: 0 | F21: 0 | G21: 0 | H21: 0 | I21: 0 | K21: =$J$19 -> 0 | L21: =$J$21 -> 0
B22: 9.1.
B23: 9.2.
B24: 9.3.
B25: Итого по налогам, относимым на финансовый результат | D25: =SUM(D19:D21) -> 0 | E25: 0 | F25: 0 | G25: 0 | H25: 0 | I25: 0

Sheet смета 2013 (hidden)
A1: Смета затрат на производство, передачу и сбыт тепловой энергии (2013 год)
A2: =анкета!C11 -> 0
A3: =анкета!C12 -> 0
A4: =анкета!C35 -> без учета НДС
A5: Наименование показателя | B5: 2011 | C5: 2012 | D5: 2013 | E5: 2013 | F5: 2015
B7: ОФ | C7: ОФ | D7: КП | E7: ОФ | F7: ОП
A8: Основные материалы (на текущее содержание и ремонт хозяйственным способом)
A9: Вспомогательные материалы
A10: Работы и услуги производственного характера, всего, в том числе:
A11: ремонт подрядным способом (силами сторонних организаций)
A12: регламентные работы
A13: транспортные расходы на текущее обслуживание и ремонт
A14: прочие услуги вспомогательных производств
A15: иные работы и услуги производственного характера
A16: Топливо на технологические цели
A17: Энергия на технологические цели
A18: Затраты на оплату труда производственного персонала (без ХОВ)
A19: в том числе на ремонт
A20: Отчисления на социальные нужды от расходов на оплату труда (расходы на уплату страховых взносов в ПФ, ФСС,ОМС)
A21: Платежи в фонд социального страхования
A22: Ставка платежей в фонд социального страхования
A23: Амортизация основных средств
A24: Отчисления в ремонтный фонд (в случае его формирования)
A25: Вода на технологические нужды (ХОВ)
A26: Прочие цеховые расходы, всего, из них:
A27: плата за предельно-допустимые выбросы
A28: налог на землю
A29: налог на имущество
A30: прочие налоги и сборы
A31: арендная плата
A32: расходы на страхование
A33: расходы на обучение
A34: расходы на спецпитание
A35: расходы на служебные командировки
A36: расходы на льготный проезд
A37: расходы на содержание зданий
A38: иные расходы, не поименованные выше
A39: Покупка теплоэнергии
A40: Итого затрат по цеховой себестоимости
A41: Отпуск на коллекторе, Гкал
A42: Полезный отпуск всего, в том числе (Гкал):
A43: собственное потребление
A44: сторонние потребители
A45: Стоимость одной Гкал по цеховой себестоимости
A46: Затраты на собственное потребление
A47: Затраты на реализованную продукцию
A48: Прочие расходы всего, в том числе:
A49: Общехозяйственные расходы, из них:
A50: заработная плата АУП
A51: Отчисления на социальные нужды от расходов на оплату труда (расходы на уплату страховых взносов в ПФ, ФСС,ОМС)
A52: работы и услуги непроизводственного характера
A53: Другие расходы
A54: Недополученный по независящим причинам доход
A55: Избыток средств, полученный в предыдущем периоде регулирования
A56: Расчетные расходы по производству, передаче и сбыту продукции
A57: Выручка от реализации сторонним потребителям
A58: Финансовый результат от реализации (прибыль/убыток)
A59: Рентабельность
A60: Средний одноставочный тариф, руб./Гкал
A67: Действующий тариф
A68: Среднесписочная численность
A69: Средняя заработная плата
A70: Ставка рабочего 1 разряда
A73: Тарифное меню на тепловую энергию
A75: Тариф на тепловую энергию, руб/Гкал
A76: в том числе:
A77: Стоимость единицы тепловой энергии, руб/Гкал
A78: Cтоимость услуг по передаче тепловой энергии, руб/Гкал

Sheet тарифы 2014 (hidden)
A1: Расчет тарифа на тепловую энергию (2014 год)
A2: =анкета!C11 -> 0
A3: =анкета!C12 -> 0
A4: =анкета!C35 -> без учета НДС
A5: № пп | B5: Наименование показателя | C5: 2012 | E5: 2013 | H5: 2014 | X5: Темп роста, %
H6: план организации (ОП) | L6: Департамент тарифного регулирования ТО (КП)
L7: в целом по году | P7: в том числе: | X7: в целом по тарифу (без разделения по циклам)
E8: по плану ДТР ТО | P8: 01.01.2014-30.06.2014 | T8: 01.07.2014-31.12.2014 | X8: 2 полугодие 2014 к 1 полугодию 2014 | Y8: декабрь 2014 к декабрю 2013
C9: план ДТР ТО | D9: факт по данным организации | E9: всего (год) | F9: в том числе | H9: всего (год) | I9: в том числе по видам деятельности | L9: всего | M9: в том числе по видам деятельности | P9: всего | Q9: в том числе по видам деятельности | T9: всего | U9: в том числе по видам деятельности
F10: 01.01-30.06 | G10: 01.07-31.12 | I10: производство | J10: передача | M10: производство | N10: передача | Q10: производство | R10: передача | U10: производство | V10: передача
J11: всего | K11: в т.ч. по бесхозяйным сетям | N11: всего | O11: в т.ч. по бесхозяйным сетям | R11: всего | S11: в т.ч. по бесхозяйным сетям | V11: всего | W11: в т.ч. по бесхозяйным сетям
A12: 1 | B12: 2 | C12: 3 | D12: 4 | E12: 5 | F12: 6 | G12: 7 | H12: 8 | I12: 9 | J12: 10 | K12: 11 | L12: 12 | M12: 13 | N12: 14 | O12: 15 | P12: 16 | Q12: 17 | R12: 18 | S12: 19 | T12: 20 | U12: 21 | V12: 22 | W12: 23 | X12: 24 | Y12: 27
A13: 1. | B13: расходы на топливо
A14: 2. | B14: необходимая валовая выручка,всего тыс.руб.
A15: 2.1. | B15: на производство тепловой энергии
A16: 5.1.1. | B16: - вода | C16: добавила
A17: 5.1.2. | B17: - отборный пар от 1,2 до 2,5 кгс/см2
A18: 5.1.3. | B18: - отборный пар от 2,5 до 7,0 кгс/см2
A19: 5.1.4. | B19: - отборный пар от 7,0 до 13,0 кгс/см2
A20: 5.1.5. | B20: - отборный пар свыше 13,0 кгс/см2
A21: 5.1.6. | B21: - острый и редуцированный пар
A22: 3. | B22: объем отпуска тепловой энергии (от коллектора/из тепловой сети), Гкал
A23: 5.1.1. | B23: - вода | C23: добавила
A24: 5.1.2. | B24: - отборный пар от 1,2 до 2,5 кгс/см2
A25: 5.1.3. | B25: - отборный пар от 2,5 до 7,0 кгс/см2
A26: 5.1.4. | B26: - отборный пар от 7,0 до 13,0 кгс/см2
A27: 5.1.5. | B27: - отборный пар свыше 13,0 кгс/см2
A28: 5.1.6. | B28: - острый и редуцированный пар
A29: 3.1. | B29: в том числе по нерегулируемым долгосрочным договорам | C29: здесь наверно тоже нужно добавлять
A30: 3.1.1. | B30: объем отпуска тепловой энергии на собственное потребление
A31: 5.1.1. | B31: - вода | C31: добавила
A32: 5.1.2. | B32: - отборный пар от 1,2 до 2,5 кгс/см2
A33: 5.1.3. | B33: - отборный пар от 2,5 до 7,0 кгс/см2
A34: 5.1.4. | B34: - отборный пар от 7,0 до 13,0 кгс/см2
A35: 5.1.5. | B35: - отборный пар свыше 13,0 кгс/см2
A36: 5.1.6. | B36: - острый и редуцированный пар
A37: 3.1.2. | B37: объем отпуска тепловой энергии потребителям (население, бюджет, прочие)
A38: 5.1.1. | B38: - вода | C38: добавила
A39: 5.1.2. | B39: - отборный пар от 1,2 до 2,5 кгс/см2
A40: 5.1.3. | B40: - отборный пар от 2,5 до 7,0 кгс/см2
A41: 5.1.4. | B41: - отборный пар от 7,0 до 13,0 кгс/см2
A42: 5.1.5. | B42: - отборный пар свыше 13,0 кгс/см2
A43: 5.1.6. | B43: - острый и редуцированный пар
A44: 4. | B44: суммарная договорная (заявленная) тепловая нагрузка потребителей тепловой энергии
A45: 4.1. | B45: в том числе по нерегулируемым долгосрочным договорам
A46: 5. | B46: Расчет тарифа на тепловую энергию (мощность):
A47: 5.1. | B47: Одноставочный тариф, руб./Гкал
A48: 5.1.1. | B48: - вода
A49: 5.1.2. | B49: - отборный пар от 1,2 до 2,5 кгс/см2
A50: 5.1.3. | B50: - отборный пар от 2,5 до 7,0 кгс/см2
A51: 5.1.4. | B51: - отборный пар от 7,0 до 13,0 кгс/см2
A52: 5.1.5. | B52: - отборный пар свыше 13,0 кгс/см2
A53: 5.1.6. | B53: - острый и редуцированный пар
A54: 5.2. | B54: Двухставочный тариф, руб./Гкал, в том числе
A55: 5.2.1. | B55: Ставка за тепловую энергию двухставочного тарифа
A56: 5.2.1.1. | B56: - вода
A57: 5.2.1.2. | B57: - отборный пар от 1,2 до 2,5 кгс/см2
A58: 5.2.1.3. | B58: - отборный пар от 2,5 до 7,0 кгс/см2
A59: 5.2.1.4. | B59: - отборный пар от 7,0 до 13,0 кгс/см2
A60: 5.2.1.5. | B60: - отборный пар свыше 13,0 кгс/см2
A61: 5.2.1.6. | B61: - острый и редуцированный пар
A62: 5.2.2. | B62: Ставка за содержание тепловой мощности двухставочного тарифа
A63: 5.2.2.1. | B63: - вода
A64: 5.2.2.2. | B64: - отборный пар от 1,2 до 2,5 кгс/см2
A65: 5.2.2.3. | B65: - отборный пар от 2,5 до 7,0 кгс/см2
A66: 5.2.2.4. | B66: - отборный пар от 7,0 до 13,0 кгс/см2
A67: 5.2.2.5. | B67: - отборный пар свыше 13,0 кгс/см2
A68: 5.2.2.6. | B68: - острый и редуцированный пар
B70: Справочно:
A71: 6. | B71: Всего затрат по цеховой себестоимости
A72: 6.1. | B72: цеховая себестоимость, руб./Гкал | C72: стр.6./стр.3
A73: 7. | B73: Расчетные расходы по производству, передаче и сбыту продукции (полная себестоимость реализуемых товаров (услуг)
A74: 7.1. | B74: полная себестоимость тепловой энергии, руб./Гкал | C74: стр.7./стр.3.1.2.

Sheet смета 2014 (hidden)
A1: Смета затрат на производство, передачу и сбыт тепловой энергии (2014 год)
A2: =анкета!C11 -> 0
A3: =анкета!C12 -> 0
A4: =анкета!C35 -> без учета НДС
A5: № пп | B5: Наименование показателя | C5: 2011 | D5: 2012 | E5: 2013 | G5: 2014 | J5: 2015
J6: план организации (ОП)
G8: по плану ДТР ТО
C9: факт по данным организации | D9: факт по данным организации | E9: план ДТР ТО | F9: факт по данным организации | G9: всего (год) | H9: в том числе | J9: всего (год)
H10: 01.01-30.06 | I10: 01.07-31.12
A12: 1 | B12: 2 | E12: 3 | F12: 4 | G12: 5 | H12: 6 | I12: 7 | J12: 8
A13: I | B13: Расходы, связанные с производством и реализацией продукции (услуг), всего | C13: =C14+C15+C16+C23+C26+C29+C32+C36+C40+C41+C45+C56+C62+C63+C67+C68+C69+C70+C88 -> 0 | D13: 0 | E13: 0 | F13: =F14+F15+F16+F23+F26+F29+F32+F36+F40+F41+F45+F56+F62+F63+F67+F68+F69+F70+F88 -> 0 | J13: =J14+J15+J16+J23+J26+J29+J32+J36+J40+J41+J45+J56+J62+J63+J67+J68+J69+J70+J88 -> 0
A14: 1.1 | B14: расходы на сырье и материалы | C14: ='смета 2013'!B8 -> 0 | D14: ='смета 2013'!C8 -> 0 | E14: ='смета 2013'!D8 -> 0 | F14: ='смета 2013'!E8 -> 0 | J14: ='смета 2013'!F8 -> 0
A15: 1.2 | B15: расходы на топливо | C15: ='смета 2013'!B16-C97 -> 0 | D15: ='смета 2013'!C16-D97 -> 0 | E15: ='смета 2013'!D16-E97 -> 0 | F15: ='смета 2013'!E16-F97 -> 0 | J15: ='смета 2013'!F16-J97 -> 0
A16: 1.3 | B16: расходы на прочие покупаемые энергетические ресурсы, в том числе: | C16: =C17+C20 -> 0 | D16: 0 | E16: 0 | F16: =F17+F20 -> 0 | J16: =J17+J20 -> 0
A17: 1.3.1 | B17: электрическая энергия, в том числе: | C17: =C18+C19 -> 0 | D17: 0 | E17: 0 | F17: =F18+F19 -> 0 | J17: =J18+J19 -> 0
A18: 1.3.1.1 | B18: на технологические нужды | C18: ='смета 2013'!B17 -> 0 | D18: ='смета 2013'!C17 -> 0 | E18: ='смета 2013'!D17 -> 0 | F18: ='смета 2013'!E17 -> 0 | J18: ='смета 2013'!F17 -> 0
A19: 1.3.1.2 | B19: на хозяйственные нужды
A20: 1.3.2 | B20: покупная тепловая энергия, в том числе: | C20: =C21+C22 -> 0 | D20: 0 | E20: 0 | F20: =F21+F22 -> 0 | J20: =J21+J22 -> 0
A21: 1.3.2.1 | B21: на технологические нужды | C21: ='смета 2013'!B39 -> 0 | D21: ='смета 2013'!C39 -> 0 | E21: ='смета 2013'!D39 -> 0 | F21: ='смета 2013'!E39 -> 0 | J21: ='смета 2013'!F39 -> 0
A22: 1.3.2.2 | B22: на хозяйственные нужды
A23: 1.4 | B23: расходы на холодную воду | C23: =C24*C25 -> 0 | D23: 0 | E23: 0 | F23: =F24*F25 -> 0 | J23: =J24*J25 -> 0
A24: 1.4.1. | B24: объем холодной воды на технологические нужды
A25: 1.4.2. | B25: тариф на холодную воду
A26: 1.5 | B26: расходы на теплоноситель | C26: ='смета 2013'!B25 -> 0 | D26: ='смета 2013'!C25 -> 0 | E26: ='смета 2013'!D25 -> 0 | F26: ='смета 2013'!E25 -> 0 | J26: ='смета 2013'!F25 -> 0
A27: 1.5.1. | B27: объем теплоносителя на технологические нужды
A28: 1.5.2. | B28: тариф на теплоноситель
A29: 1.6 | B29: амортизация основных средств и нематериальных активов, в том числе: | C29: =C30+C31 -> 0 | D29: 0 | E29: 0 | F29: =F30+F31 -> 0 | J29: =J30+J31 -> 0
A30: 1.6.1. | B30: амортизация основных средств | C30: ='смета 2013'!B23 -> 0 | D30: ='смета 2013'!C23 -> 0 | E30: ='смета 2013'!D23 -> 0 | F30: ='смета 2013'!E23 -> 0 | J30: ='смета 2013'!F23 -> 0
A31: 1.6.2. | B31: амортизация прочего имущества
A32: 1.7 | B32: оплата труда всего, в том числе: | C32: =C33 -> 0 | D32: 0 | E32: 0 | F32: =F33 -> 0 | J32: 0
A33: 1.7.1 | B33: оплата труда производственного персонала | C33: ='смета 2013'!B18 -> 0 | D33: ='смета 2013'!C18 -> 0 | E33: ='смета 2013'!D18 -> 0 | F33: ='смета 2013'!E18 -> 0 | J33: ='смета 2013'!F18 -> 0
A34: 1.7.1.1. | B34: численность производственного персонала (ПП) | C34: ='смета 2013'!B68 -> 0 | D34: ='смета 2013'!C68 -> 0 | E34: ='смета 2013'!D68 -> 0 | F34: ='смета 2013'!E68 -> 0 | J34: ='смета 2013'!F68 -> 0
A35: 1.7.1.2. | B35: средняя заработная плата ПП | C35: =IF(C34=0,0,C33/C34/12) -> 0 | D35: 0 | E35: 0 | F35: =IF(F34=0,0,F33/F34/12) -> 0 | J35: =IF(J34=0,0,J33/J34/12) -> 0
A36: 1.8 | B36: отчисления на социальные нужды всего, в том числе: | C36: =C37 -> 0 | D36: 0 | E36: 0 | F36: =F37 -> 0 | J36: 0
A37: 1.8.1.1. | B37: отчисления на социальные нужды от фонда оплаты производственного персонала | C37: ='смета 2013'!B20+'смета 2013'!B21 -> 0 | D37: ='смета 2013'!C20+'смета 2013'!C21 -> 0 | E37: ='смета 2013'!D20+'смета 2013'!D21 -> 0 | F37: ='смета 2013'!E20+'смета 2013'!E21 -> 0 | J37: ='смета 2013'!F20+'смета 2013'!F21 -> 0
A38: 1.8.2 | B38: % расходов на уплату страховых взносов в ПФ, ФСС, ОМС
A39: 1.8.3 | B39: % платежей в фонд социального страхования от несчастных случаев
A40: 1.9 | B40: ремонт основных средств, выполняемый подрядным способом | C40: ='смета 2013'!B11 -> 0 | D40: ='смета 2013'!C11 -> 0 | E40: ='смета 2013'!D11 -> 0 | F40: ='смета 2013'!E11 -> 0 | J40: ='смета 2013'!F11 -> 0
A41: 1.10 | B41: расходы на оплату услуг, оказываемых организациями, осуществляющими регулируемую деятельность всего, в том числе | C41: =C42+C43+C44 -> 0 | D41: 0 | E41: 0 | F41: =F42+F43+F44 -> 0 | J41: 0
A42: 1.10.1.
A43: 1.10.2.
A44: 1.10.3.
A45: 1.11 | B45: расходы на выполнение работ и услуг производственного характера (в том числе выполняемых по договорам со сторонними организациями или индивидуальными предпринимателями) всего, в том числе: | C45: =C46+C49+C50+C54 -> 0 | D45: 0 | E45: 0 | F45: =F46+F49+F50+F54 -> 0 | J45: 0
A46: 1.11.1 | B46: транспортные услуги, в том числе: | C46: =C47+C48 -> 0 | D46: 0 | E46: 0 | F46: =F47+F48 -> 0 | J46: 0
A47: 1.11.1.1 | B47: по договорам
A48: 1.11.1.2 | B48: хозяйственным способом | C48: ='смета 2013'!B13 -> 0 | D48: ='смета 2013'!C13 -> 0 | E48: ='смета 2013'!D13 -> 0 | F48: ='смета 2013'!E13 -> 0 | J48: ='смета 2013'!F13 -> 0
A49: 1.11.2 | B49: регламентные работы | C49: ='смета 2013'!B12 -> 0 | D49: ='смета 2013'!C12 -> 0 | E49: ='смета 2013'!D12 -> 0 | F49: ='смета 2013'!E12 -> 0 | J49: ='смета 2013'!F12 -> 0
A50: 1.11.3 | B50: прочие услуги вспомогательных производств, в том числе: | C50: =C51+C52+C53 -> 0 | D50: 0 | E50: 0 | F50: =F51+F52+F53 -> 0 | J50: 0
A51: 1.11.3.1 | C51: ='смета 2013'!B14 -> 0 | D51: ='смета 2013'!C14 -> 0 | E51: ='смета 2013'!D14 -> 0 | F51: ='смета 2013'!E14 -> 0 | J51: ='смета 2013'!F14 -> 0
A52: 1.11.3.2
A53: 1.11.3.3
A54: 1.11.4 | B54: иные работы и услуги производственного характера | C54: =C55 -> 0 | D54: 0 | E54: 0 | F54: =F55 -> 0 | J54: 0
A55: 1.11.4.1 | C55: ='смета 2013'!B15 -> 0 | D55: ='смета 2013'!C15 -> 0 | E55: ='смета 2013'!D15 -> 0 | F55: ='смета 2013'!E15 -> 0 | J55: ='смета 2013'!F15 -> 0
A56: 1.12 | B56: расходы на оплату иных работ и услуг, выполняемых по договорам с организациям, включая расходы на оплату услуг связи, вневедомственной охраны, коммунальных услуг, юридических, информационных, аудиторских и консультационных услуг всего, в том числе: | C56: =SUM(C57:C61) -> 0 | D56: 0 | E56: 0 | F56: =SUM(F57:F61) -> 0 | J56: 0
A57: 1.12.1. | B57: услуги связи
A58: 1.12.2. | B58: услуги вневедомственной охраны
A59: 1.12.3. | B59: коммунальные услуги | C59: ='смета 2013'!B37 -> 0 | D59: ='смета 2013'!C37 -> 0 | E59: ='смета 2013'!D37 -> 0 | F59: ='смета 2013'!E37 -> 0 | J59: ='смета 2013'!F37 -> 0
A60: 1.12.4. | B60: юридические, информационные, аудиторские и консультационные услуг
A61: 1.12.5. | B61: не поименованные выше | C61: ='смета 2013'!B38 -> 0 | D61: ='смета 2013'!C38 -> 0 | E61: ='смета 2013'!D38 -> 0 | F61: ='смета 2013'!E38 -> 0 | J61: ='смета 2013'!F38 -> 0
A62: 1.13 | B62: плата за выбросы и сбросы загрязняющих веществ в окружающую среду, размещение отходов и другие виды негативного воздействия на окружающую среду в пределах установленных нормативов и (или) лимитов | C62: ='смета 2013'!B27 -> 0 | D62: ='смета 2013'!C27 -> 0 | E62: ='смета 2013'!D27 -> 0 | F62: ='смета 2013'!E27 -> 0 | J62: ='смета 2013'!F27 -> 0
A63: 1.14 | B63: арендная плата, концессионная плата, лизинговые платежи всего, в том числе: | C63: =SUM(C64:C66) -> 0 | D63: 0 | E63: 0 | F63: =SUM(F64:F66) -> 0 | J63: 0
A64: 1.14.1. | B64: арендная плата | C64: ='смета 2013'!B31 -> 0 | D64: ='смета 2013'!C31 -> 0 | E64: ='смета 2013'!D31 -> 0 | F64: ='смета 2013'!E31 -> 0 | J64: ='смета 2013'!F31 -> 0
A65: 1.14.2. | B65: концессионная плата
A66: 1.14.3. | B66: лизинговые платежи
A67: 1.15 | B67: расходы на служебные командировки | C67: ='смета 2013'!B35 -> 0 | D67: ='смета 2013'!C35 -> 0 | E67: ='смета 2013'!D35 -> 0 | F67: ='смета 2013'!E35 -> 0 | J67: ='смета 2013'!F35 -> 0
A68: 1.16 | B68: расходы на обучение персонала | C68: ='смета 2013'!B33 -> 0 | D68: ='смета 2013'!C33 -> 0 | E68: ='смета 2013'!D33 -> 0 | F68: ='смета 2013'!E33 -> 0 | J68: ='смета 2013'!F33 -> 0
A69: 1.17 | B69: расходы на страхование производственных объектов, учитываемые при определении налоговой базы по налогу на прибыль | C69: ='смета 2013'!B32 -> 0 | D69: ='смета 2013'!C32 -> 0 | E69: ='смета 2013'!D32 -> 0 | F69: ='смета 2013'!E32 -> 0 | J69: ='смета 2013'!F32 -> 0
A70: 1.18 | B70: другие расходы, связанные с производством и (или) реализацией продукции, в том числе | C70: =C71+C78++C79+C80+C81+C87 -> 0 | D70: 0 | E70: 0 | F70: =F71+F78++F79+F80+F81+F87 -> 0 | J70: 0
A71: 1.18.1 | B71: охрана труда всего, в том числе: | C71: =SUM(C72:C77) -> 0 | D71: 0 | E71: 0 | F71: =SUM(F72:F77) -> 0 | J71: 0
A72: 1.18.1.1 | B72: специальная одежда | C72: ='смета 2013'!B9 -> 0 | D72: ='смета 2013'!C9 -> 0 | E72: ='смета 2013'!D9 -> 0 | F72: ='смета 2013'!E9 -> 0 | J72: ='смета 2013'!F9 -> 0
A73: 1.18.1.2 | B73: моющие средства
A74: 1.18.1.3 | B74: специальное питание | C74: ='смета 2013'!B34 -> 0 | D74: ='смета 2013'!C34 -> 0 | E74: ='смета 2013'!D34 -> 0 | F74: ='смета 2013'!E34 -> 0 | J74: ='смета 2013'!F34 -> 0
A75: 1.18.1.4 | B75: страхование персонала
A76: 1.18.1.5 | B76: аттестация
A77: 1.18.1.6 | B77: медицинский осмотр
A78: 1.18.2 | B78: прочие услуги
A79: 1.18.3 | B79: льготный проезд | C79: ='смета 2013'!B36 -> 0 | D79: ='смета 2013'!C36 -> 0 | E79: ='смета 2013'!D36 -> 0 | F79: ='смета 2013'!E36 -> 0 | J79: ='смета 2013'!F36 -> 0
A80: 1.18.4 | B80: отчисления в ремонтный фонд | C80: ='смета 2013'!B24 -> 0 | D80: ='смета 2013'!C24 -> 0 | E80: ='смета 2013'!D24 -> 0 | F80: ='смета 2013'!E24 -> 0 | J80: ='смета 2013'!F24 -> 0
A81: 1.18.5 | B81: общехозяйственные расходы всего, в том числе: | C81: ='смета 2013'!B49 -> 0 | D81: ='смета 2013'!C49 -> 0 | E81: ='смета 2013'!D49 -> 0 | F81: ='смета 2013'!E49 -> 0 | J81: ='смета 2013'!F49 -> 0
A82: 1.18.5.1 | B82: оплата труда административно-управленческого персонала | C82: ='смета 2013'!B50 -> 0 | D82: ='смета 2013'!C50 -> 0 | E82: ='смета 2013'!D50 -> 0 | F82: ='смета 2013'!E50 -> 0 | J82: ='смета 2013'!F50 -> 0
A83: 1.18.5.1.1. | B83: численность административно-управленческого персонала (АУП)
A84: 1.18.5.1.2. | B84: средняя заработная плата АУП | C84: =IF(C83=0,0,C82/C83/12) -> 0 | D84: 0 | E84: 0 | F84: =IF(F83=0,0,F82/F83/12) -> 0 | J84: =IF(J83=0,0,J82/J83/12) -> 0
A85: 1.18.5.2. | B85: отчисления на социальные нужды от фонда оплаты административно-управленческого персонала | C85: ='смета 2013'!B51 -> 0 | D85: ='смета 2013'!C51 -> 0 | E85: ='смета 2013'!D51 -> 0 | F85: ='смета 2013'!E51 -> 0 | J85: ='смета 2013'!F51 -> 0
A86: 1.18.5.3. | B86: прочие общехозяйственные расходы | C86: ='смета 2013'!B52 -> 0 | D86: ='смета 2013'!C52 -> 0 | E86: ='смета 2013'!D52 -> 0 | F86: ='смета 2013'!E52 -> 0 | J86: ='смета 2013'!F52 -> 0
A87: 1.18.6. | B87: расходы на сбыт
A88: 1.19. | B88: налоги, относимые к расходам, связанным с производством и реализацией продукции | C88: =SUM(C89:C93) -> 0 | D88: 0 | E88: 0 | F88: =SUM(F89:F93) -> 0 | J88: 0
A89: 1.19.1. | B89: налог на имущество организаций | C89: ='смета 2013'!B29 -> 0 | D89: ='смета 2013'!C29 -> 0 | E89: ='смета 2013'!D29 -> 0 | F89: ='смета 2013'!E29 -> 0 | J89: ='смета 2013'!F29 -> 0
A90: 1.19.2. | B90: земельный налог | C90: ='смета 2013'!B28 -> 0 | D90: ='смета 2013'!C28 -> 0 | E90: ='смета 2013'!D28 -> 0 | F90: ='смета 2013'!E28 -> 0 | J90: ='смета 2013'!F28 -> 0
A91: 1.19.3. | B91: транспортный налог
A92: 1.19.4. | B92: водный налог
A93: 1.19.5. | B93: прочие налоги | C93: ='смета 2013'!B30 -> 0 | D93: ='смета 2013'!C30 -> 0 | E93: ='смета 2013'!D30 -> 0 | F93: ='смета 2013'!E30 -> 0 | J93: ='смета 2013'!F30 -> 0
A94: II | B94: Внереализационные расходы, всего | C94: =SUM(C95:C98) -> 0 | D94: 0 | E94: 0 | F94: =SUM(F95:F98) -> 0 | J94: 0
A95: 2.1 | B95: расходы на вывод из эксплуатации (в том числе на консервацию) и вывод из консервации
A96: 2.2 | B96: расходы по сомнительным долгам
A97: 2.3 | B97: расходы, связанные с созданием нормативных запасов топлива, включая расходы по обслуживанию заемных средств, привлекаемых для этих целей
A98: 2.4 | B98: другие обосновывающие расходы, в том числе | C98: =SUM(C99:C100) -> 0 | D98: 0 | E98: 0 | F98: =SUM(F99:F100) -> 0 | J98: 0
A99: 2.4.1 | B99: расходы на услуги банков | C99: ='смета 2013'!B53 -> 0 | D99: ='смета 2013'!C53 -> 0 | E99: ='смета 2013'!D53 -> 0 | F99: ='смета 2013'!E53 -> 0 | J99: ='смета 2013'!F53 -> 0
A100: 2.4.2. | B100: расходы на обслуживание заемных средств
A101: III | B101: расходы, не учитываемые в целях налообложения, всего | C101: =SUM(C102:C105) -> 0 | D101: 0 | E101: 0 | F101: =SUM(F102:F105) -> 0 | J101: 0
A102: 3.1 | B102: расходы на капитальные вложения (инвестиции)
A103: 3.2 | B103: денежные выплаты социального характера (по коллективному договору) | C103: ='смета 2013'!B58 -> 0 | D103: ='смета 2013'!C58 -> 0 | E103: ='смета 2013'!D58 -> 0 | F103: ='смета 2013'!E58 -> 0 | J103: ='смета 2013'!F58 -> 0
A104: 3.4 | B104: резервный фонд
A105: 3.5 | B105: прочие расходы (прибыль на прочие цели)
A106: IV | B106: налог на прибыль
A107: IV* | B107: (или)единый налог при УСН
A108: IV.1. | B108: Финансовый результат от реализации всего | C108: ='смета 2013'!B58 -> 0 | D108: ='смета 2013'!C58 -> 0 | E108: ='смета 2013'!D58 -> 0 | F108: ='смета 2013'!E58 -> 0 | J108: ='смета 2013'!F58 -> 0
A109: IV.2. | B109: то же в % | C109: ='смета 2013'!B59 -> 0 | D109: ='смета 2013'!C59 -> 0 | E109: ='смета 2013'!D59 -> 0 | F109: ='смета 2013'!E59 -> 0 | J109: ='смета 2013'!F59 -> 0
A110: V | B110: выпадающие расходы/экономия
A111: 5.1. | B111: выпадающие расходы/экономия (в целях выравнивания сметы между полугодия регулируемого периода)
A112: VI | B112: необходимая валовая выручка,всего | C112: =C13+C94+C101+C106+C110+C107+C111 -> 0 | D112: 0 | E112: =E13+E94+E101+E106+E110+E107+E111 -> 0 | F112: =F13+F94+F101+F106+F110+F107+F111 -> 0 | J112: =J13+J94+J101+J106+J110+J107+J111 -> 0
A113: 6.1 | B113: на производство электрической энергии | C113: х | D113: х | E113: х | F113: х | J113: х
A114: 6.2 | B114: на производство тепловой энергии
A115: 6.3 | B115: на производство теплоносителя
A116: 6.4 | B116: прочая родукция
B118: Справочно:
A119: VII | B119: Всего затрат по цеховой себестоимости | C119: =C112-C81-C87-C94-C101-C106-C107-C110 -> 0 | D119: 0 | E119: 0 | F119: =F112-F81-F87-F94-F101-F106-F107-F110 -> 0 | G119: 0 | H119: 0 | I119: 0 | J119: 0
A120: VIII | B120: Расчетные расходы по производству, передаче и сбыту продукции (полная себестоимость реализуемых товаров (услуг) | C120: =C112-C101-C106-C107 -> 0 | D120: 0 | E120: 0 | F120: =F112-F101-F106-F107 -> 0 | G120: 0 | H120: 0 | I120: 0 | J120: 0
B121: расходы на собственное потребление | C121: ='смета 2013'!B46 -> 0 | D121: ='смета 2013'!C46 -> 0 | E121: ='смета 2013'!D46 -> 0 | F121: ='смета 2013'!E46 -> 0 | J121: ='смета 2013'!F46 -> 0
B122: проверка | C122: =C120-C121-'смета 2013'!B46 -> 0 | D122: =D120-D121-'смета 2013'!C46 -> 0 | E122: =E120-E121-'смета 2013'!D46 -> 0 | F122: =F120-F121-'смета 2013'!E46 -> 0 | J122: =J120-J121-'смета 2013'!F46 -> 0
A125: 1. | B125: объем отпуска тепловой энергии (от коллектора/из тепловой сети), Гкал
B126: - вода | C126: ='смета 2013'!B42 -> 0 | D126: ='смета 2013'!C42 -> 0 | E126: ='смета 2013'!D42 -> 0 | F126: ='смета 2013'!E42 -> 0 | J126: ='смета 2013'!F42 -> 0
B127: - отборный пар от 1,2 до 2,5 кгс/см2
B128: - отборный пар от 2,5 до 7,0 кгс/см2
B129: - отборный пар от 7,0 до 13,0 кгс/см2
B130: - отборный пар свыше 13,0 кгс/см2
B131: - острый и редуцированный пар
A132: 1.1. | B132: объем отпуска тепловой энергии на собственное потребление
B133: - вода | C133: ='смета 2013'!B43 -> 0 | D133: ='смета 2013'!C43 -> 0 | E133: ='смета 2013'!D43 -> 0 | F133: ='смета 2013'!E43 -> 0 | J133: ='смета 2013'!F43 -> 0
B134: - отборный пар от 1,2 до 2,5 кгс/см2
B135: - отборный пар от 2,5 до 7,0 кгс/см2
B136: - отборный пар от 7,0 до 13,0 кгс/см2
B137: - отборный пар свыше 13,0 кгс/см2
B138: - острый и редуцированный пар
A139: 1.2. | B139: объем отпуска тепловой энергии потребителям (население, бюджет, прочие+ перепродавцы)
B140: - вода | C140: ='смета 2013'!B44 -> 0 | D140: ='смета 2013'!C44 -> 0 | E140: ='смета 2013'!D44 -> 0 | F140: ='смета 2013'!E44 -> 0 | J140: ='смета 2013'!F44 -> 0
B141: - отборный пар от 1,2 до 2,5 кгс/см2
B142: - отборный пар от 2,5 до 7,0 кгс/см2
B143: - отборный пар от 7,0 до 13,0 кгс/см2
B144: - отборный пар свыше 13,0 кгс/см2
B145: - острый и редуцированный пар
A146: 2. | B146: Расчет тарифа на тепловую энергию (мощность):
A147: 2.1. | B147: Одноставочный тариф, руб./Гкал
B148: - вода | C148: =(C112-C121)/C140 ->  | F148: =(F112-F121)/F140 -> 
B149: - отборный пар от 1,2 до 2,5 кгс/см2
B150: - отборный пар от 2,5 до 7,0 кгс/см2
B151: - отборный пар от 7,0 до 13,0 кгс/см2
B152: - отборный пар свыше 13,0 кгс/см2
B153: - острый и редуцированный пар
A154: 2.2. | B154: Двухставочный тариф, руб./Гкал, в том числе
B155: Ставка за тепловую энергию двухставочного тарифа
B156: - вода
B157: - отборный пар от 1,2 до 2,5 кгс/см2
B158: - отборный пар от 2,5 до 7,0 кгс/см2
B159: - отборный пар от 7,0 до 13,0 кгс/см2
B160: - отборный пар свыше 13,0 кгс/см2
B161: - острый и редуцированный пар
B162: Ставка за содержание тепловой мощности двухставочного тарифа
B163: - вода
B164: - отборный пар от 1,2 до 2,5 кгс/см2
B165: - отборный пар от 2,5 до 7,0 кгс/см2
B166: - отборный пар от 7,0 до 13,0 кгс/см2
B167: - отборный пар свыше 13,0 кгс/см2
B168: - острый и редуцированный пар
B170: Справочно:
A171: 3. | B171: цеховая себестоимость, руб./Гкал | C171: =C119/C126 ->  | F171: =F119/F126 -> 
A172: 4. | B172: полная себестоимость тепловой энергии, руб./Гкал | C172: =C120/C140 ->  | F172: =F120/F140 -> 

Sheet смета 2015
A1: Смета затрат на производство, передачу и сбыт тепловой энергии (2015 год)
A2: =анкета!C11 -> 0 | T2: =натуральные!K15 -> 0 | U2: =натуральные!L15 -> 0 | V2: =натуральные!M15 -> 0
A3: =анкета!C12 -> 0 | U3: =U2/T2 ->  | V3: =V2/T2 ->  | AJ3: =топливо!X3 ->  | AK3: =топливо!Y3 ->  | AN3: индекс роста тарифа | AO3: 1.046
A4: =анкета!C35 -> без учета НДС
A5: № пп | B5: Наименование показателя | C5: 2011 | D5: 2012 | E5: 2013 | F5: 2013 | J5: 2014 | M5: 2015 | Q5: 2015 | AI5: 2015 индексная модель | AL5: Причина расхождения | AM5: Темп роста, %
F6: факт по данным организации | M6: план организации (ОП) | Q6: Департамент тарифного регулирования ТО (КП)
Q7: в целом по году | W7: в том числе: | AM7: в целом по тарифу (без разделения по циклам)
F8: итого | G8: производство, передача, сбыт | H8: общехозяйственные расходы | I8: транспортные расходы | J8: по плану ДТР ТО | M8: итого | N8: производство, передача, сбыт | O8: общехозяйственные расходы | P8: транспортные расходы | W8: 01.01.2015-30.06.2015 | AC8: 01.07.2015-31.12.2015 | AI8: по плану ДТР ТО | AM8: 2 полугодие 2015 к 1 полугодию 2015, % | AN8: 2015/2014, % | AO8: декабрь 2015 к декабрю 2014, %
C9: факт по данным организации | D9: факт по данным организации | E9: план ДТР ТО | J9: всего (год) | K9: в том числе | Q9: всего | R9: производство | S9: передача | T9: сбыт | U9: общехозяйственные расходы | V9: транспортные расходы | W9: всего | X9: производство | Y9: передача | Z9: сбыт | AA9: общехозяйственные расходы | AB9: транспортные расходы | AC9: всего | AD9: производство | AE9: передача | AF9: сбыт | AG9: общехозяйственные расходы | AH9: транспортные расходы | AI9: всего (год) | AJ9: в том числе
K10: 01.01-30.06 | L10: 01.07-31.12 | AJ10: 01.01-30.06 | AK10: 01.07-31.12
A12: 1 | B12: 2 | C12: 3 | D12: 4 | E12: 4 | F12: 5 | G12: 6 | H12: 7 | I12: 8 | J12: 9 | K12: 10 | L12: 11 | M12: 12 | N12: 13 | O12: 14 | P12: 15 | Q12: 16 | R12: 17 | S12: 18 | T12: 19 | U12: 20 | V12: 21 | W12: 22 | X12: 23 | Y12: 24 | Z12: 25 | AA12: 26 | AB12: 27 | AC12: 28 | AD12: 29 | AE12: 30 | AF12: 31 | AG12: 32 | AH12: 33 | AL12: 34 | AM12: 35 | AN12: 36 | AO12: 37
A13: I | B13: Расходы, связанные с производством и реализацией продукции (услуг), всего | C13: =C14+C21+C22+C33+C36+C39+C42+C49+C54+C55+C59+C70+C76+C77+C82+C83+C84+C85+C98 -> 0 | D13: =D14+D21+D22+D33+D36+D39+D42+D49+D54+D55+D59+D70+D76+D77+D82+D83+D84+D85+D98 -> 0 | E13: =E14+E21+E22+E33+E36+E39+E42+E49+E54+E55+E59+E70+E76+E77+E82+E83+E84+E85+E98 -> 0 | F13: =F14+F21+F22+F33+F36+F39+F42+F49+F54+F55+F59+F70+F76+F77+F82+F83+F84+F85+F98 -> 0 | G13: =G14+G21+G22+G33+G36+G39+G42+G49+G54+G55+G59+G70+G76+G77+G82+G83+G84+G85+G98 -> 0 | H13: =H14+H21+H22+H33+H36+H39+H42+H49+H54+H59+H70+H76+H77+H82+H83+H84+H85+H98 -> 0 | I13: =I14+I21+I22+I33+I36+I39+I42+I49+I54+I59+I70+I76+I77+I82+I83+I84+I85+I98+I95 -> 0 | J13: =J14+J21+J22+J33+J36+J39+J42+J49+J54+J55+J59+J70+J76+J77+J82+J83+J84+J85+J98 -> 90 | K13: =K14+K21+K22+K33+K36+K39+K42+K49+K54+K55+K59+K70+K76+K77+K82+K83+K84+K85+K98 -> 0 | L13: =L14+L21+L22+L33+L36+L39+L42+L49+L54+L55+L59+L70+L76+L77+L82+L83+L84+L85+L98 -> 0 | M13: =M14+M21+M22+M33+M36+M39+M42+M49+M54+M55+M59+M70+M76+M77+M82+M83+M84+M85+M98 -> 0 | N13: =N14+N21+N22+N33+N36+N39+N42+N49+N54+N55+N59+N70+N76+N77+N82+N83+N84+N85+N98 -> 0 | O13: =O14+O21+O22+O33+O36+O39+O42+O49+O54+O59+O70+O76+O77+O82+O83+O84+O85+O98 -> 0 | P13: =P14+P21+P22+P33+P36+P39+P42+P49+P54+P59+P70+P76+P77+P82+P83+P84+P85+P98+P95 -> 0 | Q13: =Q14+Q21+Q22+Q33+Q36+Q39+Q42+Q49+Q54+Q55+Q59+Q70+Q76+Q77+Q82+Q83+Q84+Q85+Q98 ->  | R13: =R14+R21+R22+R33+R36+R39+R42+R49+R54+R55+R59+R70+R76+R77+R82+R83+R84+R85+R98 ->  | S13: =S14+S22+S33+S36+S39+S42+S49+S54+S55+S59+S70+S76+S77+S82+S83+S84+S85+S98 ->  | T13: =T14+T22+T33+T36+T39+T42+T49+T54+T55+T59+T70+T76+T77+T82+T83+T84+T85+T98 ->  | V13: =V14+V22+V33+V36+V39+V42+V49+V54+V59+V70+V76+V77+V82+V83+V84+V85+V98 ->  | W13: =W14+W21+W22+W33+W36+W39+W42+W49+W54+W55+W59+W70+W76+W77+W82+W83+W84+W85+W98 ->  | X13: =X14+X21+X22+X33+X36+X39+X42+X49+X54+X55+X59+X70+X76+X77+X82+X83+X84+X85+X98 ->  | Y13: =Y14+Y22+Y33+Y36+Y39+Y42+Y49+Y54+Y55+Y59+Y70+Y76+Y77+Y82+Y83+Y84+Y85+Y98 ->  | Z13: =Z14+Z22+Z33+Z36+Z39+Z42+Z49+Z54+Z55+Z59+Z70+Z76+Z77+Z82+Z83+Z84+Z85+Z98 -> 0 | AB13: =AB14+AB22+AB33+AB36+AB39+AB42+AB49+AB54+AB59+AB70+AB76+AB77+AB82+AB83+AB84+AB85+AB98 -> 0 | AC13: =AC14+AC21+AC22+AC33+AC36+AC39+AC42+AC49+AC54+AC55+AC59+AC70+AC76+AC77+AC82+AC83+AC84+AC85+AC98 ->  | AD13: =AD14+AD21+AD22+AD33+AD36+AD39+AD42+AD49+AD54+AD55+AD59+AD70+AD76+AD77+AD82+AD83+AD84+AD85+AD98 ->  | AE13: =AE14+AE22+AE33+AE36+AE39+AE42+AE49+AE54+AE55+AE59+AE70+AE76+AE77+AE82+AE83+AE84+AE85+AE98 ->  | AF13: =AF14+AF22+AF33+AF36+AF39+AF42+AF49+AF54+AF55+AF59+AF70+AF76+AF77+AF82+AF83+AF84+AF85+AF98 -> 0 | AG13: =AG14+AG22+AG33+AG36+AG39+AG42+AG49+AG54+AG55+AG59+AG70+AG76+AG77+AG82+AG83+AG84+AG85+AG98 ->  | AH13: =AH14+AH22+AH33+AH36+AH39+AH42+AH49+AH54+AH59+AH70+AH76+AH77+AH82+AH83+AH84+AH85+AH98 -> 0 | AI13: =AI14+AI21+AI22+AI33+AI36+AI39+AI42+AI49+AI54+AI55+AI59+AI70+AI76+AI77+AI82+AI83+AI84+AI85+AI98 ->  | AJ13: =AJ14+AJ21+AJ22+AJ33+AJ36+AJ39+AJ42+AJ49+AJ54+AJ55+AJ59+AJ70+AJ76+AJ77+AJ82+AJ83+AJ84+AJ85+AJ98 ->  | AK13: =AK14+AK21+AK22+AK33+AK36+AK39+AK42+AK49+AK54+AK55+AK59+AK70+AK76+AK77+AK82+AK83+AK84+AK85+AK98 ->  | AM13: =AC13/W13*100 ->  | AN13: =Q13/J13*100 ->  | AO13: =AC13/L13*100 -> 
A14: 1.1 | B14: расходы на сырье и материалы | C14: =C15+C17+C16 -> 0 | D14: =D15+D17+D16 -> 0 | E14: =E15+E17+E16 -> 0 | F14: =F15+F17+F16 -> 0 | G14: =G15+G17+G16 -> 0 | H14: =H15+H17+H16 -> 0 | I14: 0 | J14: =J15+J17+J16 -> 0 | K14: 0 | L14: 0 | M14: 0 | N14: =N15+N17+N16 -> 0 | O14: =O15+O17+O16 -> 0 | P14: =P15+P17+P16 -> 0 | Q14: =Q15+Q17+Q16 ->  | W14: =W15+W17+W16 -> 0 | X14: =X15+X17+X16 -> 0 | Y14: 0 | Z14: 0 | AA14: 0 | AB14: 0 | AC14: 0 | AD14: 0 | AE14: 0 | AF14: 0 | AG14: 0 | AH14: 0 | AJ14: 0 | AK14: 0 | AM14: =AC14/W14*100 ->  | AN14: =Q14/J14*100 ->  | AO14: =AC14/L14*100 -> 
A15: 1.1.1 | B15: Материалы на текущий ремонт | E15: ='смета 2014'!E14-E16 -> 0 | F15: =G15+H15+I15 -> 0 | G15: ='ремонт хс'!J11-'Смета ХОВ '!F23 -> 0 | J15: ='смета 2014'!G14-J16 -> 0 | K15: ='смета 2014'!H14-K16 -> 0 | L15: ='смета 2014'!I14-L16 -> 0 | M15: =N15+O15+P15 -> 0 | N15: ='ремонт хс'!J19-'Смета ХОВ '!I23 -> 0 | Q15: =W15*$U$3+AC15*$V$3 ->  | W15: =X15+Y15+Z15+AA15+AB15 -> 0 | AC15: =AD15+AE15+AF15+AG15+AH15 -> 0 | AI15: =AJ15*$AJ$3+AK15*$AK$3 ->  | AJ15: =J15/AP15*AQ15 -> 0 | AK15: =AJ15*Основные_материалы_2015_полуг -> 0 | AP15: 1.024 | AQ15: 1.048
A16: 1.1.2 | B16: Материалы на капитальный ремонт | F16: =G16+H16+I16 -> 0 | G16: ='ремонт хс'!J30-'Смета ХОВ '!F24 -> 0 | M16: =N16+O16+P16 -> 0 | N16: ='ремонт хс'!J39-'Смета ХОВ '!I24 -> 0 | Q16: =W16*$U$3+AC16*$V$3 ->  | R16: =X16*$U$3+AD16*$V$3 ->  | S16: =Y16*$U$3+AE16*$V$3 ->  | T16: =Z16*$U$3+AF16*$V$3 ->  | U16: =AA16*$U$3+AG16*$V$3 ->  | V16: =AB16*$U$3+AH16*$V$3 ->  | W16: =X16+Y16+Z16+AA16+AB16 -> 0 | AC16: =AD16+AE16+AF16+AG16+AH16 -> 0 | AI16: =AJ16*$AJ$3+AK16*$AK$3 ->  | AJ16: =J16/AP16*AQ16 -> 0 | AK16: =AJ16*Основные_материалы_2015_полуг -> 0 | AM16: =AC16/W16*100 ->  | AN16: =Q16/J16*100 ->  | AO16: =AC16/L16*100 ->  | AP16: 1.024 | AQ16: 1.048
A17: 1.1.3 | B17: На текущее содержание и техническое обслуживание, всего в том числе | C17: =C19+C20+C18 -> 0 | D17: 0 | E17: 0 | F17: 0 | G17: 0 | H17: 0 | I17: 0 | J17: 0 | K17: 0 | L17: 0 | M17: 0 | N17: 0 | O17: 0 | P17: 0 | R17: =R19+R20+R18 ->  | W17: =W19+W20+W18 -> 0 | X17: 0 | Y17: 0 | Z17: 0 | AA17: 0 | AB17: 0 | AC17: 0 | AD17: 0 | AE17: 0 | AF17: 0 | AG17: 0 | AH17: 0 | AJ17: 0 | AK17: 0 | AP17: 1.024 | AQ17: 1.048
A18: 1.1.3.1 | B18: материалы на техническое обслуживание | F18: =G18+H18+I18 -> 0 | M18: =N18+O18+P18 -> 0 | Q18: =W18*$U$3+AC18*$V$3 ->  | R18: =X18*$U$3+AD18*$V$3 ->  | S18: =Y18*$U$3+AE18*$V$3 ->  | T18: =Z18*$U$3+AF18*$V$3 ->  | U18: =AA18*$U$3+AG18*$V$3 ->  | V18: =AB18*$U$3+AH18*$V$3 ->  | W18: =X18+Y18+Z18+AA18+AB18 -> 0 | AC18: =AD18+AE18+AF18+AG18+AH18 -> 0 | AI18: =AJ18*$AJ$3+AK18*$AK$3 ->  | AJ18: =J18/AP18*AQ18 -> 0 | AK18: =AJ18*Основные_материалы_2015_полуг -> 0 | AM18: =AC18/W18*100 ->  | AN18: =Q18/J18*100 ->  | AO18: =AC18/L18*100 ->  | AP18: 1.024 | AQ18: 1.048
A19: 1.1.3.2 | B19: специальная одежда | E19: ='смета 2014'!E72 -> 0 | F19: =G19+H19+I19 -> 0 | K19: ='смета 2014'!H72 -> 0 | L19: ='смета 2014'!I72 -> 0 | M19: =N19+O19+P19 -> 0 | Q19: =W19*$U$3+AC19*$V$3 ->  | R19: =X19*$U$3+AD19*$V$3 ->  | S19: =Y19*$U$3+AE19*$V$3 ->  | W19: =X19+Y19+Z19+AA19+AB19 -> 0 | AC19: =AD19+AE19+AF19+AG19+AH19 -> 0 | AI19: =AJ19*$AJ$3+AK19*$AK$3 ->  | AJ19: =J19/AP19*AQ19 -> 0 | AK19: =AJ19*Основные_материалы_2015_полуг -> 0 | AP19: 1.024 | AQ19: 1.048
A20: 1.1.3.3 | B20: хозяйственный инвентарь и другие вспомогательные материалы | F20: =G20+H20+I20 -> 0 | M20: =N20+O20+P20 -> 0 | Q20: =W20*$U$3+AC20*$V$3 ->  | W20: =X20+Y20+Z20+AA20+AB20 -> 0 | AC20: =AD20+AE20+AF20+AG20+AH20 -> 0 | AI20: =AJ20*$AJ$3+AK20*$AK$3 ->  | AJ20: =J20/AP20*AQ20 -> 0 | AK20: =AJ20*Основные_материалы_2015_полуг -> 0 | AP20: 1.024 | AQ20: 1.048
A21: 1.2 | B21: расходы на топливо | C21: =топливо!E9 -> 0 | D21: =топливо!F9 -> 0 | E21: ='смета 2014'!E15 -> 0 | F21: =G21+H21+I21 -> 0 | G21: =топливо!H9 -> 0 | J21: ='смета 2014'!G15 -> 0 | K21: ='смета 2014'!H15 -> 0 | L21: ='смета 2014'!I15 -> 0 | M21: =N21+O21+P21 -> 0 | N21: =топливо!L9 -> 0 | Q21: =R21 ->  | R21: =топливо!Q9 ->  | S21: х | T21: х | U21: х | V21: х | W21: =X21 ->  | X21: =топливо!R9 ->  | Y21: х | Z21: х | AA21: х | AB21: х | AC21: =AD21 ->  | AD21: =топливо!S9 ->  | AE21: х | AF21: х | AG21: х | AH21: х | AI21: =топливо!Q9 ->  | AJ21: =топливо!R9 ->  | AK21: =топливо!S9 -> 
A22: 1.3 | B22: расходы на прочие покупаемые энергетические ресурсы, в том числе: | C22: =C23+C28 -> 0 | D22: =D23+D28 -> 0 | E22: =E23+E28 -> 0 | F22: =F23+F28 -> 0 | G22: =G23+G28 -> 0 | H22: 0 | I22: 0 | J22: 0 | K22: 0 | L22: 0 | M22: =M23+M28 -> 0 | N22: =N23+N28 -> 0 | O22: =O23+O28 -> 0 | P22: =P23+P28 -> 0 | Q22: =Q23+Q28 ->  | R22: =R23+R28 ->  | W22: =W23+W28 ->  | X22: =X23+X28 ->  | Z22: 0 | AA22: =AA23+AA28 -> 0 | AB22: 0 | AC22: =AC23+AC28 ->  | AD22: =AD23+AD28 ->  | AE22: =AE23+AE28 ->  | AF22: =AF23+AF28 -> 0 | AG22: =AG23+AG28 -> 0 | AH22: =AH23+AH28 -> 0 | AI22: =AI23+AI28 -> 
A23: 1.3.1 | B23: электрическая энергия, в том числе: | C23: =C24+C25 -> 0 | D23: =D24+D25 -> 0 | E23: =E24+E25 -> 0 | F23: =F24+F25 -> 0 | G23: =G24+G25 -> 0 | H23: =H25 -> 0 | I23: =I25 -> 0 | J23: =J24+J25 -> 0 | K23: 0 | L23: 0 | M23: =M24+M25 -> 0 | N23: =N24+N25 -> 0 | O23: =O25 -> 0 | P23: =P25 -> 0 | Q23: =Q24+Q25 ->  | R23: =R24+R25 ->  | S23: =S24+S25 ->  | T23: =T25 ->  | U23: =U25 ->  | V23: =V25 ->  | W23: =W24+W25 ->  | X23: =X24+X25 ->  | Y23: =Y24+Y25 ->  | Z23: =Z25 -> 0 | AA23: =AA25 -> 0 | AB23: 0 | AC23: =AC24+AC25 ->  | AD23: =AD24+AD25 ->  | AE23: =AE24+AE25 ->  | AF23: =AF25 -> 0 | AG23: =AG25 -> 0 | AH23: 0 | AI23: =AI24+AI25 ->  | AJ23: =AJ24+AJ25 ->  | AK23: =AK24+AK25 -> 
A24: 1.3.1.1 | B24: на технологические нужды | C24: =эл.эн.!C7 -> 0 | D24: =эл.эн.!D7 -> 0 | E24: ='смета 2014'!E18 -> 0 | F24: =G24 -> 0 | G24: =эл.эн.!F7 -> 0 | H24: х | I24: х | J24: ='смета 2014'!G18 -> 0 | K24: ='смета 2014'!H18 -> 0 | L24: ='смета 2014'!I18 -> 0 | M24: =N24 -> 0 | N24: =эл.эн.!J7 -> 0 | O24: х | P24: х | Q24: =R24+S24 ->  | R24: =эл.эн.!P8-S24 ->  | S24: =эл.эн.!P10 ->  | T24: х | U24: х | V24: х | W24: =X24+Y24 ->  | X24: =эл.эн.!Q8-Y24 ->  | Y24: =эл.эн.!Q10 ->  | Z24: х | AA24: х | AB24: х | AC24: =AD24+AE24 ->  | AD24: =эл.эн.!R8-AE24 ->  | AE24: =эл.эн.!R10 ->  | AF24: х | AG24: х | AH24: х | AI24: =эл.эн.!P8 -> 0 | AJ24: =эл.эн.!Q8 ->  | AK24: =эл.эн.!R8 -> 
A25: 1.3.1.2 | B25: на хозяйственные нужды | C25: =C26*C27 -> 0 | D25: =D26*D27 -> 0 | E25: 0 | F25: =G25+H25+I25 -> 0 | G25: =G26*G27 -> 0 | H25: =H26*H27 -> 0 | I25: =I26*I27 -> 0 | J25: ='смета 2014'!G19 -> 0 | K25: ='смета 2014'!H19 -> 0 | L25: ='смета 2014'!I19 -> 0 | M25: =N25+O25+P25 -> 0 | N25: =N26*N27 -> 0 | O25: =O26*O27 -> 0 | P25: =P26*P27 -> 0 | Q25: =W25*$U$3+AC25*$V$3 ->  | R25: =X25*$U$3+AD25*$V$3 ->  | S25: =Y25*$U$3+AE25*$V$3 ->  | T25: =Z25*$U$3+AF25*$V$3 ->  | U25: =AA25*$U$3+AG25*$V$3 ->  | V25: =AB25*$U$3+AH25*$V$3 ->  | W25: =X25+Y25+Z25+AA25+AB25 -> 0 | X25: =X26*X27 -> 0 | Y25: =Y26*Y27 -> 0 | Z25: 0 | AA25: 0 | AB25: 0 | AC25: =AD25+AE25+AF25+AG25+AH25 -> 0 | AD25: =AD26*AD27 -> 0 | AE25: =AE26*AE27 -> 0 | AF25: 0 | AG25: 0 | AH25: 0 | AI25: =AJ25*$AJ$3+AK25*$AK$3 ->  | AJ25: =J25/AP25*AQ25 -> 0 | AK25: =AJ25*электроэнергия_2015_полуг -> 0 | AP25: 1.036 | AQ25: 1.072
A26: 1.3.1.2.1 | B26: объем электрической энергии на хозяйственные нужды, кВт*ч | F26: =G26+H26+I26 -> 0 | J26: х | K26: х | L26: х | M26: =N26+O26+P26 -> 0 | Q26: =R26+S26+T26+U26+V26 -> 0 | R26: =X26 -> 0 | S26: =Y26 -> 0 | T26: 0 | U26: 0 | V26: 0 | W26: =X26+Y26+Z26+AA26+AB26 -> 0 | AC26: =AD26+AE26+AF26+AG26+AH26 -> 0 | AD26: =X26 -> 0 | AE26: =Y26 -> 0 | AF26: 0 | AG26: 0 | AH26: 0 | AI26: х | AJ26: х | AK26: х
A27: 1.3.1.2.2 | B27: тариф на электрическую энергию на хозяйственные нужды, руб/ кВт*ч | F27: =F25/F26 ->  | J27: х | K27: х | L27: х | M27: =M25/M26 ->  | Q27: =Q25/Q26 ->  | R27: =R25/R26 ->  | W27: =W25/W26 ->  | AC27: =AC25/AC26 ->  | AD27: =X27*электроэнергия_2015_полуг -> 0 | AE27: =Y27*электроэнергия_2015_полуг -> 0 | AF27: =Z27*электроэнергия_2015_полуг -> 0 | AG27: =AA27*электроэнергия_2015_полуг -> 0 | AH27: =AB27*электроэнергия_2015_полуг -> 0 | AI27: х | AJ27: х | AK27: х
A28: 1.3.2 | B28: покупная тепловая энергия, в том числе: | C28: =C29+C30 -> 0 | D28: =D29+D30 -> 0 | E28: =E29+E30 -> 0 | F28: =F29+F30 -> 0 | G28: =G29+G30 -> 0 | H28: =H30 -> 0 | I28: =I30 -> 0 | J28: =J29+J30 -> 0 | K28: 0 | L28: 0 | M28: =M29+M30 -> 0 | N28: =N29+N30 -> 0 | O28: =O30 -> 0 | P28: =P30 -> 0 | Q28: =Q29+Q30 ->  | R28: =R30 ->  | S28: =S29+S30 ->  | T28: =T29+T30 ->  | U28: =U30 ->  | V28: =V30 ->  | W28: =W29+W30 -> 0 | X28: =X30 -> 0 | Y28: =Y29+Y30 -> 0 | Z28: 0 | AA28: =AA30 -> 0 | AB28: =AB30 -> 0 | AC28: =AC29+AC30 -> 0 | AD28: =AD30 -> 0 | AE28: =AE29+AE30 -> 0 | AF28: =AF29+AF30 -> 0 | AG28: =AG30 -> 0 | AH28: =AH30 -> 0 | AI28: =AI29+AI30 ->  | AJ28: =AJ29+AJ30 -> 0 | AK28: 0
A29: 1.3.2.1 | B29: на технологические нужды | E29: ='смета 2014'!E21 -> 0 | F29: =G29 -> 0 | G29: ='покупка ТЭ'!F9 -> 0 | H29: х | I29: х | J29: ='смета 2014'!G21 -> 0 | K29: ='смета 2014'!H21 -> 0 | L29: ='смета 2014'!I21 -> 0 | M29: =N29 -> 0 | N29: ='покупка ТЭ'!F21 -> 0 | O29: х | P29: х | Q29: =S29+T29 -> 0 | R29: х | S29: ='покупка ТЭ'!I32 -> 0 | T29: ='покупка ТЭ'!I28-'покупка ТЭ'!I32 -> 0 | U29: х | V29: х | W29: =Y29+Z29 -> 0 | X29: х | Y29: ='покупка ТЭ'!L32 -> 0 | Z29: ='покупка ТЭ'!L28-'покупка ТЭ'!L32 -> 0 | AA29: х | AB29: х | AC29: =AE29+AF29 -> 0 | AD29: х | AE29: ='покупка ТЭ'!O32 -> 0 | AF29: ='покупка ТЭ'!O28-'покупка ТЭ'!O32 -> 0 | AG29: х | AH29: х | AI29: ='покупка ТЭ'!I28 -> 0 | AJ29: ='покупка ТЭ'!L28 -> 0 | AK29: ='покупка ТЭ'!O28 -> 0
A30: 1.3.2.2 | B30: на хозяйственные нужды | C30: =C31*C32 -> 0 | D30: =D31*D32 -> 0 | E30: =E31*E32 -> 0 | F30: =G30+H30+I30 -> 0 | G30: =G31*G32 -> 0 | H30: =H31*H32 -> 0 | I30: =I31*I32 -> 0 | J30: ='смета 2014'!G22 -> 0 | K30: ='смета 2014'!H22 -> 0 | L30: ='смета 2014'!I22 -> 0 | M30: =N30+O30+P30 -> 0 | N30: =N31*N32 -> 0 | O30: =O31*O32 -> 0 | P30: =P31*P32 -> 0 | Q30: =W30*$U$3+AC30*$V$3 ->  | R30: =X30*$U$3+AD30*$V$3 ->  | S30: =Y30*$U$3+AE30*$V$3 ->  | T30: =Z30*$U$3+AF30*$V$3 ->  | U30: =AA30*$U$3+AG30*$V$3 ->  | V30: =AB30*$U$3+AH30*$V$3 ->  | W30: =X30+Y30+Z30+AA30+AB30 -> 0 | X30: =X31*X32 -> 0 | Y30: =Y31*Y32 -> 0 | Z30: 0 | AA30: 0 | AB30: =AB31*AB32 -> 0 | AC30: =AD30+AE30+AF30+AG30+AH30 -> 0 | AD30: =AD31*AD32 -> 0 | AE30: =AE31*AE32 -> 0 | AF30: =AF31*AF32 -> 0 | AG30: =AG31*AG32 -> 0 | AH30: =AH31*AH32 -> 0 | AI30: =AJ30*$AJ$3+AK30*$AK$3 ->  | AJ30: =J30/AP30*AQ30 -> 0 | AK30: =AJ30*теплоэнергия_2015_полуг -> 0 | AP30: 1.023 | AQ30: 1.046
A31: 1.3.2.2.1 | B31: объем тепловой энергии на хозяйственные нужды, Гкал | F31: =G31+H31+I31 -> 0 | J31: х | K31: х | L31: х | M31: =N31+O31+P31 -> 0 | Q31: =SUM(R31:V31) -> 0 | R31: =X31 -> 0 | S31: =Y31 -> 0 | T31: 0 | U31: 0 | V31: 0 | W31: =SUM(X31:AB31) -> 0 | AC31: =SUM(AD31:AH31) -> 0 | AD31: =X31 -> 0 | AE31: =Y31 -> 0 | AF31: 0 | AG31: 0 | AH31: 0 | AI31: х | AJ31: х | AK31: х
A32: 1.3.2.2.2 | B32: тариф на тепловую энергию на хозяйственные нужды, руб/ Гкал | F32: =F30/F31 ->  | J32: х | K32: х | L32: х | M32: =M30/M31 ->  | Q32: =Q30/Q31 ->  | R32: =R30/R31 ->  | W32: =W30/W31 ->  | AC32: =AC30/AC31 ->  | AD32: =X32*теплоэнергия_2015_полуг -> 0 | AE32: =Y32*теплоэнергия_2015_полуг -> 0 | AF32: =Z32*теплоэнергия_2015_полуг -> 0 | AG32: =AA32*теплоэнергия_2015_полуг -> 0 | AH32: =AB32*теплоэнергия_2015_полуг -> 0 | AI32: х | AJ32: х | AK32: х
A33: 1.4 | B33: расходы на холодную воду | C33: =C34*C35 -> 0 | D33: =D34*D35 -> 0 | E33: ='смета 2014'!E23 -> 0 | F33: =G33+H33+I33 -> 0 | G33: =G34*G35 -> 0 | H33: =H34*H35 -> 0 | I33: =I34*I35 -> 0 | J33: ='смета 2014'!G23 -> 0 | K33: ='смета 2014'!H23 -> 0 | L33: ='смета 2014'!I23 -> 0 | M33: =N33+O33+P33 -> 0 | N33: =N34*N35 -> 0 | O33: =O34*O35 -> 0 | P33: =P34*P35 -> 0 | Q33: =R33+S33+T33+U33+V33 ->  | R33: ='вода без ХВО'!H16 -> 0 | S33: 0 | T33: =Z33*$U$3+AF33*$V$3 ->  | U33: =AA33*$U$3+AG33*$V$3 ->  | V33: =AB33*$U$3+AH33*$V$3 ->  | W33: =X33+Y33+Z33+AA33+AB33 -> 0 | X33: =X34*X35 -> 0 | Y33: 0 | Z33: =Z34*Z35 -> 0 | AA33: 0 | AB33: 0 | AC33: =AD33+AE33+AF33+AG33+AH33 -> 0 | AD33: =AD34*AD35 -> 0 | AE33: 0 | AF33: =AF34*AF35 -> 0 | AG33: =AG34*AG35 -> 0 | AH33: =AH34*AH35 -> 0 | AI33: =AJ33*$AJ$3+AK33*$AK$3 ->  | AJ33: =J33/AP33*AQ33 -> 0 | AK33: =AJ33*вода_2015_полуг -> 0 | AP33: 1.0205 | AQ33: 1.041
A34: 1.4.1. | B34: объем холодной воды на технологические нужды | E34: ='смета 2014'!E24 -> 0 | F34: =G34+H34+I34 -> 0 | J34: ='смета 2014'!G24 -> 0 | K34: ='смета 2014'!H24 -> 0 | L34: ='смета 2014'!I24 -> 0 | M34: =N34+O34+P34 -> 0 | Q34: =R34+T34+U34+V34 -> 0 | R34: =X34 -> 0 | S34: =Y34 -> х | T34: 0 | U34: 0 | V34: 0 | W34: =X34+Z34+AA34+AB34 -> 0 | X34: ='вода без ХВО'!H10 -> 0 | Y34: х | AC34: =AD34+AF34+AG34+AH34 -> 0 | AD34: =X34 -> 0 | AE34: =Y34 -> х | AF34: =Z34 -> 0 | AG34: 0 | AH34: 0 | AI34: х | AJ34: х | AK34: х
A35: 1.4.2. | B35: тариф на холодную воду | E35: ='смета 2014'!E25 -> 0 | F35: =F33/F34 ->  | J35: ='смета 2014'!G25 -> 0 | K35: ='смета 2014'!H25 -> 0 | L35: ='смета 2014'!I25 -> 0 | M35: =M33/M34 ->  | Q35: =Q33/Q34 ->  | R35: =R33/R34 ->  | S35: х | T35: =T33/T34 ->  | U35: =U33/U34 ->  | W35: =W33/W34 ->  | X35: ='вода без ХВО'!I13 -> 0 | Y35: х | AC35: =AC33/AC34 ->  | AD35: ='вода без ХВО'!J13 -> 0 | AE35: х | AI35: х | AJ35: х | AK35: х
A36: 1.5 | B36: расходы на теплоноситель | C36: =C37*C38 -> 0 | D36: =D37*D38 -> 0 | E36: ='смета 2014'!E26 -> 0 | F36: =G36+H36+I36 -> 0 | G36: =G37*G38 -> 0 | H36: 0 | I36: 0 | J36: ='смета 2014'!G26 -> 0 | K36: ='смета 2014'!H26 -> 0 | L36: ='смета 2014'!I26 -> 0 | M36: =N36+O36+P36 -> 0 | N36: =N37*N38 -> 0 | O36: 0 | P36: 0 | Q36: =R36+S36+T36+U36+V36 -> 0 | R36: =R37*R38 -> 0 | S36: =S37*S38 -> 0 | T36: 0 | U36: 0 | V36: 0 | W36: =X36+Y36+Z36+AA36+AB36 -> 0 | X36: =X37*X38 -> 0 | Y36: =Y37*Y38 -> 0 | Z36: =Z37*Z38 -> 0 | AA36: 0 | AB36: 0 | AC36: =AD36+AE36+AF36+AG36+AH36 -> 0 | AD36: =AD37*AD38 -> 0 | AE36: =AE37*AE38 -> 0 | AF36: =AF37*AF38 -> 0 | AG36: 0 | AH36: 0 | AI36: =AJ36*$AJ$3+AK36*$AK$3 ->  | AJ36: =J36/AP36*AQ36 -> 0 | AK36: =AJ36*вода_2015_полуг -> 0 | AP36: 1.023 | AQ36: 1.046
A37: 1.5.1. | B37: объем теплоносителя на технологические нужды | E37: ='смета 2014'!E27 -> 0 | F37: =G37 -> 0 | G37: ='Смета ХОВ '!D10+'Смета ХОВ '!D12 -> 0 | H37: х | I37: х | J37: ='смета 2014'!G27 -> 0 | K37: ='смета 2014'!H27 -> 0 | L37: ='смета 2014'!I27 -> 0 | M37: =N37 -> 0 | N37: ='Смета ХОВ '!G10+'Смета ХОВ '!G12 -> 0 | O37: х | P37: х | Q37: =R37+S37+T37 -> 0 | R37: ='теплоноситель (на источнике)'!$N$28+'теплоноситель (на источнике)'!$N$29 -> 0 | U37: х | V37: х | W37: =X37+Y37+Z37 -> 0 | X37: ='теплоноситель (на источнике)'!$N$28+'теплоноситель (на источнике)'!$N$29 -> 0 | AA37: х | AB37: х | AC37: =AD37+AE37+AF37 -> 0 | AD37: ='теплоноситель (на источнике)'!$N$28+'теплоноситель (на источнике)'!$N$29 -> 0 | AG37: х | AH37: х | AI37: х | AJ37: х | AK37: х
A38: 1.5.2. | B38: тариф на теплоноситель | E38: ='смета 2014'!E28 -> 0 | F38: =F36/F37 ->  | G38: =IF(G37>0,'Смета ХОВ '!F36,0) -> 0 | H38: х | I38: х | J38: ='смета 2014'!G28 -> 0 | K38: ='смета 2014'!H28 -> 0 | L38: ='смета 2014'!I28 -> 0 | M38: =M36/M37 ->  | N38: =IF(N37>0,'Смета ХОВ '!I36,0) -> 0 | O38: х | P38: х | Q38: =Q36/Q37 ->  | R38: ='теплоноситель (на источнике)'!N146 -> 0 | U38: х | V38: х | W38: =W36/W37 ->  | X38: ='теплоноситель (на источнике)'!Q146 -> 0 | AA38: х | AB38: х | AC38: =AC36/AC37 ->  | AD38: ='теплоноситель (на источнике)'!T146 -> 0 | AG38: х | AH38: х | AI38: х | AJ38: х | AK38: х
A39: 1.6 | B39: амортизация основных средств и нематериальных активов, в том числе: | C39: =C40+C41 -> 0 | D39: =D40+D41 -> 0 | E39: =E40+E41 -> 0 | F39: =F40+F41 -> 0 | G39: =G40+G41 -> 0 | H39: 0 | I39: 0 | J39: =J40+J41 -> 0 | K39: 0 | L39: 0 | M39: =M40+M41 -> 0 | N39: =N40+N41 -> 0 | O39: =O40+O41 -> 0 | P39: =P40+P41 -> 0 | Q39: =W39*$U$3+AC39*$V$3 ->  | R39: =X39*$U$3+AD39*$V$3 ->  | S39: =Y39*$U$3+AE39*$V$3 ->  | T39: =Z39*$U$3+AF39*$V$3 ->  | U39: =AA39*$U$3+AG39*$V$3 ->  | V39: =AB39*$U$3+AH39*$V$3 ->  | W39: =W40+W41 -> 0 | X39: =X40+X41 -> 0 | Y39: 0 | Z39: 0 | AA39: 0 | AB39: 0 | AC39: =AC40+AC41 -> 0 | AD39: =AD40+AD41 -> 0 | AE39: =AE40+AE41 -> 0 | AF39: =AF40+AF41 -> 0 | AG39: =AG40+AG41 -> 0 | AH39: =AH40+AH41 -> 0 | AI39: =AI40+AI41 ->  | AJ39: =AJ40+AJ41 -> 0 | AK39: 0
A40: 1.6.1. | B40: амортизация основных средств | E40: ='смета 2014'!E30 -> 0 | F40: =G40+H40+I40 -> 0 | G40: =Амортизация!E19-'Смета ХОВ '!F30 -> 0 | J40: ='смета 2014'!G30 -> 0 | K40: ='смета 2014'!H30 -> 0 | L40: ='смета 2014'!I30 -> 0 | M40: =N40+O40+P40 -> 0 | N40: =Амортизация!J19-'Смета ХОВ '!I30 -> 0 | W40: =X40+Y40+Z40+AA40+AB40 -> 0 | AC40: =AD40+AE40+AF40+AG40+AH40 -> 0 | AI40: =AJ40*$AJ$3+AK40*$AK$3 ->  | AJ40: =J40/AP40*AQ40 -> 0 | AK40: =AJ40*амортизация_2015_полуг -> 0 | AP40: 1 | AQ40: 1
A41: 1.6.2. | B41: амортизация прочего имущества | E41: ='смета 2014'!E31 -> 0 | F41: =G41+H41+I41 -> 0 | J41: ='смета 2014'!G31 -> 0 | K41: ='смета 2014'!H31 -> 0 | L41: ='смета 2014'!I31 -> 0 | M41: =N41+O41+P41 -> 0 | Q41: =W41*$U$3+AC41*$V$3 ->  | W41: =X41+Y41+Z41+AA41+AB41 -> 0 | AC41: =AD41+AE41+AF41+AG41+AH41 -> 0 | AI41: =AJ41*$AJ$3+AK41*$AK$3 ->  | AJ41: =J41/AP41*AQ41 -> 0 | AK41: =AJ41*амортизация_2015_полуг -> 0 | AP41: 1 | AQ41: 1
A42: 1.7 | B42: оплата труда всего, в том числе: | C42: =C43+C46 -> 0 | D42: =D43+D46 -> 0 | E42: =E43+E46 -> 0 | F42: =G42+H42+I42 -> 0 | G42: =G43 -> 0 | H42: =H46 -> 0 | I42: =I43 -> 0 | J42: =J43+J46 -> 0 | K42: 0 | L42: 0 | M42: =N42+O42+P42 -> 0 | N42: =N43 -> 0 | O42: =O46 -> 0 | P42: =P43 -> 0 | Q42: =W42*$U$3+AC42*$V$3 ->  | R42: =X42*$U$3+AD42*$V$3 ->  | S42: =Y42*$U$3+AE42*$V$3 ->  | T42: =Z42*$U$3+AF42*$V$3 ->  | U42: =AA42*$U$3+AG42*$V$3 ->  | V42: =AB42*$U$3+AH42*$V$3 ->  | W42: =X42+Y42+Z42+AA42+AB42 ->  | X42: =X43 ->  | Y42: =Y43 ->  | Z42: =Z43 -> 0 | AA42: =AA46 ->  | AB42: =AB43 -> 0 | AC42: =AD42+AE42+AF42+AG42+AH42 ->  | AD42: =AD43 ->  | AE42: =AE43 ->  | AF42: =AF43 -> 0 | AG42: =AG46 ->  | AH42: =AH43 -> 0 | AI42: =AI43+AI46 ->  | AJ42: =AJ43+AJ46 -> 0 | AK42: 0
A43: 1.7.1 | B43: оплата труда производственного персонала | C43: ='ФОТ ПП'!D39 -> 0 | D43: ='ФОТ ПП'!E39 -> 0 | E43: ='смета 2014'!E33 -> 0 | F43: =G43+I43 -> 0 | G43: ='ФОТ ПП'!G39 -> 0 | H43: х | J43: ='смета 2014'!G33 -> 0 | K43: ='смета 2014'!H33 -> 0 | L43: ='смета 2014'!I33 -> 0 | M43: =N43+P43 -> 0 | N43: ='ФОТ ПП'!K39 -> 0 | O43: х | Q43: =W43*$U$3+AC43*$V$3 ->  | U43: х | W43: =X43+Y43+Z43+AB43 ->  | X43: ='ФОТ ПП'!M41*2 ->  | Y43: ='ФОТ ПП'!M42*2 ->  | AA43: х | AC43: =AD43+AE43+AF43+AH43 ->  | AD43: ='ФОТ ПП'!N41*2 ->  | AE43: ='ФОТ ПП'!N42*2 ->  | AG43: х | AI43: =AJ43*AJ3+AK43*AK3 ->  | AJ43: =J43/AP43*AQ43 -> 0 | AK43: =AJ43*оплата_труда_2015_полуг -> 0 | AP43: 1.028 | AQ43: 1.056
A44: 1.7.1.1. | B44: численность производственного персонала (ПП) | C44: ='ФОТ ПП'!D12 -> 0 | D44: ='ФОТ ПП'!E12 -> 0 | E44: ='смета 2014'!E34 -> 0 | F44: =G44+I44 -> 0 | G44: ='ФОТ ПП'!G12 -> 0 | H44: х | J44: ='смета 2014'!G34 -> 0 | K44: ='смета 2014'!H34 -> 0 | L44: ='смета 2014'!I34 -> 0 | M44: =N44+P44 -> 0 | N44: ='ФОТ ПП'!K12 -> 0 | O44: х | Q44: ='ФОТ ПП'!L12 -> 0 | R44: =$Q$44 -> 0 | S44: =$Q$44 -> 0 | T44: 0 | U44: х | V44: 0 | W44: =X44+Y44+Z44+AB44 -> 0 | X44: ='ФОТ ПП'!M13 -> 0 | Y44: ='ФОТ ПП'!M14 -> 0 | AA44: х | AC44: =AD44+AE44+AF44+AH44 -> 0 | AD44: ='ФОТ ПП'!N10 -> 0 | AE44: ='ФОТ ПП'!N11 -> 0 | AG44: х | AI44: =J44 -> 0 | AJ44: =$AI$44 -> 0 | AK44: =$AI$44 -> 0
A45: 1.7.1.2. | B45: средняя заработная плата ПП | C45: =C43/C44/12 ->  | D45: =D43/D44/12 ->  | E45: =IF(E44=0,0,E43/E44/12) -> 0 | F45: 0 | G45: 0 | H45: х | I45: =IF(I44=0,0,I43/I44/12) -> 0 | J45: 0 | K45: =IF(K44=0,0,K43/K44/6) -> 0 | L45: =IF(L44=0,0,L43/L44/6) -> 0 | M45: =IF(M44=0,0,M43/M44/12) -> 0 | N45: 0 | O45: х | P45: 0 | Q45: =IF(Q44=0,0,Q43/Q44/12) -> 0 | R45: 0 | S45: 0 | T45: 0 | U45: х | V45: 0 | W45: =IF(W44=0,0,W43/W44/12) -> 0 | X45: =IF(X44=0,0,X43/X44/12) -> 0 | Y45: =IF(Y44=0,0,Y43/Y44/12) -> 0 | Z45: =IF(Z44=0,0,Z43/Z44/12) -> 0 | AA45: х | AB45: =IF(AB44=0,0,AB43/AB44/12) -> 0 | AC45: =IF(AC44=0,0,AC43/AC44/12) -> 0 | AD45: =IF(AD44=0,0,AD43/AD44/12) -> 0 | AE45: =IF(AE44=0,0,AE43/AE44/12) -> 0 | AF45: =IF(AF44=0,0,AF43/AF44/12) -> 0 | AG45: х | AH45: =IF(AH44=0,0,AH43/AH44/12) -> 0 | AI45: 0 | AJ45: =IF(AJ44=0,0,AJ43/AJ44/6) -> 0 | AK45: =IF(AK44=0,0,AK43/AK44/6) -> 0
A46: 1.7.2 | B46: оплата труда административно-управленческого персонала | C46: =' ФОТ АУП'!D39 -> 0 | D46: =' ФОТ АУП'!E39 -> 0 | E46: ='смета 2014'!E82 -> 0 | F46: =H46 -> 0 | G46: х | H46: =' ФОТ АУП'!G39 -> 0 | I46: х | J46: ='смета 2014'!G82 -> 0 | K46: ='смета 2014'!H82 -> 0 | L46: ='смета 2014'!I82 -> 0 | M46: =O46 -> 0 | N46: х | O46: =' ФОТ АУП'!K39 -> 0 | P46: х | Q46: =W46*$U$3+AC46*$V$3 ->  | R46: х | S46: х | T46: х | U46: =AA46*$U$3+AG46*$V$3 ->  | V46: х | W46: =AA46 ->  | X46: х | Y46: х | Z46: х | AA46: =' ФОТ АУП'!M39*2 ->  | AB46: х | AC46: =AG46 ->  | AD46: х | AE46: х | AF46: х | AG46: =' ФОТ АУП'!N39*2 ->  | AH46: х | AI46: =AJ46*$AJ$3+AK46*AK3 ->  | AJ46: =J46/AP46*AQ46 -> 0 | AK46: =AJ46*оплата_труда_2015_полуг -> 0 | AP46: 1.028 | AQ46: 1.056
A47: 1.7.2.1. | B47: численность административно-управленческого персонала (АУП) | C47: =' ФОТ АУП'!D12 -> 0 | D47: =' ФОТ АУП'!E12 -> 0 | E47: ='смета 2014'!E83 -> 0 | F47: =H47 -> 0 | G47: х | H47: =' ФОТ АУП'!G12 -> 0 | I47: х | J47: ='смета 2014'!G83 -> 0 | K47: ='смета 2014'!H83 -> 0 | L47: ='смета 2014'!I83 -> 0 | M47: =O47 -> 0 | N47: х | O47: =' ФОТ АУП'!K12 -> 0 | P47: х | Q47: =' ФОТ АУП'!L12 -> 0 | R47: х | S47: х | T47: х | U47: =$Q$47 -> 0 | V47: х | W47: =AA47 -> 0 | X47: х | Y47: х | Z47: х | AA47: =' ФОТ АУП'!M12 -> 0 | AB47: х | AC47: =AG47 -> 0 | AD47: х | AE47: х | AF47: х | AG47: =' ФОТ АУП'!N12 -> 0 | AH47: х | AI47: =J47 -> 0 | AJ47: =$AI$47 -> 0 | AK47: =$AI$47 -> 0
A48: 1.7.2.2. | B48: средняя заработная плата АУП | C48: =C46/C47/12 ->  | D48: =D46/D47/12 ->  | E48: =IF(E47=0,0,E46/E47/12) -> 0 | F48: =IF(F47=0,0,F46/F47/12) -> 0 | G48: х | H48: =IF(H47=0,0,H46/H47/12) -> 0 | I48: х | J48: =IF(J47=0,0,J46/J47/12) -> 0 | K48: =IF(K47=0,0,K46/K47/6) -> 0 | L48: =IF(L47=0,0,L46/L47/6) -> 0 | M48: =IF(M47=0,0,M46/M47/12) -> 0 | N48: х | O48: =IF(O47=0,0,O46/O47/12) -> 0 | P48: х | Q48: =IF(Q47=0,0,Q46/Q47/12) -> 0 | R48: х | S48: х | T48: х | U48: =IF(U47=0,0,U46/U47/12) -> 0 | V48: х | W48: 0 | X48: х | Y48: х | Z48: х | AA48: =IF(AA47=0,0,AA46/AA47/12) -> 0 | AB48: х | AC48: 0 | AD48: х | AE48: х | AF48: х | AG48: =IF(AG47=0,0,AG46/AG47/12) -> 0 | AH48: х | AI48: =IF(AI47=0,0,AI46/AI47/12) -> 0 | AJ48: =IF(AJ47=0,0,AJ46/AJ47/6) -> 0 | AK48: =IF(AK47=0,0,AK46/AK47/6) -> 0
A49: 1.8 | B49: отчисления на социальные нужды всего, в том числе: | C49: =C50+C51 -> 0 | D49: =D50+D51 -> 0 | E49: =E50+E51 -> 0 | F49: =F50+F51 -> 0 | G49: =G50 -> 0 | H49: =H51 -> 0 | I49: =I50 -> 0 | J49: =J50+J51 -> 0 | K49: 0 | L49: 0 | M49: =M50+M51 -> 0 | N49: =N50 -> 0 | O49: =O51 -> 0 | P49: =P50 -> 0 | Q49: =W49*$U$3+AC49*$V$3 ->  | R49: =X49*$U$3+AD49*$V$3 ->  | S49: =Y49*$U$3+AE49*$V$3 ->  | T49: =Z49*$U$3+AF49*$V$3 ->  | U49: =AA49*$U$3+AG49*$V$3 ->  | V49: =AB49*$U$3+AH49*$V$3 ->  | W49: =X49+Y49+Z49+AA49+AB49 ->  | X49: =X50 ->  | Y49: =Y50 ->  | Z49: 0 | AA49: =AA51 ->  | AB49: =AB50 -> 0 | AC49: =AD49+AE49+AF49+AG49+AH49 ->  | AD49: =AD50 ->  | AE49: =AE50 ->  | AF49: =AF50 -> 0 | AG49: =AG51 ->  | AH49: =AH50 -> 0 | AI49: =AI50+AI51 ->  | AJ49: =AJ50+AJ51 -> 0 | AK49: 0
A50: 1.8.1.1. | B50: отчисления на социальные нужды от фонда оплаты производственного персонала | E50: ='смета 2014'!E37 -> 0 | F50: =G50+I50 -> 0 | H50: х | J50: ='смета 2014'!G37 -> 0 | K50: ='смета 2014'!H37 -> 0 | L50: ='смета 2014'!I37 -> 0 | M50: =N50+P50 -> 0 | N50: =(N52+N53)/100*N43 -> 0 | O50: х | P50: =(P52+P53)/100*P43 -> 0 | Q50: =W50*$U$3+AC50*$V$3 ->  | U50: х | W50: =X50+Y50+Z50+AB50 ->  | X50: =(X52+X53)/100*X43 ->  | Y50: =(Y52+Y53)/100*Y43 ->  | Z50: 0 | AA50: х | AB50: =(AB52+AB53)/100*AB43 -> 0 | AC50: =AD50+AE50+AF50+AH50 ->  | AD50: =(AD52+AD53)/100*AD43 ->  | AE50: =(AE52+AE53)/100*AE43 ->  | AF50: 0 | AG50: х | AH50: =(AH52+AH53)/100*AH43 -> 0 | AI50: =AJ50*$AJ$3+AK50*AK3 ->  | AJ50: =J50/AP50*AQ50 -> 0 | AK50: =AJ50*оплата_труда_2015_полуг -> 0 | AP50: 1.028 | AQ50: 1.056
A51: 1.8.1.2. | B51: отчисления на социальные нужды от фонда оплаты административно-управленческого персонала | E51: ='смета 2014'!E85 -> 0 | F51: =H51 -> 0 | G51: х | I51: х | J51: ='смета 2014'!G85 -> 0 | K51: ='смета 2014'!H85 -> 0 | L51: ='смета 2014'!I85 -> 0 | M51: =O51 -> 0 | N51: х | O51: =(O52+O53)/100*O46 -> 0 | P51: х | Q51: х | R51: х | S51: х | T51: х | V51: х | W51: =AA51 ->  | X51: х | Y51: х | Z51: х | AA51: =(AA52+AA53)/100*AA46 ->  | AB51: х | AC51: =AG51 ->  | AD51: х | AE51: х | AF51: х | AG51: =(AG52+AG53)/100*AG46 ->  | AH51: х | AI51: =AJ51*$AJ$3+AK51*AK3 ->  | AJ51: =J51/AP51*AQ51 -> 0 | AK51: =AJ51*оплата_труда_2015_полуг -> 0 | AP51: 1.028 | AQ51: 1.056
A52: 1.8.2 | B52: % расходов на уплату страховых взносов в ПФ, ФСС, ОМС | E52: =ставки!E11 -> 0 | J52: =ставки!E12 -> 0 | K52: =$J$52 -> 0 | L52: =$J$52 -> 0 | M52: =ставки!E13 -> 0 | N52: =$M$52 -> 0 | O52: =$M$52 -> 0 | P52: =$M$52 -> 0 | Q52: =W52 -> 0 | R52: =$Q$52 -> 0 | S52: =$Q$52 -> 0 | T52: 0 | U52: 0 | V52: 0 | W52: =ставки!$E$14 -> 0 | X52: =$W$52 -> 0 | Y52: =$W$52 -> 0 | Z52: 0 | AA52: 0 | AB52: 0 | AC52: =ставки!$E$14 -> 0 | AD52: =$W$52 -> 0 | AE52: =$W$52 -> 0 | AF52: 0 | AG52: 0 | AH52: 0 | AI52: =ставки!E14 -> 0 | AJ52: =$J$52 -> 0 | AK52: =$J$52 -> 0
A53: 1.8.3 | B53: % платежей в фонд социального страхования от несчастных случаев | E53: =ставки!F11 -> 0 | J53: =ставки!F12 -> 0 | K53: =$J$53 -> 0 | L53: =$J$53 -> 0 | M53: =ставки!F13 -> 0 | N53: =$M$53 -> 0 | O53: =$M$53 -> 0 | P53: 0 | Q53: =W53 -> 0 | R53: =$Q$52 -> 0 | S53: 0 | T53: 0 | U53: 0 | V53: 0 | W53: =ставки!$F$14 -> 0 | X53: =$W$53 -> 0 | Y53: =$W$53 -> 0 | Z53: 0 | AA53: 0 | AB53: 0 | AC53: =ставки!$F$14 -> 0 | AD53: =$W$53 -> 0 | AE53: =$W$53 -> 0 | AF53: 0 | AG53: 0 | AH53: 0 | AI53: =ставки!F14 -> 0 | AJ53: =$J$53 -> 0 | AK53: =$J$53 -> 0
A54: 1.9 | B54: ремонт основных средств, выполняемый подрядным способом | E54: ='смета 2014'!E40 -> 0 | F54: =G54+H54+I54 -> 0 | G54: ='ремонт подр.'!H16+'ремонт подр.'!H46-'Смета ХОВ '!F21 -> 0 | J54: ='смета 2014'!G40 -> 0 | K54: ='смета 2014'!H40 -> 0 | L54: ='смета 2014'!I40 -> 0 | M54: =N54+O54+P54 -> 0 | N54: ='ремонт подр.'!H32+'ремонт подр.'!H65-'Смета ХОВ '!I21 -> 0 | Q54: =W54*$U$3+AC54*$V$3 ->  | R54: =X54*$U$3+AD54*$V$3 ->  | S54: =Y54*$U$3+AE54*$V$3 ->  | T54: =Z54*$U$3+AF54*$V$3 ->  | U54: =AA54*$U$3+AG54*$V$3 ->  | V54: =AB54*$U$3+AH54*$V$3 ->  | W54: =X54+Y54+Z54+AA54+AB54 -> 0 | AC54: =AD54+AE54+AF54+AG54+AH54 -> 0 | AI54: =AJ54*$AJ$3+AK54*$AK$3 ->  | AJ54: =J54/AP54*AQ54 -> 0 | AK54: =AJ54*работы_производственного_характера_2015_полуг -> 0 | AP54: 1.024 | AQ54: 1.048
A55: 1.10 | B55: расходы на оплату услуг, оказываемых организациями, осуществляющими регулируемую деятельность всего, в том числе | E55: ='смета 2014'!E41 -> 0 | F55: =G55 -> 0 | H55: х | I55: х | J55: ='смета 2014'!G41 -> 0 | K55: ='смета 2014'!H41 -> 0 | L55: ='смета 2014'!I41 -> 0 | M55: =N55 -> 0 | O55: х | P55: х | Q55: =W55*$U$3+AC55*$V$3 ->  | R55: =X55*$U$3+AD55*$V$3 ->  | S55: =Y55*$U$3+AE55*$V$3 ->  | T55: =Z55*$U$3+AF55*$V$3 ->  | U55: х | V55: х | W55: =X55+Y55+Z55 -> 0 | AA55: х | AB55: х | AC55: =AD55+AE55+AF55 -> 0 | AG55: х | AH55: х | AI55: =AJ55*$AJ$3+AK55*$AK$3 ->  | AJ55: =J55/AP55*AQ55 -> 0 | AK55: =AJ55*теплоэнергия_2015_полуг -> 0 | AP55: 1.023 | AQ55: 1.046
A56: 1.10.1. | E56: ='смета 2014'!E42 -> 0 | F56: ='смета 2014'!F42 -> 0 | J56: ='смета 2014'!G42 -> 0 | K56: ='смета 2014'!H42 -> 0 | L56: ='смета 2014'!I42 -> 0 | M56: ='смета 2014'!J42 -> 0 | Q56: =W56+AH56 -> 0 | AI56: ='смета 2014'!AF42 -> 0 | AJ56: ='смета 2014'!AG42 -> 0 | AK56: ='смета 2014'!AH42 -> 0
A57: 1.10.2. | E57: ='смета 2014'!E43 -> 0 | F57: ='смета 2014'!F43 -> 0 | J57: ='смета 2014'!G43 -> 0 | K57: ='смета 2014'!H43 -> 0 | L57: ='смета 2014'!I43 -> 0 | M57: ='смета 2014'!J43 -> 0 | Q57: =W57+AH57 -> 0 | AI57: ='смета 2014'!AF43 -> 0 | AJ57: ='смета 2014'!AG43 -> 0 | AK57: ='смета 2014'!AH43 -> 0
A58: 1.10.3. | E58: ='смета 2014'!E44 -> 0 | F58: ='смета 2014'!F44 -> 0 | J58: ='смета 2014'!G44 -> 0 | K58: ='смета 2014'!H44 -> 0 | L58: ='смета 2014'!I44 -> 0 | M58: ='смета 2014'!J44 -> 0 | Q58: =W58+AH58 -> 0 | AI58: ='смета 2014'!AF44 -> 0 | AJ58: ='смета 2014'!AG44 -> 0 | AK58: ='смета 2014'!AH44 -> 0
A59: 1.11 | B59: расходы на выполнение работ и услуг производственного характера (в том числе выполняемых по договорам со сторонними организациями или индивидуальными предпринимателями) всего, в том числе: | C59: =C60+C63+C64+C68 -> 0 | D59: =D60+D63+D64+D68 -> 0 | E59: =E60+E63+E64+E68 -> 0 | F59: =F63+F64+F68+F60 -> 0 | G59: =G63+G64+G68 -> 0 | H59: =H63+H64+H68+H60 -> 0 | I59: =I63+I64+I68+I60 -> 0 | J59: =J60+J63+J64+J68 -> 0 | K59: =K60+K63+K64+K68 -> 0 | L59: 0 | M59: =M63+M64+M68+M60 -> 0 | N59: =N63+N64+N68 -> 0 | O59: =O63+O64+O68+O60 -> 0 | P59: =P63+P64+P68+P60 -> 0 | Q59: =W59*$U$3+AC59*$V$3 ->  | R59: =X59*$U$3+AD59*$V$3 ->  | S59: =Y59*$U$3+AE59*$V$3 ->  | T59: =Z59*$U$3+AF59*$V$3 ->  | U59: =AA59*$U$3+AG59*$V$3 ->  | V59: =AB59*$U$3+AH59*$V$3 ->  | W59: =X59+Y59+Z59+AA59+AB59 -> 0 | X59: =X63+X64+X68 -> 0 | Y59: =Y63+Y64+Y68 -> 0 | Z59: =Z63+Z64+Z68 -> 0 | AA59: =AA63+AA64+AA68+AA60 -> 0 | AB59: =AB63+AB64+AB68+AB60 -> 0 | AC59: =AD59+AE59+AF59+AG59+AH59 -> 0 | AD59: =AD63+AD64+AD68 -> 0 | AE59: =AE63+AE64+AE68 -> 0 | AF59: =AF63+AF64+AF68 -> 0 | AG59: =AG63+AG64+AG68+AG60 -> 0 | AH59: =AH63+AH64+AH68+AH60 -> 0 | AI59: =AI60+AI63+AI64+AI68 ->  | AJ59: =AJ60+AJ63+AJ64+AJ68 -> 0 | AK59: 0
A60: 1.11.1 | B60: транспортные услуги, в том числе: | C60: =C61+C62 -> 0 | D60: =D61+D62 -> 0 | E60: =E61+E62 -> 0 | F60: =H60+I60 -> 0 | G60: =G61 -> х | H60: =H61+H62 -> 0 | I60: =I61 -> 0 | J60: =J61+J62 -> 0 | K60: =K61+K62 -> 0 | L60: 0 | M60: =O60+P60 -> 0 | N60: =N61 -> х | O60: =O61+O62 -> 0 | P60: =P61 -> 0 | Q60: =W60*$U$3+AC60*$V$3 ->  | R60: х | S60: х | T60: х | W60: =AA60+AB60 -> 0 | X60: х | Y60: х | Z60: х | AA60: =AA61+AA62 -> 0 | AB60: =AB61 -> 0 | AC60: =AG60+AH60 -> 0 | AD60: х | AE60: х | AF60: х | AG60: =AG61+AG62 -> 0 | AH60: =AH61 -> 0 | AI60: =AI61+AI62 ->  | AJ60: =AJ61+AJ62 -> 0 | AK60: =AK61+AK62 -> 0
A61: 1.11.1.1 | B61: по договорам | E61: ='смета 2014'!E47 -> 0 | F61: =H61+I61 -> 0 | G61: х | J61: ='смета 2014'!G47 -> 0 | K61: ='смета 2014'!H47 -> 0 | L61: ='смета 2014'!I47 -> 0 | M61: =O61+P61 -> 0 | N61: х | Q61: =W61*$U$3+AC61*$V$3 ->  | R61: х | S61: х | T61: х | W61: =AA61+AB61 -> 0 | X61: х | Y61: х | Z61: х | AC61: =AG61+AH61 -> 0 | AD61: х | AE61: х | AF61: х | AI61: =AJ61*$AJ$3+AK61*$AK$3 ->  | AJ61: =J61/AP61*AQ61 -> 0 | AK61: =AJ61*работы_производственного_характера_2015_полуг -> 0 | AP61: 1.024 | AQ61: 1.048
A62: 1.11.1.2 | B62: хозяйственным способом | E62: ='смета 2014'!E48 -> 0 | F62: =H62 -> 0 | G62: х | I62: х | J62: ='смета 2014'!G48 -> 0 | K62: ='смета 2014'!H48 -> 0 | L62: ='смета 2014'!I48 -> 0 | M62: =O62 -> 0 | N62: х | P62: х | R62: х | S62: х | T62: х | V62: х | W62: =AA62 -> 0 | X62: х | Y62: х | Z62: х | AB62: х | AC62: =AG62 -> 0 | AD62: х | AE62: х | AF62: х | AH62: х | AJ62: =J62/AP62*AQ62 -> 0 | AK62: 0 | AP62: 1.024 | AQ62: 1.048
A63: 1.11.2 | B63: регламентные работы | E63: ='смета 2014'!E49 -> 0 | F63: =G63+H63+I63 -> 0 | J63: ='смета 2014'!G49 -> 0 | K63: ='смета 2014'!H49 -> 0 | L63: ='смета 2014'!I49 -> 0 | M63: =N63+O63+P63 -> 0 | W63: =X63+Y63+Z63+AA63+AB63 -> 0 | AC63: =AD63+AE63+AF63+AG63+AH63 -> 0 | AI63: =AJ63*$AJ$3+AK63*$AK$3 ->  | AJ63: =J63/AP63*AQ63 -> 0 | AK63: 0 | AP63: 1.024 | AQ63: 1.048
A64: 1.11.3 | B64: прочие услуги вспомогательных производств, в том числе: | E64: ='смета 2014'!E50 -> 0 | F64: =G64+H64+I64 -> 0 | J64: ='смета 2014'!G50 -> 0 | K64: ='смета 2014'!H50 -> 0 | L64: ='смета 2014'!I50 -> 0 | M64: =N64+O64+P64 -> 0 | Q64: =W64*$U$3+AC64*$V$3 ->  | R64: =X64*$U$3+AD64*$V$3 ->  | S64: =Y64*$U$3+AE64*$V$3 ->  | T64: =Z64*$U$3+AF64*$V$3 ->  | U64: =AA64*$U$3+AG64*$V$3 ->  | V64: =AB64*$U$3+AH64*$V$3 ->  | W64: 0 | AC64: 0 | AI64: =AJ64*$AJ$3+AK64*$AK$3 ->  | AJ64: 0 | AK64: 0 | AP64: 1.024 | AQ64: 1.048
A65: 1.11.3.1 | E65: ='смета 2014'!E51 -> 0 | F65: 0 | J65: ='смета 2014'!G51 -> 0 | K65: ='смета 2014'!H51 -> 0 | L65: ='смета 2014'!I51 -> 0 | M65: =N65+O65+P65 -> 0 | W65: 0 | AC65: 0 | AI65: =AJ65*$AJ$3+AK65*AK53 ->  | AJ65: 0 | AK65: 0 | AP65: 1.024 | AQ65: 1.048
A66: 1.11.3.2 | E66: ='смета 2014'!E52 -> 0 | F66: 0 | J66: ='смета 2014'!G52 -> 0 | K66: ='смета 2014'!H52 -> 0 | L66: ='смета 2014'!I52 -> 0 | M66: 0 | W66: 0 | AC66: 0 | AJ66: 0 | AK66: 0 | AP66: 1.024 | AQ66: 1.048
A67: 1.11.3.3 | E67: ='смета 2014'!E53 -> 0 | F67: 0 | J67: ='смета 2014'!G53 -> 0 | K67: ='смета 2014'!H53 -> 0 | L67: ='смета 2014'!I53 -> 0 | M67: 0 | W67: 0 | AC67: 0 | AJ67: 0 | AK67: 0 | AP67: 1.024 | AQ67: 1.048
A68: 1.11.4 | B68: иные работы и услуги производственного характера | E68: ='смета 2014'!E54 -> 0 | F68: =G68+H68+I68 -> 0 | J68: ='смета 2014'!G54 -> 0 | K68: ='смета 2014'!H54 -> 0 | L68: ='смета 2014'!I54 -> 0 | M68: =N68+O68+P68 -> 0 | W68: =X68+Y68+Z68+AA68+AB68 -> 0 | AC68: =AD68+AE68+AF68+AG68+AH68 -> 0 | AI68: =AJ68*$AJ$3+AK68*$AK$3 ->  | AJ68: 0 | AK68: 0 | AP68: 1.024 | AQ68: 1.048
A69: 1.11.4.1 | E69: ='смета 2014'!E55 -> 0 | F69: ='смета 2014'!F55 -> 0 | J69: ='смета 2014'!G55 -> 0 | K69: ='смета 2014'!H55 -> 0 | L69: ='смета 2014'!I55 -> 0 | M69: ='смета 2014'!J55 -> 0 | AI69: ='смета 2014'!AF55 -> 0 | AJ69: ='смета 2014'!AG55 -> 0 | AK69: ='смета 2014'!AH55 -> 0
A70: 1.12 | B70: расходы на оплату иных работ и услуг, выполняемых по договорам с организациям, включая расходы на оплату услуг связи, вневедомственной охраны, коммунальных услуг, юридических, информационных, аудиторских и консультационных услуг всего, в том числе: | C70: =C71+C72+C73+C74+C75 -> 0 | D70: =D71+D72+D73+D74+D75 -> 0 | E70: =SUM(E71:E75) -> 0 | F70: =SUM(F71:F75) -> 0 | G70: =SUM(G71:G75) -> 0 | H70: 0 | I70: 0 | J70: =SUM(J71:J75) -> 0 | K70: =SUM(K71:K75) -> 0 | L70: 0 | M70: =SUM(M71:M75) -> 0 | N70: =SUM(N71:N75) -> 0 | O70: =SUM(O71:O75) -> 0 | P70: =SUM(P71:P75) -> 0 | Q70: =W70*$U$3+AC70*$V$3 ->  | R70: =X70*$U$3+AD70*$V$3 ->  | S70: =Y70*$U$3+AE70*$V$3 ->  | T70: =Z70*$U$3+AF70*$V$3 ->  | U70: =AA70*$U$3+AG70*$V$3 ->  | V70: =AB70*$U$3+AH70*$V$3 ->  | W70: =SUM(W71:W75) -> 0 | X70: =SUM(X71:X75) -> 0 | Y70: 0 | Z70: 0 | AA70: 0 | AB70: 0 | AC70: =SUM(AC71:AC75) -> 0 | AD70: =SUM(AD71:AD75) -> 0 | AE70: =SUM(AE71:AE75) -> 0 | AF70: =SUM(AF71:AF75) -> 0 | AG70: =SUM(AG71:AG75) -> 0 | AH70: =SUM(AH71:AH75) -> 0 | AI70: =SUM(AI71:AI75) ->  | AJ70: =SUM(AJ71:AJ75) -> 0 | AK70: 0
A71: 1.12.1. | B71: услуги связи | E71: ='смета 2014'!E57 -> 0 | F71: =G71+H71+I71 -> 0 | J71: ='смета 2014'!G57 -> 0 | K71: ='смета 2014'!H57 -> 0 | L71: ='смета 2014'!I57 -> 0 | M71: =N71+O71+P71 -> 0 | W71: =X71+Y71+Z71+AA71+AB71 -> 0 | AC71: =AD71+AE71+AF71+AG71+AH71 -> 0 | AI71: =AJ71*$AJ$3+AK71*$AK$3 ->  | AJ71: =J71/AP71*AQ71 -> 0 | AK71: =AJ71*прочие_2015_полуг -> 0 | AP71: 1.024 | AQ71: 1.048
A72: 1.12.2. | B72: услуги вневедомственной охраны | E72: ='смета 2014'!E58 -> 0 | F72: =G72+H72+I72 -> 0 | J72: ='смета 2014'!G58 -> 0 | K72: ='смета 2014'!H58 -> 0 | L72: ='смета 2014'!I58 -> 0 | M72: =N72+O72+P72 -> 0 | W72: =X72+Y72+Z72+AA72+AB72 -> 0 | AC72: =AD72+AE72+AF72+AG72+AH72 -> 0 | AJ72: =J72/AP72*AQ72 -> 0 | AK72: =AJ72*прочие_2015_полуг -> 0 | AP72: 1.024 | AQ72: 1.048
A73: 1.12.3. | B73: коммунальные услуги | E73: ='смета 2014'!E59 -> 0 | F73: 0 | J73: ='смета 2014'!G59 -> 0 | K73: ='смета 2014'!H59 -> 0 | L73: ='смета 2014'!I59 -> 0 | M73: 0 | W73: 0 | AC73: 0 | AI73: =AJ73*$AJ$3+AK73*$AK$3 ->  | AJ73: 0 | AK73: =AJ73*прочие_2015_полуг -> 0 | AP73: 1.024 | AQ73: 1.048
A74: 1.12.4. | B74: юридические, информационные, аудиторские и консультационные услуг | E74: ='смета 2014'!E60 -> 0 | F74: 0 | J74: ='смета 2014'!G60 -> 0 | K74: ='смета 2014'!H60 -> 0 | L74: ='смета 2014'!I60 -> 0 | M74: 0 | W74: 0 | AC74: 0 | AI74: =AJ74*$AJ$3+AK74*$AK$3 ->  | AJ74: 0 | AK74: =AJ74*прочие_2015_полуг -> 0 | AP74: 1.024 | AQ74: 1.048
A75: 1.12.5. | B75: не поименованные выше | E75: ='смета 2014'!E61 -> 0 | F75: 0 | J75: ='смета 2014'!G61 -> 0 | K75: ='смета 2014'!H61 -> 0 | L75: ='смета 2014'!I61 -> 0 | M75: 0 | W75: =X75+Y75+Z75+AA75+AB75 -> 0 | AC75: 0 | AI75: =AJ75*$AJ$3+AK75*$AK$3 ->  | AJ75: 0 | AK75: =AJ75*прочие_2015_полуг -> 0 | AP75: 1.024 | AQ75: 1.048
A76: 1.13 | B76: плата за выбросы и сбросы загрязняющих веществ в окружающую среду, размещение отходов и другие виды негативного воздействия на окружающую среду в пределах установленных нормативов и (или) лимитов | E76: ='смета 2014'!E62 -> 0 | F76: =G76+H76+I76 -> 0 | J76: ='смета 2014'!G62 -> 0 | K76: ='смета 2014'!H62 -> 0 | L76: ='смета 2014'!I62 -> 0 | M76: =N76+O76+P76 -> 0 | W76: =X76+Y76+Z76+AA76+AB76 -> 0 | AC76: 0 | AI76: =AJ76*$AJ$3+AK76*$AK$3 ->  | AJ76: =J76/AP76*AQ76 -> 0 | AK76: =AJ76*налоги_2015_полуг -> 0 | AP76: 1 | AQ76: 1
A77: 1.14 | B77: арендная плата, концессионная плата, лизинговые платежи всего, в том числе: | C77: =C78+C79+C80+C81 -> 0 | D77: =D78+D79+D80+D81 -> 0 | E77: =SUM(E78:E81) -> 0 | F77: =SUM(F78:F81) -> 0 | G77: =SUM(G78:G81) -> 0 | H77: =SUM(H78:H81) -> 0 | I77: 0 | J77: =SUM(J78:J81) -> 0 | K77: 0 | L77: 0 | M77: =SUM(M78:M81) -> 0 | N77: =SUM(N78:N81) -> 0 | O77: =SUM(O78:O81) -> 0 | P77: =SUM(P78:P81) -> 0 | W77: =SUM(W78:W81) -> 0 | X77: =SUM(X78:X81) -> 0 | Y77: 0 | Z77: 0 | AA77: 0 | AB77: 0 | AC77: =SUM(AC78:AC81) -> 0 | AD77: =SUM(AD78:AD81) -> 0 | AE77: =SUM(AE78:AE81) -> 0 | AF77: =SUM(AF78:AF81) -> 0 | AG77: =SUM(AG78:AG81) -> 0 | AH77: =SUM(AH78:AH81) -> 0 | AI77: =SUM(AI78:AI81) ->  | AJ77: =SUM(AJ78:AJ81) -> 0 | AK77: 0
A78: 1.14.1. | B78: арендная плата производственных объектов | E78: ='смета 2014'!E64-E79 -> 0 | F78: =G78+H78+I78 -> 0 | J78: ='смета 2014'!G64-J79 -> 0 | K78: ='смета 2014'!H64-K79 -> 0 | L78: ='смета 2014'!I64-L79 -> 0 | M78: =N78+O78+P78 -> 0 | W78: =X78+Y78+Z78+AA78+AB78 -> 0 | AC78: =AD78+AE78+AF78+AG78+AH78 -> 0 | AI78: =AJ78*$AJ$3+AK78*$AK$3 ->  | AJ78: =J78/AP78*AQ78 -> 0 | AK78: =AJ78*аренда_2015_полуг -> 0 | AP78: 1 | AQ78: 1
A79: 1.14.2. | B79: арендная плата не производственных объектов | F79: =G79+H79+I79 -> 0 | M79: =N79+O79+P79 -> 0 | W79: 0 | AC79: 0 | AJ79: =J79/AP79*AQ79 -> 0 | AK79: =AJ79*аренда_2015_полуг -> 0 | AP79: 1 | AQ79: 1
A80: 1.14.3. | B80: концессионная плата | E80: ='смета 2014'!E65 -> 0 | F80: =G80+H80+I80 -> 0 | J80: ='смета 2014'!G65 -> 0 | K80: ='смета 2014'!H65 -> 0 | L80: ='смета 2014'!I65 -> 0 | M80: 0 | W80: 0 | AC80: 0 | AJ80: 0 | AK80: =AJ80*аренда_2015_полуг -> 0 | AP80: 1 | AQ80: 1
A81: 1.14.4. | B81: лизинговые платежи | E81: ='смета 2014'!E66 -> 0 | F81: =G81+H81+I81 -> 0 | J81: ='смета 2014'!G66 -> 0 | K81: ='смета 2014'!H66 -> 0 | L81: ='смета 2014'!I66 -> 0 | M81: 0 | W81: 0 | AC81: 0 | AJ81: 0 | AK81: =AJ81*аренда_2015_полуг -> 0 | AP81: 1 | AQ81: 1
A82: 1.15 | B82: расходы на служебные командировки | E82: ='смета 2014'!E67 -> 0 | F82: 0 | J82: ='смета 2014'!G67 -> 0 | K82: ='смета 2014'!H67 -> 0 | L82: ='смета 2014'!I67 -> 0 | M82: 0 | W82: =X82+Y82+Z82+AA82+AB82 -> 0 | AC82: 0 | AJ82: 0 | AK82: =AJ82*прочие_2015_полуг -> 0 | AP82: 1.024 | AQ82: 1.048
A83: 1.16 | B83: расходы на обучение персонала | E83: ='смета 2014'!E68 -> 0 | F83: 0 | J83: ='смета 2014'!G68 -> 0 | K83: ='смета 2014'!H68 -> 0 | L83: ='смета 2014'!I68 -> 0 | M83: 0 | W83: 0 | AC83: 0 | AI83: =AJ83*$AJ$3+AK83*$AK$3 ->  | AJ83: 0 | AK83: =AJ83*прочие_2015_полуг -> 0 | AP83: 1.024 | AQ83: 1.048
A84: 1.17 | B84: расходы на страхование производственных объектов, учитываемые при определении налоговой базы по налогу на прибыль | E84: ='смета 2014'!E69 -> 0 | F84: =G84+H84+I84 -> 0 | J84: 10 | K84: ='смета 2014'!H69 -> 0 | L84: ='смета 2014'!I69 -> 0 | M84: =N84+O84+P84 -> 0 | Q84: 10 | W84: 0 | AC84: 0 | AI84: =AJ84*$AJ$3+AK84*$AK$3 ->  | AJ84: 10.234375 | AK84: =AJ84*прочие_2015_полуг -> 10.725625 | AM84: =AC84/W84*100 ->  | AN84: =Q84/J84*100 -> 100 | AO84: =AC84/L84*100 ->  | AP84: 1.024 | AQ84: 1.048
A85: 1.18 | B85: другие расходы, связанные с производством и (или) реализацией продукции, в том числе | C85: =C86+C92+C93+C94+C95+C97 -> 0 | D85: =D86+D92+D93+D94+D95+D97 -> 0 | E85: =E86+E92+E93+E94+E95+E97 -> 0 | F85: =F86+F92++F93+F94+F97+F95 -> 0 | G85: =G86+G92++G93+G94+G97 -> 0 | H85: =H86+H92++H93+H94+H95 -> 0 | I85: =I86+I92++I93+I94 -> 0 | J85: =J86+J92+J93+J94+J95+J97 -> 80 | K85: =K86+K92+K93+K94+K95+K97 -> 0 | L85: =L86+L92+L93+L94+L95+L97 -> 0 | M85: =M86+M92++M93+M94+M97+M95 -> 0 | N85: =N86+N92++N93+N94+N97 -> 0 | O85: =O86+O92++O93+O94+O95 -> 0 | P85: =P86+P92++P93+P94 -> 0 | W85: =W86+W92+W93+W94+W95+W97 -> 0 | X85: =X86+X92++X93+X94 -> 0 | Y85: =Y86+Y92++Y93+Y94 -> 0 | Z85: =Z86+Z92++Z93+Z94+Z97 -> 0 | AA85: =AA86+AA92+AA93+AA94+AA95 -> 0 | AB85: =AB86+AB92+AB93+AB94 -> 0 | AC85: =AC86+AC92+AC93+AC94+AC95+AC97 -> 0 | AD85: =AD86+AD92++AD93+AD94 -> 0 | AE85: =AE86+AE92++AE93+AE94 -> 0 | AF85: =AF86+AF92++AF93+AF94+AF97 -> 0 | AG85: =AG86+AG92+AG93+AG94+AG95 -> 0 | AH85: =AH86+AH92+AH93+AH94 -> 0 | AI85: =AI86+AI92+AI93+AI94+AI95+AI97 ->  | AJ85: =AJ86+AJ92+AJ93+AJ94+AJ95+AJ97 -> 81.875 | AK85: =AK86+AK92+AK93+AK94+AK95+AK97 -> 85.805
A86: 1.18.1 | B86: охрана труда всего, в том числе: | C86: =C87+C88+C89+C90+C91 -> 0 | D86: =D87+D88+D89+D90+D91 -> 0 | E86: =E87+E88+E89+E90+E91 -> 0 | F86: =SUM(F87:F91) -> 0 | G86: =SUM(G87:G91) -> 0 | H86: 0 | I86: 0 | J86: =J87+J88+J89+J90+J91 -> 50 | K86: =K87+K88+K89+K90+K91 -> 0 | L86: =L87+L88+L89+L90+L91 -> 0 | M86: =SUM(M87:M91) -> 0 | N86: =SUM(N87:N91) -> 0 | O86: 0 | P86: 0 | W86: =SUM(W87:W91) -> 0 | X86: =SUM(X87:X91) -> 0 | Y86: 0 | Z86: 0 | AA86: 0 | AB86: =SUM(AB87:AB91) -> 0 | AC86: =SUM(AC87:AC91) -> 0 | AD86: =SUM(AD87:AD91) -> 0 | AE86: =SUM(AE87:AE91) -> 0 | AF86: =SUM(AF87:AF91) -> 0 | AG86: =SUM(AG87:AG91) -> 0 | AH86: =SUM(AH87:AH91) -> 0 | AI86: =AI87+AI88+AI89+AI90+AI91 ->  | AJ86: =AJ87+AJ88+AJ89+AJ90+AJ91 -> 51.171875 | AK86: =AK87+AK88+AK89+AK90+AK91 -> 53.628125
A87: 1.18.1.1 | B87: моющие средства | E87: ='смета 2014'!E73 -> 0 | F87: =G87+H87+I87 -> 0 | J87: 10 | K87: ='смета 2014'!H73 -> 0 | L87: ='смета 2014'!I73 -> 0 | M87: =N87+O87+P87 -> 0 | Q87: 10 | W87: =X87+Y87+Z87+AA87+AB87 -> 0 | AC87: =AD87+AE87+AF87+AG87+AH87 -> 0 | AI87: =AJ87*$AJ$3+AK87*$AK$3 ->  | AJ87: =J87/AP87*AQ87 -> 10.234375 | AK87: =AJ87*прочие_2015_полуг -> 10.725625 | AN87: 100 | AP87: 1.024 | AQ87: 1.048
A88: 1.18.1.2 | B88: специальное питание | E88: ='смета 2014'!E74 -> 0 | F88: =G88+H88+I88 -> 0 | J88: 10 | K88: ='смета 2014'!H74 -> 0 | L88: ='смета 2014'!I74 -> 0 | M88: =N88+O88+P88 -> 0 | Q88: 10 | W88: =X88+Y88+Z88+AA88+AB88 -> 0 | AC88: =AD88+AE88+AF88+AG88+AH88 -> 0 | AJ88: 10.234375 | AK88: 10.725625 | AN88: 100 | AP88: 1.024 | AQ88: 1.048
A89: 1.18.1.3 | B89: страхование персонала | E89: ='смета 2014'!E75 -> 0 | F89: 0 | J89: 10 | K89: ='смета 2014'!H75 -> 0 | L89: ='смета 2014'!I75 -> 0 | M89: 0 | Q89: 10 | W89: 0 | AC89: 0 | AJ89: 10.234375 | AK89: 10.725625 | AN89: 100 | AP89: 1.024 | AQ89: 1.048
A90: 1.18.1.4 | B90: аттестация | E90: ='смета 2014'!E76 -> 0 | F90: 0 | J90: 10 | K90: ='смета 2014'!H76 -> 0 | L90: ='смета 2014'!I76 -> 0 | M90: 0 | Q90: 10 | W90: =X90+Y90+Z90+AA90+AB90 -> 0 | AC90: 0 | AJ90: 10.234375 | AK90: 10.725625 | AN90: 100 | AP90: 1.024 | AQ90: 1.048
A91: 1.18.1.5 | B91: медицинский осмотр | E91: ='смета 2014'!E77 -> 0 | F91: 0 | J91: 10 | K91: ='смета 2014'!H77 -> 0 | L91: ='смета 2014'!I77 -> 0 | M91: 0 | Q91: 10 | W91: =X91+Y91+Z91+AA91+AB91 -> 0 | AC91: =AD91+AE91+AF91+AG91+AH91 -> 0 | AJ91: 10.234375 | AK91: 10.725625 | AN91: 100 | AP91: 1.024 | AQ91: 1.048
A92: 1.18.2 | B92: прочие услуги | E92: ='смета 2014'!E78 -> 0 | F92: 0 | J92: 10 | K92: ='смета 2014'!H78 -> 0 | L92: ='смета 2014'!I78 -> 0 | M92: 0 | Q92: 10 | W92: =X92+Y92+Z92+AA92+AB92 -> 0 | AC92: =AD92+AE92+AF92+AG92+AH92 -> 0 | AJ92: =J92/AP92*AQ92 -> 10.234375 | AK92: 10.725625 | AN92: 100 | AP92: 1.024 | AQ92: 1.048
A93: 1.18.3 | B93: льготный проезд | E93: ='смета 2014'!E79 -> 0 | F93: 0 | J93: 10 | K93: ='смета 2014'!H79 -> 0 | L93: ='смета 2014'!I79 -> 0 | M93: 0 | Q93: 10 | R93: =X93*$U$3+AD93*$V$3 ->  | S93: =Y93*$U$3+AE93*$V$3 ->  | T93: =Z93*$U$3+AF93*$V$3 ->  | U93: =AA93*$U$3+AG93*$V$3 ->  | V93: =AB93*$U$3+AH93*$V$3 ->  | W93: 0 | AC93: 0 | AJ93: 10.234375 | AK93: 10.725625 | AN93: 100 | AP93: 1.024 | AQ93: 1.048
A94: 1.18.4 | B94: отчисления в ремонтный фонд | E94: ='смета 2014'!E80 -> 0 | F94: =G94+H94+I94 -> 0 | J94: 10 | K94: ='смета 2014'!H80 -> 0 | L94: ='смета 2014'!I80 -> 0 | M94: =N94+O94+P94 -> 0 | Q94: 10 | W94: =X94+Y94+Z94+AA94+AB94 -> 0 | AC94: =AD94+AE94+AF94+AG94+AH94 -> 0 | AI94: =AJ94*$AJ$3+AK94*$AK$3 ->  | AJ94: 10.234375 | AK94: 10.725625 | AN94: 100 | AP94: 1.024 | AQ94: 1.048
A95: 1.18.5 | B95: общехозяйственные расходы всего, в том числе: | C95: =C96 -> 0 | D95: =D96 -> 0 | E95: =E96 -> 0 | F95: =H95+I95 -> 0 | G95: х | H95: =H96 -> 0 | I95: =I96 -> 0 | J95: =J96 -> 0 | K95: 0 | L95: 0 | M95: =O95+P95 -> 0 | N95: х | O95: =O96 -> 0 | P95: =P96 -> 0 | Q95: =W95*$U$3+AC95*$V$3 ->  | R95: х | S95: х | T95: х | V95: х | W95: =AA95 -> 0 | X95: х | Y95: х | Z95: х | AA95: =AA96 -> 0 | AB95: х | AC95: =AG95 -> 0 | AD95: х | AE95: х | AF95: х | AG95: =AG96 -> 0 | AH95: х | AI95: =AI96 ->  | AJ95: =AJ96 -> 0 | AK95: 0
A96: 1.18.5.3. | B96: прочие общехозяйственные расходы | E96: ='смета 2014'!E86 -> 0 | F96: =H96+I96 -> 0 | G96: х | J96: ='смета 2014'!G86 -> 0 | K96: ='смета 2014'!H86 -> 0 | L96: ='смета 2014'!I86 -> 0 | M96: =O96+P96 -> 0 | N96: х | R96: х | S96: х | T96: х | V96: х | W96: =AA96 -> 0 | X96: х | Y96: х | Z96: х | AB96: х | AC96: =AG96 -> 0 | AD96: х | AE96: х | AF96: х | AH96: х | AI96: =AJ96*$AJ$3+AK96*$AK$3 ->  | AJ96: =J96/AP96*AQ96 -> 0 | AK96: =AJ96*прочие_2015_полуг -> 0 | AP96: 1.024 | AQ96: 1.048
A97: 1.18.6. | B97: расходы на сбыт | E97: ='смета 2014'!E87 -> 0 | F97: =G97 -> 0 | H97: х | I97: х | J97: ='смета 2014'!G87 -> 0 | K97: ='смета 2014'!H87 -> 0 | L97: ='смета 2014'!I87 -> 0 | M97: =N97 -> 0 | O97: х | P97: х | R97: х | S97: х | U97: х | V97: х | W97: =Z97 -> 0 | X97: х | Y97: х | AA97: х | AB97: х | AC97: =AF97 -> 0 | AD97: х | AE97: х | AG97: х | AH97: х | AI97: =AJ97*$AJ$3+AK97*$AK$3 ->  | AJ97: =J97/AP97*AQ97 -> 0 | AK97: =AJ97*прочие_2015_полуг -> 0 | AP97: 1.024 | AQ97: 1.048
A98: 1.19. | B98: налоги, относимые к расходам, связанным с производством и реализацией продукции | C98: =SUM(C99:C103) -> 0 | D98: 0 | E98: 0 | F98: 0 | G98: 0 | H98: 0 | I98: 0 | J98: =SUM(J99:J103) -> 0 | K98: 0 | L98: 0 | M98: =SUM(M99:M103) -> 0 | N98: =SUM(N99:N103) -> 0 | O98: =SUM(O99:O103) -> 0 | P98: =SUM(P99:P103) -> 0 | Q98: =W98*$U$3+AC98*$V$3 ->  | R98: =X98*$U$3+AD98*$V$3 ->  | S98: =Y98*$U$3+AE98*$V$3 ->  | T98: =Z98*$U$3+AF98*$V$3 ->  | U98: =AA98*$U$3+AG98*$V$3 ->  | V98: =AB98*$U$3+AH98*$V$3 ->  | W98: =SUM(W99:W103) -> 0 | X98: =SUM(X99:X103) -> 0 | Y98: 0 | Z98: 0 | AA98: 0 | AB98: 0 | AC98: =SUM(AC99:AC103) -> 0 | AD98: =SUM(AD99:AD103) -> 0 | AE98: 0 | AF98: 0 | AG98: 0 | AH98: 0 | AI98: =SUM(AI99:AI103) ->  | AJ98: 0 | AK98: 0
A99: 1.19.1. | B99: налог на имущество организаций | E99: ='смета 2014'!E89 -> 0 | F99: =G99+H99+I99 -> 0 | J99: ='смета 2014'!G89 -> 0 | K99: ='смета 2014'!H89 -> 0 | L99: ='смета 2014'!I89 -> 0 | M99: =N99+O99+P99 -> 0 | Q99: =W99*$U$3+AC99*$V$3 ->  | R99: =X99*$U$3+AD99*$V$3 ->  | S99: =Y99*$U$3+AE99*$V$3 ->  | T99: =Z99*$U$3+AF99*$V$3 ->  | U99: =AA99*$U$3+AG99*$V$3 ->  | V99: =AB99*$U$3+AH99*$V$3 ->  | W99: =X99+Y99+Z99+AA99+AB99 -> 0 | AC99: =AD99+AE99+AF99+AG99+AH99 -> 0 | AI99: =AJ99*$AJ$3+AK99*$AK$3 ->  | AJ99: =J99/AP99*AQ99 -> 0 | AK99: =AJ99*налоги_2015_полуг -> 0 | AP99: 1 | AQ99: 1
A100: 1.19.2. | B100: земельный налог | E100: ='смета 2014'!E90 -> 0 | F100: =G100+H100+I100 -> 0 | J100: ='смета 2014'!G90 -> 0 | K100: ='смета 2014'!H90 -> 0 | L100: ='смета 2014'!I90 -> 0 | M100: =N100+O100+P100 -> 0 | W100: 0 | AC100: 0 | AJ100: 0 | AK100: =AJ100*налоги_2015_полуг -> 0 | AP100: 1 | AQ100: 1
A101: 1.19.3. | B101: транспортный налог | E101: ='смета 2014'!E91 -> 0 | F101: =H101+I101 -> 0 | G101: х | J101: ='смета 2014'!G91 -> 0 | K101: ='смета 2014'!H91 -> 0 | L101: ='смета 2014'!I91 -> 0 | M101: =O101+P101 -> 0 | N101: х | R101: х | S101: х | T101: х | W101: =AA101+AB101 -> 0 | X101: х | Y101: х | Z101: х | AC101: =AG101+AH101 -> 0 | AD101: х | AE101: х | AF101: х | AJ101: 0 | AK101: =AJ101*налоги_2015_полуг -> 0 | AP101: 1 | AQ101: 1
A102: 1.19.4. | B102: водный налог | E102: ='смета 2014'!E92 -> 0 | F102: =G102 -> 0 | H102: х | I102: х | J102: ='смета 2014'!G92 -> 0 | K102: ='смета 2014'!H92 -> 0 | L102: ='смета 2014'!I92 -> 0 | M102: =N102 -> 0 | O102: х | P102: х | S102: х | T102: х | U102: х | V102: х | W102: =X102 -> 0 | Y102: х | Z102: х | AA102: х | AB102: х | AC102: =AD102 -> 0 | AE102: х | AF102: х | AG102: х | AH102: х | AJ102: 0 | AK102: =AJ102*налоги_2015_полуг -> 0 | AP102: 1 | AQ102: 1
A103: 1.19.5. | B103: прочие налоги | E103: ='смета 2014'!E93 -> 0 | F103: =G103+H103+I103 -> 0 | J103: ='смета 2014'!G93 -> 0 | K103: ='смета 2014'!H93 -> 0 | L103: ='смета 2014'!I93 -> 0 | M103: =N103+O103+P103 -> 0 | W103: =X103+Y103+Z103+AA103+AB103 -> 0 | AC103: =AD103+AE103+AF103+AG103+AH103 -> 0 | AJ103: 0 | AK103: =AJ103*налоги_2015_полуг -> 0 | AP103: 1 | AQ103: 1
A104: II | B104: Внереализационные расходы, всего | C104: =C105+C106+C107+C108 -> 0 | D104: =D105+D106+D107+D108 -> 0 | E104: =E105+E106+E107+E108 -> 0 | F104: =SUM(F105:F108) -> 0 | G104: =SUM(G105:G108) -> 0 | H104: =H108 -> 0 | I104: =I108 -> 0 | J104: =J105+J106+J107+J108 -> 0 | K104: 0 | L104: 0 | M104: =SUM(M105:M108) -> 0 | N104: =SUM(N105:N108) -> 0 | O104: =O108 -> 0 | P104: =P108 -> 0 | W104: =SUM(W105:W108) -> 0 | X104: =SUM(X105:X108) -> 0 | Y104: =SUM(Y105:Y108) -> 0 | Z104: 0 | AA104: =SUM(AA105:AA108) -> 0 | AB104: 0 | AC104: =SUM(AC105:AC108) -> 0 | AD104: =SUM(AD105:AD108) -> 0 | AE104: =SUM(AE105:AE108) -> 0 | AF104: 0 | AG104: =SUM(AG105:AG108) -> 0 | AH104: =SUM(AH105:AH108) -> 0 | AI104: =AI105+AI106+AI107+AI108 ->  | AJ104: 0 | AK104: 0
A105: 2.1 | B105: расходы на вывод из эксплуатации (в том числе на консервацию) и вывод из консервации | E105: ='смета 2014'!E95 -> 0 | F105: =G105 -> 0 | H105: х | I105: х | J105: ='смета 2014'!G95 -> 0 | K105: ='смета 2014'!H95 -> 0 | L105: ='смета 2014'!I95 -> 0 | M105: =N105 -> 0 | O105: х | P105: х | T105: х | U105: х | V105: х | W105: =X105+Y105 -> 0 | Z105: х | AA105: х | AB105: х | AC105: =AD105+AE105 -> 0 | AF105: х | AG105: х | AH105: х | AI105: =AJ105*$AJ$3+AK105*$AK$3 ->  | AJ105: =J105/AP105*AQ105 -> 0 | AK105: =AJ105 -> 0 | AP105: 1 | AQ105: 1
A106: 2.2 | B106: расходы по сомнительным долгам | E106: ='смета 2014'!E96 -> 0 | F106: =G106 -> 0 | H106: х | I106: х | J106: ='смета 2014'!G96 -> 0 | K106: ='смета 2014'!H96 -> 0 | L106: ='смета 2014'!I96 -> 0 | M106: =N106 -> 0 | O106: х | P106: х | Q106: =W106*$U$3+AC106*$V$3 ->  | R106: х | S106: х | T106: =Z106*$U$3+AF106*$V$3 ->  | U106: х | V106: х | W106: =Z106 -> 0 | X106: х | Y106: х | AA106: х | AB106: х | AC106: =AF106 -> 0 | AD106: х | AE106: х | AG106: х | AH106: х | AI106: =AJ106*$AJ$3+AK106*$AK$3 ->  | AJ106: =J106/AP106*AQ106 -> 0 | AK106: =AJ106*теплоэнергия_2015_полуг -> 0 | AP106: 1.023 | AQ106: 1.046
A107: 2.3 | B107: расходы, связанные с созданием нормативных запасов топлива, включая расходы по обслуживанию заемных средств, привлекаемых для этих целей | C107: ='резервное топливо'!D14+'резервное топливо'!D22+'резервное топливо'!D30+'резервное топливо'!D38 -> 0 | D107: ='резервное топливо'!E14+'резервное топливо'!E22+'резервное топливо'!E30+'резервное топливо'!E38 -> 0 | E107: ='смета 2014'!E97 -> 0 | F107: =G107 -> 0 | G107: ='резервное топливо'!G14+'резервное топливо'!G22+'резервное топливо'!G30+'резервное топливо'!G38 -> 0 | H107: х | I107: х | J107: ='смета 2014'!G97 -> 0 | K107: ='смета 2014'!H97 -> 0 | L107: ='смета 2014'!I97 -> 0 | M107: =N107 -> 0 | N107: ='резервное топливо'!I14+'резервное топливо'!I22+'резервное топливо'!I30+'резервное топливо'!I38 -> 0 | O107: х | P107: х | R107: =X107*$U$3+AD107*$V$3 ->  | S107: х | T107: х | U107: х | V107: х | W107: =X107 -> 0 | X107: ='резервное топливо'!K14+'резервное топливо'!K22+'резервное топливо'!K30+'резервное топливо'!K38 -> 0 | Y107: х | Z107: х | AA107: х | AB107: х | AC107: =AD107 -> 0 | AD107: ='резервное топливо'!Q14+'резервное топливо'!Q22+'резервное топливо'!Q30+'резервное топливо'!Q38 -> 0 | AE107: х | AF107: х | AG107: х | AH107: х | AI107: =AJ107*$AJ$3+AK107*$AK$3 -> 
A108: 2.4 | B108: другие обосновывающие расходы, в том числе | C108: =C109+C110 -> 0 | D108: =D109+D110 -> 0 | E108: =SUM(E109:E110) -> 0 | F108: =SUM(F109:F110) -> 0 | G108: =SUM(G109:G110) -> 0 | H108: =SUM(H109:H110) -> 0 | I108: 0 | J108: =SUM(J109:J110) -> 0 | K108: 0 | L108: 0 | M108: =SUM(M109:M110) -> 0 | N108: =SUM(N109:N110) -> 0 | O108: =SUM(O109:O110) -> 0 | P108: =SUM(P109:P110) -> 0 | S108: =Y108*$U$3+AE108*$V$3 ->  | T108: =Z108*$U$3+AF108*$V$3 ->  | U108: =AA108*$U$3+AG108*$V$3 ->  | V108: =AB108*$U$3+AH108*$V$3 ->  | W108: =SUM(W109:W110) -> 0 | X108: =SUM(X109:X110) -> 0 | Y108: 0 | Z108: 0 | AA108: 0 | AB108: 0 | AC108: =SUM(AC109:AC110) -> 0 | AD108: =SUM(AD109:AD110) -> 0 | AE108: 0 | AF108: 0 | AG108: 0 | AH108: 0 | AI108: =SUM(AI109:AI110) ->  | AJ108: =SUM(AJ109:AJ110) -> 0 | AK108: 0
A109: 2.4.1 | B109: расходы на услуги банков | E109: ='смета 2014'!E99 -> 0 | F109: =G109+H109 -> 0 | I109: х | J109: ='смета 2014'!G99 -> 0 | K109: ='смета 2014'!H99 -> 0 | L109: ='смета 2014'!I99 -> 0 | M109: =N109+O109 -> 0 | P109: х | Q109: =W109*$U$3+AC109*$V$3 ->  | R109: =X109*$U$3+AD109*$V$3 ->  | S109: =Y109*$U$3+AE109*$V$3 ->  | T109: =Z109*$U$3+AF109*$V$3 ->  | U109: =AA109*$U$3+AG109*$V$3 ->  | V109: х | W109: =SUM(X109:AB109) -> 0 | AB109: х | AC109: =SUM(AD109:AH109) -> 0 | AH109: х | AI109: =AJ109*$AJ$3+AK109*$AK$3 ->  | AJ109: =J109/AP109*AQ109 -> 0 | AK109: =AJ109*прочие_2015_полуг -> 0 | AP109: 1.024 | AQ109: 1.048
A110: 2.4.2. | B110: расходы на обслуживание заемных средств | E110: ='смета 2014'!E100 -> 0 | F110: =G110+H110 -> 0 | I110: х | J110: ='смета 2014'!G100 -> 0 | K110: ='смета 2014'!H100 -> 0 | L110: ='смета 2014'!I100 -> 0 | M110: =N110+O110 -> 0 | P110: х | V110: х | W110: =SUM(X110:AB110) -> 0 | AB110: х | AC110: =SUM(AD110:AH110) -> 0 | AH110: х | AI110: =AJ110*$AJ$3+AK110*$AK$3 ->  | AJ110: 0 | AK110: =AJ110*прочие_2015_полуг -> 0 | AP110: 1.024 | AQ110: 1.048
A111: III | B111: расходы, не учитываемые в целях налообложения, всего | C111: =C112+C113+C114+C115 -> 0 | D111: =D112+D113+D114+D115 -> 0 | E111: =SUM(E112:E115) -> 0 | F111: =SUM(F112:F115) -> 0 | G111: =SUM(G112:G115) -> 0 | H111: х | I111: х | J111: =SUM(J112:J115) -> 0 | K111: 0 | L111: 0 | M111: =SUM(M112:M115) -> 0 | N111: =SUM(N112:N115) -> 0 | O111: =SUM(O112:O115) -> 0 | P111: =SUM(P112:P115) -> 0 | U111: х | V111: х | W111: =W112+W113+W114 ->  | X111: =X112+X113+X114 ->  | AA111: х | AB111: х | AC111: =AC112+AC113+AC114 ->  | AD111: =AD112+AD113+AD114 ->  | AE111: =AE112+AE113+AE114 ->  | AF111: =AF112+AF113+AF114 ->  | AG111: х | AH111: х | AI111: =SUM(AI112:AI115) ->  | AJ111: 0 | AK111: 0
A112: 3.1 | B112: расходы на капитальные вложения (инвестиции) | E112: ='смета 2014'!E102 -> 0 | F112: =G112 -> 0 | H112: х | I112: х | J112: ='смета 2014'!G102 -> 0 | K112: ='смета 2014'!H102 -> 0 | L112: ='смета 2014'!I102 -> 0 | M112: =N112 -> 0 | O112: х | P112: х | Q112: =W112*$U$3+AC112*$V$3 ->  | R112: =X112*$U$3+AD112*$V$3 ->  | S112: =Y112*$U$3+AE112*$V$3 ->  | T112: =Z112*$U$3+AF112*$V$3 ->  | U112: х | V112: х | W112: =X112+Y112+Z112 -> 0 | AA112: х | AB112: х | AC112: =AD112+AE112+AF112 -> 0 | AG112: х | AH112: х | AI112: =AJ112*$AJ$3+AK112*$AK$3 ->  | AJ112: =J112/AP112*AQ112 -> 0 | AK112: =AJ112*прочие_2015_полуг -> 0 | AP112: 1.024 | AQ112: 1.048
A113: 3.2 | B113: денежные выплаты социального характера (по коллективному договору) | E113: ='смета 2014'!E103 -> 0 | F113: =G113 -> 0 | H113: х | I113: х | J113: ='смета 2014'!G103 -> 0 | K113: ='смета 2014'!H103 -> 0 | L113: ='смета 2014'!I103 -> 0 | M113: =N113 -> 0 | O113: х | P113: х | U113: х | V113: х | W113: =X113+Y113+Z113 ->  | X113: =IF(анкета!$C$35="без учета НДС",'смета 2015'!X118-'смета 2015'!X117-'смета 2015'!X116-'смета 2015'!X112-'смета 2015'!X114-'смета 2015'!X115,IF($Q$119>1,X118-X117-X116-X112-X114-X115,0)) ->  | Y113: =IF(анкета!$C$35="без учета НДС",'смета 2015'!Y118-'смета 2015'!Y117-'смета 2015'!Y116-'смета 2015'!Y112-'смета 2015'!Y114-'смета 2015'!Y115,IF($Q$119>1,Y118-Y117-Y116-Y112-Y114-Y115,0)) ->  | Z113: =IF(анкета!$C$35="без учета НДС",'смета 2015'!Z118-'смета 2015'!Z117-'смета 2015'!Z116-'смета 2015'!Z112-'смета 2015'!Z114-'смета 2015'!Z115,IF($Q$119>1,Z118-Z117-Z116-Z112-Z114-Z115,0)) ->  | AA113: х | AB113: х | AC113: =AD113+AE113+AF113 ->  | AD113: =IF(анкета!$C$35="без учета НДС",'смета 2015'!AD118-'смета 2015'!AD117-'смета 2015'!AD116-'смета 2015'!AD112-'смета 2015'!AD114-'смета 2015'!AD115,IF($Q$119>1,AD118-AD117-AD116-AD112-AD114-AD115,0)) ->  | AE113: =IF(анкета!$C$35="без учета НДС",'смета 2015'!AE118-'смета 2015'!AE117-'смета 2015'!AE116-'смета 2015'!AE112-'смета 2015'!AE114-'смета 2015'!AE115,IF($Q$119>1,AE118-AE117-AE116-AE112-AE114-AE115,0)) ->  | AF113: =IF(анкета!$C$35="без учета НДС",'смета 2015'!AF118-'смета 2015'!AF117-'смета 2015'!AF116-'смета 2015'!AF112-'смета 2015'!AF114-'смета 2015'!AF115,IF($Q$119>1,AF118-AF117-AF116-AF112-AF114-AF115,0)) ->  | AG113: х | AH113: х | AJ113: 0 | AK113: =AJ113*прочие_2015_полуг -> 0 | AP113: 1.024 | AQ113: 1.048
A114: 3.4 | B114: резервный фонд | E114: ='смета 2014'!E104 -> 0 | F114: 0 | H114: х | I114: х | J114: ='смета 2014'!G104 -> 0 | K114: ='смета 2014'!H104 -> 0 | L114: ='смета 2014'!I104 -> 0 | M114: 0 | O114: х | P114: х | U114: х | V114: х | W114: =X114+Y114+Z114 -> 0 | AA114: х | AB114: х | AC114: =AD114+AE114+AF114 -> 0 | AG114: х | AH114: х | AJ114: 0 | AK114: =AJ114*прочие_2015_полуг -> 0 | AP114: 1.024 | AQ114: 1.048
A115: 3.5 | B115: прочие расходы (прибыль на прочие цели) | E115: ='смета 2014'!E105 -> 0 | F115: 0 | H115: х | I115: х | J115: ='смета 2014'!G105 -> 0 | K115: ='смета 2014'!H105 -> 0 | L115: ='смета 2014'!I105 -> 0 | M115: 0 | O115: х | P115: х | U115: х | V115: х | W115: =X115+Y115+Z115 -> 0 | AA115: х | AB115: х | AC115: =AD115+AE115+AF115 -> 0 | AG115: х | AH115: х | AJ115: 0 | AK115: =AJ115*прочие_2015_полуг -> 0 | AP115: 1.024 | AQ115: 1.048
A116: IV | B116: налог на прибыль | E116: ='смета 2014'!E106 -> 0 | F116: =G116 -> 0 | H116: х | I116: х | J116: ='смета 2014'!G106 -> 0 | K116: ='смета 2014'!H106 -> 0 | L116: ='смета 2014'!I106 -> 0 | M116: =N116 -> 0 | O116: х | P116: х | U116: х | V116: х | W116: =IF(анкета!$C$35="без учета НДС",0.2*'смета 2015'!W118,0) ->  | X116: =IF(анкета!$C$35="без учета НДС",0.2*'смета 2015'!X118,0) ->  | Y116: =IF(анкета!$C$35="без учета НДС",0.2*'смета 2015'!Y118,0) ->  | Z116: =IF(анкета!$C$35="без учета НДС",0.2*'смета 2015'!Z118,0) ->  | AA116: х | AB116: х | AC116: =IF(анкета!$C$35="без учета НДС",0.2*'смета 2015'!AC118,0) ->  | AD116: =IF(анкета!$C$35="без учета НДС",0.2*'смета 2015'!AD118,0) ->  | AE116: =IF(анкета!$C$35="без учета НДС",0.2*'смета 2015'!AE118,0) ->  | AF116: =IF(анкета!$C$35="без учета НДС",0.2*'смета 2015'!AF118,0) ->  | AG116: х | AH116: х | AI116: =IF(анкета!$C$35="без учета НДС",0.2*'смета 2015'!AI111,0) ->  | AJ116: =IF(анкета!$C$35="без учета НДС",0.2*'смета 2015'!AJ111,0) -> 0 | AK116: =IF(анкета!$C$35="без учета НДС",0.2*'смета 2015'!AK111,0) -> 0
A117: IV* | B117: (или)единый налог при УСН | E117: ='смета 2014'!E107 -> 0 | F117: =G117 -> 0 | H117: х | I117: х | J117: ='смета 2014'!G107 -> 0 | K117: ='смета 2014'!H107 -> 0 | L117: ='смета 2014'!I107 -> 0 | M117: =N117 -> 0 | O117: х | P117: х | U117: х | V117: х | W117: =IF(анкета!$C$35="без учета НДС",0,IF($Q$119=1,W118,0.1*W118)) -> 0 | X117: =IF(анкета!$C$35="без учета НДС",0,IF($Q$119=1,X118,0.1*X118)) -> 0 | Y117: =IF(анкета!$C$35="без учета НДС",0,IF($Q$119=1,Y118,0.1*Y118)) -> 0 | Z117: =IF(анкета!$C$35="без учета НДС",0,IF($Q$119=1,Z118,0.1*Z118)) -> 0 | AA117: х | AB117: х | AC117: =IF(анкета!$C$35="без учета НДС",0,IF($Q$119=1,AC118,0.1*AC118)) -> 0 | AD117: =IF(анкета!$C$35="без учета НДС",0,IF($Q$119=1,AD118,0.1*AD118)) -> 0 | AE117: =IF(анкета!$C$35="без учета НДС",0,IF($Q$119=1,AE118,0.1*AE118)) -> 0 | AF117: =IF(анкета!$C$35="без учета НДС",0,IF($Q$119=1,AF118,0.1*AF118)) -> 0 | AG117: х | AH117: х | AI117: =IF(анкета!$C$35="без учета НДС",0,0.1*AI111) -> 0 | AJ117: =IF(анкета!$C$35="без учета НДС",0,0.1*AJ111) -> 0 | AK117: =IF(анкета!$C$35="без учета НДС",0,0.1*AK111) -> 0
A118: IV.1. | B118: Финансовый результат от реализации всего | C118: =C123-C167 -> 0 | D118: =D123-D167 -> 0 | E118: ='смета 2014'!E108 -> 0 | F118: =G118 -> 0 | G118: =F123-F167 -> 0 | H118: х | I118: х | J118: ='смета 2014'!G108 -> 0 | K118: ='смета 2014'!H108 -> 0 | L118: ='смета 2014'!I108 -> 0 | M118: =N118 -> 0 | N118: =N111+N116+N117 -> 0 | O118: х | P118: х | U118: х | V118: х | W118: =(W13+W104)*W119/100 ->  | X118: =W118/(X13+Y13+Z13)*X13 ->  | Y118: =W118/(X13+Y13+Z13)*Y13 ->  | Z118: =W118-X118-Y118 ->  | AA118: х | AB118: х | AC118: =(AC13+AC104)*AC119/100 ->  | AD118: =AC118/(AD13+AE13+AF13)*AD13 ->  | AE118: =AC118/(AD13+AE13+AF13)*AE13 ->  | AF118: =AC118-AD118-AE118 ->  | AG118: х | AH118: х | AI118: =AI117+AI116+AI111 ->  | AJ118: =AJ117+AJ116+AJ111 -> 0 | AK118: 0
A119: IV.2. | B119: то же в % | C119: =C118/C167*100 ->  | D119: =D118/D167*100 ->  | E119: ='смета 2014'!E109 -> 0 | F119: =F118/F167*100 ->  | G119: =G118/G167*100 ->  | H119: х | I119: х | J119: ='смета 2014'!G109 -> 0 | K119: ='смета 2014'!H109 -> 0 | L119: ='смета 2014'!I109 -> 0 | M119: =M118/(M13+M104)*100 ->  | N119: =M119 ->  | O119: х | P119: х | Q119: =Q118/(Q13+Q104)*100 ->  | R119: х | S119: х | T119: х | U119: х | V119: х | X119: х | Y119: х | Z119: х | AA119: х | AB119: х | AD119: х | AE119: х | AF119: х | AG119: х | AH119: х | AI119: =AI118/(AI13+AI104)*100 ->  | AJ119: =AJ118/(AJ13+AJ104)*100 -> 
A120: V | B120: выпадающие расходы/экономия | C120: х | D120: х | E120: ='смета 2014'!E110 -> 0 | F120: ='смета 2014'!F110 -> 0 | G120: х | H120: х | I120: х | J120: ='смета 2014'!G110 -> 0 | K120: ='смета 2014'!H110 -> 0 | L120: ='смета 2014'!I110 -> 0 | M120: =N120 -> 0 | O120: х | P120: х | Q120: =W120*$U$3+AC120*$V$3 ->  | R120: =X120*$U$3+AD120*$V$3 ->  | S120: =Y120*$U$3+AE120*$V$3 ->  | T120: =Z120*$U$3+AF120*$V$3 ->  | U120: х | V120: х | W120: =X120+Y120+Z120 -> 0 | AA120: х | AB120: х | AC120: =AD120+AE120+AF120 -> 0 | AG120: х | AH120: х
A121: 5.1. | B121: выпадающие расходы/экономия (в целях выравнивания сметы между полугодия регулируемого периода) | C121: х | D121: х | E121: ='смета 2014'!E111 -> 0 | F121: х | J121: ='смета 2014'!G111 -> 0 | K121: ='смета 2014'!H111 -> 0 | L121: ='смета 2014'!I111 -> 0 | M121: х | N121: х | O121: х | P121: х | AI121: =AJ121*AJ3+AK121*AK3 ->  | AJ121: =(AJ195-(AJ13+AJ104+AJ111+AJ116+AJ117)/AJ173)*AJ173 ->  | AK121: =(AK195-(AK13+AK104+AK111+AK116+AK117)/AK173)*AK173 -> 
A122: VI | B122: необходимая валовая выручка,всего | C122: =C13+C104+C111+C116+C117 -> 0 | D122: =D13+D104+D111+D116+D117 -> 0 | E122: =E13+E104+E111+E116+E120+E117 -> 0 | F122: =F13+F104+F111+F116+F120+F117 -> 0 | G122: =G13+G104+G111+G116+G117 -> 0 | H122: =H13+H104 -> 0 | I122: =I13+I104 -> 0 | J122: =J13+J104+J111+J116+J120+J117+J121 -> 90 | K122: =K13+K104+K111+K116+K120+K117+K121 -> 0 | L122: =L13+L104+L111+L116+L120+L117+L121 -> 0 | M122: =M13+M104+M111+M116+M120+M117 -> 0 | N122: =N13+N104+N111+N116+N120+N117 -> 0 | O122: =O13+O104 -> 0 | P122: =P13+P104 -> 0 | Q122: =Q13+Q104+Q116+Q117+Q120+Q121 ->  | R122: =R13+R104+R116+R117+R120+R121 ->  | U122: =U13+U104 ->  | V122: =V13+V104 ->  | W122: =W13+W104+W116+W117+W120+W121 ->  | X122: =X13+X104+X116+X117+X120+X121 ->  | AA122: =AA13+AA104 ->  | AB122: =AB13+AB104 -> 0 | AC122: =AC13+AC104+AC116+AC117+AC120+AC121 ->  | AD122: =AD13+AD104+AD116+AD117+AD120+AD121 ->  | AE122: =AE13+AE104+AE116+AE117+AE120+AE121 ->  | AF122: =AF13+AF104+AF116+AF117+AF120+AF121 ->  | AG122: =AG13+AG104 ->  | AH122: =AH13+AH104 -> 0 | AI122: =AI13+AI104+AI111+AI116+AI120+AI117+AI121 ->  | AJ122: =AJ13+AJ104+AJ111+AJ116+AJ120+AJ117+AJ121 ->  | AK122: =AK13+AK104+AK111+AK116+AK120+AK117+AK121 -> 
A123: VII | B123: товарная продукция | E123: ='смета 2013'!D57 -> 0 | G123: х | H123: х | I123: х | M123: =M195*M187 ->  | N123: х | O123: х | P123: х | Q123: =Q195*Q187 ->  | R123: х | S123: х | T123: х | U123: х | V123: х | W123: =W195*W187 ->  | X123: х | Y123: х | Z123: х | AA123: х | AB123: х | AC123: =AC195*AC187 ->  | AD123: х | AE123: х | AF123: х | AG123: х | AH123: х
B124: справочно: объем дотаций из всех уровней бюджета | F124: =G124 -> 0 | H124: х | I124: х | M124: х | N124: х | O124: х | P124: х | Q124: х | R124: х | S124: х | T124: х | U124: х | V124: х | W124: х | X124: х | Y124: х | Z124: х | AA124: х | AB124: х | AC124: х | AD124: х | AE124: х | AF124: х | AG124: х | AH124: х | AM124: х | AN124: х | AO124: х
B125: Операционные (подконтрольные расходы) | C125: =SUM(C126:C134) -> 0 | D125: 0 | E125: 0 | F125: 0 | G125: 0 | H125: 0 | I125: 0 | J125: 80 | K125: 0 | L125: 0 | M125: 0 | N125: 0 | O125: 0 | P125: 0 | Q125: =SUM(Q126:Q134) ->  | Z125: 0 | AB125: 0 | AC125: =SUM(AC126:AC134) ->  | AD125: =SUM(AD126:AD134) ->  | AE125: =SUM(AE126:AE134) ->  | AF125: =SUM(AF126:AF134) -> 0 | AG125: =SUM(AG126:AG134) ->  | AH125: =SUM(AH126:AH134) -> 0 | AI125: =SUM(AI126:AI134) ->  | AJ125: 81.875 | AK125: 85.805 | AM125: =SUM(AM126:AM134) ->  | AN125: =SUM(AN126:AN134) -> 
B126: расходы на сырье и материалы | C126: =C14 -> 0 | D126: 0 | E126: 0 | F126: 0 | G126: 0 | H126: 0 | I126: 0 | J126: 0 | K126: 0 | L126: 0 | M126: 0 | N126: 0 | O126: 0 | P126: 0 | Q126: =Q14 ->  | W126: 0 | X126: 0 | Y126: 0 | Z126: 0 | AA126: 0 | AB126: 0 | AC126: =AC14 -> 0 | AD126: 0 | AE126: 0 | AF126: 0 | AG126: 0 | AH126: 0 | AJ126: 0 | AK126: 0 | AM126: =AM21 ->  | AN126: =AN21 -> 
B127: расходы на ремонт основных средств | C127: =C54 -> 0 | D127: 0 | E127: 0 | F127: 0 | G127: 0 | H127: 0 | I127: 0 | J127: 0 | K127: 0 | L127: 0 | M127: 0 | N127: 0 | O127: 0 | P127: 0 | Q127: =Q54 ->  | W127: 0 | X127: 0 | Y127: 0 | Z127: 0 | AA127: 0 | AB127: 0 | AC127: =AC54 -> 0 | AD127: 0 | AE127: 0 | AF127: 0 | AG127: 0 | AH127: 0 | AJ127: 0 | AK127: 0 | AM127: =AM55 ->  | AN127: =AN55 -> 
B128: расходы на оплату труда | C128: =C42 -> 0 | D128: 0 | E128: 0 | F128: 0 | G128: 0 | H128: 0 | I128: 0 | J128: 0 | K128: 0 | L128: 0 | M128: 0 | N128: 0 | O128: 0 | P128: 0 | Q128: =Q42 ->  | Z128: 0 | AB128: 0 | AC128: =AC42 ->  | AF128: 0 | AH128: 0 | AJ128: 0 | AK128: 0 | AM128: =AM43+#REF! ->  | AN128: =AN43+#REF! -> 
B129: расходы на оплату работ и услуг производственного характера, выполняемых по договорам со сторонними организациями | C129: =C59 -> 0 | D129: 0 | E129: 0 | F129: 0 | G129: 0 | H129: 0 | I129: 0 | J129: 0 | K129: 0 | L129: 0 | M129: 0 | N129: 0 | O129: 0 | P129: 0 | Q129: =Q59 ->  | W129: 0 | X129: 0 | Y129: 0 | Z129: 0 | AA129: 0 | AB129: 0 | AC129: =AC59 -> 0 | AD129: 0 | AE129: 0 | AF129: 0 | AG129: 0 | AH129: 0 | AJ129: 0 | AK129: 0 | AL129: =AL60 -> 0 | AM129: =AM60 ->  | AN129: =AN60 -> 
B130: расходы на оплату иных работ и услуг, выполняемых по договорам с организациям, включая расходы на оплату услуг связи, вневедомственной охраны, коммунальных услуг, юридических, информационных, аудиторских и консультационных услуг | C130: =C70 -> 0 | D130: 0 | E130: 0 | F130: 0 | G130: 0 | H130: 0 | I130: 0 | J130: 0 | K130: 0 | L130: 0 | M130: 0 | N130: 0 | O130: 0 | P130: 0 | Q130: =Q70 ->  | W130: 0 | X130: 0 | Y130: 0 | Z130: 0 | AA130: 0 | AB130: 0 | AC130: =AC70 -> 0 | AD130: 0 | AE130: 0 | AF130: 0 | AG130: 0 | AH130: 0 | AJ130: 0 | AK130: 0 | AL130: =AL71 -> 0 | AM130: =AM71 ->  | AN130: =AN71 -> 
B131: расходы на служебные командировки | C131: =C82 -> 0 | D131: 0 | E131: 0 | F131: 0 | G131: 0 | H131: 0 | I131: 0 | J131: 0 | K131: 0 | L131: 0 | M131: 0 | N131: 0 | O131: 0 | P131: 0 | Q131: =Q82 ->  | W131: 0 | X131: 0 | Y131: 0 | Z131: 0 | AA131: 0 | AB131: 0 | AC131: =AC82 -> 0 | AD131: 0 | AE131: 0 | AF131: 0 | AG131: 0 | AH131: 0 | AJ131: 0 | AK131: 0 | AL131: =AL83 -> 0
B132: расходы на обучение персонала | C132: =C83 -> 0 | D132: 0 | E132: 0 | F132: 0 | G132: 0 | H132: 0 | I132: 0 | J132: 0 | K132: 0 | L132: 0 | M132: 0 | N132: 0 | O132: 0 | P132: 0 | Q132: =Q83 ->  | W132: 0 | X132: 0 | Y132: 0 | Z132: 0 | AA132: 0 | AB132: 0 | AC132: =AC83 -> 0 | AD132: 0 | AE132: 0 | AF132: 0 | AG132: 0 | AH132: 0 | AJ132: 0 | AK132: 0 | AL132: 0 | AN132: 100
